Workbook

Sheet A venir

Sheet Feuil3
A1: http://commerciaux.celca.caisse-epargne.fr/download/166/segmentation-activation/8760/segmentation_cegee.pdf

Sheet EDS
A1: eds pdv | B1: pdv | C1: eds pdv | D1: agence | E1: territoire | F1: région | I1: AUBE_HAUTE_MARNE | J1: BAS_RHIN | K1: HAUT_RHIN | L1: MARNE_ARDENNES | M1: MEURTHE_ET_MOSELLE_MEUSE | N1: MOSELLE | O1: VOSGES | P1: MULTIMEDIA | Q1: CEGEE | R1: CHAUMONT | S1: TROYES | T1: HAGUENAU | U1: SELESTAT | V1: STRASBOURG | W1: COLMAR | X1: MULHOUSE | Y1: CHALONS_EN_CHAMPAGNE | Z1: CHARLEVILLE_MEZIERES | AA1: REIMS | AB1: NANCY | AC1: PONT_A_MOUSSON | AD1: VERDUN | AE1: METZ | AF1: MOSELLE_EST | AG1: MOSELLE_NORD | AH1: EPINAL | AI1: SAINT_DIE | AJ1: MON_AGENCE | AK1: MON_BANQUIER_EN_LIGNE
A2: 10560 | B2: BOURBONNE LES BAINS | C2: 410560 | D2: BOURBONNE LES BAINS | E2: CHAUMONT | F2: AUBE_HAUTE_MARNE | I2: CHAUMONT | J2: HAGUENAU | K2: COLMAR | L2: CHALONS_EN_CHAMPAGNE | M2: NANCY | N2: METZ | O2: EPINAL | P2: MON_AGENCE | R2: BOURBONNE LES BAINS | S2: AIX EN OTHE | T2: BISCHWILLER | U2: BARR | V2: BISCHHEIM | W2: COLMAR MARAICHERS | X2: ALTKIRCH | Y2: CHALONS ROOSEVELT | Z2: CARIGNAN | AA2: AY CHAMPAGNE | AB2: BACCARAT | AC2: BRIEY | AD2: BAR LE DUC | AE2: ARS SUR MOSELLE | AF2: BEHREN LES FORBACH | AG2: AUDUN LE TICHE | AH2: CHANTRAINE | AI2: BRUYERES | AJ2: MON AGENCE | AK2: MON BANQUIER EN LIGNE
A3: 10558 | B3: CHALINDREY | C3: 510558 | D3: CHALINDREY | E3: CHAUMONT | F3: AUBE_HAUTE_MARNE | I3: TROYES | J3: SELESTAT | K3: MULHOUSE | L3: CHARLEVILLE_MEZIERES | M3: PONT_A_MOUSSON | N3: MOSELLE_EST | O3: SAINT_DIE | P3: MON_BANQUIER_EN_LIGNE | R3: CHALINDREY | S3: ARCIS SUR AUBE | T3: DRUSENHEIM | U3: BENFELD | V3: LA WANTZENAU | W3: COLMAR REPUBLIQUE | X3: FERRETTE | Y3: CHALONS VIVIERS | Z3: CHARLEVILLE JEAN JAURES | AA3: BETHENY | AB3: BAYON | AC3: CHALIGNY NEUVES MAISONS | AD3: COMMERCY | AE3: BOULAY | AF3: BITCHE | AG3: BOUSSE | AH3: CHARMES | AI3: CORNIMONT LA BRESSE
A4: 10539 | B4: CHATEAUVILLAIN | C4: 410539 | D4: CHATEAUVILLAIN | E4: CHAUMONT | F4: AUBE_HAUTE_MARNE | J4: STRASBOURG | L4: REIMS | M4: VERDUN | N4: MOSELLE_NORD | R4: CHATEAUVILLAIN | S4: BAR SUR AUBE | T4: HERRLISHEIM | U4: ERSTEIN | V4: VENDENHEIM | W4: COLMAR SAINT JOSEPH | X4: BRUNSTATT | Y4: FAGNIERES LECLERC | Z4: CHARLEVILLE MEZIERES | AA4: DAMERY | AB4: BLAINVILLE | AC4: CHAMPIGNEULLES | AD4: ETAIN | AE4: CLOUANGE | AF4: CHATEAU SALINS | AG4: BOUZONVILLE | AH4: CHATENOIS VOSGES | AI4: FRAIZE
A5: 10566 | B5: CHAUMONT HOTEL DE VILLE | C5: 410566 | D5: CHAUMONT HOTEL DE VILLE | E5: CHAUMONT | F5: AUBE_HAUTE_MARNE | R5: CHAUMONT HOTEL DE VILLE | S5: BAR SUR SEINE | T5: BOUXWILLER | U5: FEGERSHEIM | V5: MUNDOLSHEIM | W5: COLMAR SAINTE MARIE | X5: CERNAY | Y5: MONTMIRAIL | Z5: CHARLEVILLE MOHON | AA5: DORMANS | AB5: BLAMONT | AC5: DIEULOUARD | AD5: LIGNY EN BARROIS | AE5: MAIZIERES LES METZ | AF5: CREUTZWALD | AG5: CATTENOM | AH5: DARNEY | AI5: GERARDMER
A6: 10590 | B6: CHAUMONT REPUBLIQUE | C6: 510590 | D6: CHAUMONT REPUBLIQUE | E6: CHAUMONT | F6: AUBE_HAUTE_MARNE | R6: CHAUMONT REPUBLIQUE | S6: BRIENNE LE CHATEAU | T6: BRUMATH | U6: ILLKIRCH CENTRE | V6: OBERHAUSBERGEN | W6: COLMAR VAUBAN | X6: SEPPOIS LE BAS | Y6: SUIPPES | Z6: CHARLEVILLE NEVERS | AA6: EPERNAY | AB6: DOMBASLE SUR MEURTHE | AC6: FROUARD | AD6: LONGUYON | AE6: MARANGE SILVANGE | AF6: DIEUZE | AG6: FAMECK | AH6: DOCELLES | AI6: GRANGES AUMONTZEY
A7: 51154 | B7: JOINVILLE | C7: 451154 | D7: JOINVILLE | E7: CHAUMONT | F7: AUBE_HAUTE_MARNE | R7: JOINVILLE | S7: LA CHAPELLE ST LUC | T7: WEITBRUCH | U7: ILLKIRCH NORD | V7: REICHSTETT | W7: ENSISHEIM | X7: DANNEMARIE | Y7: MOURMELON LE GRAND | Z7: GIVET | AA7: FISMES | AB7: ESSEY LES NANCY | AC7: JARNY | AD7: LONGWY BAS | AE7: MARLY | AF7: FAULQUEMONT | AG7: FLORANGE | AH7: ELOYES | AI7: LE THILLOT
A8: 10541 | B8: LANGRES | C8: 410541 | D8: LANGRES | E8: CHAUMONT | F8: AUBE_HAUTE_MARNE | R8: LANGRES | S8: NOGENT SUR SEINE | T8: HAGUENAU HOUBLON | U8: OSTWALD | V8: SCHILTIGHEIM CENTRE | W8: PULVERSHEIM | X8: ILLZACH | Y8: SAINTE MENEHOULD | Z8: MOUZON | AA8: PIERRY LECLERC | AB8: JARVILLE LA MALGRANGE | AC8: JOEUF | AD8: LONGWY HAUT | AE8: METZ CATHEDRALE | AF8: FORBACH CENTRALE | AG8: FONTOY | AH8: EPINAL ARISTIDE BRIAND | AI8: MOYENMOUTIER
A9: 10582 | B9: NOGENT | C9: 410582 | D9: NOGENT | E9: CHAUMONT | F9: AUBE_HAUTE_MARNE | R9: NOGENT | S9: ROMILLY SUR SEINE | T9: HAGUENAU MUSAU | U9: LINGOLSHEIM | V9: SCHILTIGHEIM KLEBER | W9: GUEBWILLER | X9: MASEVAUX | Y9: SARRY | Z9: RETHEL | AA9: REIMS CENTRE VILLE | AB9: LUNEVILLE CARNOT | AC9: LAXOU ARISTIDE BRIAND | AD9: MONTMEDY | AE9: METZ MOZART | AF9: GROSBLIEDERSTROFF | AG9: GUENANGE | AH9: EPINAL AVRINSART | AI9: RAMBERVILLERS
A10: 51156 | B10: SAINT DIZIER CENTRE | C10: 451156 | D10: SAINT DIZIER CENTRE | E10: CHAUMONT | F10: AUBE_HAUTE_MARNE | R10: SAINT DIZIER CENTRE | S10: SAINT ANDRE LES VERGERS | T10: HOCHFELDEN | U10: MARCKOLSHEIM | V10: STRASBOURG ANVERS | W10: HORBOURG WIHR | X10: MULHOUSE DORNACH | Y10: SEZANNE | Z10: REVIN | AA10: REIMS CHATILLONS | AB10: LUNEVILLE CHATEAU | AC10: LAXOU SAPINIERE | AD10: REVIGNY SUR ORNAIN | AE10: METZ PLAPPEVILLE | AF10: HOMBOURG HAUT | AG10: HAGONDANGE | AH10: EPINAL LEOPOLD BOURG | AI10: RAON L ETAPE
A11: 51157 | B11: SAINT DIZIER EUROPE | C11: 551157 | D11: SAINT DIZIER EUROPE | E11: CHAUMONT | F11: AUBE_HAUTE_MARNE | R11: SAINT DIZIER EUROPE | S11: SAINT JULIEN LES VILLAS | T11: HOERDT | U11: MARLENHEIM | V11: STRASBOURG AUSTERLITZ | W11: INGERSHEIM | X11: MULHOUSE REUNION | Y11: VERTUS | Z11: ROCROI | AA11: REIMS EUROPE | AB11: NANCY ARTEM | AC11: LUDRES | AD11: SAINT MIHIEL | AE11: METZ POMPIDOU | AF11: MERLEBACH | AG11: HAYANGE | AH11: GOLBEY | AI11: SAINT DIE
A12: 51151 | B12: WASSY | C12: 451151 | D12: WASSY | E12: CHAUMONT | F12: AUBE_HAUTE_MARNE | R12: WASSY | S12: SAINTE SAVINE | T12: INGWILLER | U12: MOLSHEIM | V12: STRASBOURG CRONENBOURG | W12: KAYSERSBERG | X12: MULHOUSE ROOSEVELT | Y12: VITRY LE FRANCOIS | Z12: SEDAN | AA12: REIMS HIPPODROME | AB12: NANCY JEAN JAURES | AC12: NANCY PLATEAU DE HAYE | AD12: STENAY | AE12: METZ REPUBLIQUE | AF12: MORHANGE | AG12: HETTANGE GRANDE | AH12: LE VAL D AJOL | AI12: SAINT DIE CATHEDRALE
A13: 10583 | B13: AIX EN OTHE | C13: 410583 | D13: AIX EN OTHE | E13: TROYES | F13: AUBE_HAUTE_MARNE | S13: TROYES 1ER MAI | T13: WINGEN SUR MODER | U13: MUTZIG | V13: STRASBOURG DANUBE | W13: MUNSTER | X13: PFASTATT | Z13: VILLERS SEMEUSE CORA | AA13: REIMS HOTEL DE VILLE | AB13: NANCY PLACE DOMBASLE | AC13: NANCY TROIS MAISONS | AD13: VAUCOULEURS | AE13: METZ SAINT LIVIER | AF13: NEUNKIRCH | AG13: METZERVISSE | AH13: MIRECOURT | AI13: SENONES
A14: 10530 | B14: ARCIS SUR AUBE | C14: 510530 | D14: ARCIS SUR AUBE | E14: TROYES | F14: AUBE_HAUTE_MARNE | S14: TROYES BROSSOLETTE | T14: NIEDERBRONN LES BAINS | U14: OBERNAI | V14: STRASBOURG ESPLANADE | W14: MUNTZENHEIM | X14: RIEDISHEIM | Z14: VOUZIERS | AA14: REIMS JEAN JAURES | AB14: NANCY POINT CENTRAL | AC14: PAGNY SUR MOSELLE | AD14: VERDUN CENTRALE | AE14: METZ SAINT LOUIS | AF14: PHALSBOURG | AG14: NILVANGE | AH14: NEUFCHATEAU | AI14: VAGNEY
A15: 10550 | B15: BAR SUR AUBE | C15: 410550 | D15: BAR SUR AUBE | E15: TROYES | F15: AUBE_HAUTE_MARNE | S15: TROYES CHARTREUX | T15: REICHSHOFFEN | U15: ROSHEIM | V15: STRASBOURG FRANCS BOURGEOIS | W15: NEUF BRISACH | X15: RIXHEIM | Z15: VRIGNE AUX BOIS | AA15: REIMS SAINT MARCEAUX | AB15: NANCY SAINT SEBASTIEN | AC15: PIENNES | AD15: VERDUN MAZEL | AE15: METZ SAINT MAXIMIN | AF15: PUTTELANGE AUX LACS | AG15: SIERCK LES BAINS | AH15: NOMEXY
A16: 10556 | B16: BAR SUR SEINE | C16: 510556 | D16: BAR SUR SEINE | E16: TROYES | F16: AUBE_HAUTE_MARNE | S16: TROYES GAMBETTA | T16: GUNDERSHOFFEN | U16: SCHIRMECK | V16: ESPACE MESANGE | W16: ORBEY | X16: SAINT LOUIS | AA16: REIMS SAINT REMI | AB16: SAINT MAX | AC16: POMPEY | AD16: VILLERUPT | AE16: METZ SARRE | AF16: SAINT AVOLD | AG16: TERVILLE | AH16: REMIREMONT
A17: 10551 | B17: BRIENNE LE CHATEAU | C17: 410551 | D17: BRIENNE LE CHATEAU | E17: TROYES | F17: AUBE_HAUTE_MARNE | S17: TROYES ZOLA | T17: PFAFFENHOFFEN | U17: SELESTAT CENTRE | V17: STRASBOURG HALLES | W17: LAPOUTROIE | X17: HUNINGUE | AA17: REIMS SAINT THOMAS | AB17: SAINT NICOLAS DE PORT | AC17: PONT A MOUSSON BREUIL | AE17: MONTIGNY LES METZ | AF17: SARREBOURG | AG17: THIONVILLE CENTRALE | AH17: THAON LES VOSGES
A18: 10523 | B18: LA CHAPELLE ST LUC | C18: 510523 | D18: LA CHAPELLE ST LUC | E18: TROYES | F18: AUBE_HAUTE_MARNE | T18: DIEMERINGEN | U18: CHATENOIS | V18: STRASBOURG GARE | W18: RIBEAUVILLE | X18: SIERENTZ | AA18: REIMS SAINTE ANNE | AB18: TOMBLAINE | AC18: PONT A MOUSSON CENTRALE | AE18: MOULINS LES METZ | AF18: SARREGUEMINES | AG18: THIONVILLE COTE DES ROSES | AH18: VITTEL
A19: 10570 | B19: NOGENT SUR SEINE | C19: 510570 | D19: NOGENT SUR SEINE | E19: TROYES | F19: AUBE_HAUTE_MARNE | T19: SARRE UNION | U19: SELESTAT OUEST | V19: ECKBOLSHEIM | W19: ROUFFACH | X19: THANN | AA19: TINQUEUX | AB19: VANDOEUVRE LES NANCY | AC19: TOUL | AE19: REMILLY | AF19: STIRING WENDEL | AG19: THIONVILLE LA MILLIAIRE | AH19: XERTIGNY
A20: 10571 | B20: ROMILLY SUR SEINE | C20: 410571 | D20: ROMILLY SUR SEINE | E20: TROYES | F20: AUBE_HAUTE_MARNE | T20: SAVERNE | U20: VILLE | V20: STRASBOURG KOENIGSHOFFEN | W20: SOULTZMATT | X20: SAINT AMARIN | AA20: VERZY | AC20: VEZELISE | AE20: ROMBAS | AF20: VALMONT | AG20: UCKANGE
A21: 10520 | B21: SAINT ANDRE LES VERGERS | C21: 510520 | D21: SAINT ANDRE LES VERGERS | E21: TROYES | F21: AUBE_HAUTE_MARNE | T21: MARMOUTIER | U21: WASSELONNE | V21: STRASBOURG MEINAU | W21: SAINTE MARIE AUX MINES | X21: WITTELSHEIM | AC21: VILLERS GENERAL LECLERC | AE21: SAINT JULIEN LES METZ | AG21: YUTZ
A22: 10524 | B22: SAINT JULIEN LES VILLAS | C22: 410524 | D22: SAINT JULIEN LES VILLAS | E22: TROYES | F22: AUBE_HAUTE_MARNE | T22: SCHWEIGHOUSE SUR MODER | V22: STRASBOURG MONTAGNE VERTE | W22: LIEPVRE | X22: WITTENHEIM | AE22: SAINTE MARIE AUX CHENES
A23: 10521 | B23: SAINTE SAVINE | C23: 410521 | D23: SAINTE SAVINE | E23: TROYES | F23: AUBE_HAUTE_MARNE | T23: SOUFFLENHEIM | V23: STRASBOURG NEUDORF | W23: SOULTZ | AE23: WOIPPY
A24: 10513 | B24: TROYES 1ER MAI | C24: 510513 | D24: TROYES 1ER MAI | E24: TROYES | F24: AUBE_HAUTE_MARNE | T24: SOULTZ SOUS FORETS | V24: STRASBOURG ROBERTSAU | W24: WINTZENHEIM
A25: 10511 | B25: TROYES BROSSOLETTE | C25: 510511 | D25: TROYES BROSSOLETTE | E25: TROYES | F25: AUBE_HAUTE_MARNE | T25: TRUCHTERSHEIM | V25: STRASBOURG STOCKFELD
A26: 10522 | B26: TROYES CHARTREUX | C26: 510522 | D26: TROYES CHARTREUX | E26: TROYES | F26: AUBE_HAUTE_MARNE | T26: WISSEMBOURG | V26: STRASBOURG VOSGES
A27: 10510 | B27: TROYES GAMBETTA | C27: 410510 | D27: TROYES GAMBETTA | E27: TROYES | F27: AUBE_HAUTE_MARNE | T27: BETSCHDORF
A28: 10512 | B28: TROYES ZOLA | C28: 410512 | D28: TROYES ZOLA | E28: TROYES | F28: AUBE_HAUTE_MARNE | T28: SELTZ
A29: 57 | B29: BISCHWILLER | C29: 4057 | D29: BISCHWILLER | E29: HAGUENAU | F29: BAS_RHIN | T29: LAUTERBOURG
A30: 58 | B30: DRUSENHEIM | C30: 4057 | D30: BISCHWILLER | E30: HAGUENAU | F30: BAS_RHIN | T30: WOERTH
A31: 59 | B31: HERRLISHEIM | C31: 4057 | D31: BISCHWILLER | E31: HAGUENAU | F31: BAS_RHIN
A32: 82 | B32: BOUXWILLER | C32: 4082 | D32: BOUXWILLER | E32: HAGUENAU | F32: BAS_RHIN
A33: 30 | B33: BRUMATH | C33: 4030 | D33: BRUMATH | E33: HAGUENAU | F33: BAS_RHIN
A34: 65 | B34: WEITBRUCH | C34: 4030 | D34: BRUMATH | E34: HAGUENAU | F34: BAS_RHIN
A35: 60 | B35: HAGUENAU HOUBLON | C35: 4060 | D35: HAGUENAU HOUBLON | E35: HAGUENAU | F35: BAS_RHIN
A36: 64 | B36: HAGUENAU MUSAU | C36: 4064 | D36: HAGUENAU MUSAU | E36: HAGUENAU | F36: BAS_RHIN
A37: 92 | B37: HOCHFELDEN | C37: 4092 | D37: HOCHFELDEN | E37: HAGUENAU | F37: BAS_RHIN
A38: 41 | B38: HOERDT | C38: 4041 | D38: HOERDT | E38: HAGUENAU | F38: BAS_RHIN
A39: 85 | B39: INGWILLER | C39: 4085 | D39: INGWILLER | E39: HAGUENAU | F39: BAS_RHIN
A40: 86 | B40: WINGEN SUR MODER | C40: 4085 | D40: INGWILLER | E40: HAGUENAU | F40: BAS_RHIN
A41: 66 | B41: NIEDERBRONN LES BAINS | C41: 4066 | D41: NIEDERBRONN LES BAINS | E41: HAGUENAU | F41: BAS_RHIN
A42: 68 | B42: REICHSHOFFEN | C42: 4066 | D42: NIEDERBRONN LES BAINS | E42: HAGUENAU | F42: BAS_RHIN
A43: 70 | B43: GUNDERSHOFFEN | C43: 4066 | D43: NIEDERBRONN LES BAINS | E43: HAGUENAU | F43: BAS_RHIN
A44: 67 | B44: PFAFFENHOFFEN | C44: 4067 | D44: PFAFFENHOFFEN | E44: HAGUENAU | F44: BAS_RHIN
A45: 89 | B45: DIEMERINGEN | C45: 4095 | D45: SARRE UNION | E45: HAGUENAU | F45: BAS_RHIN
A46: 95 | B46: SARRE UNION | C46: 4095 | D46: SARRE UNION | E46: HAGUENAU | F46: BAS_RHIN
A47: 87 | B47: SAVERNE | C47: 4087 | D47: SAVERNE | E47: HAGUENAU | F47: BAS_RHIN
A48: 93 | B48: MARMOUTIER | C48: 4087 | D48: SAVERNE | E48: HAGUENAU | F48: BAS_RHIN
A49: 73 | B49: SCHWEIGHOUSE SUR MODER | C49: 4073 | D49: SCHWEIGHOUSE SUR MODER | E49: HAGUENAU | F49: BAS_RHIN
A50: 74 | B50: SOUFFLENHEIM | C50: 4074 | D50: SOUFFLENHEIM | E50: HAGUENAU | F50: BAS_RHIN
A51: 79 | B51: SOULTZ SOUS FORETS | C51: 4079 | D51: SOULTZ SOUS FORETS | E51: HAGUENAU | F51: BAS_RHIN
A52: 31 | B52: TRUCHTERSHEIM | C52: 4031 | D52: TRUCHTERSHEIM | E52: HAGUENAU | F52: BAS_RHIN
A53: 71 | B53: WISSEMBOURG | C53: 4071 | D53: WISSEMBOURG | E53: HAGUENAU | F53: BAS_RHIN
A54: 76 | B54: BETSCHDORF | C54: 4071 | D54: WISSEMBOURG | E54: HAGUENAU | F54: BAS_RHIN
A55: 77 | B55: SELTZ | C55: 4071 | D55: WISSEMBOURG | E55: HAGUENAU | F55: BAS_RHIN
A56: 78 | B56: LAUTERBOURG | C56: 4071 | D56: WISSEMBOURG | E56: HAGUENAU | F56: BAS_RHIN
A57: 80 | B57: WOERTH | C57: 4080 | D57: WOERTH | E57: HAGUENAU | F57: BAS_RHIN
A58: 113 | B58: BARR | C58: 4113 | D58: BARR | E58: SELESTAT | F58: BAS_RHIN
A59: 111 | B59: BENFELD | C59: 4111 | D59: BENFELD | E59: SELESTAT | F59: BAS_RHIN
A60: 104 | B60: ERSTEIN | C60: 4104 | D60: ERSTEIN | E60: SELESTAT | F60: BAS_RHIN
A61: 8 | B61: FEGERSHEIM | C61: 4008 | D61: FEGERSHEIM | E61: SELESTAT | F61: BAS_RHIN
A62: 7 | B62: ILLKIRCH CENTRE | C62: 4007 | D62: ILLKIRCH CENTRE | E62: SELESTAT | F62: BAS_RHIN
A63: 13 | B63: ILLKIRCH NORD | C63: 4007 | D63: ILLKIRCH CENTRE | E63: SELESTAT | F63: BAS_RHIN
A64: 14 | B64: OSTWALD | C64: 4015 | D64: LINGOLSHEIM | E64: SELESTAT | F64: BAS_RHIN
A65: 15 | B65: LINGOLSHEIM | C65: 4015 | D65: LINGOLSHEIM | E65: SELESTAT | F65: BAS_RHIN
A66: 109 | B66: MARCKOLSHEIM | C66: 4109 | D66: MARCKOLSHEIM | E66: SELESTAT | F66: BAS_RHIN
A67: 129 | B67: MARLENHEIM | C67: 4129 | D67: MARLENHEIM | E67: SELESTAT | F67: BAS_RHIN
A68: 116 | B68: MOLSHEIM | C68: 4116 | D68: MOLSHEIM | E68: SELESTAT | F68: BAS_RHIN
A69: 126 | B69: MUTZIG | C69: 4126 | D69: MUTZIG | E69: SELESTAT | F69: BAS_RHIN
A70: 119 | B70: OBERNAI | C70: 4119 | D70: OBERNAI | E70: SELESTAT | F70: BAS_RHIN
A71: 127 | B71: ROSHEIM | C71: 4127 | D71: ROSHEIM | E71: SELESTAT | F71: BAS_RHIN
A72: 121 | B72: SCHIRMECK | C72: 4121 | D72: SCHIRMECK | E72: SELESTAT | F72: BAS_RHIN
A73: 101 | B73: SELESTAT CENTRE | C73: 4101 | D73: SELESTAT CENTRE | E73: SELESTAT | F73: BAS_RHIN
A74: 108 | B74: CHATENOIS | C74: 4101 | D74: SELESTAT CENTRE | E74: SELESTAT | F74: BAS_RHIN
A75: 110 | B75: SELESTAT OUEST | C75: 4110 | D75: SELESTAT OUEST | E75: SELESTAT | F75: BAS_RHIN
A76: 107 | B76: VILLE | C76: 4107 | D76: VILLE | E76: SELESTAT | F76: BAS_RHIN
A77: 120 | B77: WASSELONNE | C77: 4120 | D77: WASSELONNE | E77: SELESTAT | F77: BAS_RHIN
A78: 28 | B78: BISCHHEIM | C78: 4028 | D78: BISCHHEIM | E78: STRASBOURG | F78: BAS_RHIN
A79: 33 | B79: LA WANTZENAU | C79: 4033 | D79: LA WANTZENAU | E79: STRASBOURG | F79: BAS_RHIN
A80: 34 | B80: VENDENHEIM | C80: 4037 | D80: MUNDOLSHEIM | E80: STRASBOURG | F80: BAS_RHIN
A81: 37 | B81: MUNDOLSHEIM | C81: 4037 | D81: MUNDOLSHEIM | E81: STRASBOURG | F81: BAS_RHIN
A82: 38 | B82: OBERHAUSBERGEN | C82: 4038 | D82: OBERHAUSBERGEN | E82: STRASBOURG | F82: BAS_RHIN
A83: 39 | B83: REICHSTETT | C83: 4039 | D83: REICHSTETT | E83: STRASBOURG | F83: BAS_RHIN
A84: 27 | B84: SCHILTIGHEIM CENTRE | C84: 4027 | D84: SCHILTIGHEIM CENTRE | E84: STRASBOURG | F84: BAS_RHIN
A85: 29 | B85: SCHILTIGHEIM KLEBER | C85: 4029 | D85: SCHILTIGHEIM KLEBER | E85: STRASBOURG | F85: BAS_RHIN
A86: 19 | B86: STRASBOURG ANVERS | C86: 4019 | D86: STRASBOURG ANVERS | E86: STRASBOURG | F86: BAS_RHIN
A87: 24 | B87: STRASBOURG AUSTERLITZ | C87: 4024 | D87: STRASBOURG AUSTERLITZ | E87: STRASBOURG | F87: BAS_RHIN
A88: 47 | B88: STRASBOURG CRONENBOURG | C88: 4047 | D88: STRASBOURG CRONENBOURG | E88: STRASBOURG | F88: BAS_RHIN
A89: 26 | B89: STRASBOURG DANUBE | C89: 4026 | D89: STRASBOURG DANUBE | E89: STRASBOURG | F89: BAS_RHIN
A90: 25 | B90: STRASBOURG ESPLANADE | C90: 4025 | D90: STRASBOURG ESPLANADE | E90: STRASBOURG | F90: BAS_RHIN
A91: 45 | B91: STRASBOURG FRANCS BOURGEOIS | C91: 4045 | D91: STRASBOURG FRANCS BOURGEOIS | E91: STRASBOURG | F91: BAS_RHIN
A92: 18 | B92: ESPACE MESANGE | C92: 4043 | D92: STRASBOURG HALLES | E92: STRASBOURG | F92: BAS_RHIN
A93: 43 | B93: STRASBOURG HALLES | C93: 4043 | D93: STRASBOURG HALLES | E93: STRASBOURG | F93: BAS_RHIN
A94: 50 | B94: STRASBOURG GARE | C94: 4043 | D94: STRASBOURG HALLES | E94: STRASBOURG | F94: BAS_RHIN
A95: 40 | B95: ECKBOLSHEIM | C95: 4048 | D95: STRASBOURG KOENIGSHOFFEN | E95: STRASBOURG | F95: BAS_RHIN
A96: 48 | B96: STRASBOURG KOENIGSHOFFEN | C96: 4048 | D96: STRASBOURG KOENIGSHOFFEN | E96: STRASBOURG | F96: BAS_RHIN
A97: 10 | B97: STRASBOURG MEINAU | C97: 4010 | D97: STRASBOURG MEINAU | E97: STRASBOURG | F97: BAS_RHIN
A98: 54 | B98: STRASBOURG MONTAGNE VERTE | C98: 4054 | D98: STRASBOURG MONTAGNE VERTE | E98: STRASBOURG | F98: BAS_RHIN
A99: 6 | B99: STRASBOURG NEUDORF | C99: 4006 | D99: STRASBOURG NEUDORF | E99: STRASBOURG | F99: BAS_RHIN
A100: 20 | B100: STRASBOURG ROBERTSAU | C100: 4020 | D100: STRASBOURG ROBERTSAU | E100: STRASBOURG | F100: BAS_RHIN
A101: 12 | B101: STRASBOURG STOCKFELD | C101: 4012 | D101: STRASBOURG STOCKFELD | E101: STRASBOURG | F101: BAS_RHIN
A102: 23 | B102: STRASBOURG VOSGES | C102: 4023 | D102: STRASBOURG VOSGES | E102: STRASBOURG | F102: BAS_RHIN
A103: 132 | B103: COLMAR MARAICHERS | C103: 4132 | D103: COLMAR MARAICHERS | E103: COLMAR | F103: HAUT_RHIN
A104: 130 | B104: COLMAR REPUBLIQUE | C104: 4130 | D104: COLMAR REPUBLIQUE | E104: COLMAR | F104: HAUT_RHIN
A105: 134 | B105: COLMAR SAINT JOSEPH | C105: 4134 | D105: COLMAR SAINT JOSEPH | E105: COLMAR | F105: HAUT_RHIN
A106: 135 | B106: COLMAR SAINTE MARIE | C106: 4135 | D106: COLMAR SAINTE MARIE | E106: COLMAR | F106: HAUT_RHIN
A107: 133 | B107: COLMAR VAUBAN | C107: 4133 | D107: COLMAR VAUBAN | E107: COLMAR | F107: HAUT_RHIN
A108: 162 | B108: ENSISHEIM | C108: 4162 | D108: ENSISHEIM | E108: COLMAR | F108: HAUT_RHIN
A109: 163 | B109: PULVERSHEIM | C109: 4162 | D109: ENSISHEIM | E109: COLMAR | F109: HAUT_RHIN
A110: 147 | B110: GUEBWILLER | C110: 4147 | D110: GUEBWILLER | E110: COLMAR | F110: HAUT_RHIN
A111: 141 | B111: HORBOURG WIHR | C111: 4141 | D111: HORBOURG WIHR | E111: COLMAR | F111: HAUT_RHIN
A112: 139 | B112: INGERSHEIM | C112: 4139 | D112: INGERSHEIM | E112: COLMAR | F112: HAUT_RHIN
A113: 152 | B113: KAYSERSBERG | C113: 4139 | D113: INGERSHEIM | E113: COLMAR | F113: HAUT_RHIN
A114: 143 | B114: MUNSTER | C114: 4143 | D114: MUNSTER | E114: COLMAR | F114: HAUT_RHIN
A115: 159 | B115: MUNTZENHEIM | C115: 4159 | D115: MUNTZENHEIM | E115: COLMAR | F115: HAUT_RHIN
A116: 157 | B116: NEUF BRISACH | C116: 4157 | D116: NEUF BRISACH | E116: COLMAR | F116: HAUT_RHIN
A117: 148 | B117: ORBEY | C117: 4148 | D117: ORBEY | E117: COLMAR | F117: HAUT_RHIN
A118: 154 | B118: LAPOUTROIE | C118: 4148 | D118: ORBEY | E118: COLMAR | F118: HAUT_RHIN
A119: 144 | B119: RIBEAUVILLE | C119: 4144 | D119: RIBEAUVILLE | E119: COLMAR | F119: HAUT_RHIN
A120: 153 | B120: ROUFFACH | C120: 4153 | D120: ROUFFACH | E120: COLMAR | F120: HAUT_RHIN
A121: 156 | B121: SOULTZMATT | C121: 4153 | D121: ROUFFACH | E121: COLMAR | F121: HAUT_RHIN
A122: 164 | B122: SAINTE MARIE AUX MINES | C122: 4164 | D122: SAINTE MARIE AUX MINES | E122: COLMAR | F122: HAUT_RHIN
A123: 167 | B123: LIEPVRE | C123: 4164 | D123: SAINTE MARIE AUX MINES | E123: COLMAR | F123: HAUT_RHIN
A124: 160 | B124: SOULTZ | C124: 4160 | D124: SOULTZ | E124: COLMAR | F124: HAUT_RHIN
A125: 140 | B125: WINTZENHEIM | C125: 4140 | D125: WINTZENHEIM | E125: COLMAR | F125: HAUT_RHIN
A126: 189 | B126: ALTKIRCH | C126: 4189 | D126: ALTKIRCH | E126: MULHOUSE | F126: HAUT_RHIN
A127: 191 | B127: FERRETTE | C127: 4189 | D127: ALTKIRCH | E127: MULHOUSE | F127: HAUT_RHIN
A128: 186 | B128: BRUNSTATT | C128: 4186 | D128: BRUNSTATT | E128: MULHOUSE | F128: HAUT_RHIN
A129: 195 | B129: CERNAY | C129: 4195 | D129: CERNAY | E129: MULHOUSE | F129: HAUT_RHIN
A130: 192 | B130: SEPPOIS LE BAS | C130: 4193 | D130: DANNEMARIE | E130: MULHOUSE | F130: HAUT_RHIN
A131: 193 | B131: DANNEMARIE | C131: 4193 | D131: DANNEMARIE | E131: MULHOUSE | F131: HAUT_RHIN
A132: 184 | B132: ILLZACH | C132: 4184 | D132: ILLZACH | E132: MULHOUSE | F132: HAUT_RHIN
A133: 196 | B133: MASEVAUX | C133: 4196 | D133: MASEVAUX | E133: MULHOUSE | F133: HAUT_RHIN
A134: 174 | B134: MULHOUSE DORNACH | C134: 4174 | D134: MULHOUSE DORNACH | E134: MULHOUSE | F134: HAUT_RHIN
A135: 170 | B135: MULHOUSE REUNION | C135: 4170 | D135: MULHOUSE REUNION | E135: MULHOUSE | F135: HAUT_RHIN
A136: 169 | B136: MULHOUSE ROOSEVELT | C136: 4169 | D136: MULHOUSE ROOSEVELT | E136: MULHOUSE | F136: HAUT_RHIN
A137: 188 | B137: PFASTATT | C137: 4188 | D137: PFASTATT | E137: MULHOUSE | F137: HAUT_RHIN
A138: 180 | B138: RIEDISHEIM | C138: 4180 | D138: RIEDISHEIM | E138: MULHOUSE | F138: HAUT_RHIN
A139: 185 | B139: RIXHEIM | C139: 4185 | D139: RIXHEIM | E139: MULHOUSE | F139: HAUT_RHIN
A140: 178 | B140: SAINT LOUIS | C140: 4178 | D140: SAINT LOUIS | E140: MULHOUSE | F140: HAUT_RHIN
A141: 187 | B141: HUNINGUE | C141: 4178 | D141: SAINT LOUIS | E141: MULHOUSE | F141: HAUT_RHIN
A142: 179 | B142: SIERENTZ | C142: 4179 | D142: SIERENTZ | E142: MULHOUSE | F142: HAUT_RHIN
A143: 194 | B143: THANN | C143: 4194 | D143: THANN | E143: MULHOUSE | F143: HAUT_RHIN
A144: 198 | B144: SAINT AMARIN | C144: 4194 | D144: THANN | E144: MULHOUSE | F144: HAUT_RHIN
A145: 181 | B145: WITTELSHEIM | C145: 4181 | D145: WITTELSHEIM | E145: MULHOUSE | F145: HAUT_RHIN
A146: 183 | B146: WITTENHEIM | C146: 4183 | D146: WITTENHEIM | E146: MULHOUSE | F146: HAUT_RHIN
A147: 51110 | B147: CHALONS ROOSEVELT | C147: 551110 | D147: CHALONS ROOSEVELT | E147: CHALONS_EN_CHAMPAGNE | F147: MARNE_ARDENNES
A148: 51101 | B148: CHALONS VIVIERS | C148: 451101 | D148: CHALONS VIVIERS | E148: CHALONS_EN_CHAMPAGNE | F148: MARNE_ARDENNES
A149: 51103 | B149: FAGNIERES LECLERC | C149: 551103 | D149: FAGNIERES LECLERC | E149: CHALONS_EN_CHAMPAGNE | F149: MARNE_ARDENNES
A150: 51330 | B150: MONTMIRAIL | C150: 551330 | D150: MONTMIRAIL | E150: CHALONS_EN_CHAMPAGNE | F150: MARNE_ARDENNES
A151: 51114 | B151: SUIPPES | C151: 451115 | D151: MOURMELON LE GRAND | E151: CHALONS_EN_CHAMPAGNE | F151: MARNE_ARDENNES
A152: 51115 | B152: MOURMELON LE GRAND | C152: 451115 | D152: MOURMELON LE GRAND | E152: CHALONS_EN_CHAMPAGNE | F152: MARNE_ARDENNES
A153: 51128 | B153: SAINTE MENEHOULD | C153: 551128 | D153: SAINTE MENEHOULD | E153: CHALONS_EN_CHAMPAGNE | F153: MARNE_ARDENNES
A154: 51120 | B154: SARRY | C154: 451120 | D154: SARRY | E154: CHALONS_EN_CHAMPAGNE | F154: MARNE_ARDENNES
A155: 51381 | B155: SEZANNE | C155: 451381 | D155: SEZANNE | E155: CHALONS_EN_CHAMPAGNE | F155: MARNE_ARDENNES
A156: 51354 | B156: VERTUS | C156: 551354 | D156: VERTUS | E156: CHALONS_EN_CHAMPAGNE | F156: MARNE_ARDENNES
A157: 51166 | B157: VITRY LE FRANCOIS | C157: 451166 | D157: VITRY LE FRANCOIS | E157: CHALONS_EN_CHAMPAGNE | F157: MARNE_ARDENNES
A158: 8815 | B158: CARIGNAN | C158: 508815 | D158: CARIGNAN | E158: CHARLEVILLE_MEZIERES | F158: MARNE_ARDENNES
A159: 8801 | B159: CHARLEVILLE JEAN JAURES | C159: 408801 | D159: CHARLEVILLE JEAN JAURES | E159: CHARLEVILLE_MEZIERES | F159: MARNE_ARDENNES
A160: 8822 | B160: CHARLEVILLE MEZIERES | C160: 408822 | D160: CHARLEVILLE MEZIERES | E160: CHARLEVILLE_MEZIERES | F160: MARNE_ARDENNES
A161: 8817 | B161: CHARLEVILLE MOHON | C161: 508817 | D161: CHARLEVILLE MOHON | E161: CHARLEVILLE_MEZIERES | F161: MARNE_ARDENNES
A162: 8802 | B162: CHARLEVILLE NEVERS | C162: 508802 | D162: CHARLEVILLE NEVERS | E162: CHARLEVILLE_MEZIERES | F162: MARNE_ARDENNES
A163: 8839 | B163: GIVET | C163: 508839 | D163: GIVET | E163: CHARLEVILLE_MEZIERES | F163: MARNE_ARDENNES
A164: 8819 | B164: MOUZON | C164: 508819 | D164: MOUZON | E164: CHARLEVILLE_MEZIERES | F164: MARNE_ARDENNES
A165: 8840 | B165: RETHEL | C165: 408840 | D165: RETHEL | E165: CHARLEVILLE_MEZIERES | F165: MARNE_ARDENNES
A166: 8862 | B166: REVIN | C166: 408862 | D166: REVIN | E166: CHARLEVILLE_MEZIERES | F166: MARNE_ARDENNES
A167: 8860 | B167: ROCROI | C167: 508860 | D167: ROCROI | E167: CHARLEVILLE_MEZIERES | F167: MARNE_ARDENNES
A168: 8806 | B168: SEDAN | C168: 408806 | D168: SEDAN | E168: CHARLEVILLE_MEZIERES | F168: MARNE_ARDENNES
A169: 8833 | B169: VILLERS SEMEUSE CORA | C169: 508833 | D169: VILLERS SEMEUSE CORA | E169: CHARLEVILLE_MEZIERES | F169: MARNE_ARDENNES
A170: 8820 | B170: VOUZIERS | C170: 508820 | D170: VOUZIERS | E170: CHARLEVILLE_MEZIERES | F170: MARNE_ARDENNES
A171: 8814 | B171: VRIGNE AUX BOIS | C171: 408814 | D171: VRIGNE AUX BOIS | E171: CHARLEVILLE_MEZIERES | F171: MARNE_ARDENNES
A172: 51367 | B172: AY CHAMPAGNE | C172: 551367 | D172: AY CHAMPAGNE | E172: REIMS | F172: MARNE_ARDENNES
A173: 51340 | B173: BETHENY | C173: 551340 | D173: BETHENY | E173: REIMS | F173: MARNE_ARDENNES
A174: 51369 | B174: DAMERY | C174: 551369 | D174: DAMERY | E174: REIMS | F174: MARNE_ARDENNES
A175: 51365 | B175: DORMANS | C175: 551365 | D175: DORMANS | E175: REIMS | F175: MARNE_ARDENNES
A176: 51370 | B176: EPERNAY | C176: 451370 | D176: EPERNAY | E176: REIMS | F176: MARNE_ARDENNES
A177: 51314 | B177: FISMES | C177: 551314 | D177: FISMES | E177: REIMS | F177: MARNE_ARDENNES
A178: 51361 | B178: PIERRY LECLERC | C178: 451361 | D178: PIERRY LECLERC | E178: REIMS | F178: MARNE_ARDENNES
A179: 51350 | B179: REIMS CENTRE VILLE | C179: 451350 | D179: REIMS CENTRE VILLE | E179: REIMS | F179: MARNE_ARDENNES
A180: 51310 | B180: REIMS CHATILLONS | C180: 551310 | D180: REIMS CHATILLONS | E180: REIMS | F180: MARNE_ARDENNES
A181: 51309 | B181: REIMS EUROPE | C181: 551309 | D181: REIMS EUROPE | E181: REIMS | F181: MARNE_ARDENNES
A182: 51305 | B182: REIMS HIPPODROME | C182: 551305 | D182: REIMS HIPPODROME | E182: REIMS | F182: MARNE_ARDENNES
A183: 51301 | B183: REIMS HOTEL DE VILLE | C183: 451301 | D183: REIMS HOTEL DE VILLE | E183: REIMS | F183: MARNE_ARDENNES
A184: 51341 | B184: REIMS JEAN JAURES | C184: 551341 | D184: REIMS JEAN JAURES | E184: REIMS | F184: MARNE_ARDENNES
A185: 51306 | B185: REIMS SAINT MARCEAUX | C185: 551306 | D185: REIMS SAINT MARCEAUX | E185: REIMS | F185: MARNE_ARDENNES
A186: 51349 | B186: REIMS SAINT REMI | C186: 551349 | D186: REIMS SAINT REMI | E186: REIMS | F186: MARNE_ARDENNES
A187: 51308 | B187: REIMS SAINT THOMAS | C187: 451308 | D187: REIMS SAINT THOMAS | E187: REIMS | F187: MARNE_ARDENNES
A188: 51307 | B188: REIMS SAINTE ANNE | C188: 551307 | D188: REIMS SAINTE ANNE | E188: REIMS | F188: MARNE_ARDENNES
A189: 51336 | B189: TINQUEUX | C189: 451336 | D189: TINQUEUX | E189: REIMS | F189: MARNE_ARDENNES
A190: 51318 | B190: VERZY | C190: 451318 | D190: VERZY | E190: REIMS | F190: MARNE_ARDENNES
A191: 54116 | B191: BACCARAT | C191: 554116 | D191: BACCARAT | E191: NANCY | F191: MEURTHE_ET_MOSELLE_MEUSE
A192: 54161 | B192: BAYON | C192: 454161 | D192: BAYON | E192: NANCY | F192: MEURTHE_ET_MOSELLE_MEUSE
A193: 54166 | B193: BLAINVILLE | C193: 554166 | D193: BLAINVILLE | E193: NANCY | F193: MEURTHE_ET_MOSELLE_MEUSE
A194: 54171 | B194: BLAMONT | C194: 454171 | D194: BLAMONT | E194: NANCY | F194: MEURTHE_ET_MOSELLE_MEUSE
A195: 54266 | B195: DOMBASLE SUR MEURTHE | C195: 554266 | D195: DOMBASLE SUR MEURTHE | E195: NANCY | F195: MEURTHE_ET_MOSELLE_MEUSE
A196: 54296 | B196: ESSEY LES NANCY | C196: 554296 | D196: ESSEY LES NANCY | E196: NANCY | F196: MEURTHE_ET_MOSELLE_MEUSE
A197: 54356 | B197: JARVILLE LA MALGRANGE | C197: 554356 | D197: JARVILLE LA MALGRANGE | E197: NANCY | F197: MEURTHE_ET_MOSELLE_MEUSE
A198: 54426 | B198: LUNEVILLE CARNOT | C198: 454426 | D198: LUNEVILLE CARNOT | E198: NANCY | F198: MEURTHE_ET_MOSELLE_MEUSE
A199: 54431 | B199: LUNEVILLE CHATEAU | C199: 554431 | D199: LUNEVILLE CHATEAU | E199: NANCY | F199: MEURTHE_ET_MOSELLE_MEUSE
A200: 54476 | B200: NANCY ARTEM | C200: 554476 | D200: NANCY ARTEM | E200: NANCY | F200: MEURTHE_ET_MOSELLE_MEUSE
... 137 more rows

Sheet EDS 2
A1: territoire | B1: territoire | C1: région | D1: région
A2: CHAUMONT | B2: CHAUMONT | C2: AUBE HAUTE MARNE | D2: AUBE_HAUTE_MARNE
A3: CHAUMONT | B3: CHAUMONT | C3: AUBE HAUTE MARNE | D3: AUBE_HAUTE_MARNE
A4: CHAUMONT | B4: CHAUMONT | C4: AUBE HAUTE MARNE | D4: AUBE_HAUTE_MARNE
A5: CHAUMONT | B5: CHAUMONT | C5: AUBE HAUTE MARNE | D5: AUBE_HAUTE_MARNE
A6: CHAUMONT | B6: CHAUMONT | C6: AUBE HAUTE MARNE | D6: AUBE_HAUTE_MARNE
A7: CHAUMONT | B7: CHAUMONT | C7: AUBE HAUTE MARNE | D7: AUBE_HAUTE_MARNE
A8: CHAUMONT | B8: CHAUMONT | C8: AUBE HAUTE MARNE | D8: AUBE_HAUTE_MARNE
A9: CHAUMONT | B9: CHAUMONT | C9: AUBE HAUTE MARNE | D9: AUBE_HAUTE_MARNE
A10: CHAUMONT | B10: CHAUMONT | C10: AUBE HAUTE MARNE | D10: AUBE_HAUTE_MARNE
A11: CHAUMONT | B11: CHAUMONT | C11: AUBE HAUTE MARNE | D11: AUBE_HAUTE_MARNE
A12: CHAUMONT | B12: CHAUMONT | C12: AUBE HAUTE MARNE | D12: AUBE_HAUTE_MARNE
A13: TROYES | B13: TROYES | C13: AUBE HAUTE MARNE | D13: AUBE_HAUTE_MARNE
A14: TROYES | B14: TROYES | C14: AUBE HAUTE MARNE | D14: AUBE_HAUTE_MARNE
A15: TROYES | B15: TROYES | C15: AUBE HAUTE MARNE | D15: AUBE_HAUTE_MARNE
A16: TROYES | B16: TROYES | C16: AUBE HAUTE MARNE | D16: AUBE_HAUTE_MARNE
A17: TROYES | B17: TROYES | C17: AUBE HAUTE MARNE | D17: AUBE_HAUTE_MARNE
A18: TROYES | B18: TROYES | C18: AUBE HAUTE MARNE | D18: AUBE_HAUTE_MARNE
A19: TROYES | B19: TROYES | C19: AUBE HAUTE MARNE | D19: AUBE_HAUTE_MARNE
A20: TROYES | B20: TROYES | C20: AUBE HAUTE MARNE | D20: AUBE_HAUTE_MARNE
A21: TROYES | B21: TROYES | C21: AUBE HAUTE MARNE | D21: AUBE_HAUTE_MARNE
A22: TROYES | B22: TROYES | C22: AUBE HAUTE MARNE | D22: AUBE_HAUTE_MARNE
A23: TROYES | B23: TROYES | C23: AUBE HAUTE MARNE | D23: AUBE_HAUTE_MARNE
A24: TROYES | B24: TROYES | C24: AUBE HAUTE MARNE | D24: AUBE_HAUTE_MARNE
A25: TROYES | B25: TROYES | C25: AUBE HAUTE MARNE | D25: AUBE_HAUTE_MARNE
A26: TROYES | B26: TROYES | C26: AUBE HAUTE MARNE | D26: AUBE_HAUTE_MARNE
A27: TROYES | B27: TROYES | C27: AUBE HAUTE MARNE | D27: AUBE_HAUTE_MARNE
A28: TROYES | B28: TROYES | C28: AUBE HAUTE MARNE | D28: AUBE_HAUTE_MARNE
A29: HAGUENAU | B29: HAGUENAU | C29: BAS RHIN | D29: BAS_RHIN
A30: HAGUENAU | B30: HAGUENAU | C30: BAS RHIN | D30: BAS_RHIN
A31: HAGUENAU | B31: HAGUENAU | C31: BAS RHIN | D31: BAS_RHIN
A32: HAGUENAU | B32: HAGUENAU | C32: BAS RHIN | D32: BAS_RHIN
A33: HAGUENAU | B33: HAGUENAU | C33: BAS RHIN | D33: BAS_RHIN
A34: HAGUENAU | B34: HAGUENAU | C34: BAS RHIN | D34: BAS_RHIN
A35: HAGUENAU | B35: HAGUENAU | C35: BAS RHIN | D35: BAS_RHIN
A36: HAGUENAU | B36: HAGUENAU | C36: BAS RHIN | D36: BAS_RHIN
A37: HAGUENAU | B37: HAGUENAU | C37: BAS RHIN | D37: BAS_RHIN
A38: HAGUENAU | B38: HAGUENAU | C38: BAS RHIN | D38: BAS_RHIN
A39: HAGUENAU | B39: HAGUENAU | C39: BAS RHIN | D39: BAS_RHIN
A40: HAGUENAU | B40: HAGUENAU | C40: BAS RHIN | D40: BAS_RHIN
A41: HAGUENAU | B41: HAGUENAU | C41: BAS RHIN | D41: BAS_RHIN
A42: HAGUENAU | B42: HAGUENAU | C42: BAS RHIN | D42: BAS_RHIN
A43: HAGUENAU | B43: HAGUENAU | C43: BAS RHIN | D43: BAS_RHIN
A44: HAGUENAU | B44: HAGUENAU | C44: BAS RHIN | D44: BAS_RHIN
A45: HAGUENAU | B45: HAGUENAU | C45: BAS RHIN | D45: BAS_RHIN
A46: HAGUENAU | B46: HAGUENAU | C46: BAS RHIN | D46: BAS_RHIN
A47: HAGUENAU | B47: HAGUENAU | C47: BAS RHIN | D47: BAS_RHIN
A48: HAGUENAU | B48: HAGUENAU | C48: BAS RHIN | D48: BAS_RHIN
A49: HAGUENAU | B49: HAGUENAU | C49: BAS RHIN | D49: BAS_RHIN
A50: HAGUENAU | B50: HAGUENAU | C50: BAS RHIN | D50: BAS_RHIN
A51: HAGUENAU | B51: HAGUENAU | C51: BAS RHIN | D51: BAS_RHIN
A52: HAGUENAU | B52: HAGUENAU | C52: BAS RHIN | D52: BAS_RHIN
A53: HAGUENAU | B53: HAGUENAU | C53: BAS RHIN | D53: BAS_RHIN
A54: HAGUENAU | B54: HAGUENAU | C54: BAS RHIN | D54: BAS_RHIN
A55: HAGUENAU | B55: HAGUENAU | C55: BAS RHIN | D55: BAS_RHIN
A56: HAGUENAU | B56: HAGUENAU | C56: BAS RHIN | D56: BAS_RHIN
A57: HAGUENAU | B57: HAGUENAU | C57: BAS RHIN | D57: BAS_RHIN
A58: SELESTAT | B58: SELESTAT | C58: BAS RHIN | D58: BAS_RHIN
A59: SELESTAT | B59: SELESTAT | C59: BAS RHIN | D59: BAS_RHIN
A60: SELESTAT | B60: SELESTAT | C60: BAS RHIN | D60: BAS_RHIN
A61: SELESTAT | B61: SELESTAT | C61: BAS RHIN | D61: BAS_RHIN
A62: SELESTAT | B62: SELESTAT | C62: BAS RHIN | D62: BAS_RHIN
A63: SELESTAT | B63: SELESTAT | C63: BAS RHIN | D63: BAS_RHIN
A64: SELESTAT | B64: SELESTAT | C64: BAS RHIN | D64: BAS_RHIN
A65: SELESTAT | B65: SELESTAT | C65: BAS RHIN | D65: BAS_RHIN
A66: SELESTAT | B66: SELESTAT | C66: BAS RHIN | D66: BAS_RHIN
A67: SELESTAT | B67: SELESTAT | C67: BAS RHIN | D67: BAS_RHIN
A68: SELESTAT | B68: SELESTAT | C68: BAS RHIN | D68: BAS_RHIN
A69: SELESTAT | B69: SELESTAT | C69: BAS RHIN | D69: BAS_RHIN
A70: SELESTAT | B70: SELESTAT | C70: BAS RHIN | D70: BAS_RHIN
A71: SELESTAT | B71: SELESTAT | C71: BAS RHIN | D71: BAS_RHIN
A72: SELESTAT | B72: SELESTAT | C72: BAS RHIN | D72: BAS_RHIN
A73: SELESTAT | B73: SELESTAT | C73: BAS RHIN | D73: BAS_RHIN
A74: SELESTAT | B74: SELESTAT | C74: BAS RHIN | D74: BAS_RHIN
A75: SELESTAT | B75: SELESTAT | C75: BAS RHIN | D75: BAS_RHIN
A76: SELESTAT | B76: SELESTAT | C76: BAS RHIN | D76: BAS_RHIN
A77: SELESTAT | B77: SELESTAT | C77: BAS RHIN | D77: BAS_RHIN
A78: STRASBOURG | B78: STRASBOURG | C78: BAS RHIN | D78: BAS_RHIN
A79: STRASBOURG | B79: STRASBOURG | C79: BAS RHIN | D79: BAS_RHIN
A80: STRASBOURG | B80: STRASBOURG | C80: BAS RHIN | D80: BAS_RHIN
A81: STRASBOURG | B81: STRASBOURG | C81: BAS RHIN | D81: BAS_RHIN
A82: STRASBOURG | B82: STRASBOURG | C82: BAS RHIN | D82: BAS_RHIN
A83: STRASBOURG | B83: STRASBOURG | C83: BAS RHIN | D83: BAS_RHIN
A84: STRASBOURG | B84: STRASBOURG | C84: BAS RHIN | D84: BAS_RHIN
A85: STRASBOURG | B85: STRASBOURG | C85: BAS RHIN | D85: BAS_RHIN
A86: STRASBOURG | B86: STRASBOURG | C86: BAS RHIN | D86: BAS_RHIN
A87: STRASBOURG | B87: STRASBOURG | C87: BAS RHIN | D87: BAS_RHIN
A88: STRASBOURG | B88: STRASBOURG | C88: BAS RHIN | D88: BAS_RHIN
A89: STRASBOURG | B89: STRASBOURG | C89: BAS RHIN | D89: BAS_RHIN
A90: STRASBOURG | B90: STRASBOURG | C90: BAS RHIN | D90: BAS_RHIN
A91: STRASBOURG | B91: STRASBOURG | C91: BAS RHIN | D91: BAS_RHIN
A92: STRASBOURG | B92: STRASBOURG | C92: BAS RHIN | D92: BAS_RHIN
A93: STRASBOURG | B93: STRASBOURG | C93: BAS RHIN | D93: BAS_RHIN
A94: STRASBOURG | B94: STRASBOURG | C94: BAS RHIN | D94: BAS_RHIN
A95: STRASBOURG | B95: STRASBOURG | C95: BAS RHIN | D95: BAS_RHIN
A96: STRASBOURG | B96: STRASBOURG | C96: BAS RHIN | D96: BAS_RHIN
A97: STRASBOURG | B97: STRASBOURG | C97: BAS RHIN | D97: BAS_RHIN
A98: STRASBOURG | B98: STRASBOURG | C98: BAS RHIN | D98: BAS_RHIN
A99: STRASBOURG | B99: STRASBOURG | C99: BAS RHIN | D99: BAS_RHIN
A100: STRASBOURG | B100: STRASBOURG | C100: BAS RHIN | D100: BAS_RHIN
A101: STRASBOURG | B101: STRASBOURG | C101: BAS RHIN | D101: BAS_RHIN
A102: STRASBOURG | B102: STRASBOURG | C102: BAS RHIN | D102: BAS_RHIN
A103: COLMAR | B103: COLMAR | C103: HAUT RHIN | D103: HAUT_RHIN
A104: COLMAR | B104: COLMAR | C104: HAUT RHIN | D104: HAUT_RHIN
A105: COLMAR | B105: COLMAR | C105: HAUT RHIN | D105: HAUT_RHIN
A106: COLMAR | B106: COLMAR | C106: HAUT RHIN | D106: HAUT_RHIN
A107: COLMAR | B107: COLMAR | C107: HAUT RHIN | D107: HAUT_RHIN
A108: COLMAR | B108: COLMAR | C108: HAUT RHIN | D108: HAUT_RHIN
A109: COLMAR | B109: COLMAR | C109: HAUT RHIN | D109: HAUT_RHIN
A110: COLMAR | B110: COLMAR | C110: HAUT RHIN | D110: HAUT_RHIN
A111: COLMAR | B111: COLMAR | C111: HAUT RHIN | D111: HAUT_RHIN
A112: COLMAR | B112: COLMAR | C112: HAUT RHIN | D112: HAUT_RHIN
A113: COLMAR | B113: COLMAR | C113: HAUT RHIN | D113: HAUT_RHIN
A114: COLMAR | B114: COLMAR | C114: HAUT RHIN | D114: HAUT_RHIN
A115: COLMAR | B115: COLMAR | C115: HAUT RHIN | D115: HAUT_RHIN
A116: COLMAR | B116: COLMAR | C116: HAUT RHIN | D116: HAUT_RHIN
A117: COLMAR | B117: COLMAR | C117: HAUT RHIN | D117: HAUT_RHIN
A118: COLMAR | B118: COLMAR | C118: HAUT RHIN | D118: HAUT_RHIN
A119: COLMAR | B119: COLMAR | C119: HAUT RHIN | D119: HAUT_RHIN
A120: COLMAR | B120: COLMAR | C120: HAUT RHIN | D120: HAUT_RHIN
A121: COLMAR | B121: COLMAR | C121: HAUT RHIN | D121: HAUT_RHIN
A122: COLMAR | B122: COLMAR | C122: HAUT RHIN | D122: HAUT_RHIN
A123: COLMAR | B123: COLMAR | C123: HAUT RHIN | D123: HAUT_RHIN
A124: COLMAR | B124: COLMAR | C124: HAUT RHIN | D124: HAUT_RHIN
A125: COLMAR | B125: COLMAR | C125: HAUT RHIN | D125: HAUT_RHIN
A126: MULHOUSE | B126: MULHOUSE | C126: HAUT RHIN | D126: HAUT_RHIN
A127: MULHOUSE | B127: MULHOUSE | C127: HAUT RHIN | D127: HAUT_RHIN
A128: MULHOUSE | B128: MULHOUSE | C128: HAUT RHIN | D128: HAUT_RHIN
A129: MULHOUSE | B129: MULHOUSE | C129: HAUT RHIN | D129: HAUT_RHIN
A130: MULHOUSE | B130: MULHOUSE | C130: HAUT RHIN | D130: HAUT_RHIN
A131: MULHOUSE | B131: MULHOUSE | C131: HAUT RHIN | D131: HAUT_RHIN
A132: MULHOUSE | B132: MULHOUSE | C132: HAUT RHIN | D132: HAUT_RHIN
A133: MULHOUSE | B133: MULHOUSE | C133: HAUT RHIN | D133: HAUT_RHIN
A134: MULHOUSE | B134: MULHOUSE | C134: HAUT RHIN | D134: HAUT_RHIN
A135: MULHOUSE | B135: MULHOUSE | C135: HAUT RHIN | D135: HAUT_RHIN
A136: MULHOUSE | B136: MULHOUSE | C136: HAUT RHIN | D136: HAUT_RHIN
A137: MULHOUSE | B137: MULHOUSE | C137: HAUT RHIN | D137: HAUT_RHIN
A138: MULHOUSE | B138: MULHOUSE | C138: HAUT RHIN | D138: HAUT_RHIN
A139: MULHOUSE | B139: MULHOUSE | C139: HAUT RHIN | D139: HAUT_RHIN
A140: MULHOUSE | B140: MULHOUSE | C140: HAUT RHIN | D140: HAUT_RHIN
A141: MULHOUSE | B141: MULHOUSE | C141: HAUT RHIN | D141: HAUT_RHIN
A142: MULHOUSE | B142: MULHOUSE | C142: HAUT RHIN | D142: HAUT_RHIN
A143: MULHOUSE | B143: MULHOUSE | C143: HAUT RHIN | D143: HAUT_RHIN
A144: MULHOUSE | B144: MULHOUSE | C144: HAUT RHIN | D144: HAUT_RHIN
A145: MULHOUSE | B145: MULHOUSE | C145: HAUT RHIN | D145: HAUT_RHIN
A146: MULHOUSE | B146: MULHOUSE | C146: HAUT RHIN | D146: HAUT_RHIN
A147: CHALONS EN CHAMPAGNE | B147: CHALONS_EN_CHAMPAGNE | C147: MARNE ARDENNES | D147: MARNE_ARDENNES
A148: CHALONS EN CHAMPAGNE | B148: CHALONS_EN_CHAMPAGNE | C148: MARNE ARDENNES | D148: MARNE_ARDENNES
A149: CHALONS EN CHAMPAGNE | B149: CHALONS_EN_CHAMPAGNE | C149: MARNE ARDENNES | D149: MARNE_ARDENNES
A150: CHALONS EN CHAMPAGNE | B150: CHALONS_EN_CHAMPAGNE | C150: MARNE ARDENNES | D150: MARNE_ARDENNES
A151: CHALONS EN CHAMPAGNE | B151: CHALONS_EN_CHAMPAGNE | C151: MARNE ARDENNES | D151: MARNE_ARDENNES
A152: CHALONS EN CHAMPAGNE | B152: CHALONS_EN_CHAMPAGNE | C152: MARNE ARDENNES | D152: MARNE_ARDENNES
A153: CHALONS EN CHAMPAGNE | B153: CHALONS_EN_CHAMPAGNE | C153: MARNE ARDENNES | D153: MARNE_ARDENNES
A154: CHALONS EN CHAMPAGNE | B154: CHALONS_EN_CHAMPAGNE | C154: MARNE ARDENNES | D154: MARNE_ARDENNES
A155: CHALONS EN CHAMPAGNE | B155: CHALONS_EN_CHAMPAGNE | C155: MARNE ARDENNES | D155: MARNE_ARDENNES
A156: CHALONS EN CHAMPAGNE | B156: CHALONS_EN_CHAMPAGNE | C156: MARNE ARDENNES | D156: MARNE_ARDENNES
A157: CHALONS EN CHAMPAGNE | B157: CHALONS_EN_CHAMPAGNE | C157: MARNE ARDENNES | D157: MARNE_ARDENNES
A158: CHARLEVILLE MEZIERES | B158: CHARLEVILLE_MEZIERES | C158: MARNE ARDENNES | D158: MARNE_ARDENNES
A159: CHARLEVILLE MEZIERES | B159: CHARLEVILLE_MEZIERES | C159: MARNE ARDENNES | D159: MARNE_ARDENNES
A160: CHARLEVILLE MEZIERES | B160: CHARLEVILLE_MEZIERES | C160: MARNE ARDENNES | D160: MARNE_ARDENNES
A161: CHARLEVILLE MEZIERES | B161: CHARLEVILLE_MEZIERES | C161: MARNE ARDENNES | D161: MARNE_ARDENNES
A162: CHARLEVILLE MEZIERES | B162: CHARLEVILLE_MEZIERES | C162: MARNE ARDENNES | D162: MARNE_ARDENNES
A163: CHARLEVILLE MEZIERES | B163: CHARLEVILLE_MEZIERES | C163: MARNE ARDENNES | D163: MARNE_ARDENNES
A164: CHARLEVILLE MEZIERES | B164: CHARLEVILLE_MEZIERES | C164: MARNE ARDENNES | D164: MARNE_ARDENNES
A165: CHARLEVILLE MEZIERES | B165: CHARLEVILLE_MEZIERES | C165: MARNE ARDENNES | D165: MARNE_ARDENNES
A166: CHARLEVILLE MEZIERES | B166: CHARLEVILLE_MEZIERES | C166: MARNE ARDENNES | D166: MARNE_ARDENNES
A167: CHARLEVILLE MEZIERES | B167: CHARLEVILLE_MEZIERES | C167: MARNE ARDENNES | D167: MARNE_ARDENNES
A168: CHARLEVILLE MEZIERES | B168: CHARLEVILLE_MEZIERES | C168: MARNE ARDENNES | D168: MARNE_ARDENNES
A169: CHARLEVILLE MEZIERES | B169: CHARLEVILLE_MEZIERES | C169: MARNE ARDENNES | D169: MARNE_ARDENNES
A170: CHARLEVILLE MEZIERES | B170: CHARLEVILLE_MEZIERES | C170: MARNE ARDENNES | D170: MARNE_ARDENNES
A171: CHARLEVILLE MEZIERES | B171: CHARLEVILLE_MEZIERES | C171: MARNE ARDENNES | D171: MARNE_ARDENNES
A172: REIMS | B172: REIMS | C172: MARNE ARDENNES | D172: MARNE_ARDENNES
A173: REIMS | B173: REIMS | C173: MARNE ARDENNES | D173: MARNE_ARDENNES
A174: REIMS | B174: REIMS | C174: MARNE ARDENNES | D174: MARNE_ARDENNES
A175: REIMS | B175: REIMS | C175: MARNE ARDENNES | D175: MARNE_ARDENNES
A176: REIMS | B176: REIMS | C176: MARNE ARDENNES | D176: MARNE_ARDENNES
A177: REIMS | B177: REIMS | C177: MARNE ARDENNES | D177: MARNE_ARDENNES
A178: REIMS | B178: REIMS | C178: MARNE ARDENNES | D178: MARNE_ARDENNES
A179: REIMS | B179: REIMS | C179: MARNE ARDENNES | D179: MARNE_ARDENNES
A180: REIMS | B180: REIMS | C180: MARNE ARDENNES | D180: MARNE_ARDENNES
A181: REIMS | B181: REIMS | C181: MARNE ARDENNES | D181: MARNE_ARDENNES
A182: REIMS | B182: REIMS | C182: MARNE ARDENNES | D182: MARNE_ARDENNES
A183: REIMS | B183: REIMS | C183: MARNE ARDENNES | D183: MARNE_ARDENNES
A184: REIMS | B184: REIMS | C184: MARNE ARDENNES | D184: MARNE_ARDENNES
A185: REIMS | B185: REIMS | C185: MARNE ARDENNES | D185: MARNE_ARDENNES
A186: REIMS | B186: REIMS | C186: MARNE ARDENNES | D186: MARNE_ARDENNES
A187: REIMS | B187: REIMS | C187: MARNE ARDENNES | D187: MARNE_ARDENNES
A188: REIMS | B188: REIMS | C188: MARNE ARDENNES | D188: MARNE_ARDENNES
A189: REIMS | B189: REIMS | C189: MARNE ARDENNES | D189: MARNE_ARDENNES
A190: REIMS | B190: REIMS | C190: MARNE ARDENNES | D190: MARNE_ARDENNES
A191: NANCY | B191: NANCY | C191: MEURTHE ET MOSELLE MEUSE | D191: MEURTHE_ET_MOSELLE_MEUSE
A192: NANCY | B192: NANCY | C192: MEURTHE ET MOSELLE MEUSE | D192: MEURTHE_ET_MOSELLE_MEUSE
A193: NANCY | B193: NANCY | C193: MEURTHE ET MOSELLE MEUSE | D193: MEURTHE_ET_MOSELLE_MEUSE
A194: NANCY | B194: NANCY | C194: MEURTHE ET MOSELLE MEUSE | D194: MEURTHE_ET_MOSELLE_MEUSE
A195: NANCY | B195: NANCY | C195: MEURTHE ET MOSELLE MEUSE | D195: MEURTHE_ET_MOSELLE_MEUSE
A196: NANCY | B196: NANCY | C196: MEURTHE ET MOSELLE MEUSE | D196: MEURTHE_ET_MOSELLE_MEUSE
A197: NANCY | B197: NANCY | C197: MEURTHE ET MOSELLE MEUSE | D197: MEURTHE_ET_MOSELLE_MEUSE
A198: NANCY | B198: NANCY | C198: MEURTHE ET MOSELLE MEUSE | D198: MEURTHE_ET_MOSELLE_MEUSE
A199: NANCY | B199: NANCY | C199: MEURTHE ET MOSELLE MEUSE | D199: MEURTHE_ET_MOSELLE_MEUSE
A200: NANCY | B200: NANCY | C200: MEURTHE ET MOSELLE MEUSE | D200: MEURTHE_ET_MOSELLE_MEUSE
... 137 more rows

Sheet Menu
C2: Evolution du Fonds de Commerce

Sheet Activation
B2: FDC ET EQUIPEMENT PAR SEGMENT ACTIVATION
C4: REGION | F4: TERRITOIRE | J4: PDV
C5: CEGEE
D8: Tous segments | F8: Segments Activation - 07/2019
D9: 2019-07-01 | E9: 2018-12-01 | F9: BPe | G9: BPne | H9: De | I9: Dne | J9: JBPe | K9: JBPne | L9: JDe | M9: JDne | N9: Ee | O9: Ene | P9: I
B10: Fonds de commerce | C10: Nombre clients | D10: =SUM(F10:P10) -> 1503824 | E10: =IF(ISBLANK($F$5),SUMIFS('Données FDC déc 2018'!$F:$F,'Données FDC déc 2018'!$A:$A,Activation!$C$5),IF(ISBLANK($J$5),SUMIFS('Données FDC déc 2018'!$F:$F,'Données FDC déc 2018'!$B:$B,Activation!$F$5),SUMIFS('Données FDC déc 2018'!$F:$F,'Données FDC déc 2018'!$C:$C,Activation!$J$5))) -> 1539985 | F10: =IF(ISBLANK($F$5),SUMIFS('Données FDC'!$F:$F,'Données FDC'!$A:$A,Activation!$C$5,'Données FDC'!$E:$E,Activation!F$9),IF(ISBLANK($J$5),SUMIFS('Données FDC'!$F:$F,'Données FDC'!$B:$B,Activation!$F$5,'Données FDC'!$E:$E,Activation!F$9),SUMIFS('Données FDC'!$F:$F,'Données FDC'!$C:$C,Activation!$J$5,'Données FDC'!$E:$E,Activation!F$9))) -> 275277 | G10: =IF(ISBLANK($F$5),SUMIFS('Données FDC'!$F:$F,'Données FDC'!$A:$A,Activation!$C$5,'Données FDC'!$E:$E,Activation!G$9),IF(ISBLANK($J$5),SUMIFS('Données FDC'!$F:$F,'Données FDC'!$B:$B,Activation!$F$5,'Données FDC'!$E:$E,Activation!G$9),SUMIFS('Données FDC'!$F:$F,'Données FDC'!$C:$C,Activation!$J$5,'Données FDC'!$E:$E,Activation!G$9))) -> 161463 | H10: =IF(ISBLANK($F$5),SUMIFS('Données FDC'!$F:$F,'Données FDC'!$A:$A,Activation!$C$5,'Données FDC'!$E:$E,Activation!H$9),IF(ISBLANK($J$5),SUMIFS('Données FDC'!$F:$F,'Données FDC'!$B:$B,Activation!$F$5,'Données FDC'!$E:$E,Activation!H$9),SUMIFS('Données FDC'!$F:$F,'Données FDC'!$C:$C,Activation!$J$5,'Données FDC'!$E:$E,Activation!H$9))) -> 171179 | I10: =IF(ISBLANK($F$5),SUMIFS('Données FDC'!$F:$F,'Données FDC'!$A:$A,Activation!$C$5,'Données FDC'!$E:$E,Activation!I$9),IF(ISBLANK($J$5),SUMIFS('Données FDC'!$F:$F,'Données FDC'!$B:$B,Activation!$F$5,'Données FDC'!$E:$E,Activation!I$9),SUMIFS('Données FDC'!$F:$F,'Données FDC'!$C:$C,Activation!$J$5,'Données FDC'!$E:$E,Activation!I$9))) -> 357761 | J10: =IF(ISBLANK($F$5),SUMIFS('Données FDC'!$F:$F,'Données FDC'!$A:$A,Activation!$C$5,'Données FDC'!$E:$E,Activation!J$9),IF(ISBLANK($J$5),SUMIFS('Données FDC'!$F:$F,'Données FDC'!$B:$B,Activation!$F$5,'Données FDC'!$E:$E,Activation!J$9),SUMIFS('Données FDC'!$F:$F,'Données FDC'!$C:$C,Activation!$J$5,'Données FDC'!$E:$E,Activation!J$9))) -> 59694 | K10: =IF(ISBLANK($F$5),SUMIFS('Données FDC'!$F:$F,'Données FDC'!$A:$A,Activation!$C$5,'Données FDC'!$E:$E,Activation!K$9),IF(ISBLANK($J$5),SUMIFS('Données FDC'!$F:$F,'Données FDC'!$B:$B,Activation!$F$5,'Données FDC'!$E:$E,Activation!K$9),SUMIFS('Données FDC'!$F:$F,'Données FDC'!$C:$C,Activation!$J$5,'Données FDC'!$E:$E,Activation!K$9))) -> 18473 | L10: =IF(ISBLANK($F$5),SUMIFS('Données FDC'!$F:$F,'Données FDC'!$A:$A,Activation!$C$5,'Données FDC'!$E:$E,Activation!L$9),IF(ISBLANK($J$5),SUMIFS('Données FDC'!$F:$F,'Données FDC'!$B:$B,Activation!$F$5,'Données FDC'!$E:$E,Activation!L$9),SUMIFS('Données FDC'!$F:$F,'Données FDC'!$C:$C,Activation!$J$5,'Données FDC'!$E:$E,Activation!L$9))) -> 11025 | M10: =IF(ISBLANK($F$5),SUMIFS('Données FDC'!$F:$F,'Données FDC'!$A:$A,Activation!$C$5,'Données FDC'!$E:$E,Activation!M$9),IF(ISBLANK($J$5),SUMIFS('Données FDC'!$F:$F,'Données FDC'!$B:$B,Activation!$F$5,'Données FDC'!$E:$E,Activation!M$9),SUMIFS('Données FDC'!$F:$F,'Données FDC'!$C:$C,Activation!$J$5,'Données FDC'!$E:$E,Activation!M$9))) -> 76964 | N10: =IF(ISBLANK($F$5),SUMIFS('Données FDC'!$F:$F,'Données FDC'!$A:$A,Activation!$C$5,'Données FDC'!$E:$E,Activation!N$9),IF(ISBLANK($J$5),SUMIFS('Données FDC'!$F:$F,'Données FDC'!$B:$B,Activation!$F$5,'Données FDC'!$E:$E,Activation!N$9),SUMIFS('Données FDC'!$F:$F,'Données FDC'!$C:$C,Activation!$J$5,'Données FDC'!$E:$E,Activation!N$9))) -> 90330 | O10: =IF(ISBLANK($F$5),SUMIFS('Données FDC'!$F:$F,'Données FDC'!$A:$A,Activation!$C$5,'Données FDC'!$E:$E,Activation!O$9),IF(ISBLANK($J$5),SUMIFS('Données FDC'!$F:$F,'Données FDC'!$B:$B,Activation!$F$5,'Données FDC'!$E:$E,Activation!O$9),SUMIFS('Données FDC'!$F:$F,'Données FDC'!$C:$C,Activation!$J$5,'Données FDC'!$E:$E,Activation!O$9))) -> 63300 | P10: =IF(ISBLANK($F$5),SUMIFS('Données FDC'!$F:$F,'Données FDC'!$A:$A,Activation!$C$5,'Données FDC'!$E:$E,Activation!P$9),IF(ISBLANK($J$5),SUMIFS('Données FDC'!$F:$F,'Données FDC'!$B:$B,Activation!$F$5,'Données FDC'!$E:$E,Activation!P$9),SUMIFS('Données FDC'!$F:$F,'Données FDC'!$C:$C,Activation!$J$5,'Données FDC'!$E:$E,Activation!P$9))) -> 218358
C11: Poids | D11: =SUM(F11:P11) -> 1 | F11: =F10/$D10 -> 0.1830513411 | G11: =G10/$D10 -> 0.1073682825 | H11: 0.1138291449 | I11: 0.2379008448 | J11: 0.03969480471 | K11: 0.01228401728 | L11: 0.007331310047 | M11: 0.05117886136 | N11: 0.06006686953 | O11: 0.0420926917 | P11: 0.1452018321
C12: Poids CEGEE | D12: =SUM(F12:P12) -> 1 | F12: =SUMIF('Données FDC'!$E:$E,Activation!F$9,'Données FDC'!$F:$F)/SUM('Données FDC'!$F:$F) -> 0.1830513411 | G12: =SUMIF('Données FDC'!$E:$E,Activation!G$9,'Données FDC'!$F:$F)/SUM('Données FDC'!$F:$F) -> 0.1073682825 | H12: =SUMIF('Données FDC'!$E:$E,Activation!H$9,'Données FDC'!$F:$F)/SUM('Données FDC'!$F:$F) -> 0.1138291449 | I12: =SUMIF('Données FDC'!$E:$E,Activation!I$9,'Données FDC'!$F:$F)/SUM('Données FDC'!$F:$F) -> 0.2379008448 | J12: =SUMIF('Données FDC'!$E:$E,Activation!J$9,'Données FDC'!$F:$F)/SUM('Données FDC'!$F:$F) -> 0.03969480471 | K12: =SUMIF('Données FDC'!$E:$E,Activation!K$9,'Données FDC'!$F:$F)/SUM('Données FDC'!$F:$F) -> 0.01228401728 | L12: =SUMIF('Données FDC'!$E:$E,Activation!L$9,'Données FDC'!$F:$F)/SUM('Données FDC'!$F:$F) -> 0.007331310047 | M12: =SUMIF('Données FDC'!$E:$E,Activation!M$9,'Données FDC'!$F:$F)/SUM('Données FDC'!$F:$F) -> 0.05117886136 | N12: =SUMIF('Données FDC'!$E:$E,Activation!N$9,'Données FDC'!$F:$F)/SUM('Données FDC'!$F:$F) -> 0.06006686953 | O12: =SUMIF('Données FDC'!$E:$E,Activation!O$9,'Données FDC'!$F:$F)/SUM('Données FDC'!$F:$F) -> 0.0420926917 | P12: =SUMIF('Données FDC'!$E:$E,Activation!P$9,'Données FDC'!$F:$F)/SUM('Données FDC'!$F:$F) -> 0.1452018321
C13: Variation annuelle en nb | D13: =SUM(F13:P13) -> -36161 | F13: =F10-IF(ISBLANK($F$5),SUMIFS('Données FDC déc 2018'!$F:$F,'Données FDC déc 2018'!$A:$A,Activation!$C$5,'Données FDC déc 2018'!$E:$E,Activation!F$9),IF(ISBLANK($J$5),SUMIFS('Données FDC déc 2018'!$F:$F,'Données FDC déc 2018'!$B:$B,Activation!$F$5,'Données FDC déc 2018'!$E:$E,Activation!F$9),SUMIFS('Données FDC déc 2018'!$F:$F,'Données FDC déc 2018'!$C:$C,Activation!$J$5,'Données FDC déc 2018'!$E:$E,Activation!F$9))) -> 1149 | G13: =G10-IF(ISBLANK($F$5),SUMIFS('Données FDC déc 2018'!$F:$F,'Données FDC déc 2018'!$A:$A,Activation!$C$5,'Données FDC déc 2018'!$E:$E,Activation!G$9),IF(ISBLANK($J$5),SUMIFS('Données FDC déc 2018'!$F:$F,'Données FDC déc 2018'!$B:$B,Activation!$F$5,'Données FDC déc 2018'!$E:$E,Activation!G$9),SUMIFS('Données FDC déc 2018'!$F:$F,'Données FDC déc 2018'!$C:$C,Activation!$J$5,'Données FDC déc 2018'!$E:$E,Activation!G$9))) -> -2230 | H13: =H10-IF(ISBLANK($F$5),SUMIFS('Données FDC déc 2018'!$F:$F,'Données FDC déc 2018'!$A:$A,Activation!$C$5,'Données FDC déc 2018'!$E:$E,Activation!H$9),IF(ISBLANK($J$5),SUMIFS('Données FDC déc 2018'!$F:$F,'Données FDC déc 2018'!$B:$B,Activation!$F$5,'Données FDC déc 2018'!$E:$E,Activation!H$9),SUMIFS('Données FDC déc 2018'!$F:$F,'Données FDC déc 2018'!$C:$C,Activation!$J$5,'Données FDC déc 2018'!$E:$E,Activation!H$9))) -> -3389 | I13: =I10-IF(ISBLANK($F$5),SUMIFS('Données FDC déc 2018'!$F:$F,'Données FDC déc 2018'!$A:$A,Activation!$C$5,'Données FDC déc 2018'!$E:$E,Activation!I$9),IF(ISBLANK($J$5),SUMIFS('Données FDC déc 2018'!$F:$F,'Données FDC déc 2018'!$B:$B,Activation!$F$5,'Données FDC déc 2018'!$E:$E,Activation!I$9),SUMIFS('Données FDC déc 2018'!$F:$F,'Données FDC déc 2018'!$C:$C,Activation!$J$5,'Données FDC déc 2018'!$E:$E,Activation!I$9))) -> -8867 | J13: =J10-IF(ISBLANK($F$5),SUMIFS('Données FDC déc 2018'!$F:$F,'Données FDC déc 2018'!$A:$A,Activation!$C$5,'Données FDC déc 2018'!$E:$E,Activation!J$9),IF(ISBLANK($J$5),SUMIFS('Données FDC déc 2018'!$F:$F,'Données FDC déc 2018'!$B:$B,Activation!$F$5,'Données FDC déc 2018'!$E:$E,Activation!J$9),SUMIFS('Données FDC déc 2018'!$F:$F,'Données FDC déc 2018'!$C:$C,Activation!$J$5,'Données FDC déc 2018'!$E:$E,Activation!J$9))) -> -1274 | K13: =K10-IF(ISBLANK($F$5),SUMIFS('Données FDC déc 2018'!$F:$F,'Données FDC déc 2018'!$A:$A,Activation!$C$5,'Données FDC déc 2018'!$E:$E,Activation!K$9),IF(ISBLANK($J$5),SUMIFS('Données FDC déc 2018'!$F:$F,'Données FDC déc 2018'!$B:$B,Activation!$F$5,'Données FDC déc 2018'!$E:$E,Activation!K$9),SUMIFS('Données FDC déc 2018'!$F:$F,'Données FDC déc 2018'!$C:$C,Activation!$J$5,'Données FDC déc 2018'!$E:$E,Activation!K$9))) -> -690 | L13: =L10-IF(ISBLANK($F$5),SUMIFS('Données FDC déc 2018'!$F:$F,'Données FDC déc 2018'!$A:$A,Activation!$C$5,'Données FDC déc 2018'!$E:$E,Activation!L$9),IF(ISBLANK($J$5),SUMIFS('Données FDC déc 2018'!$F:$F,'Données FDC déc 2018'!$B:$B,Activation!$F$5,'Données FDC déc 2018'!$E:$E,Activation!L$9),SUMIFS('Données FDC déc 2018'!$F:$F,'Données FDC déc 2018'!$C:$C,Activation!$J$5,'Données FDC déc 2018'!$E:$E,Activation!L$9))) -> -286 | M13: =M10-IF(ISBLANK($F$5),SUMIFS('Données FDC déc 2018'!$F:$F,'Données FDC déc 2018'!$A:$A,Activation!$C$5,'Données FDC déc 2018'!$E:$E,Activation!M$9),IF(ISBLANK($J$5),SUMIFS('Données FDC déc 2018'!$F:$F,'Données FDC déc 2018'!$B:$B,Activation!$F$5,'Données FDC déc 2018'!$E:$E,Activation!M$9),SUMIFS('Données FDC déc 2018'!$F:$F,'Données FDC déc 2018'!$C:$C,Activation!$J$5,'Données FDC déc 2018'!$E:$E,Activation!M$9))) -> -1735 | N13: =N10-IF(ISBLANK($F$5),SUMIFS('Données FDC déc 2018'!$F:$F,'Données FDC déc 2018'!$A:$A,Activation!$C$5,'Données FDC déc 2018'!$E:$E,Activation!N$9),IF(ISBLANK($J$5),SUMIFS('Données FDC déc 2018'!$F:$F,'Données FDC déc 2018'!$B:$B,Activation!$F$5,'Données FDC déc 2018'!$E:$E,Activation!N$9),SUMIFS('Données FDC déc 2018'!$F:$F,'Données FDC déc 2018'!$C:$C,Activation!$J$5,'Données FDC déc 2018'!$E:$E,Activation!N$9))) -> -5620 | O13: =O10-IF(ISBLANK($F$5),SUMIFS('Données FDC déc 2018'!$F:$F,'Données FDC déc 2018'!$A:$A,Activation!$C$5,'Données FDC déc 2018'!$E:$E,Activation!O$9),IF(ISBLANK($J$5),SUMIFS('Données FDC déc 2018'!$F:$F,'Données FDC déc 2018'!$B:$B,Activation!$F$5,'Données FDC déc 2018'!$E:$E,Activation!O$9),SUMIFS('Données FDC déc 2018'!$F:$F,'Données FDC déc 2018'!$C:$C,Activation!$J$5,'Données FDC déc 2018'!$E:$E,Activation!O$9))) -> -993 | P13: =P10-IF(ISBLANK($F$5),SUMIFS('Données FDC déc 2018'!$F:$F,'Données FDC déc 2018'!$A:$A,Activation!$C$5,'Données FDC déc 2018'!$E:$E,Activation!P$9),IF(ISBLANK($J$5),SUMIFS('Données FDC déc 2018'!$F:$F,'Données FDC déc 2018'!$B:$B,Activation!$F$5,'Données FDC déc 2018'!$E:$E,Activation!P$9),SUMIFS('Données FDC déc 2018'!$F:$F,'Données FDC déc 2018'!$C:$C,Activation!$J$5,'Données FDC déc 2018'!$E:$E,Activation!P$9))) -> -12226
C14: Variation annuelle en % | D14: =D13/IF(ISBLANK($F$5),SUMIFS('Données FDC déc 2018'!$F:$F,'Données FDC déc 2018'!$A:$A,Activation!$C$5),IF(ISBLANK($J$5),SUMIFS('Données FDC déc 2018'!$F:$F,'Données FDC déc 2018'!$B:$B,Activation!$F$5),SUMIFS('Données FDC déc 2018'!$F:$F,'Données FDC déc 2018'!$C:$C,Activation!$J$5))) -> -0.02348139755 | F14: =F13/IF(ISBLANK($F$5),SUMIFS('Données FDC déc 2018'!$F:$F,'Données FDC déc 2018'!$A:$A,Activation!$C$5,'Données FDC déc 2018'!$E:$E,Activation!F$9),IF(ISBLANK($J$5),SUMIFS('Données FDC déc 2018'!$F:$F,'Données FDC déc 2018'!$B:$B,Activation!$F$5,'Données FDC déc 2018'!$E:$E,Activation!F$9),SUMIFS('Données FDC déc 2018'!$F:$F,'Données FDC déc 2018'!$C:$C,Activation!$J$5,'Données FDC déc 2018'!$E:$E,Activation!F$9))) -> 0.004191472597 | G14: =G13/IF(ISBLANK($F$5),SUMIFS('Données FDC déc 2018'!$F:$F,'Données FDC déc 2018'!$A:$A,Activation!$C$5,'Données FDC déc 2018'!$E:$E,Activation!G$9),IF(ISBLANK($J$5),SUMIFS('Données FDC déc 2018'!$F:$F,'Données FDC déc 2018'!$B:$B,Activation!$F$5,'Données FDC déc 2018'!$E:$E,Activation!G$9),SUMIFS('Données FDC déc 2018'!$F:$F,'Données FDC déc 2018'!$C:$C,Activation!$J$5,'Données FDC déc 2018'!$E:$E,Activation!G$9))) -> -0.01362306268 | H14: =H13/IF(ISBLANK($F$5),SUMIFS('Données FDC déc 2018'!$F:$F,'Données FDC déc 2018'!$A:$A,Activation!$C$5,'Données FDC déc 2018'!$E:$E,Activation!H$9),IF(ISBLANK($J$5),SUMIFS('Données FDC déc 2018'!$F:$F,'Données FDC déc 2018'!$B:$B,Activation!$F$5,'Données FDC déc 2018'!$E:$E,Activation!H$9),SUMIFS('Données FDC déc 2018'!$F:$F,'Données FDC déc 2018'!$C:$C,Activation!$J$5,'Données FDC déc 2018'!$E:$E,Activation!H$9))) -> -0.01941363824 | I14: =I13/IF(ISBLANK($F$5),SUMIFS('Données FDC déc 2018'!$F:$F,'Données FDC déc 2018'!$A:$A,Activation!$C$5,'Données FDC déc 2018'!$E:$E,Activation!I$9),IF(ISBLANK($J$5),SUMIFS('Données FDC déc 2018'!$F:$F,'Données FDC déc 2018'!$B:$B,Activation!$F$5,'Données FDC déc 2018'!$E:$E,Activation!I$9),SUMIFS('Données FDC déc 2018'!$F:$F,'Données FDC déc 2018'!$C:$C,Activation!$J$5,'Données FDC déc 2018'!$E:$E,Activation!I$9))) -> -0.02418527772 | J14: =J13/IF(ISBLANK($F$5),SUMIFS('Données FDC déc 2018'!$F:$F,'Données FDC déc 2018'!$A:$A,Activation!$C$5,'Données FDC déc 2018'!$E:$E,Activation!J$9),IF(ISBLANK($J$5),SUMIFS('Données FDC déc 2018'!$F:$F,'Données FDC déc 2018'!$B:$B,Activation!$F$5,'Données FDC déc 2018'!$E:$E,Activation!J$9),SUMIFS('Données FDC déc 2018'!$F:$F,'Données FDC déc 2018'!$C:$C,Activation!$J$5,'Données FDC déc 2018'!$E:$E,Activation!J$9))) -> -0.02089620785 | K14: =K13/IF(ISBLANK($F$5),SUMIFS('Données FDC déc 2018'!$F:$F,'Données FDC déc 2018'!$A:$A,Activation!$C$5,'Données FDC déc 2018'!$E:$E,Activation!K$9),IF(ISBLANK($J$5),SUMIFS('Données FDC déc 2018'!$F:$F,'Données FDC déc 2018'!$B:$B,Activation!$F$5,'Données FDC déc 2018'!$E:$E,Activation!K$9),SUMIFS('Données FDC déc 2018'!$F:$F,'Données FDC déc 2018'!$C:$C,Activation!$J$5,'Données FDC déc 2018'!$E:$E,Activation!K$9))) -> -0.03600688827 | L14: =L13/IF(ISBLANK($F$5),SUMIFS('Données FDC déc 2018'!$F:$F,'Données FDC déc 2018'!$A:$A,Activation!$C$5,'Données FDC déc 2018'!$E:$E,Activation!L$9),IF(ISBLANK($J$5),SUMIFS('Données FDC déc 2018'!$F:$F,'Données FDC déc 2018'!$B:$B,Activation!$F$5,'Données FDC déc 2018'!$E:$E,Activation!L$9),SUMIFS('Données FDC déc 2018'!$F:$F,'Données FDC déc 2018'!$C:$C,Activation!$J$5,'Données FDC déc 2018'!$E:$E,Activation!L$9))) -> -0.02528512068 | M14: =M13/IF(ISBLANK($F$5),SUMIFS('Données FDC déc 2018'!$F:$F,'Données FDC déc 2018'!$A:$A,Activation!$C$5,'Données FDC déc 2018'!$E:$E,Activation!M$9),IF(ISBLANK($J$5),SUMIFS('Données FDC déc 2018'!$F:$F,'Données FDC déc 2018'!$B:$B,Activation!$F$5,'Données FDC déc 2018'!$E:$E,Activation!M$9),SUMIFS('Données FDC déc 2018'!$F:$F,'Données FDC déc 2018'!$C:$C,Activation!$J$5,'Données FDC déc 2018'!$E:$E,Activation!M$9))) -> -0.02204602346 | N14: =N13/IF(ISBLANK($F$5),SUMIFS('Données FDC déc 2018'!$F:$F,'Données FDC déc 2018'!$A:$A,Activation!$C$5,'Données FDC déc 2018'!$E:$E,Activation!N$9),IF(ISBLANK($J$5),SUMIFS('Données FDC déc 2018'!$F:$F,'Données FDC déc 2018'!$B:$B,Activation!$F$5,'Données FDC déc 2018'!$E:$E,Activation!N$9),SUMIFS('Données FDC déc 2018'!$F:$F,'Données FDC déc 2018'!$C:$C,Activation!$J$5,'Données FDC déc 2018'!$E:$E,Activation!N$9))) -> -0.05857217301 | O14: =O13/IF(ISBLANK($F$5),SUMIFS('Données FDC déc 2018'!$F:$F,'Données FDC déc 2018'!$A:$A,Activation!$C$5,'Données FDC déc 2018'!$E:$E,Activation!O$9),IF(ISBLANK($J$5),SUMIFS('Données FDC déc 2018'!$F:$F,'Données FDC déc 2018'!$B:$B,Activation!$F$5,'Données FDC déc 2018'!$E:$E,Activation!O$9),SUMIFS('Données FDC déc 2018'!$F:$F,'Données FDC déc 2018'!$C:$C,Activation!$J$5,'Données FDC déc 2018'!$E:$E,Activation!O$9))) -> -0.01544491624 | P14: =P13/IF(ISBLANK($F$5),SUMIFS('Données FDC déc 2018'!$F:$F,'Données FDC déc 2018'!$A:$A,Activation!$C$5,'Données FDC déc 2018'!$E:$E,Activation!P$9),IF(ISBLANK($J$5),SUMIFS('Données FDC déc 2018'!$F:$F,'Données FDC déc 2018'!$B:$B,Activation!$F$5,'Données FDC déc 2018'!$E:$E,Activation!P$9),SUMIFS('Données FDC déc 2018'!$F:$F,'Données FDC déc 2018'!$C:$C,Activation!$J$5,'Données FDC déc 2018'!$E:$E,Activation!P$9))) -> -0.05302189224
C15: Variation en % CEGEE | D15: =SUM('Données FDC'!$F:$F)/SUM('Données FDC déc 2018'!$F:$F)-1 -> -0.02348139755 | F15: =IF(ISBLANK($F$5),SUMIFS('Données FDC'!$F:$F,'Données FDC'!$E:$E,Activation!F$9),IF(ISBLANK($J$5),SUMIFS('Données FDC'!$F:$F,'Données FDC'!$E:$E,Activation!F$9),SUMIFS('Données FDC'!$F:$F,'Données FDC'!$E:$E,Activation!F$9)))/(IF(ISBLANK($F$5),SUMIFS('Données FDC déc 2018'!$F:$F,'Données FDC déc 2018'!$E:$E,Activation!F$9),IF(ISBLANK($J$5),SUMIFS('Données FDC déc 2018'!$F:$F,'Données FDC déc 2018'!$E:$E,Activation!F$9),SUMIFS('Données FDC déc 2018'!$F:$F,'Données FDC déc 2018'!$E:$E,Activation!F$9))))-1 -> 0.004191472597 | G15: =IF(ISBLANK($F$5),SUMIFS('Données FDC'!$F:$F,'Données FDC'!$E:$E,Activation!G$9),IF(ISBLANK($J$5),SUMIFS('Données FDC'!$F:$F,'Données FDC'!$E:$E,Activation!G$9),SUMIFS('Données FDC'!$F:$F,'Données FDC'!$E:$E,Activation!G$9)))/(IF(ISBLANK($F$5),SUMIFS('Données FDC déc 2018'!$F:$F,'Données FDC déc 2018'!$E:$E,Activation!G$9),IF(ISBLANK($J$5),SUMIFS('Données FDC déc 2018'!$F:$F,'Données FDC déc 2018'!$E:$E,Activation!G$9),SUMIFS('Données FDC déc 2018'!$F:$F,'Données FDC déc 2018'!$E:$E,Activation!G$9))))-1 -> -0.01362306268 | H15: =IF(ISBLANK($F$5),SUMIFS('Données FDC'!$F:$F,'Données FDC'!$E:$E,Activation!H$9),IF(ISBLANK($J$5),SUMIFS('Données FDC'!$F:$F,'Données FDC'!$E:$E,Activation!H$9),SUMIFS('Données FDC'!$F:$F,'Données FDC'!$E:$E,Activation!H$9)))/(IF(ISBLANK($F$5),SUMIFS('Données FDC déc 2018'!$F:$F,'Données FDC déc 2018'!$E:$E,Activation!H$9),IF(ISBLANK($J$5),SUMIFS('Données FDC déc 2018'!$F:$F,'Données FDC déc 2018'!$E:$E,Activation!H$9),SUMIFS('Données FDC déc 2018'!$F:$F,'Données FDC déc 2018'!$E:$E,Activation!H$9))))-1 -> -0.01941363824 | I15: =IF(ISBLANK($F$5),SUMIFS('Données FDC'!$F:$F,'Données FDC'!$E:$E,Activation!I$9),IF(ISBLANK($J$5),SUMIFS('Données FDC'!$F:$F,'Données FDC'!$E:$E,Activation!I$9),SUMIFS('Données FDC'!$F:$F,'Données FDC'!$E:$E,Activation!I$9)))/(IF(ISBLANK($F$5),SUMIFS('Données FDC déc 2018'!$F:$F,'Données FDC déc 2018'!$E:$E,Activation!I$9),IF(ISBLANK($J$5),SUMIFS('Données FDC déc 2018'!$F:$F,'Données FDC déc 2018'!$E:$E,Activation!I$9),SUMIFS('Données FDC déc 2018'!$F:$F,'Données FDC déc 2018'!$E:$E,Activation!I$9))))-1 -> -0.02418527772 | J15: =IF(ISBLANK($F$5),SUMIFS('Données FDC'!$F:$F,'Données FDC'!$E:$E,Activation!J$9),IF(ISBLANK($J$5),SUMIFS('Données FDC'!$F:$F,'Données FDC'!$E:$E,Activation!J$9),SUMIFS('Données FDC'!$F:$F,'Données FDC'!$E:$E,Activation!J$9)))/(IF(ISBLANK($F$5),SUMIFS('Données FDC déc 2018'!$F:$F,'Données FDC déc 2018'!$E:$E,Activation!J$9),IF(ISBLANK($J$5),SUMIFS('Données FDC déc 2018'!$F:$F,'Données FDC déc 2018'!$E:$E,Activation!J$9),SUMIFS('Données FDC déc 2018'!$F:$F,'Données FDC déc 2018'!$E:$E,Activation!J$9))))-1 -> -0.02089620785 | K15: =IF(ISBLANK($F$5),SUMIFS('Données FDC'!$F:$F,'Données FDC'!$E:$E,Activation!K$9),IF(ISBLANK($J$5),SUMIFS('Données FDC'!$F:$F,'Données FDC'!$E:$E,Activation!K$9),SUMIFS('Données FDC'!$F:$F,'Données FDC'!$E:$E,Activation!K$9)))/(IF(ISBLANK($F$5),SUMIFS('Données FDC déc 2018'!$F:$F,'Données FDC déc 2018'!$E:$E,Activation!K$9),IF(ISBLANK($J$5),SUMIFS('Données FDC déc 2018'!$F:$F,'Données FDC déc 2018'!$E:$E,Activation!K$9),SUMIFS('Données FDC déc 2018'!$F:$F,'Données FDC déc 2018'!$E:$E,Activation!K$9))))-1 -> -0.03600688827 | L15: =IF(ISBLANK($F$5),SUMIFS('Données FDC'!$F:$F,'Données FDC'!$E:$E,Activation!L$9),IF(ISBLANK($J$5),SUMIFS('Données FDC'!$F:$F,'Données FDC'!$E:$E,Activation!L$9),SUMIFS('Données FDC'!$F:$F,'Données FDC'!$E:$E,Activation!L$9)))/(IF(ISBLANK($F$5),SUMIFS('Données FDC déc 2018'!$F:$F,'Données FDC déc 2018'!$E:$E,Activation!L$9),IF(ISBLANK($J$5),SUMIFS('Données FDC déc 2018'!$F:$F,'Données FDC déc 2018'!$E:$E,Activation!L$9),SUMIFS('Données FDC déc 2018'!$F:$F,'Données FDC déc 2018'!$E:$E,Activation!L$9))))-1 -> -0.02528512068 | M15: =IF(ISBLANK($F$5),SUMIFS('Données FDC'!$F:$F,'Données FDC'!$E:$E,Activation!M$9),IF(ISBLANK($J$5),SUMIFS('Données FDC'!$F:$F,'Données FDC'!$E:$E,Activation!M$9),SUMIFS('Données FDC'!$F:$F,'Données FDC'!$E:$E,Activation!M$9)))/(IF(ISBLANK($F$5),SUMIFS('Données FDC déc 2018'!$F:$F,'Données FDC déc 2018'!$E:$E,Activation!M$9),IF(ISBLANK($J$5),SUMIFS('Données FDC déc 2018'!$F:$F,'Données FDC déc 2018'!$E:$E,Activation!M$9),SUMIFS('Données FDC déc 2018'!$F:$F,'Données FDC déc 2018'!$E:$E,Activation!M$9))))-1 -> -0.02204602346 | N15: =IF(ISBLANK($F$5),SUMIFS('Données FDC'!$F:$F,'Données FDC'!$E:$E,Activation!N$9),IF(ISBLANK($J$5),SUMIFS('Données FDC'!$F:$F,'Données FDC'!$E:$E,Activation!N$9),SUMIFS('Données FDC'!$F:$F,'Données FDC'!$E:$E,Activation!N$9)))/(IF(ISBLANK($F$5),SUMIFS('Données FDC déc 2018'!$F:$F,'Données FDC déc 2018'!$E:$E,Activation!N$9),IF(ISBLANK($J$5),SUMIFS('Données FDC déc 2018'!$F:$F,'Données FDC déc 2018'!$E:$E,Activation!N$9),SUMIFS('Données FDC déc 2018'!$F:$F,'Données FDC déc 2018'!$E:$E,Activation!N$9))))-1 -> -0.05857217301 | O15: =IF(ISBLANK($F$5),SUMIFS('Données FDC'!$F:$F,'Données FDC'!$E:$E,Activation!O$9),IF(ISBLANK($J$5),SUMIFS('Données FDC'!$F:$F,'Données FDC'!$E:$E,Activation!O$9),SUMIFS('Données FDC'!$F:$F,'Données FDC'!$E:$E,Activation!O$9)))/(IF(ISBLANK($F$5),SUMIFS('Données FDC déc 2018'!$F:$F,'Données FDC déc 2018'!$E:$E,Activation!O$9),IF(ISBLANK($J$5),SUMIFS('Données FDC déc 2018'!$F:$F,'Données FDC déc 2018'!$E:$E,Activation!O$9),SUMIFS('Données FDC déc 2018'!$F:$F,'Données FDC déc 2018'!$E:$E,Activation!O$9))))-1 -> -0.01544491624 | P15: =IF(ISBLANK($F$5),SUMIFS('Données FDC'!$F:$F,'Données FDC'!$E:$E,Activation!P$9),IF(ISBLANK($J$5),SUMIFS('Données FDC'!$F:$F,'Données FDC'!$E:$E,Activation!P$9),SUMIFS('Données FDC'!$F:$F,'Données FDC'!$E:$E,Activation!P$9)))/(IF(ISBLANK($F$5),SUMIFS('Données FDC déc 2018'!$F:$F,'Données FDC déc 2018'!$E:$E,Activation!P$9),IF(ISBLANK($J$5),SUMIFS('Données FDC déc 2018'!$F:$F,'Données FDC déc 2018'!$E:$E,Activation!P$9),SUMIFS('Données FDC déc 2018'!$F:$F,'Données FDC déc 2018'!$E:$E,Activation!P$9))))-1 -> -0.05302189224
C16: Nouveaux clients | D16: =SUM(F16:P16) -> 18708 | F16: =IF(ISBLANK($F$5),SUMIFS('Données FDC'!$N:$N,'Données FDC'!$A:$A,Activation!$C$5,'Données FDC'!$E:$E,Activation!F$9),IF(ISBLANK($J$5),SUMIFS('Données FDC'!$N:$N,'Données FDC'!$B:$B,Activation!$F$5,'Données FDC'!$E:$E,Activation!F$9),SUMIFS('Données FDC'!$N:$N,'Données FDC'!$C:$C,Activation!$J$5,'Données FDC'!$E:$E,Activation!F$9))) -> 902 | G16: =IF(ISBLANK($F$5),SUMIFS('Données FDC'!$N:$N,'Données FDC'!$A:$A,Activation!$C$5,'Données FDC'!$E:$E,Activation!G$9),IF(ISBLANK($J$5),SUMIFS('Données FDC'!$N:$N,'Données FDC'!$B:$B,Activation!$F$5,'Données FDC'!$E:$E,Activation!G$9),SUMIFS('Données FDC'!$N:$N,'Données FDC'!$C:$C,Activation!$J$5,'Données FDC'!$E:$E,Activation!G$9))) -> 1158 | H16: =IF(ISBLANK($F$5),SUMIFS('Données FDC'!$N:$N,'Données FDC'!$A:$A,Activation!$C$5,'Données FDC'!$E:$E,Activation!H$9),IF(ISBLANK($J$5),SUMIFS('Données FDC'!$N:$N,'Données FDC'!$B:$B,Activation!$F$5,'Données FDC'!$E:$E,Activation!H$9),SUMIFS('Données FDC'!$N:$N,'Données FDC'!$C:$C,Activation!$J$5,'Données FDC'!$E:$E,Activation!H$9))) -> 1095 | I16: =IF(ISBLANK($F$5),SUMIFS('Données FDC'!$N:$N,'Données FDC'!$A:$A,Activation!$C$5,'Données FDC'!$E:$E,Activation!I$9),IF(ISBLANK($J$5),SUMIFS('Données FDC'!$N:$N,'Données FDC'!$B:$B,Activation!$F$5,'Données FDC'!$E:$E,Activation!I$9),SUMIFS('Données FDC'!$N:$N,'Données FDC'!$C:$C,Activation!$J$5,'Données FDC'!$E:$E,Activation!I$9))) -> 6474 | J16: =IF(ISBLANK($F$5),SUMIFS('Données FDC'!$N:$N,'Données FDC'!$A:$A,Activation!$C$5,'Données FDC'!$E:$E,Activation!J$9),IF(ISBLANK($J$5),SUMIFS('Données FDC'!$N:$N,'Données FDC'!$B:$B,Activation!$F$5,'Données FDC'!$E:$E,Activation!J$9),SUMIFS('Données FDC'!$N:$N,'Données FDC'!$C:$C,Activation!$J$5,'Données FDC'!$E:$E,Activation!J$9))) -> 763 | K16: =IF(ISBLANK($F$5),SUMIFS('Données FDC'!$N:$N,'Données FDC'!$A:$A,Activation!$C$5,'Données FDC'!$E:$E,Activation!K$9),IF(ISBLANK($J$5),SUMIFS('Données FDC'!$N:$N,'Données FDC'!$B:$B,Activation!$F$5,'Données FDC'!$E:$E,Activation!K$9),SUMIFS('Données FDC'!$N:$N,'Données FDC'!$C:$C,Activation!$J$5,'Données FDC'!$E:$E,Activation!K$9))) -> 861 | L16: =IF(ISBLANK($F$5),SUMIFS('Données FDC'!$N:$N,'Données FDC'!$A:$A,Activation!$C$5,'Données FDC'!$E:$E,Activation!L$9),IF(ISBLANK($J$5),SUMIFS('Données FDC'!$N:$N,'Données FDC'!$B:$B,Activation!$F$5,'Données FDC'!$E:$E,Activation!L$9),SUMIFS('Données FDC'!$N:$N,'Données FDC'!$C:$C,Activation!$J$5,'Données FDC'!$E:$E,Activation!L$9))) -> 81 | M16: =IF(ISBLANK($F$5),SUMIFS('Données FDC'!$N:$N,'Données FDC'!$A:$A,Activation!$C$5,'Données FDC'!$E:$E,Activation!M$9),IF(ISBLANK($J$5),SUMIFS('Données FDC'!$N:$N,'Données FDC'!$B:$B,Activation!$F$5,'Données FDC'!$E:$E,Activation!M$9),SUMIFS('Données FDC'!$N:$N,'Données FDC'!$C:$C,Activation!$J$5,'Données FDC'!$E:$E,Activation!M$9))) -> 1960 | N16: =IF(ISBLANK($F$5),SUMIFS('Données FDC'!$N:$N,'Données FDC'!$A:$A,Activation!$C$5,'Données FDC'!$E:$E,Activation!N$9),IF(ISBLANK($J$5),SUMIFS('Données FDC'!$N:$N,'Données FDC'!$B:$B,Activation!$F$5,'Données FDC'!$E:$E,Activation!N$9),SUMIFS('Données FDC'!$N:$N,'Données FDC'!$C:$C,Activation!$J$5,'Données FDC'!$E:$E,Activation!N$9))) -> 3039 | O16: =IF(ISBLANK($F$5),SUMIFS('Données FDC'!$N:$N,'Données FDC'!$A:$A,Activation!$C$5,'Données FDC'!$E:$E,Activation!O$9),IF(ISBLANK($J$5),SUMIFS('Données FDC'!$N:$N,'Données FDC'!$B:$B,Activation!$F$5,'Données FDC'!$E:$E,Activation!O$9),SUMIFS('Données FDC'!$N:$N,'Données FDC'!$C:$C,Activation!$J$5,'Données FDC'!$E:$E,Activation!O$9))) -> 2102 | P16: =IF(ISBLANK($F$5),SUMIFS('Données FDC'!$N:$N,'Données FDC'!$A:$A,Activation!$C$5,'Données FDC'!$E:$E,Activation!P$9),IF(ISBLANK($J$5),SUMIFS('Données FDC'!$N:$N,'Données FDC'!$B:$B,Activation!$F$5,'Données FDC'!$E:$E,Activation!P$9),SUMIFS('Données FDC'!$N:$N,'Données FDC'!$C:$C,Activation!$J$5,'Données FDC'!$E:$E,Activation!P$9))) -> 273
C17: % Conquête | D17: =D16/E10 -> 0.01214817027 | F17: =F16/IF(ISBLANK($F$5),SUMIFS('Données FDC déc 2018'!$F:$F,'Données FDC déc 2018'!$A:$A,Activation!$C$5,'Données FDC déc 2018'!$E:$E,Activation!F$9),IF(ISBLANK($J$5),SUMIFS('Données FDC déc 2018'!$F:$F,'Données FDC déc 2018'!$B:$B,Activation!$F$5,'Données FDC déc 2018'!$E:$E,Activation!F$9),SUMIFS('Données FDC déc 2018'!$F:$F,'Données FDC déc 2018'!$C:$C,Activation!$J$5,'Données FDC déc 2018'!$E:$E,Activation!F$9))) -> 0.003290433666 | G17: =G16/IF(ISBLANK($F$5),SUMIFS('Données FDC déc 2018'!$F:$F,'Données FDC déc 2018'!$A:$A,Activation!$C$5,'Données FDC déc 2018'!$E:$E,Activation!G$9),IF(ISBLANK($J$5),SUMIFS('Données FDC déc 2018'!$F:$F,'Données FDC déc 2018'!$B:$B,Activation!$F$5,'Données FDC déc 2018'!$E:$E,Activation!G$9),SUMIFS('Données FDC déc 2018'!$F:$F,'Données FDC déc 2018'!$C:$C,Activation!$J$5,'Données FDC déc 2018'!$E:$E,Activation!G$9))) -> 0.007074218201 | H17: =H16/IF(ISBLANK($F$5),SUMIFS('Données FDC déc 2018'!$F:$F,'Données FDC déc 2018'!$A:$A,Activation!$C$5,'Données FDC déc 2018'!$E:$E,Activation!H$9),IF(ISBLANK($J$5),SUMIFS('Données FDC déc 2018'!$F:$F,'Données FDC déc 2018'!$B:$B,Activation!$F$5,'Données FDC déc 2018'!$E:$E,Activation!H$9),SUMIFS('Données FDC déc 2018'!$F:$F,'Données FDC déc 2018'!$C:$C,Activation!$J$5,'Données FDC déc 2018'!$E:$E,Activation!H$9))) -> 0.006272627286 | I17: =I16/IF(ISBLANK($F$5),SUMIFS('Données FDC déc 2018'!$F:$F,'Données FDC déc 2018'!$A:$A,Activation!$C$5,'Données FDC déc 2018'!$E:$E,Activation!I$9),IF(ISBLANK($J$5),SUMIFS('Données FDC déc 2018'!$F:$F,'Données FDC déc 2018'!$B:$B,Activation!$F$5,'Données FDC déc 2018'!$E:$E,Activation!I$9),SUMIFS('Données FDC déc 2018'!$F:$F,'Données FDC déc 2018'!$C:$C,Activation!$J$5,'Données FDC déc 2018'!$E:$E,Activation!I$9))) -> 0.01765822578 | J17: =J16/IF(ISBLANK($F$5),SUMIFS('Données FDC déc 2018'!$F:$F,'Données FDC déc 2018'!$A:$A,Activation!$C$5,'Données FDC déc 2018'!$E:$E,Activation!J$9),IF(ISBLANK($J$5),SUMIFS('Données FDC déc 2018'!$F:$F,'Données FDC déc 2018'!$B:$B,Activation!$F$5,'Données FDC déc 2018'!$E:$E,Activation!J$9),SUMIFS('Données FDC déc 2018'!$F:$F,'Données FDC déc 2018'!$C:$C,Activation!$J$5,'Données FDC déc 2018'!$E:$E,Activation!J$9))) -> 0.01251476184 | K17: =K16/IF(ISBLANK($F$5),SUMIFS('Données FDC déc 2018'!$F:$F,'Données FDC déc 2018'!$A:$A,Activation!$C$5,'Données FDC déc 2018'!$E:$E,Activation!K$9),IF(ISBLANK($J$5),SUMIFS('Données FDC déc 2018'!$F:$F,'Données FDC déc 2018'!$B:$B,Activation!$F$5,'Données FDC déc 2018'!$E:$E,Activation!K$9),SUMIFS('Données FDC déc 2018'!$F:$F,'Données FDC déc 2018'!$C:$C,Activation!$J$5,'Données FDC déc 2018'!$E:$E,Activation!K$9))) -> 0.0449303345 | L17: =L16/IF(ISBLANK($F$5),SUMIFS('Données FDC déc 2018'!$F:$F,'Données FDC déc 2018'!$A:$A,Activation!$C$5,'Données FDC déc 2018'!$E:$E,Activation!L$9),IF(ISBLANK($J$5),SUMIFS('Données FDC déc 2018'!$F:$F,'Données FDC déc 2018'!$B:$B,Activation!$F$5,'Données FDC déc 2018'!$E:$E,Activation!L$9),SUMIFS('Données FDC déc 2018'!$F:$F,'Données FDC déc 2018'!$C:$C,Activation!$J$5,'Données FDC déc 2018'!$E:$E,Activation!L$9))) -> 0.007161170542 | M17: =M16/IF(ISBLANK($F$5),SUMIFS('Données FDC déc 2018'!$F:$F,'Données FDC déc 2018'!$A:$A,Activation!$C$5,'Données FDC déc 2018'!$E:$E,Activation!M$9),IF(ISBLANK($J$5),SUMIFS('Données FDC déc 2018'!$F:$F,'Données FDC déc 2018'!$B:$B,Activation!$F$5,'Données FDC déc 2018'!$E:$E,Activation!M$9),SUMIFS('Données FDC déc 2018'!$F:$F,'Données FDC déc 2018'!$C:$C,Activation!$J$5,'Données FDC déc 2018'!$E:$E,Activation!M$9))) -> 0.02490501785 | N17: =N16/IF(ISBLANK($F$5),SUMIFS('Données FDC déc 2018'!$F:$F,'Données FDC déc 2018'!$A:$A,Activation!$C$5,'Données FDC déc 2018'!$E:$E,Activation!N$9),IF(ISBLANK($J$5),SUMIFS('Données FDC déc 2018'!$F:$F,'Données FDC déc 2018'!$B:$B,Activation!$F$5,'Données FDC déc 2018'!$E:$E,Activation!N$9),SUMIFS('Données FDC déc 2018'!$F:$F,'Données FDC déc 2018'!$C:$C,Activation!$J$5,'Données FDC déc 2018'!$E:$E,Activation!N$9))) -> 0.03167274622 | O17: =O16/IF(ISBLANK($F$5),SUMIFS('Données FDC déc 2018'!$F:$F,'Données FDC déc 2018'!$A:$A,Activation!$C$5,'Données FDC déc 2018'!$E:$E,Activation!O$9),IF(ISBLANK($J$5),SUMIFS('Données FDC déc 2018'!$F:$F,'Données FDC déc 2018'!$B:$B,Activation!$F$5,'Données FDC déc 2018'!$E:$E,Activation!O$9),SUMIFS('Données FDC déc 2018'!$F:$F,'Données FDC déc 2018'!$C:$C,Activation!$J$5,'Données FDC déc 2018'!$E:$E,Activation!O$9))) -> 0.03269407245 | P17: =P16/IF(ISBLANK($F$5),SUMIFS('Données FDC déc 2018'!$F:$F,'Données FDC déc 2018'!$A:$A,Activation!$C$5,'Données FDC déc 2018'!$E:$E,Activation!P$9),IF(ISBLANK($J$5),SUMIFS('Données FDC déc 2018'!$F:$F,'Données FDC déc 2018'!$B:$B,Activation!$F$5,'Données FDC déc 2018'!$E:$E,Activation!P$9),SUMIFS('Données FDC déc 2018'!$F:$F,'Données FDC déc 2018'!$C:$C,Activation!$J$5,'Données FDC déc 2018'!$E:$E,Activation!P$9))) -> 0.001183950317
C18: % Conquête CEGEE | D18: =SUM('Données FDC'!$N:$N)/SUM('Données FDC déc 2018'!$F:$F) -> 0.01214817027 | F18: =SUMIF('Données FDC'!$E:$E,Activation!F$9,'Données FDC'!$N:$N)/SUMIF('Données FDC déc 2018'!$E:$E,Activation!F$9,'Données FDC déc 2018'!$F:$F) -> 0.003290433666 | G18: =SUMIF('Données FDC'!$E:$E,Activation!G$9,'Données FDC'!$N:$N)/SUMIF('Données FDC déc 2018'!$E:$E,Activation!G$9,'Données FDC déc 2018'!$F:$F) -> 0.007074218201 | H18: =SUMIF('Données FDC'!$E:$E,Activation!H$9,'Données FDC'!$N:$N)/SUMIF('Données FDC déc 2018'!$E:$E,Activation!H$9,'Données FDC déc 2018'!$F:$F) -> 0.006272627286 | I18: =SUMIF('Données FDC'!$E:$E,Activation!I$9,'Données FDC'!$N:$N)/SUMIF('Données FDC déc 2018'!$E:$E,Activation!I$9,'Données FDC déc 2018'!$F:$F) -> 0.01765822578 | J18: =SUMIF('Données FDC'!$E:$E,Activation!J$9,'Données FDC'!$N:$N)/SUMIF('Données FDC déc 2018'!$E:$E,Activation!J$9,'Données FDC déc 2018'!$F:$F) -> 0.01251476184 | K18: =SUMIF('Données FDC'!$E:$E,Activation!K$9,'Données FDC'!$N:$N)/SUMIF('Données FDC déc 2018'!$E:$E,Activation!K$9,'Données FDC déc 2018'!$F:$F) -> 0.0449303345 | L18: =SUMIF('Données FDC'!$E:$E,Activation!L$9,'Données FDC'!$N:$N)/SUMIF('Données FDC déc 2018'!$E:$E,Activation!L$9,'Données FDC déc 2018'!$F:$F) -> 0.007161170542 | M18: =SUMIF('Données FDC'!$E:$E,Activation!M$9,'Données FDC'!$N:$N)/SUMIF('Données FDC déc 2018'!$E:$E,Activation!M$9,'Données FDC déc 2018'!$F:$F) -> 0.02490501785 | N18: =SUMIF('Données FDC'!$E:$E,Activation!N$9,'Données FDC'!$N:$N)/SUMIF('Données FDC déc 2018'!$E:$E,Activation!N$9,'Données FDC déc 2018'!$F:$F) -> 0.03167274622 | O18: =SUMIF('Données FDC'!$E:$E,Activation!O$9,'Données FDC'!$N:$N)/SUMIF('Données FDC déc 2018'!$E:$E,Activation!O$9,'Données FDC déc 2018'!$F:$F) -> 0.03269407245 | P18: =SUMIF('Données FDC'!$E:$E,Activation!P$9,'Données FDC'!$N:$N)/SUMIF('Données FDC déc 2018'!$E:$E,Activation!P$9,'Données FDC déc 2018'!$F:$F) -> 0.001183950317
C19: Clients sortants | D19: =SUM(F19:P19) -> 54869 | F19: =IF(ISBLANK($F$5),SUMIFS('Données FDC'!$O:$O,'Données FDC'!$A:$A,Activation!$C$5,'Données FDC'!$E:$E,Activation!F$9),IF(ISBLANK($J$5),SUMIFS('Données FDC'!$O:$O,'Données FDC'!$B:$B,Activation!$F$5,'Données FDC'!$E:$E,Activation!F$9),SUMIFS('Données FDC'!$O:$O,'Données FDC'!$C:$C,Activation!$J$5,'Données FDC'!$E:$E,Activation!F$9))) -> 1043 | G19: =IF(ISBLANK($F$5),SUMIFS('Données FDC'!$O:$O,'Données FDC'!$A:$A,Activation!$C$5,'Données FDC'!$E:$E,Activation!G$9),IF(ISBLANK($J$5),SUMIFS('Données FDC'!$O:$O,'Données FDC'!$B:$B,Activation!$F$5,'Données FDC'!$E:$E,Activation!G$9),SUMIFS('Données FDC'!$O:$O,'Données FDC'!$C:$C,Activation!$J$5,'Données FDC'!$E:$E,Activation!G$9))) -> 3076 | H19: =IF(ISBLANK($F$5),SUMIFS('Données FDC'!$O:$O,'Données FDC'!$A:$A,Activation!$C$5,'Données FDC'!$E:$E,Activation!H$9),IF(ISBLANK($J$5),SUMIFS('Données FDC'!$O:$O,'Données FDC'!$B:$B,Activation!$F$5,'Données FDC'!$E:$E,Activation!H$9),SUMIFS('Données FDC'!$O:$O,'Données FDC'!$C:$C,Activation!$J$5,'Données FDC'!$E:$E,Activation!H$9))) -> 3566 | I19: =IF(ISBLANK($F$5),SUMIFS('Données FDC'!$O:$O,'Données FDC'!$A:$A,Activation!$C$5,'Données FDC'!$E:$E,Activation!I$9),IF(ISBLANK($J$5),SUMIFS('Données FDC'!$O:$O,'Données FDC'!$B:$B,Activation!$F$5,'Données FDC'!$E:$E,Activation!I$9),SUMIFS('Données FDC'!$O:$O,'Données FDC'!$C:$C,Activation!$J$5,'Données FDC'!$E:$E,Activation!I$9))) -> 17354 | J19: =IF(ISBLANK($F$5),SUMIFS('Données FDC'!$O:$O,'Données FDC'!$A:$A,Activation!$C$5,'Données FDC'!$E:$E,Activation!J$9),IF(ISBLANK($J$5),SUMIFS('Données FDC'!$O:$O,'Données FDC'!$B:$B,Activation!$F$5,'Données FDC'!$E:$E,Activation!J$9),SUMIFS('Données FDC'!$O:$O,'Données FDC'!$C:$C,Activation!$J$5,'Données FDC'!$E:$E,Activation!J$9))) -> 462 | K19: =IF(ISBLANK($F$5),SUMIFS('Données FDC'!$O:$O,'Données FDC'!$A:$A,Activation!$C$5,'Données FDC'!$E:$E,Activation!K$9),IF(ISBLANK($J$5),SUMIFS('Données FDC'!$O:$O,'Données FDC'!$B:$B,Activation!$F$5,'Données FDC'!$E:$E,Activation!K$9),SUMIFS('Données FDC'!$O:$O,'Données FDC'!$C:$C,Activation!$J$5,'Données FDC'!$E:$E,Activation!K$9))) -> 1044 | L19: =IF(ISBLANK($F$5),SUMIFS('Données FDC'!$O:$O,'Données FDC'!$A:$A,Activation!$C$5,'Données FDC'!$E:$E,Activation!L$9),IF(ISBLANK($J$5),SUMIFS('Données FDC'!$O:$O,'Données FDC'!$B:$B,Activation!$F$5,'Données FDC'!$E:$E,Activation!L$9),SUMIFS('Données FDC'!$O:$O,'Données FDC'!$C:$C,Activation!$J$5,'Données FDC'!$E:$E,Activation!L$9))) -> 117 | M19: =IF(ISBLANK($F$5),SUMIFS('Données FDC'!$O:$O,'Données FDC'!$A:$A,Activation!$C$5,'Données FDC'!$E:$E,Activation!M$9),IF(ISBLANK($J$5),SUMIFS('Données FDC'!$O:$O,'Données FDC'!$B:$B,Activation!$F$5,'Données FDC'!$E:$E,Activation!M$9),SUMIFS('Données FDC'!$O:$O,'Données FDC'!$C:$C,Activation!$J$5,'Données FDC'!$E:$E,Activation!M$9))) -> 4124 | N19: =IF(ISBLANK($F$5),SUMIFS('Données FDC'!$O:$O,'Données FDC'!$A:$A,Activation!$C$5,'Données FDC'!$E:$E,Activation!N$9),IF(ISBLANK($J$5),SUMIFS('Données FDC'!$O:$O,'Données FDC'!$B:$B,Activation!$F$5,'Données FDC'!$E:$E,Activation!N$9),SUMIFS('Données FDC'!$O:$O,'Données FDC'!$C:$C,Activation!$J$5,'Données FDC'!$E:$E,Activation!N$9))) -> 1506 | O19: =IF(ISBLANK($F$5),SUMIFS('Données FDC'!$O:$O,'Données FDC'!$A:$A,Activation!$C$5,'Données FDC'!$E:$E,Activation!O$9),IF(ISBLANK($J$5),SUMIFS('Données FDC'!$O:$O,'Données FDC'!$B:$B,Activation!$F$5,'Données FDC'!$E:$E,Activation!O$9),SUMIFS('Données FDC'!$O:$O,'Données FDC'!$C:$C,Activation!$J$5,'Données FDC'!$E:$E,Activation!O$9))) -> 2012 | P19: =IF(ISBLANK($F$5),SUMIFS('Données FDC'!$O:$O,'Données FDC'!$A:$A,Activation!$C$5,'Données FDC'!$E:$E,Activation!P$9),IF(ISBLANK($J$5),SUMIFS('Données FDC'!$O:$O,'Données FDC'!$B:$B,Activation!$F$5,'Données FDC'!$E:$E,Activation!P$9),SUMIFS('Données FDC'!$O:$O,'Données FDC'!$C:$C,Activation!$J$5,'Données FDC'!$E:$E,Activation!P$9))) -> 20565
C20: % Attrition | D20: =D19/E10 -> 0.03562956782 | F20: =F19/IF(ISBLANK($F$5),SUMIFS('Données FDC déc 2018'!$F:$F,'Données FDC déc 2018'!$A:$A,Activation!$C$5,'Données FDC déc 2018'!$E:$E,Activation!F$9),IF(ISBLANK($J$5),SUMIFS('Données FDC déc 2018'!$F:$F,'Données FDC déc 2018'!$B:$B,Activation!$F$5,'Données FDC déc 2018'!$E:$E,Activation!F$9),SUMIFS('Données FDC déc 2018'!$F:$F,'Données FDC déc 2018'!$C:$C,Activation!$J$5,'Données FDC déc 2018'!$E:$E,Activation!F$9))) -> 0.003804791922 | G20: =G19/IF(ISBLANK($F$5),SUMIFS('Données FDC déc 2018'!$F:$F,'Données FDC déc 2018'!$A:$A,Activation!$C$5,'Données FDC déc 2018'!$E:$E,Activation!G$9),IF(ISBLANK($J$5),SUMIFS('Données FDC déc 2018'!$F:$F,'Données FDC déc 2018'!$B:$B,Activation!$F$5,'Données FDC déc 2018'!$E:$E,Activation!G$9),SUMIFS('Données FDC déc 2018'!$F:$F,'Données FDC déc 2018'!$C:$C,Activation!$J$5,'Données FDC déc 2018'!$E:$E,Activation!G$9))) -> 0.01879127391 | H20: =H19/IF(ISBLANK($F$5),SUMIFS('Données FDC déc 2018'!$F:$F,'Données FDC déc 2018'!$A:$A,Activation!$C$5,'Données FDC déc 2018'!$E:$E,Activation!H$9),IF(ISBLANK($J$5),SUMIFS('Données FDC déc 2018'!$F:$F,'Données FDC déc 2018'!$B:$B,Activation!$F$5,'Données FDC déc 2018'!$E:$E,Activation!H$9),SUMIFS('Données FDC déc 2018'!$F:$F,'Données FDC déc 2018'!$C:$C,Activation!$J$5,'Données FDC déc 2018'!$E:$E,Activation!H$9))) -> 0.02042756977 | I20: =I19/IF(ISBLANK($F$5),SUMIFS('Données FDC déc 2018'!$F:$F,'Données FDC déc 2018'!$A:$A,Activation!$C$5,'Données FDC déc 2018'!$E:$E,Activation!I$9),IF(ISBLANK($J$5),SUMIFS('Données FDC déc 2018'!$F:$F,'Données FDC déc 2018'!$B:$B,Activation!$F$5,'Données FDC déc 2018'!$E:$E,Activation!I$9),SUMIFS('Données FDC déc 2018'!$F:$F,'Données FDC déc 2018'!$C:$C,Activation!$J$5,'Données FDC déc 2018'!$E:$E,Activation!I$9))) -> 0.0473340825 | J20: =J19/IF(ISBLANK($F$5),SUMIFS('Données FDC déc 2018'!$F:$F,'Données FDC déc 2018'!$A:$A,Activation!$C$5,'Données FDC déc 2018'!$E:$E,Activation!J$9),IF(ISBLANK($J$5),SUMIFS('Données FDC déc 2018'!$F:$F,'Données FDC déc 2018'!$B:$B,Activation!$F$5,'Données FDC déc 2018'!$E:$E,Activation!J$9),SUMIFS('Données FDC déc 2018'!$F:$F,'Données FDC déc 2018'!$C:$C,Activation!$J$5,'Données FDC déc 2018'!$E:$E,Activation!J$9))) -> 0.007577745703 | K20: =K19/IF(ISBLANK($F$5),SUMIFS('Données FDC déc 2018'!$F:$F,'Données FDC déc 2018'!$A:$A,Activation!$C$5,'Données FDC déc 2018'!$E:$E,Activation!K$9),IF(ISBLANK($J$5),SUMIFS('Données FDC déc 2018'!$F:$F,'Données FDC déc 2018'!$B:$B,Activation!$F$5,'Données FDC déc 2018'!$E:$E,Activation!K$9),SUMIFS('Données FDC déc 2018'!$F:$F,'Données FDC déc 2018'!$C:$C,Activation!$J$5,'Données FDC déc 2018'!$E:$E,Activation!K$9))) -> 0.05447998748 | L20: =L19/IF(ISBLANK($F$5),SUMIFS('Données FDC déc 2018'!$F:$F,'Données FDC déc 2018'!$A:$A,Activation!$C$5,'Données FDC déc 2018'!$E:$E,Activation!L$9),IF(ISBLANK($J$5),SUMIFS('Données FDC déc 2018'!$F:$F,'Données FDC déc 2018'!$B:$B,Activation!$F$5,'Données FDC déc 2018'!$E:$E,Activation!L$9),SUMIFS('Données FDC déc 2018'!$F:$F,'Données FDC déc 2018'!$C:$C,Activation!$J$5,'Données FDC déc 2018'!$E:$E,Activation!L$9))) -> 0.01034391301 | M20: =M19/IF(ISBLANK($F$5),SUMIFS('Données FDC déc 2018'!$F:$F,'Données FDC déc 2018'!$A:$A,Activation!$C$5,'Données FDC déc 2018'!$E:$E,Activation!M$9),IF(ISBLANK($J$5),SUMIFS('Données FDC déc 2018'!$F:$F,'Données FDC déc 2018'!$B:$B,Activation!$F$5,'Données FDC déc 2018'!$E:$E,Activation!M$9),SUMIFS('Données FDC déc 2018'!$F:$F,'Données FDC déc 2018'!$C:$C,Activation!$J$5,'Données FDC déc 2018'!$E:$E,Activation!M$9))) -> 0.05240219063 | N20: =N19/IF(ISBLANK($F$5),SUMIFS('Données FDC déc 2018'!$F:$F,'Données FDC déc 2018'!$A:$A,Activation!$C$5,'Données FDC déc 2018'!$E:$E,Activation!N$9),IF(ISBLANK($J$5),SUMIFS('Données FDC déc 2018'!$F:$F,'Données FDC déc 2018'!$B:$B,Activation!$F$5,'Données FDC déc 2018'!$E:$E,Activation!N$9),SUMIFS('Données FDC déc 2018'!$F:$F,'Données FDC déc 2018'!$C:$C,Activation!$J$5,'Données FDC déc 2018'!$E:$E,Activation!N$9))) -> 0.01569567483 | O20: =O19/IF(ISBLANK($F$5),SUMIFS('Données FDC déc 2018'!$F:$F,'Données FDC déc 2018'!$A:$A,Activation!$C$5,'Données FDC déc 2018'!$E:$E,Activation!O$9),IF(ISBLANK($J$5),SUMIFS('Données FDC déc 2018'!$F:$F,'Données FDC déc 2018'!$B:$B,Activation!$F$5,'Données FDC déc 2018'!$E:$E,Activation!O$9),SUMIFS('Données FDC déc 2018'!$F:$F,'Données FDC déc 2018'!$C:$C,Activation!$J$5,'Données FDC déc 2018'!$E:$E,Activation!O$9))) -> 0.0312942311 | P20: =P19/IF(ISBLANK($F$5),SUMIFS('Données FDC déc 2018'!$F:$F,'Données FDC déc 2018'!$A:$A,Activation!$C$5,'Données FDC déc 2018'!$E:$E,Activation!P$9),IF(ISBLANK($J$5),SUMIFS('Données FDC déc 2018'!$F:$F,'Données FDC déc 2018'!$B:$B,Activation!$F$5,'Données FDC déc 2018'!$E:$E,Activation!P$9),SUMIFS('Données FDC déc 2018'!$F:$F,'Données FDC déc 2018'!$C:$C,Activation!$J$5,'Données FDC déc 2018'!$E:$E,Activation!P$9))) -> 0.0891865871
C21: % Attrition CEGEE | D21: =SUM('Données FDC'!$O:$O)/SUM('Données FDC déc 2018'!$F:$F) -> 0.03562956782 | F21: =SUMIF('Données FDC'!$E:$E,Activation!F$9,'Données FDC'!$O:$O)/SUMIF('Données FDC déc 2018'!$E:$E,Activation!F$9,'Données FDC déc 2018'!$F:$F) -> 0.003804791922 | G21: =SUMIF('Données FDC'!$E:$E,Activation!G$9,'Données FDC'!$O:$O)/SUMIF('Données FDC déc 2018'!$E:$E,Activation!G$9,'Données FDC déc 2018'!$F:$F) -> 0.01879127391 | H21: =SUMIF('Données FDC'!$E:$E,Activation!H$9,'Données FDC'!$O:$O)/SUMIF('Données FDC déc 2018'!$E:$E,Activation!H$9,'Données FDC déc 2018'!$F:$F) -> 0.02042756977 | I21: =SUMIF('Données FDC'!$E:$E,Activation!I$9,'Données FDC'!$O:$O)/SUMIF('Données FDC déc 2018'!$E:$E,Activation!I$9,'Données FDC déc 2018'!$F:$F) -> 0.0473340825 | J21: =SUMIF('Données FDC'!$E:$E,Activation!J$9,'Données FDC'!$O:$O)/SUMIF('Données FDC déc 2018'!$E:$E,Activation!J$9,'Données FDC déc 2018'!$F:$F) -> 0.007577745703 | K21: =SUMIF('Données FDC'!$E:$E,Activation!K$9,'Données FDC'!$O:$O)/SUMIF('Données FDC déc 2018'!$E:$E,Activation!K$9,'Données FDC déc 2018'!$F:$F) -> 0.05447998748 | L21: =SUMIF('Données FDC'!$E:$E,Activation!L$9,'Données FDC'!$O:$O)/SUMIF('Données FDC déc 2018'!$E:$E,Activation!L$9,'Données FDC déc 2018'!$F:$F) -> 0.01034391301 | M21: =SUMIF('Données FDC'!$E:$E,Activation!M$9,'Données FDC'!$O:$O)/SUMIF('Données FDC déc 2018'!$E:$E,Activation!M$9,'Données FDC déc 2018'!$F:$F) -> 0.05240219063 | N21: =SUMIF('Données FDC'!$E:$E,Activation!N$9,'Données FDC'!$O:$O)/SUMIF('Données FDC déc 2018'!$E:$E,Activation!N$9,'Données FDC déc 2018'!$F:$F) -> 0.01569567483 | O21: =SUMIF('Données FDC'!$E:$E,Activation!O$9,'Données FDC'!$O:$O)/SUMIF('Données FDC déc 2018'!$E:$E,Activation!O$9,'Données FDC déc 2018'!$F:$F) -> 0.0312942311 | P21: =SUMIF('Données FDC'!$E:$E,Activation!P$9,'Données FDC'!$O:$O)/SUMIF('Données FDC déc 2018'!$E:$E,Activation!P$9,'Données FDC déc 2018'!$F:$F) -> 0.0891865871
B22: Age | C22: Moyenne | D22: =IF(ISBLANK($F$5),SUMIFS('Données pour moyenne'!$S:$S,'Données pour moyenne'!$Q:$Q,Activation!$C$5),IF(ISBLANK($J$5),SUMIFS('Données pour moyenne'!$H:$H,'Données pour moyenne'!$F:$F,Activation!$F$5),SUMIFS('Données pour moyenne'!$C:$C,'Données pour moyenne'!$A:$A,Activation!$J$5))) -> 46 | E22: =IF(ISBLANK($F$5),SUMIFS('Données pour moyenne 2018'!$S:$S,'Données pour moyenne 2018'!$Q:$Q,Activation!$C$5),IF(ISBLANK($J$5),SUMIFS('Données pour moyenne 2018'!$H:$H,'Données pour moyenne 2018'!$F:$F,Activation!$F$5),SUMIFS('Données pour moyenne 2018'!$C:$C,'Données pour moyenne 2018'!$A:$A,Activation!$J$5))) -> 46 | F22: =IF(ISBLANK($F$5),SUMIFS('Données pour moyenne'!$Y:$Y,'Données pour moyenne'!$V:$V,Activation!$C$5,'Données pour moyenne'!$X:$X,Activation!F$9),IF(ISBLANK($J$5),SUMIFS('Données pour moyenne'!$N:$N,'Données pour moyenne'!$K:$K,Activation!$F$5,'Données pour moyenne'!$M:$M,Activation!F$9),SUMIFS('Données FDC'!$P:$P,'Données FDC'!$C:$C,Activation!$J$5,'Données FDC'!$E:$E,Activation!F$9))) -> 49 | G22: =IF(ISBLANK($F$5),SUMIFS('Données pour moyenne'!$Y:$Y,'Données pour moyenne'!$V:$V,Activation!$C$5,'Données pour moyenne'!$X:$X,Activation!G$9),IF(ISBLANK($J$5),SUMIFS('Données pour moyenne'!$N:$N,'Données pour moyenne'!$K:$K,Activation!$F$5,'Données pour moyenne'!$M:$M,Activation!G$9),SUMIFS('Données FDC'!$P:$P,'Données FDC'!$C:$C,Activation!$J$5,'Données FDC'!$E:$E,Activation!G$9))) -> 52 | H22: =IF(ISBLANK($F$5),SUMIFS('Données pour moyenne'!$Y:$Y,'Données pour moyenne'!$V:$V,Activation!$C$5,'Données pour moyenne'!$X:$X,Activation!H$9),IF(ISBLANK($J$5),SUMIFS('Données pour moyenne'!$N:$N,'Données pour moyenne'!$K:$K,Activation!$F$5,'Données pour moyenne'!$M:$M,Activation!H$9),SUMIFS('Données FDC'!$P:$P,'Données FDC'!$C:$C,Activation!$J$5,'Données FDC'!$E:$E,Activation!H$9))) -> 64 | I22: =IF(ISBLANK($F$5),SUMIFS('Données pour moyenne'!$Y:$Y,'Données pour moyenne'!$V:$V,Activation!$C$5,'Données pour moyenne'!$X:$X,Activation!I$9),IF(ISBLANK($J$5),SUMIFS('Données pour moyenne'!$N:$N,'Données pour moyenne'!$K:$K,Activation!$F$5,'Données pour moyenne'!$M:$M,Activation!I$9),SUMIFS('Données FDC'!$P:$P,'Données FDC'!$C:$C,Activation!$J$5,'Données FDC'!$E:$E,Activation!I$9))) -> 57 | J22: =IF(ISBLANK($F$5),SUMIFS('Données pour moyenne'!$Y:$Y,'Données pour moyenne'!$V:$V,Activation!$C$5,'Données pour moyenne'!$X:$X,Activation!J$9),IF(ISBLANK($J$5),SUMIFS('Données pour moyenne'!$N:$N,'Données pour moyenne'!$K:$K,Activation!$F$5,'Données pour moyenne'!$M:$M,Activation!J$9),SUMIFS('Données FDC'!$P:$P,'Données FDC'!$C:$C,Activation!$J$5,'Données FDC'!$E:$E,Activation!J$9))) -> 22 | K22: =IF(ISBLANK($F$5),SUMIFS('Données pour moyenne'!$Y:$Y,'Données pour moyenne'!$V:$V,Activation!$C$5,'Données pour moyenne'!$X:$X,Activation!K$9),IF(ISBLANK($J$5),SUMIFS('Données pour moyenne'!$N:$N,'Données pour moyenne'!$K:$K,Activation!$F$5,'Données pour moyenne'!$M:$M,Activation!K$9),SUMIFS('Données FDC'!$P:$P,'Données FDC'!$C:$C,Activation!$J$5,'Données FDC'!$E:$E,Activation!K$9))) -> 21 | L22: =IF(ISBLANK($F$5),SUMIFS('Données pour moyenne'!$Y:$Y,'Données pour moyenne'!$V:$V,Activation!$C$5,'Données pour moyenne'!$X:$X,Activation!L$9),IF(ISBLANK($J$5),SUMIFS('Données pour moyenne'!$N:$N,'Données pour moyenne'!$K:$K,Activation!$F$5,'Données pour moyenne'!$M:$M,Activation!L$9),SUMIFS('Données FDC'!$P:$P,'Données FDC'!$C:$C,Activation!$J$5,'Données FDC'!$E:$E,Activation!L$9))) -> 19 | M22: =IF(ISBLANK($F$5),SUMIFS('Données pour moyenne'!$Y:$Y,'Données pour moyenne'!$V:$V,Activation!$C$5,'Données pour moyenne'!$X:$X,Activation!M$9),IF(ISBLANK($J$5),SUMIFS('Données pour moyenne'!$N:$N,'Données pour moyenne'!$K:$K,Activation!$F$5,'Données pour moyenne'!$M:$M,Activation!M$9),SUMIFS('Données FDC'!$P:$P,'Données FDC'!$C:$C,Activation!$J$5,'Données FDC'!$E:$E,Activation!M$9))) -> 20 | N22: =IF(ISBLANK($F$5),SUMIFS('Données pour moyenne'!$Y:$Y,'Données pour moyenne'!$V:$V,Activation!$C$5,'Données pour moyenne'!$X:$X,Activation!N$9),IF(ISBLANK($J$5),SUMIFS('Données pour moyenne'!$N:$N,'Données pour moyenne'!$K:$K,Activation!$F$5,'Données pour moyenne'!$M:$M,Activation!N$9),SUMIFS('Données FDC'!$P:$P,'Données FDC'!$C:$C,Activation!$J$5,'Données FDC'!$E:$E,Activation!N$9))) -> 8 | O22: =IF(ISBLANK($F$5),SUMIFS('Données pour moyenne'!$Y:$Y,'Données pour moyenne'!$V:$V,Activation!$C$5,'Données pour moyenne'!$X:$X,Activation!O$9),IF(ISBLANK($J$5),SUMIFS('Données pour moyenne'!$N:$N,'Données pour moyenne'!$K:$K,Activation!$F$5,'Données pour moyenne'!$M:$M,Activation!O$9),SUMIFS('Données FDC'!$P:$P,'Données FDC'!$C:$C,Activation!$J$5,'Données FDC'!$E:$E,Activation!O$9))) -> 10 | P22: =IF(ISBLANK($F$5),SUMIFS('Données pour moyenne'!$Y:$Y,'Données pour moyenne'!$V:$V,Activation!$C$5,'Données pour moyenne'!$X:$X,Activation!P$9),IF(ISBLANK($J$5),SUMIFS('Données pour moyenne'!$N:$N,'Données pour moyenne'!$K:$K,Activation!$F$5,'Données pour moyenne'!$M:$M,Activation!P$9),SUMIFS('Données FDC'!$P:$P,'Données FDC'!$C:$C,Activation!$J$5,'Données FDC'!$E:$E,Activation!P$9))) -> 50
C23: Moyenne CEGEE | D23: ='Données pour moyenne'!AC2 -> 46 | E23: ='Données pour moyenne 2018'!AC2 -> 46 | F23: =VLOOKUP(F$9,'Données pour moyenne'!$AF:$AG,2,FALSE) -> 49 | G23: =VLOOKUP(G$9,'Données pour moyenne'!$AF:$AG,2,FALSE) -> 52 | H23: =VLOOKUP(H$9,'Données pour moyenne'!$AF:$AG,2,FALSE) -> 64 | I23: =VLOOKUP(I$9,'Données pour moyenne'!$AF:$AG,2,FALSE) -> 57 | J23: =VLOOKUP(J$9,'Données pour moyenne'!$AF:$AG,2,FALSE) -> 22 | K23: =VLOOKUP(K$9,'Données pour moyenne'!$AF:$AG,2,FALSE) -> 21 | L23: =VLOOKUP(L$9,'Données pour moyenne'!$AF:$AG,2,FALSE) -> 19 | M23: =VLOOKUP(M$9,'Données pour moyenne'!$AF:$AG,2,FALSE) -> 20 | N23: =VLOOKUP(N$9,'Données pour moyenne'!$AF:$AG,2,FALSE) -> 8 | O23: =VLOOKUP(O$9,'Données pour moyenne'!$AF:$AG,2,FALSE) -> 10 | P23: =VLOOKUP(P$9,'Données pour moyenne'!$AF:$AG,2,FALSE) -> 50
B24: PNB client annuel (en €) | C24: Moyenne | D24: =IF(ISBLANK($F$5),SUMIFS('Données pour moyenne'!$BJ:$BJ,'Données pour moyenne'!$BH:$BH,Activation!$C$5),IF(ISBLANK($J$5),SUMIFS('Données pour moyenne'!$BA:$BA,'Données pour moyenne'!$AY:$AY,Activation!$F$5),SUMIFS('Données pour moyenne'!$AR:$AR,'Données pour moyenne'!$AP:$AP,Activation!$J$5))) -> 306.94947 | E24: =IF(ISBLANK($F$5),SUMIFS('Données pour moyenne 2018'!$BJ:$BJ,'Données pour moyenne 2018'!$BH:$BH,Activation!$C$5),IF(ISBLANK($J$5),SUMIFS('Données pour moyenne 2018'!$BA:$BA,'Données pour moyenne 2018'!$AY:$AY,Activation!$F$5),SUMIFS('Données pour moyenne 2018'!$AR:$AR,'Données pour moyenne 2018'!$AP:$AP,Activation!$J$5))) -> 323.4841 | F24: =IF(ISBLANK($F$5),SUMIFS('Données pour moyenne'!$BF:$BF,'Données pour moyenne'!$BC:$BC,Activation!$C$5,'Données pour moyenne'!$BE:$BE,Activation!F$9),IF(ISBLANK($J$5),SUMIFS('Données pour moyenne'!$AW:$AW,'Données pour moyenne'!$AT:$AT,Activation!$F$5,'Données pour moyenne'!$AV:$AV,Activation!F$9),SUMIFS('Données pour moyenne'!$AM:$AM,'Données pour moyenne'!$AJ:$AJ,Activation!$J$5,'Données pour moyenne'!$AL:$AL,Activation!F$9))) -> 582.53532 | G24: =IF(ISBLANK($F$5),SUMIFS('Données pour moyenne'!$BF:$BF,'Données pour moyenne'!$BC:$BC,Activation!$C$5,'Données pour moyenne'!$BE:$BE,Activation!G$9),IF(ISBLANK($J$5),SUMIFS('Données pour moyenne'!$AW:$AW,'Données pour moyenne'!$AT:$AT,Activation!$F$5,'Données pour moyenne'!$AV:$AV,Activation!G$9),SUMIFS('Données pour moyenne'!$AM:$AM,'Données pour moyenne'!$AJ:$AJ,Activation!$J$5,'Données pour moyenne'!$AL:$AL,Activation!G$9))) -> 333.15518 | H24: =IF(ISBLANK($F$5),SUMIFS('Données pour moyenne'!$BF:$BF,'Données pour moyenne'!$BC:$BC,Activation!$C$5,'Données pour moyenne'!$BE:$BE,Activation!H$9),IF(ISBLANK($J$5),SUMIFS('Données pour moyenne'!$AW:$AW,'Données pour moyenne'!$AT:$AT,Activation!$F$5,'Données pour moyenne'!$AV:$AV,Activation!H$9),SUMIFS('Données pour moyenne'!$AM:$AM,'Données pour moyenne'!$AJ:$AJ,Activation!$J$5,'Données pour moyenne'!$AL:$AL,Activation!H$9))) -> 416.34955 | I24: =IF(ISBLANK($F$5),SUMIFS('Données pour moyenne'!$BF:$BF,'Données pour moyenne'!$BC:$BC,Activation!$C$5,'Données pour moyenne'!$BE:$BE,Activation!I$9),IF(ISBLANK($J$5),SUMIFS('Données pour moyenne'!$AW:$AW,'Données pour moyenne'!$AT:$AT,Activation!$F$5,'Données pour moyenne'!$AV:$AV,Activation!I$9),SUMIFS('Données pour moyenne'!$AM:$AM,'Données pour moyenne'!$AJ:$AJ,Activation!$J$5,'Données pour moyenne'!$AL:$AL,Activation!I$9))) -> 99.69032 | J24: =IF(ISBLANK($F$5),SUMIFS('Données pour moyenne'!$BF:$BF,'Données pour moyenne'!$BC:$BC,Activation!$C$5,'Données pour moyenne'!$BE:$BE,Activation!J$9),IF(ISBLANK($J$5),SUMIFS('Données pour moyenne'!$AW:$AW,'Données pour moyenne'!$AT:$AT,Activation!$F$5,'Données pour moyenne'!$AV:$AV,Activation!J$9),SUMIFS('Données pour moyenne'!$AM:$AM,'Données pour moyenne'!$AJ:$AJ,Activation!$J$5,'Données pour moyenne'!$AL:$AL,Activation!J$9))) -> 223.53982 | K24: =IF(ISBLANK($F$5),SUMIFS('Données pour moyenne'!$BF:$BF,'Données pour moyenne'!$BC:$BC,Activation!$C$5,'Données pour moyenne'!$BE:$BE,Activation!K$9),IF(ISBLANK($J$5),SUMIFS('Données pour moyenne'!$AW:$AW,'Données pour moyenne'!$AT:$AT,Activation!$F$5,'Données pour moyenne'!$AV:$AV,Activation!K$9),SUMIFS('Données pour moyenne'!$AM:$AM,'Données pour moyenne'!$AJ:$AJ,Activation!$J$5,'Données pour moyenne'!$AL:$AL,Activation!K$9))) -> 149.3571 | L24: =IF(ISBLANK($F$5),SUMIFS('Données pour moyenne'!$BF:$BF,'Données pour moyenne'!$BC:$BC,Activation!$C$5,'Données pour moyenne'!$BE:$BE,Activation!L$9),IF(ISBLANK($J$5),SUMIFS('Données pour moyenne'!$AW:$AW,'Données pour moyenne'!$AT:$AT,Activation!$F$5,'Données pour moyenne'!$AV:$AV,Activation!L$9),SUMIFS('Données pour moyenne'!$AM:$AM,'Données pour moyenne'!$AJ:$AJ,Activation!$J$5,'Données pour moyenne'!$AL:$AL,Activation!L$9))) -> 98.25249 | M24: =IF(ISBLANK($F$5),SUMIFS('Données pour moyenne'!$BF:$BF,'Données pour moyenne'!$BC:$BC,Activation!$C$5,'Données pour moyenne'!$BE:$BE,Activation!M$9),IF(ISBLANK($J$5),SUMIFS('Données pour moyenne'!$AW:$AW,'Données pour moyenne'!$AT:$AT,Activation!$F$5,'Données pour moyenne'!$AV:$AV,Activation!M$9),SUMIFS('Données pour moyenne'!$AM:$AM,'Données pour moyenne'!$AJ:$AJ,Activation!$J$5,'Données pour moyenne'!$AL:$AL,Activation!M$9))) -> 18.37525
C25: Moyenne CEGEE | D25: ='Données pour moyenne'!BN2 -> 306.94947 | E25: ='Données pour moyenne 2018'!BN2 -> 323.4841 | F25: =SUMIF('Données pour moyenne'!$BQ:$BQ,Activation!F$9,'Données pour moyenne'!$BR:$BR) -> 582.53532 | G25: =SUMIF('Données pour moyenne'!$BQ:$BQ,Activation!G$9,'Données pour moyenne'!$BR:$BR) -> 333.15518 | H25: =SUMIF('Données pour moyenne'!$BQ:$BQ,Activation!H$9,'Données pour moyenne'!$BR:$BR) -> 416.34955 | I25: =SUMIF('Données pour moyenne'!$BQ:$BQ,Activation!I$9,'Données pour moyenne'!$BR:$BR) -> 99.69032 | J25: =SUMIF('Données pour moyenne'!$BQ:$BQ,Activation!J$9,'Données pour moyenne'!$BR:$BR) -> 223.53982 | K25: =SUMIF('Données pour moyenne'!$BQ:$BQ,Activation!K$9,'Données pour moyenne'!$BR:$BR) -> 149.3571 | L25: =SUMIF('Données pour moyenne'!$BQ:$BQ,Activation!L$9,'Données pour moyenne'!$BR:$BR) -> 98.25249 | M25: =SUMIF('Données pour moyenne'!$BQ:$BQ,Activation!M$9,'Données pour moyenne'!$BR:$BR) -> 18.37525
C26: Variation | D26: =D24/(IF(ISBLANK($F$5),SUMIFS('Données pour moyenne 2018'!$BJ:$BJ,'Données pour moyenne 2018'!$BH:$BH,Activation!$C$5),IF(ISBLANK($J$5),SUMIFS('Données pour moyenne 2018'!$BA:$BA,'Données pour moyenne 2018'!$AY:$AY,Activation!$F$5),SUMIFS('Données pour moyenne 2018'!$AR:$AR,'Données pour moyenne 2018'!$AP:$AP,Activation!$J$5))))-1 -> -0.05111419696 | F26: =F24/(IF(ISBLANK($F$5),SUMIFS('Données pour moyenne 2018'!$BF:$BF,'Données pour moyenne 2018'!$BC:$BC,Activation!$C$5,'Données pour moyenne 2018'!$BE:$BE,Activation!F$9),IF(ISBLANK($J$5),SUMIFS('Données pour moyenne 2018'!$AW:$AW,'Données pour moyenne 2018'!$AT:$AT,Activation!$F$5,'Données pour moyenne 2018'!$AV:$AV,Activation!F$9),SUMIFS('Données pour moyenne 2018'!$AM:$AM,'Données pour moyenne 2018'!$AJ:$AJ,Activation!$J$5,'Données pour moyenne 2018'!$AL:$AL,Activation!F$9))))-1 -> -0.0405547494 | G26: =G24/(IF(ISBLANK($F$5),SUMIFS('Données pour moyenne 2018'!$BF:$BF,'Données pour moyenne 2018'!$BC:$BC,Activation!$C$5,'Données pour moyenne 2018'!$BE:$BE,Activation!G$9),IF(ISBLANK($J$5),SUMIFS('Données pour moyenne 2018'!$AW:$AW,'Données pour moyenne 2018'!$AT:$AT,Activation!$F$5,'Données pour moyenne 2018'!$AV:$AV,Activation!G$9),SUMIFS('Données pour moyenne 2018'!$AM:$AM,'Données pour moyenne 2018'!$AJ:$AJ,Activation!$J$5,'Données pour moyenne 2018'!$AL:$AL,Activation!G$9))))-1 -> -0.07603358521 | H26: =H24/(IF(ISBLANK($F$5),SUMIFS('Données pour moyenne 2018'!$BF:$BF,'Données pour moyenne 2018'!$BC:$BC,Activation!$C$5,'Données pour moyenne 2018'!$BE:$BE,Activation!H$9),IF(ISBLANK($J$5),SUMIFS('Données pour moyenne 2018'!$AW:$AW,'Données pour moyenne 2018'!$AT:$AT,Activation!$F$5,'Données pour moyenne 2018'!$AV:$AV,Activation!H$9),SUMIFS('Données pour moyenne 2018'!$AM:$AM,'Données pour moyenne 2018'!$AJ:$AJ,Activation!$J$5,'Données pour moyenne 2018'!$AL:$AL,Activation!H$9))))-1 -> -0.07580881965 | I26: =I24/(IF(ISBLANK($F$5),SUMIFS('Données pour moyenne 2018'!$BF:$BF,'Données pour moyenne 2018'!$BC:$BC,Activation!$C$5,'Données pour moyenne 2018'!$BE:$BE,Activation!I$9),IF(ISBLANK($J$5),SUMIFS('Données pour moyenne 2018'!$AW:$AW,'Données pour moyenne 2018'!$AT:$AT,Activation!$F$5,'Données pour moyenne 2018'!$AV:$AV,Activation!I$9),SUMIFS('Données pour moyenne 2018'!$AM:$AM,'Données pour moyenne 2018'!$AJ:$AJ,Activation!$J$5,'Données pour moyenne 2018'!$AL:$AL,Activation!I$9))))-1 -> -0.06878524738 | J26: =J24/(IF(ISBLANK($F$5),SUMIFS('Données pour moyenne 2018'!$BF:$BF,'Données pour moyenne 2018'!$BC:$BC,Activation!$C$5,'Données pour moyenne 2018'!$BE:$BE,Activation!J$9),IF(ISBLANK($J$5),SUMIFS('Données pour moyenne 2018'!$AW:$AW,'Données pour moyenne 2018'!$AT:$AT,Activation!$F$5,'Données pour moyenne 2018'!$AV:$AV,Activation!J$9),SUMIFS('Données pour moyenne 2018'!$AM:$AM,'Données pour moyenne 2018'!$AJ:$AJ,Activation!$J$5,'Données pour moyenne 2018'!$AL:$AL,Activation!J$9))))-1 -> -0.03544294796 | K26: =K24/(IF(ISBLANK($F$5),SUMIFS('Données pour moyenne 2018'!$BF:$BF,'Données pour moyenne 2018'!$BC:$BC,Activation!$C$5,'Données pour moyenne 2018'!$BE:$BE,Activation!K$9),IF(ISBLANK($J$5),SUMIFS('Données pour moyenne 2018'!$AW:$AW,'Données pour moyenne 2018'!$AT:$AT,Activation!$F$5,'Données pour moyenne 2018'!$AV:$AV,Activation!K$9),SUMIFS('Données pour moyenne 2018'!$AM:$AM,'Données pour moyenne 2018'!$AJ:$AJ,Activation!$J$5,'Données pour moyenne 2018'!$AL:$AL,Activation!K$9))))-1 -> -0.07545226094 | L26: =L24/(IF(ISBLANK($F$5),SUMIFS('Données pour moyenne 2018'!$BF:$BF,'Données pour moyenne 2018'!$BC:$BC,Activation!$C$5,'Données pour moyenne 2018'!$BE:$BE,Activation!L$9),IF(ISBLANK($J$5),SUMIFS('Données pour moyenne 2018'!$AW:$AW,'Données pour moyenne 2018'!$AT:$AT,Activation!$F$5,'Données pour moyenne 2018'!$AV:$AV,Activation!L$9),SUMIFS('Données pour moyenne 2018'!$AM:$AM,'Données pour moyenne 2018'!$AJ:$AJ,Activation!$J$5,'Données pour moyenne 2018'!$AL:$AL,Activation!L$9))))-1 -> -0.1173536012 | M26: =M24/(IF(ISBLANK($F$5),SUMIFS('Données pour moyenne 2018'!$BF:$BF,'Données pour moyenne 2018'!$BC:$BC,Activation!$C$5,'Données pour moyenne 2018'!$BE:$BE,Activation!M$9),IF(ISBLANK($J$5),SUMIFS('Données pour moyenne 2018'!$AW:$AW,'Données pour moyenne 2018'!$AT:$AT,Activation!$F$5,'Données pour moyenne 2018'!$AV:$AV,Activation!M$9),SUMIFS('Données pour moyenne 2018'!$AM:$AM,'Données pour moyenne 2018'!$AJ:$AJ,Activation!$J$5,'Données pour moyenne 2018'!$AL:$AL,Activation!M$9))))-1 -> -0.05659190698
C27: Variation CEGEE | D27: =(D25-E25)/E25 -> -0.05111419696 | F27: =(F25/SUMIF('Données pour moyenne 2018'!$BQ:$BQ,Activation!F$9,'Données pour moyenne 2018'!$BR:$BR))-1 -> -0.0405547494 | G27: =(G25/SUMIF('Données pour moyenne 2018'!$BQ:$BQ,Activation!G$9,'Données pour moyenne 2018'!$BR:$BR))-1 -> -0.07603358521 | H27: =(H25/SUMIF('Données pour moyenne 2018'!$BQ:$BQ,Activation!H$9,'Données pour moyenne 2018'!$BR:$BR))-1 -> -0.07580881965 | I27: =(I25/SUMIF('Données pour moyenne 2018'!$BQ:$BQ,Activation!I$9,'Données pour moyenne 2018'!$BR:$BR))-1 -> -0.06878524738 | J27: =(J25/SUMIF('Données pour moyenne 2018'!$BQ:$BQ,Activation!J$9,'Données pour moyenne 2018'!$BR:$BR))-1 -> -0.03544294796 | K27: =(K25/SUMIF('Données pour moyenne 2018'!$BQ:$BQ,Activation!K$9,'Données pour moyenne 2018'!$BR:$BR))-1 -> -0.07545226094 | L27: =(L25/SUMIF('Données pour moyenne 2018'!$BQ:$BQ,Activation!L$9,'Données pour moyenne 2018'!$BR:$BR))-1 -> -0.1173536012 | M27: =(M25/SUMIF('Données pour moyenne 2018'!$BQ:$BQ,Activation!M$9,'Données pour moyenne 2018'!$BR:$BR))-1 -> -0.05659190698
B28: SF totale moyenne (en €) | C28: Moyenne | D28: =IF(ISBLANK($F$5),SUMIFS('Données pour moyenne'!$T:$T,'Données pour moyenne'!$Q:$Q,Activation!$C$5),IF(ISBLANK($J$5),SUMIFS('Données pour moyenne'!$I:$I,'Données pour moyenne'!$F:$F,Activation!$F$5),SUMIFS('Données pour moyenne'!$D:$D,'Données pour moyenne'!$A:$A,Activation!$J$5))) -> 20062.90488 | E28: =IF(ISBLANK($F$5),SUMIFS('Données pour moyenne 2018'!$T:$T,'Données pour moyenne 2018'!$Q:$Q,Activation!$C$5),IF(ISBLANK($J$5),SUMIFS('Données pour moyenne 2018'!$I:$I,'Données pour moyenne 2018'!$F:$F,Activation!$F$5),SUMIFS('Données pour moyenne 2018'!$D:$D,'Données pour moyenne 2018'!$A:$A,Activation!$J$5))) -> 19153.04891 | F28: =IF(ISBLANK($F$5),SUMIFS('Données pour moyenne'!$Z:$Z,'Données pour moyenne'!$V:$V,Activation!$C$5,'Données pour moyenne'!$X:$X,Activation!F$9),IF(ISBLANK($J$5),SUMIFS('Données pour moyenne'!$O:$O,'Données pour moyenne'!$K:$K,Activation!$F$5,'Données pour moyenne'!$M:$M,Activation!F$9),SUMIFS('Données FDC'!$Q:$Q,'Données FDC'!$C:$C,Activation!$J$5,'Données FDC'!$E:$E,Activation!F$9))) -> 40510.29947 | G28: =IF(ISBLANK($F$5),SUMIFS('Données pour moyenne'!$Z:$Z,'Données pour moyenne'!$V:$V,Activation!$C$5,'Données pour moyenne'!$X:$X,Activation!G$9),IF(ISBLANK($J$5),SUMIFS('Données pour moyenne'!$O:$O,'Données pour moyenne'!$K:$K,Activation!$F$5,'Données pour moyenne'!$M:$M,Activation!G$9),SUMIFS('Données FDC'!$Q:$Q,'Données FDC'!$C:$C,Activation!$J$5,'Données FDC'!$E:$E,Activation!G$9))) -> 16119.21551 | H28: =IF(ISBLANK($F$5),SUMIFS('Données pour moyenne'!$Z:$Z,'Données pour moyenne'!$V:$V,Activation!$C$5,'Données pour moyenne'!$X:$X,Activation!H$9),IF(ISBLANK($J$5),SUMIFS('Données pour moyenne'!$O:$O,'Données pour moyenne'!$K:$K,Activation!$F$5,'Données pour moyenne'!$M:$M,Activation!H$9),SUMIFS('Données FDC'!$Q:$Q,'Données FDC'!$C:$C,Activation!$J$5,'Données FDC'!$E:$E,Activation!H$9))) -> 66504.21574 | I28: =IF(ISBLANK($F$5),SUMIFS('Données pour moyenne'!$Z:$Z,'Données pour moyenne'!$V:$V,Activation!$C$5,'Données pour moyenne'!$X:$X,Activation!I$9),IF(ISBLANK($J$5),SUMIFS('Données pour moyenne'!$O:$O,'Données pour moyenne'!$K:$K,Activation!$F$5,'Données pour moyenne'!$M:$M,Activation!I$9),SUMIFS('Données FDC'!$Q:$Q,'Données FDC'!$C:$C,Activation!$J$5,'Données FDC'!$E:$E,Activation!I$9))) -> 10133.00163 | J28: =IF(ISBLANK($F$5),SUMIFS('Données pour moyenne'!$Z:$Z,'Données pour moyenne'!$V:$V,Activation!$C$5,'Données pour moyenne'!$X:$X,Activation!J$9),IF(ISBLANK($J$5),SUMIFS('Données pour moyenne'!$O:$O,'Données pour moyenne'!$K:$K,Activation!$F$5,'Données pour moyenne'!$M:$M,Activation!J$9),SUMIFS('Données FDC'!$Q:$Q,'Données FDC'!$C:$C,Activation!$J$5,'Données FDC'!$E:$E,Activation!J$9))) -> 9935.075579 | K28: =IF(ISBLANK($F$5),SUMIFS('Données pour moyenne'!$Z:$Z,'Données pour moyenne'!$V:$V,Activation!$C$5,'Données pour moyenne'!$X:$X,Activation!K$9),IF(ISBLANK($J$5),SUMIFS('Données pour moyenne'!$O:$O,'Données pour moyenne'!$K:$K,Activation!$F$5,'Données pour moyenne'!$M:$M,Activation!K$9),SUMIFS('Données FDC'!$Q:$Q,'Données FDC'!$C:$C,Activation!$J$5,'Données FDC'!$E:$E,Activation!K$9))) -> 1069.23408 | L28: =IF(ISBLANK($F$5),SUMIFS('Données pour moyenne'!$Z:$Z,'Données pour moyenne'!$V:$V,Activation!$C$5,'Données pour moyenne'!$X:$X,Activation!L$9),IF(ISBLANK($J$5),SUMIFS('Données pour moyenne'!$O:$O,'Données pour moyenne'!$K:$K,Activation!$F$5,'Données pour moyenne'!$M:$M,Activation!L$9),SUMIFS('Données FDC'!$Q:$Q,'Données FDC'!$C:$C,Activation!$J$5,'Données FDC'!$E:$E,Activation!L$9))) -> 16672.37581 | M28: =IF(ISBLANK($F$5),SUMIFS('Données pour moyenne'!$Z:$Z,'Données pour moyenne'!$V:$V,Activation!$C$5,'Données pour moyenne'!$X:$X,Activation!M$9),IF(ISBLANK($J$5),SUMIFS('Données pour moyenne'!$O:$O,'Données pour moyenne'!$K:$K,Activation!$F$5,'Données pour moyenne'!$M:$M,Activation!M$9),SUMIFS('Données FDC'!$Q:$Q,'Données FDC'!$C:$C,Activation!$J$5,'Données FDC'!$E:$E,Activation!M$9))) -> 2068.235073 | N28: =IF(ISBLANK($F$5),SUMIFS('Données pour moyenne'!$Z:$Z,'Données pour moyenne'!$V:$V,Activation!$C$5,'Données pour moyenne'!$X:$X,Activation!N$9),IF(ISBLANK($J$5),SUMIFS('Données pour moyenne'!$O:$O,'Données pour moyenne'!$K:$K,Activation!$F$5,'Données pour moyenne'!$M:$M,Activation!N$9),SUMIFS('Données FDC'!$Q:$Q,'Données FDC'!$C:$C,Activation!$J$5,'Données FDC'!$E:$E,Activation!N$9))) -> 4288.010426 | O28: =IF(ISBLANK($F$5),SUMIFS('Données pour moyenne'!$Z:$Z,'Données pour moyenne'!$V:$V,Activation!$C$5,'Données pour moyenne'!$X:$X,Activation!O$9),IF(ISBLANK($J$5),SUMIFS('Données pour moyenne'!$O:$O,'Données pour moyenne'!$K:$K,Activation!$F$5,'Données pour moyenne'!$M:$M,Activation!O$9),SUMIFS('Données FDC'!$Q:$Q,'Données FDC'!$C:$C,Activation!$J$5,'Données FDC'!$E:$E,Activation!O$9))) -> 963.9799501 | P28: =IF(ISBLANK($F$5),SUMIFS('Données pour moyenne'!$Z:$Z,'Données pour moyenne'!$V:$V,Activation!$C$5,'Données pour moyenne'!$X:$X,Activation!P$9),IF(ISBLANK($J$5),SUMIFS('Données pour moyenne'!$O:$O,'Données pour moyenne'!$K:$K,Activation!$F$5,'Données pour moyenne'!$M:$M,Activation!P$9),SUMIFS('Données FDC'!$Q:$Q,'Données FDC'!$C:$C,Activation!$J$5,'Données FDC'!$E:$E,Activation!P$9))) -> 15.499586
C29: Moyenne CEGEE | D29: ='Données pour moyenne'!AD2 -> 20062.90488 | E29: ='Données pour moyenne 2018'!AD2 -> 19153.04891 | F29: =VLOOKUP(F$9,'Données pour moyenne'!$AF:$AH,3,FALSE) -> 40510.29947 | G29: =VLOOKUP(G$9,'Données pour moyenne'!$AF:$AH,3,FALSE) -> 16119.21551 | H29: =VLOOKUP(H$9,'Données pour moyenne'!$AF:$AH,3,FALSE) -> 66504.21574 | I29: =VLOOKUP(I$9,'Données pour moyenne'!$AF:$AH,3,FALSE) -> 10133.00163 | J29: =VLOOKUP(J$9,'Données pour moyenne'!$AF:$AH,3,FALSE) -> 9935.075579 | K29: =VLOOKUP(K$9,'Données pour moyenne'!$AF:$AH,3,FALSE) -> 1069.23408 | L29: =VLOOKUP(L$9,'Données pour moyenne'!$AF:$AH,3,FALSE) -> 16672.37581 | M29: =VLOOKUP(M$9,'Données pour moyenne'!$AF:$AH,3,FALSE) -> 2068.235073 | N29: =VLOOKUP(N$9,'Données pour moyenne'!$AF:$AH,3,FALSE) -> 4288.010426 | O29: =VLOOKUP(O$9,'Données pour moyenne'!$AF:$AH,3,FALSE) -> 963.9799501 | P29: =VLOOKUP(P$9,'Données pour moyenne'!$AF:$AH,3,FALSE) -> 15.499586
C30: Variation | D30: =(D28-E28)/E28 -> 0.04750449759 | F30: =F28/(IF(ISBLANK($F$5),SUMIFS('Données pour moyenne 2018'!$Z:$Z,'Données pour moyenne 2018'!$V:$V,Activation!$C$5,'Données pour moyenne 2018'!$X:$X,Activation!F$9),IF(ISBLANK($J$5),SUMIFS('Données pour moyenne 2018'!$O:$O,'Données pour moyenne 2018'!$K:$K,Activation!$F$5,'Données pour moyenne 2018'!$M:$M,Activation!F$9),SUMIFS('Données FDC déc 2018'!$Q:$Q,'Données FDC déc 2018'!$C:$C,Activation!$J$5,'Données FDC déc 2018'!$E:$E,Activation!F$9))))-1 -> 0.04276403465 | G30: =G28/(IF(ISBLANK($F$5),SUMIFS('Données pour moyenne 2018'!$Z:$Z,'Données pour moyenne 2018'!$V:$V,Activation!$C$5,'Données pour moyenne 2018'!$X:$X,Activation!G$9),IF(ISBLANK($J$5),SUMIFS('Données pour moyenne 2018'!$O:$O,'Données pour moyenne 2018'!$K:$K,Activation!$F$5,'Données pour moyenne 2018'!$M:$M,Activation!G$9),SUMIFS('Données FDC déc 2018'!$Q:$Q,'Données FDC déc 2018'!$C:$C,Activation!$J$5,'Données FDC déc 2018'!$E:$E,Activation!G$9))))-1 -> 0.0271155835 | H30: =H28/(IF(ISBLANK($F$5),SUMIFS('Données pour moyenne 2018'!$Z:$Z,'Données pour moyenne 2018'!$V:$V,Activation!$C$5,'Données pour moyenne 2018'!$X:$X,Activation!H$9),IF(ISBLANK($J$5),SUMIFS('Données pour moyenne 2018'!$O:$O,'Données pour moyenne 2018'!$K:$K,Activation!$F$5,'Données pour moyenne 2018'!$M:$M,Activation!H$9),SUMIFS('Données FDC déc 2018'!$Q:$Q,'Données FDC déc 2018'!$C:$C,Activation!$J$5,'Données FDC déc 2018'!$E:$E,Activation!H$9))))-1 -> 0.02828613706 | I30: =I28/(IF(ISBLANK($F$5),SUMIFS('Données pour moyenne 2018'!$Z:$Z,'Données pour moyenne 2018'!$V:$V,Activation!$C$5,'Données pour moyenne 2018'!$X:$X,Activation!I$9),IF(ISBLANK($J$5),SUMIFS('Données pour moyenne 2018'!$O:$O,'Données pour moyenne 2018'!$K:$K,Activation!$F$5,'Données pour moyenne 2018'!$M:$M,Activation!I$9),SUMIFS('Données FDC déc 2018'!$Q:$Q,'Données FDC déc 2018'!$C:$C,Activation!$J$5,'Données FDC déc 2018'!$E:$E,Activation!I$9))))-1 -> 0.03640620462 | J30: =J28/(IF(ISBLANK($F$5),SUMIFS('Données pour moyenne 2018'!$Z:$Z,'Données pour moyenne 2018'!$V:$V,Activation!$C$5,'Données pour moyenne 2018'!$X:$X,Activation!J$9),IF(ISBLANK($J$5),SUMIFS('Données pour moyenne 2018'!$O:$O,'Données pour moyenne 2018'!$K:$K,Activation!$F$5,'Données pour moyenne 2018'!$M:$M,Activation!J$9),SUMIFS('Données FDC déc 2018'!$Q:$Q,'Données FDC déc 2018'!$C:$C,Activation!$J$5,'Données FDC déc 2018'!$E:$E,Activation!J$9))))-1 -> 0.02790109254 | K30: =K28/(IF(ISBLANK($F$5),SUMIFS('Données pour moyenne 2018'!$Z:$Z,'Données pour moyenne 2018'!$V:$V,Activation!$C$5,'Données pour moyenne 2018'!$X:$X,Activation!K$9),IF(ISBLANK($J$5),SUMIFS('Données pour moyenne 2018'!$O:$O,'Données pour moyenne 2018'!$K:$K,Activation!$F$5,'Données pour moyenne 2018'!$M:$M,Activation!K$9),SUMIFS('Données FDC déc 2018'!$Q:$Q,'Données FDC déc 2018'!$C:$C,Activation!$J$5,'Données FDC déc 2018'!$E:$E,Activation!K$9))))-1 -> 0.01158571426 | L30: =L28/(IF(ISBLANK($F$5),SUMIFS('Données pour moyenne 2018'!$Z:$Z,'Données pour moyenne 2018'!$V:$V,Activation!$C$5,'Données pour moyenne 2018'!$X:$X,Activation!L$9),IF(ISBLANK($J$5),SUMIFS('Données pour moyenne 2018'!$O:$O,'Données pour moyenne 2018'!$K:$K,Activation!$F$5,'Données pour moyenne 2018'!$M:$M,Activation!L$9),SUMIFS('Données FDC déc 2018'!$Q:$Q,'Données FDC déc 2018'!$C:$C,Activation!$J$5,'Données FDC déc 2018'!$E:$E,Activation!L$9))))-1 -> 0.04443138846 | M30: =M28/(IF(ISBLANK($F$5),SUMIFS('Données pour moyenne 2018'!$Z:$Z,'Données pour moyenne 2018'!$V:$V,Activation!$C$5,'Données pour moyenne 2018'!$X:$X,Activation!M$9),IF(ISBLANK($J$5),SUMIFS('Données pour moyenne 2018'!$O:$O,'Données pour moyenne 2018'!$K:$K,Activation!$F$5,'Données pour moyenne 2018'!$M:$M,Activation!M$9),SUMIFS('Données FDC déc 2018'!$Q:$Q,'Données FDC déc 2018'!$C:$C,Activation!$J$5,'Données FDC déc 2018'!$E:$E,Activation!M$9))))-1 -> 0.03888243578 | N30: =N28/(IF(ISBLANK($F$5),SUMIFS('Données pour moyenne 2018'!$Z:$Z,'Données pour moyenne 2018'!$V:$V,Activation!$C$5,'Données pour moyenne 2018'!$X:$X,Activation!N$9),IF(ISBLANK($J$5),SUMIFS('Données pour moyenne 2018'!$O:$O,'Données pour moyenne 2018'!$K:$K,Activation!$F$5,'Données pour moyenne 2018'!$M:$M,Activation!N$9),SUMIFS('Données FDC déc 2018'!$Q:$Q,'Données FDC déc 2018'!$C:$C,Activation!$J$5,'Données FDC déc 2018'!$E:$E,Activation!N$9))))-1 -> 0.0429083281 | O30: =O28/(IF(ISBLANK($F$5),SUMIFS('Données pour moyenne 2018'!$Z:$Z,'Données pour moyenne 2018'!$V:$V,Activation!$C$5,'Données pour moyenne 2018'!$X:$X,Activation!O$9),IF(ISBLANK($J$5),SUMIFS('Données pour moyenne 2018'!$O:$O,'Données pour moyenne 2018'!$K:$K,Activation!$F$5,'Données pour moyenne 2018'!$M:$M,Activation!O$9),SUMIFS('Données FDC déc 2018'!$Q:$Q,'Données FDC déc 2018'!$C:$C,Activation!$J$5,'Données FDC déc 2018'!$E:$E,Activation!O$9))))-1 -> 0.08161044989 | P30: =P28/(IF(ISBLANK($F$5),SUMIFS('Données pour moyenne 2018'!$Z:$Z,'Données pour moyenne 2018'!$V:$V,Activation!$C$5,'Données pour moyenne 2018'!$X:$X,Activation!P$9),IF(ISBLANK($J$5),SUMIFS('Données pour moyenne 2018'!$O:$O,'Données pour moyenne 2018'!$K:$K,Activation!$F$5,'Données pour moyenne 2018'!$M:$M,Activation!P$9),SUMIFS('Données FDC déc 2018'!$Q:$Q,'Données FDC déc 2018'!$C:$C,Activation!$J$5,'Données FDC déc 2018'!$E:$E,Activation!P$9))))-1 -> -0.0078446055
C31: Variation CEGEE | D31: =(D29-E29)/E29 -> 0.04750449759 | F31: =F29/VLOOKUP(F$9,'Données pour moyenne 2018'!$AF:$AH,3,FALSE)-1 -> 0.04276403465 | G31: =G29/VLOOKUP(G$9,'Données pour moyenne 2018'!$AF:$AH,3,FALSE)-1 -> 0.0271155835 | H31: =H29/VLOOKUP(H$9,'Données pour moyenne 2018'!$AF:$AH,3,FALSE)-1 -> 0.02828613706 | I31: =I29/VLOOKUP(I$9,'Données pour moyenne 2018'!$AF:$AH,3,FALSE)-1 -> 0.03640620462 | J31: =J29/VLOOKUP(J$9,'Données pour moyenne 2018'!$AF:$AH,3,FALSE)-1 -> 0.02790109254 | K31: =K29/VLOOKUP(K$9,'Données pour moyenne 2018'!$AF:$AH,3,FALSE)-1 -> 0.01158571426 | L31: =L29/VLOOKUP(L$9,'Données pour moyenne 2018'!$AF:$AH,3,FALSE)-1 -> 0.04443138846 | M31: =M29/VLOOKUP(M$9,'Données pour moyenne 2018'!$AF:$AH,3,FALSE)-1 -> 0.03888243578 | N31: =N29/VLOOKUP(N$9,'Données pour moyenne 2018'!$AF:$AH,3,FALSE)-1 -> 0.0429083281 | O31: =O29/VLOOKUP(O$9,'Données pour moyenne 2018'!$AF:$AH,3,FALSE)-1 -> 0.08161044989 | P31: =P29/VLOOKUP(P$9,'Données pour moyenne 2018'!$AF:$AH,3,FALSE)-1 -> -0.0078446055
B32: Encours de collecte (en K€) | C32: Montant | D32: =SUM(F32:P32) -> 30171077.87 | E32: =IF(ISBLANK($F$5),(SUMIFS('Données FDC déc 2018'!$R:$R,'Données FDC déc 2018'!$A:$A,Activation!$C$5))/1000,IF(ISBLANK($J$5),(SUMIFS('Données FDC déc 2018'!$R:$R,'Données FDC déc 2018'!$B:$B,Activation!$F$5))/1000,(SUMIFS('Données FDC déc 2018'!$R:$R,'Données FDC déc 2018'!$C:$C,Activation!$J$5))/1000)) -> 29495408.03 | F32: =IF(ISBLANK($F$5),(SUMIFS('Données FDC'!$R:$R,'Données FDC'!$A:$A,Activation!$C$5,'Données FDC'!$E:$E,Activation!F$9))/1000,IF(ISBLANK($J$5),(SUMIFS('Données FDC'!$R:$R,'Données FDC'!$B:$B,Activation!$F$5,'Données FDC'!$E:$E,Activation!F$9))/1000,(SUMIFS('Données FDC'!$R:$R,'Données FDC'!$C:$C,Activation!$J$5,'Données FDC'!$E:$E,Activation!F$9))/1000)) -> 11151553.71 | G32: =IF(ISBLANK($F$5),(SUMIFS('Données FDC'!$R:$R,'Données FDC'!$A:$A,Activation!$C$5,'Données FDC'!$E:$E,Activation!G$9))/1000,IF(ISBLANK($J$5),(SUMIFS('Données FDC'!$R:$R,'Données FDC'!$B:$B,Activation!$F$5,'Données FDC'!$E:$E,Activation!G$9))/1000,(SUMIFS('Données FDC'!$R:$R,'Données FDC'!$C:$C,Activation!$J$5,'Données FDC'!$E:$E,Activation!G$9))/1000)) -> 2602656.894 | H32: =IF(ISBLANK($F$5),(SUMIFS('Données FDC'!$R:$R,'Données FDC'!$A:$A,Activation!$C$5,'Données FDC'!$E:$E,Activation!H$9))/1000,IF(ISBLANK($J$5),(SUMIFS('Données FDC'!$R:$R,'Données FDC'!$B:$B,Activation!$F$5,'Données FDC'!$E:$E,Activation!H$9))/1000,(SUMIFS('Données FDC'!$R:$R,'Données FDC'!$C:$C,Activation!$J$5,'Données FDC'!$E:$E,Activation!H$9))/1000)) -> 11384125.15 | I32: =IF(ISBLANK($F$5),(SUMIFS('Données FDC'!$R:$R,'Données FDC'!$A:$A,Activation!$C$5,'Données FDC'!$E:$E,Activation!I$9))/1000,IF(ISBLANK($J$5),(SUMIFS('Données FDC'!$R:$R,'Données FDC'!$B:$B,Activation!$F$5,'Données FDC'!$E:$E,Activation!I$9))/1000,(SUMIFS('Données FDC'!$R:$R,'Données FDC'!$C:$C,Activation!$J$5,'Données FDC'!$E:$E,Activation!I$9))/1000)) -> 3625192.797 | J32: =IF(ISBLANK($F$5),(SUMIFS('Données FDC'!$R:$R,'Données FDC'!$A:$A,Activation!$C$5,'Données FDC'!$E:$E,Activation!J$9))/1000,IF(ISBLANK($J$5),(SUMIFS('Données FDC'!$R:$R,'Données FDC'!$B:$B,Activation!$F$5,'Données FDC'!$E:$E,Activation!J$9))/1000,(SUMIFS('Données FDC'!$R:$R,'Données FDC'!$C:$C,Activation!$J$5,'Données FDC'!$E:$E,Activation!J$9))/1000)) -> 593064.4016 | K32: =IF(ISBLANK($F$5),(SUMIFS('Données FDC'!$R:$R,'Données FDC'!$A:$A,Activation!$C$5,'Données FDC'!$E:$E,Activation!K$9))/1000,IF(ISBLANK($J$5),(SUMIFS('Données FDC'!$R:$R,'Données FDC'!$B:$B,Activation!$F$5,'Données FDC'!$E:$E,Activation!K$9))/1000,(SUMIFS('Données FDC'!$R:$R,'Données FDC'!$C:$C,Activation!$J$5,'Données FDC'!$E:$E,Activation!K$9))/1000)) -> 19751.96115 | L32: =IF(ISBLANK($F$5),(SUMIFS('Données FDC'!$R:$R,'Données FDC'!$A:$A,Activation!$C$5,'Données FDC'!$E:$E,Activation!L$9))/1000,IF(ISBLANK($J$5),(SUMIFS('Données FDC'!$R:$R,'Données FDC'!$B:$B,Activation!$F$5,'Données FDC'!$E:$E,Activation!L$9))/1000,(SUMIFS('Données FDC'!$R:$R,'Données FDC'!$C:$C,Activation!$J$5,'Données FDC'!$E:$E,Activation!L$9))/1000)) -> 183812.9433 | M32: =IF(ISBLANK($F$5),(SUMIFS('Données FDC'!$R:$R,'Données FDC'!$A:$A,Activation!$C$5,'Données FDC'!$E:$E,Activation!M$9))/1000,IF(ISBLANK($J$5),(SUMIFS('Données FDC'!$R:$R,'Données FDC'!$B:$B,Activation!$F$5,'Données FDC'!$E:$E,Activation!M$9))/1000,(SUMIFS('Données FDC'!$R:$R,'Données FDC'!$C:$C,Activation!$J$5,'Données FDC'!$E:$E,Activation!M$9))/1000)) -> 159179.6441 | N32: =IF(ISBLANK($F$5),(SUMIFS('Données FDC'!$R:$R,'Données FDC'!$A:$A,Activation!$C$5,'Données FDC'!$E:$E,Activation!N$9))/1000,IF(ISBLANK($J$5),(SUMIFS('Données FDC'!$R:$R,'Données FDC'!$B:$B,Activation!$F$5,'Données FDC'!$E:$E,Activation!N$9))/1000,(SUMIFS('Données FDC'!$R:$R,'Données FDC'!$C:$C,Activation!$J$5,'Données FDC'!$E:$E,Activation!N$9))/1000)) -> 387335.9818 | O32: =IF(ISBLANK($F$5),(SUMIFS('Données FDC'!$R:$R,'Données FDC'!$A:$A,Activation!$C$5,'Données FDC'!$E:$E,Activation!O$9))/1000,IF(ISBLANK($J$5),(SUMIFS('Données FDC'!$R:$R,'Données FDC'!$B:$B,Activation!$F$5,'Données FDC'!$E:$E,Activation!O$9))/1000,(SUMIFS('Données FDC'!$R:$R,'Données FDC'!$C:$C,Activation!$J$5,'Données FDC'!$E:$E,Activation!O$9))/1000)) -> 61019.93084 | P32: =IF(ISBLANK($F$5),(SUMIFS('Données FDC'!$R:$R,'Données FDC'!$A:$A,Activation!$C$5,'Données FDC'!$E:$E,Activation!P$9))/1000,IF(ISBLANK($J$5),(SUMIFS('Données FDC'!$R:$R,'Données FDC'!$B:$B,Activation!$F$5,'Données FDC'!$E:$E,Activation!P$9))/1000,(SUMIFS('Données FDC'!$R:$R,'Données FDC'!$C:$C,Activation!$J$5,'Données FDC'!$E:$E,Activation!P$9))/1000)) -> 3384.4586
C33: Variation | D33: =D32/(IF(ISBLANK($F$5),SUMIFS('Données FDC déc 2018'!$R:$R,'Données FDC déc 2018'!$A:$A,Activation!$C$5)/1000,IF(ISBLANK($J$5),SUMIFS('Données FDC déc 2018'!$R:$R,'Données FDC déc 2018'!$B:$B,Activation!$F$5)/1000,SUMIFS('Données FDC déc 2018'!$R:$R,'Données FDC déc 2018'!$C:$C,Activation!$J$5)/1000)))-1 -> 0.02290762802 | F33: =F32/(IF(ISBLANK($F$5),SUMIFS('Données FDC déc 2018'!$R:$R,'Données FDC déc 2018'!$A:$A,Activation!$C$5,'Données FDC déc 2018'!$E:$E,Activation!F$9)/1000,IF(ISBLANK($J$5),SUMIFS('Données FDC déc 2018'!$R:$R,'Données FDC déc 2018'!$B:$B,Activation!$F$5,'Données FDC déc 2018'!$E:$E,Activation!F$9)/1000,SUMIFS('Données FDC déc 2018'!$R:$R,'Données FDC déc 2018'!$C:$C,Activation!$J$5,'Données FDC déc 2018'!$E:$E,Activation!F$9)/1000)))-1 -> 0.04713475154 | G33: =G32/(IF(ISBLANK($F$5),SUMIFS('Données FDC déc 2018'!$R:$R,'Données FDC déc 2018'!$A:$A,Activation!$C$5,'Données FDC déc 2018'!$E:$E,Activation!G$9)/1000,IF(ISBLANK($J$5),SUMIFS('Données FDC déc 2018'!$R:$R,'Données FDC déc 2018'!$B:$B,Activation!$F$5,'Données FDC déc 2018'!$E:$E,Activation!G$9)/1000,SUMIFS('Données FDC déc 2018'!$R:$R,'Données FDC déc 2018'!$C:$C,Activation!$J$5,'Données FDC déc 2018'!$E:$E,Activation!G$9)/1000)))-1 -> 0.01312312355 | H33: =H32/(IF(ISBLANK($F$5),SUMIFS('Données FDC déc 2018'!$R:$R,'Données FDC déc 2018'!$A:$A,Activation!$C$5,'Données FDC déc 2018'!$E:$E,Activation!H$9)/1000,IF(ISBLANK($J$5),SUMIFS('Données FDC déc 2018'!$R:$R,'Données FDC déc 2018'!$B:$B,Activation!$F$5,'Données FDC déc 2018'!$E:$E,Activation!H$9)/1000,SUMIFS('Données FDC déc 2018'!$R:$R,'Données FDC déc 2018'!$C:$C,Activation!$J$5,'Données FDC déc 2018'!$E:$E,Activation!H$9)/1000)))-1 -> 0.008323361993 | I33: =I32/(IF(ISBLANK($F$5),SUMIFS('Données FDC déc 2018'!$R:$R,'Données FDC déc 2018'!$A:$A,Activation!$C$5,'Données FDC déc 2018'!$E:$E,Activation!I$9)/1000,IF(ISBLANK($J$5),SUMIFS('Données FDC déc 2018'!$R:$R,'Données FDC déc 2018'!$B:$B,Activation!$F$5,'Données FDC déc 2018'!$E:$E,Activation!I$9)/1000,SUMIFS('Données FDC déc 2018'!$R:$R,'Données FDC déc 2018'!$C:$C,Activation!$J$5,'Données FDC déc 2018'!$E:$E,Activation!I$9)/1000)))-1 -> 0.01134043277 | J33: =J32/(IF(ISBLANK($F$5),SUMIFS('Données FDC déc 2018'!$R:$R,'Données FDC déc 2018'!$A:$A,Activation!$C$5,'Données FDC déc 2018'!$E:$E,Activation!J$9)/1000,IF(ISBLANK($J$5),SUMIFS('Données FDC déc 2018'!$R:$R,'Données FDC déc 2018'!$B:$B,Activation!$F$5,'Données FDC déc 2018'!$E:$E,Activation!J$9)/1000,SUMIFS('Données FDC déc 2018'!$R:$R,'Données FDC déc 2018'!$C:$C,Activation!$J$5,'Données FDC déc 2018'!$E:$E,Activation!J$9)/1000)))-1 -> 0.006421857665 | K33: =K32/(IF(ISBLANK($F$5),SUMIFS('Données FDC déc 2018'!$R:$R,'Données FDC déc 2018'!$A:$A,Activation!$C$5,'Données FDC déc 2018'!$E:$E,Activation!K$9)/1000,IF(ISBLANK($J$5),SUMIFS('Données FDC déc 2018'!$R:$R,'Données FDC déc 2018'!$B:$B,Activation!$F$5,'Données FDC déc 2018'!$E:$E,Activation!K$9)/1000,SUMIFS('Données FDC déc 2018'!$R:$R,'Données FDC déc 2018'!$C:$C,Activation!$J$5,'Données FDC déc 2018'!$E:$E,Activation!K$9)/1000)))-1 -> -0.02483833957 | L33: =L32/(IF(ISBLANK($F$5),SUMIFS('Données FDC déc 2018'!$R:$R,'Données FDC déc 2018'!$A:$A,Activation!$C$5,'Données FDC déc 2018'!$E:$E,Activation!L$9)/1000,IF(ISBLANK($J$5),SUMIFS('Données FDC déc 2018'!$R:$R,'Données FDC déc 2018'!$B:$B,Activation!$F$5,'Données FDC déc 2018'!$E:$E,Activation!L$9)/1000,SUMIFS('Données FDC déc 2018'!$R:$R,'Données FDC déc 2018'!$C:$C,Activation!$J$5,'Données FDC déc 2018'!$E:$E,Activation!L$9)/1000)))-1 -> 0.01802281479 | M33: =M32/(IF(ISBLANK($F$5),SUMIFS('Données FDC déc 2018'!$R:$R,'Données FDC déc 2018'!$A:$A,Activation!$C$5,'Données FDC déc 2018'!$E:$E,Activation!M$9)/1000,IF(ISBLANK($J$5),SUMIFS('Données FDC déc 2018'!$R:$R,'Données FDC déc 2018'!$B:$B,Activation!$F$5,'Données FDC déc 2018'!$E:$E,Activation!M$9)/1000,SUMIFS('Données FDC déc 2018'!$R:$R,'Données FDC déc 2018'!$C:$C,Activation!$J$5,'Données FDC déc 2018'!$E:$E,Activation!M$9)/1000)))-1 -> 0.01597920923 | N33: =N32/(IF(ISBLANK($F$5),SUMIFS('Données FDC déc 2018'!$R:$R,'Données FDC déc 2018'!$A:$A,Activation!$C$5,'Données FDC déc 2018'!$E:$E,Activation!N$9)/1000,IF(ISBLANK($J$5),SUMIFS('Données FDC déc 2018'!$R:$R,'Données FDC déc 2018'!$B:$B,Activation!$F$5,'Données FDC déc 2018'!$E:$E,Activation!N$9)/1000,SUMIFS('Données FDC déc 2018'!$R:$R,'Données FDC déc 2018'!$C:$C,Activation!$J$5,'Données FDC déc 2018'!$E:$E,Activation!N$9)/1000)))-1 -> -0.01817707893 | O33: =O32/(IF(ISBLANK($F$5),SUMIFS('Données FDC déc 2018'!$R:$R,'Données FDC déc 2018'!$A:$A,Activation!$C$5,'Données FDC déc 2018'!$E:$E,Activation!O$9)/1000,IF(ISBLANK($J$5),SUMIFS('Données FDC déc 2018'!$R:$R,'Données FDC déc 2018'!$B:$B,Activation!$F$5,'Données FDC déc 2018'!$E:$E,Activation!O$9)/1000,SUMIFS('Données FDC déc 2018'!$R:$R,'Données FDC déc 2018'!$C:$C,Activation!$J$5,'Données FDC déc 2018'!$E:$E,Activation!O$9)/1000)))-1 -> 0.06490506709 | P33: =P32/(IF(ISBLANK($F$5),SUMIFS('Données FDC déc 2018'!$R:$R,'Données FDC déc 2018'!$A:$A,Activation!$C$5,'Données FDC déc 2018'!$E:$E,Activation!P$9)/1000,IF(ISBLANK($J$5),SUMIFS('Données FDC déc 2018'!$R:$R,'Données FDC déc 2018'!$B:$B,Activation!$F$5,'Données FDC déc 2018'!$E:$E,Activation!P$9)/1000,SUMIFS('Données FDC déc 2018'!$R:$R,'Données FDC déc 2018'!$C:$C,Activation!$J$5,'Données FDC déc 2018'!$E:$E,Activation!P$9)/1000)))-1 -> -0.0604505619
C34: Variation CEGEE | D34: =(SUM('Données FDC'!$R:$R)/1000)/(SUM('Données FDC déc 2018'!$R:$R)/1000)-1 -> 0.02290762802 | F34: =IF(ISBLANK($F$5),SUMIFS('Données FDC'!$R:$R,'Données FDC'!$E:$E,Activation!F$9)/1000,IF(ISBLANK($J$5),SUMIFS('Données FDC'!$R:$R,'Données FDC'!$E:$E,Activation!F$9)/1000,SUMIFS('Données FDC'!$R:$R,'Données FDC'!$E:$E,Activation!F$9)/1000))/(IF(ISBLANK($F$5),SUMIFS('Données FDC déc 2018'!$R:$R,'Données FDC déc 2018'!$E:$E,Activation!F$9)/1000,IF(ISBLANK($J$5),SUMIFS('Données FDC déc 2018'!$R:$R,'Données FDC déc 2018'!$E:$E,Activation!F$9)/1000,SUMIFS('Données FDC déc 2018'!$R:$R,'Données FDC déc 2018'!$E:$E,Activation!F$9)/1000)))-1 -> 0.04713475154 | G34: =IF(ISBLANK($F$5),SUMIFS('Données FDC'!$R:$R,'Données FDC'!$E:$E,Activation!G$9)/1000,IF(ISBLANK($J$5),SUMIFS('Données FDC'!$R:$R,'Données FDC'!$E:$E,Activation!G$9)/1000,SUMIFS('Données FDC'!$R:$R,'Données FDC'!$E:$E,Activation!G$9)/1000))/(IF(ISBLANK($F$5),SUMIFS('Données FDC déc 2018'!$R:$R,'Données FDC déc 2018'!$E:$E,Activation!G$9)/1000,IF(ISBLANK($J$5),SUMIFS('Données FDC déc 2018'!$R:$R,'Données FDC déc 2018'!$E:$E,Activation!G$9)/1000,SUMIFS('Données FDC déc 2018'!$R:$R,'Données FDC déc 2018'!$E:$E,Activation!G$9)/1000)))-1 -> 0.01312312355 | H34: =IF(ISBLANK($F$5),SUMIFS('Données FDC'!$R:$R,'Données FDC'!$E:$E,Activation!H$9)/1000,IF(ISBLANK($J$5),SUMIFS('Données FDC'!$R:$R,'Données FDC'!$E:$E,Activation!H$9)/1000,SUMIFS('Données FDC'!$R:$R,'Données FDC'!$E:$E,Activation!H$9)/1000))/(IF(ISBLANK($F$5),SUMIFS('Données FDC déc 2018'!$R:$R,'Données FDC déc 2018'!$E:$E,Activation!H$9)/1000,IF(ISBLANK($J$5),SUMIFS('Données FDC déc 2018'!$R:$R,'Données FDC déc 2018'!$E:$E,Activation!H$9)/1000,SUMIFS('Données FDC déc 2018'!$R:$R,'Données FDC déc 2018'!$E:$E,Activation!H$9)/1000)))-1 -> 0.008323361993 | I34: =IF(ISBLANK($F$5),SUMIFS('Données FDC'!$R:$R,'Données FDC'!$E:$E,Activation!I$9)/1000,IF(ISBLANK($J$5),SUMIFS('Données FDC'!$R:$R,'Données FDC'!$E:$E,Activation!I$9)/1000,SUMIFS('Données FDC'!$R:$R,'Données FDC'!$E:$E,Activation!I$9)/1000))/(IF(ISBLANK($F$5),SUMIFS('Données FDC déc 2018'!$R:$R,'Données FDC déc 2018'!$E:$E,Activation!I$9)/1000,IF(ISBLANK($J$5),SUMIFS('Données FDC déc 2018'!$R:$R,'Données FDC déc 2018'!$E:$E,Activation!I$9)/1000,SUMIFS('Données FDC déc 2018'!$R:$R,'Données FDC déc 2018'!$E:$E,Activation!I$9)/1000)))-1 -> 0.01134043277 | J34: =IF(ISBLANK($F$5),SUMIFS('Données FDC'!$R:$R,'Données FDC'!$E:$E,Activation!J$9)/1000,IF(ISBLANK($J$5),SUMIFS('Données FDC'!$R:$R,'Données FDC'!$E:$E,Activation!J$9)/1000,SUMIFS('Données FDC'!$R:$R,'Données FDC'!$E:$E,Activation!J$9)/1000))/(IF(ISBLANK($F$5),SUMIFS('Données FDC déc 2018'!$R:$R,'Données FDC déc 2018'!$E:$E,Activation!J$9)/1000,IF(ISBLANK($J$5),SUMIFS('Données FDC déc 2018'!$R:$R,'Données FDC déc 2018'!$E:$E,Activation!J$9)/1000,SUMIFS('Données FDC déc 2018'!$R:$R,'Données FDC déc 2018'!$E:$E,Activation!J$9)/1000)))-1 -> 0.006421857665 | K34: =IF(ISBLANK($F$5),SUMIFS('Données FDC'!$R:$R,'Données FDC'!$E:$E,Activation!K$9)/1000,IF(ISBLANK($J$5),SUMIFS('Données FDC'!$R:$R,'Données FDC'!$E:$E,Activation!K$9)/1000,SUMIFS('Données FDC'!$R:$R,'Données FDC'!$E:$E,Activation!K$9)/1000))/(IF(ISBLANK($F$5),SUMIFS('Données FDC déc 2018'!$R:$R,'Données FDC déc 2018'!$E:$E,Activation!K$9)/1000,IF(ISBLANK($J$5),SUMIFS('Données FDC déc 2018'!$R:$R,'Données FDC déc 2018'!$E:$E,Activation!K$9)/1000,SUMIFS('Données FDC déc 2018'!$R:$R,'Données FDC déc 2018'!$E:$E,Activation!K$9)/1000)))-1 -> -0.02483833957 | L34: =IF(ISBLANK($F$5),SUMIFS('Données FDC'!$R:$R,'Données FDC'!$E:$E,Activation!L$9)/1000,IF(ISBLANK($J$5),SUMIFS('Données FDC'!$R:$R,'Données FDC'!$E:$E,Activation!L$9)/1000,SUMIFS('Données FDC'!$R:$R,'Données FDC'!$E:$E,Activation!L$9)/1000))/(IF(ISBLANK($F$5),SUMIFS('Données FDC déc 2018'!$R:$R,'Données FDC déc 2018'!$E:$E,Activation!L$9)/1000,IF(ISBLANK($J$5),SUMIFS('Données FDC déc 2018'!$R:$R,'Données FDC déc 2018'!$E:$E,Activation!L$9)/1000,SUMIFS('Données FDC déc 2018'!$R:$R,'Données FDC déc 2018'!$E:$E,Activation!L$9)/1000)))-1 -> 0.01802281479 | M34: =IF(ISBLANK($F$5),SUMIFS('Données FDC'!$R:$R,'Données FDC'!$E:$E,Activation!M$9)/1000,IF(ISBLANK($J$5),SUMIFS('Données FDC'!$R:$R,'Données FDC'!$E:$E,Activation!M$9)/1000,SUMIFS('Données FDC'!$R:$R,'Données FDC'!$E:$E,Activation!M$9)/1000))/(IF(ISBLANK($F$5),SUMIFS('Données FDC déc 2018'!$R:$R,'Données FDC déc 2018'!$E:$E,Activation!M$9)/1000,IF(ISBLANK($J$5),SUMIFS('Données FDC déc 2018'!$R:$R,'Données FDC déc 2018'!$E:$E,Activation!M$9)/1000,SUMIFS('Données FDC déc 2018'!$R:$R,'Données FDC déc 2018'!$E:$E,Activation!M$9)/1000)))-1 -> 0.01597920923 | N34: =IF(ISBLANK($F$5),SUMIFS('Données FDC'!$R:$R,'Données FDC'!$E:$E,Activation!N$9)/1000,IF(ISBLANK($J$5),SUMIFS('Données FDC'!$R:$R,'Données FDC'!$E:$E,Activation!N$9)/1000,SUMIFS('Données FDC'!$R:$R,'Données FDC'!$E:$E,Activation!N$9)/1000))/(IF(ISBLANK($F$5),SUMIFS('Données FDC déc 2018'!$R:$R,'Données FDC déc 2018'!$E:$E,Activation!N$9)/1000,IF(ISBLANK($J$5),SUMIFS('Données FDC déc 2018'!$R:$R,'Données FDC déc 2018'!$E:$E,Activation!N$9)/1000,SUMIFS('Données FDC déc 2018'!$R:$R,'Données FDC déc 2018'!$E:$E,Activation!N$9)/1000)))-1 -> -0.01817707893 | O34: =IF(ISBLANK($F$5),SUMIFS('Données FDC'!$R:$R,'Données FDC'!$E:$E,Activation!O$9)/1000,IF(ISBLANK($J$5),SUMIFS('Données FDC'!$R:$R,'Données FDC'!$E:$E,Activation!O$9)/1000,SUMIFS('Données FDC'!$R:$R,'Données FDC'!$E:$E,Activation!O$9)/1000))/(IF(ISBLANK($F$5),SUMIFS('Données FDC déc 2018'!$R:$R,'Données FDC déc 2018'!$E:$E,Activation!O$9)/1000,IF(ISBLANK($J$5),SUMIFS('Données FDC déc 2018'!$R:$R,'Données FDC déc 2018'!$E:$E,Activation!O$9)/1000,SUMIFS('Données FDC déc 2018'!$R:$R,'Données FDC déc 2018'!$E:$E,Activation!O$9)/1000)))-1 -> 0.06490506709 | P34: =IF(ISBLANK($F$5),SUMIFS('Données FDC'!$R:$R,'Données FDC'!$E:$E,Activation!P$9)/1000,IF(ISBLANK($J$5),SUMIFS('Données FDC'!$R:$R,'Données FDC'!$E:$E,Activation!P$9)/1000,SUMIFS('Données FDC'!$R:$R,'Données FDC'!$E:$E,Activation!P$9)/1000))/(IF(ISBLANK($F$5),SUMIFS('Données FDC déc 2018'!$R:$R,'Données FDC déc 2018'!$E:$E,Activation!P$9)/1000,IF(ISBLANK($J$5),SUMIFS('Données FDC déc 2018'!$R:$R,'Données FDC déc 2018'!$E:$E,Activation!P$9)/1000,SUMIFS('Données FDC déc 2018'!$R:$R,'Données FDC déc 2018'!$E:$E,Activation!P$9)/1000)))-1 -> -0.0604505619
B35: Encours de crédit (en K€) | C35: Montant | D35: =SUM(F35:P35) -> 10542426.91 | E35: =IF(ISBLANK($F$5),(SUMIFS('Données FDC déc 2018'!$S:$S,'Données FDC déc 2018'!$A:$A,Activation!$C$5))/1000,IF(ISBLANK($J$5),(SUMIFS('Données FDC déc 2018'!$S:$S,'Données FDC déc 2018'!$B:$B,Activation!$F$5))/1000,(SUMIFS('Données FDC déc 2018'!$S:$S,'Données FDC déc 2018'!$C:$C,Activation!$J$5))/1000)) -> 10466219.14 | F35: =IF(ISBLANK($F$5),(SUMIFS('Données FDC'!$S:$S,'Données FDC'!$A:$A,Activation!$C$5,'Données FDC'!$E:$E,Activation!F$9))/1000,IF(ISBLANK($J$5),(SUMIFS('Données FDC'!$S:$S,'Données FDC'!$B:$B,Activation!$F$5,'Données FDC'!$E:$E,Activation!F$9))/1000,(SUMIFS('Données FDC'!$S:$S,'Données FDC'!$C:$C,Activation!$J$5,'Données FDC'!$E:$E,Activation!F$9))/1000)) -> 8197218.693 | G35: =IF(ISBLANK($F$5),(SUMIFS('Données FDC'!$S:$S,'Données FDC'!$A:$A,Activation!$C$5,'Données FDC'!$E:$E,Activation!G$9))/1000,IF(ISBLANK($J$5),(SUMIFS('Données FDC'!$S:$S,'Données FDC'!$B:$B,Activation!$F$5,'Données FDC'!$E:$E,Activation!G$9))/1000,(SUMIFS('Données FDC'!$S:$S,'Données FDC'!$C:$C,Activation!$J$5,'Données FDC'!$E:$E,Activation!G$9))/1000)) -> 912528.1045 | H35: =IF(ISBLANK($F$5),(SUMIFS('Données FDC'!$S:$S,'Données FDC'!$A:$A,Activation!$C$5,'Données FDC'!$E:$E,Activation!H$9))/1000,IF(ISBLANK($J$5),(SUMIFS('Données FDC'!$S:$S,'Données FDC'!$B:$B,Activation!$F$5,'Données FDC'!$E:$E,Activation!H$9))/1000,(SUMIFS('Données FDC'!$S:$S,'Données FDC'!$C:$C,Activation!$J$5,'Données FDC'!$E:$E,Activation!H$9))/1000)) -> 762870.7358 | I35: =IF(ISBLANK($F$5),(SUMIFS('Données FDC'!$S:$S,'Données FDC'!$A:$A,Activation!$C$5,'Données FDC'!$E:$E,Activation!I$9))/1000,IF(ISBLANK($J$5),(SUMIFS('Données FDC'!$S:$S,'Données FDC'!$B:$B,Activation!$F$5,'Données FDC'!$E:$E,Activation!I$9))/1000,(SUMIFS('Données FDC'!$S:$S,'Données FDC'!$C:$C,Activation!$J$5,'Données FDC'!$E:$E,Activation!I$9))/1000)) -> 430591.6657 | J35: =IF(ISBLANK($F$5),(SUMIFS('Données FDC'!$S:$S,'Données FDC'!$A:$A,Activation!$C$5,'Données FDC'!$E:$E,Activation!J$9))/1000,IF(ISBLANK($J$5),(SUMIFS('Données FDC'!$S:$S,'Données FDC'!$B:$B,Activation!$F$5,'Données FDC'!$E:$E,Activation!J$9))/1000,(SUMIFS('Données FDC'!$S:$S,'Données FDC'!$C:$C,Activation!$J$5,'Données FDC'!$E:$E,Activation!J$9))/1000)) -> 227650.5718 | K35: =IF(ISBLANK($F$5),(SUMIFS('Données FDC'!$S:$S,'Données FDC'!$A:$A,Activation!$C$5,'Données FDC'!$E:$E,Activation!K$9))/1000,IF(ISBLANK($J$5),(SUMIFS('Données FDC'!$S:$S,'Données FDC'!$B:$B,Activation!$F$5,'Données FDC'!$E:$E,Activation!K$9))/1000,(SUMIFS('Données FDC'!$S:$S,'Données FDC'!$C:$C,Activation!$J$5,'Données FDC'!$E:$E,Activation!K$9))/1000)) -> 3183.56089 | L35: =IF(ISBLANK($F$5),(SUMIFS('Données FDC'!$S:$S,'Données FDC'!$A:$A,Activation!$C$5,'Données FDC'!$E:$E,Activation!L$9))/1000,IF(ISBLANK($J$5),(SUMIFS('Données FDC'!$S:$S,'Données FDC'!$B:$B,Activation!$F$5,'Données FDC'!$E:$E,Activation!L$9))/1000,(SUMIFS('Données FDC'!$S:$S,'Données FDC'!$C:$C,Activation!$J$5,'Données FDC'!$E:$E,Activation!L$9))/1000)) -> 4816.4576 | M35: =IF(ISBLANK($F$5),(SUMIFS('Données FDC'!$S:$S,'Données FDC'!$A:$A,Activation!$C$5,'Données FDC'!$E:$E,Activation!M$9))/1000,IF(ISBLANK($J$5),(SUMIFS('Données FDC'!$S:$S,'Données FDC'!$B:$B,Activation!$F$5,'Données FDC'!$E:$E,Activation!M$9))/1000,(SUMIFS('Données FDC'!$S:$S,'Données FDC'!$C:$C,Activation!$J$5,'Données FDC'!$E:$E,Activation!M$9))/1000)) -> 3567.12228
C36: Variation | D36: =D35/(IF(ISBLANK($F$5),SUMIFS('Données FDC déc 2018'!$S:$S,'Données FDC déc 2018'!$A:$A,Activation!$C$5)/1000,IF(ISBLANK($J$5),SUMIFS('Données FDC déc 2018'!$S:$S,'Données FDC déc 2018'!$B:$B,Activation!$F$5)/1000,SUMIFS('Données FDC déc 2018'!$S:$S,'Données FDC déc 2018'!$C:$C,Activation!$J$5)/1000)))-1 -> 0.007281308167 | F36: =F35/(IF(ISBLANK($F$5),SUMIFS('Données FDC déc 2018'!$S:$S,'Données FDC déc 2018'!$A:$A,Activation!$C$5,'Données FDC déc 2018'!$E:$E,Activation!F$9)/1000,IF(ISBLANK($J$5),SUMIFS('Données FDC déc 2018'!$S:$S,'Données FDC déc 2018'!$B:$B,Activation!$F$5,'Données FDC déc 2018'!$E:$E,Activation!F$9)/1000,SUMIFS('Données FDC déc 2018'!$S:$S,'Données FDC déc 2018'!$C:$C,Activation!$J$5,'Données FDC déc 2018'!$E:$E,Activation!F$9)/1000)))-1 -> 0.008170115573 | G36: =G35/(IF(ISBLANK($F$5),SUMIFS('Données FDC déc 2018'!$S:$S,'Données FDC déc 2018'!$A:$A,Activation!$C$5,'Données FDC déc 2018'!$E:$E,Activation!G$9)/1000,IF(ISBLANK($J$5),SUMIFS('Données FDC déc 2018'!$S:$S,'Données FDC déc 2018'!$B:$B,Activation!$F$5,'Données FDC déc 2018'!$E:$E,Activation!G$9)/1000,SUMIFS('Données FDC déc 2018'!$S:$S,'Données FDC déc 2018'!$C:$C,Activation!$J$5,'Données FDC déc 2018'!$E:$E,Activation!G$9)/1000)))-1 -> -0.02449817073 | H36: =H35/(IF(ISBLANK($F$5),SUMIFS('Données FDC déc 2018'!$S:$S,'Données FDC déc 2018'!$A:$A,Activation!$C$5,'Données FDC déc 2018'!$E:$E,Activation!H$9)/1000,IF(ISBLANK($J$5),SUMIFS('Données FDC déc 2018'!$S:$S,'Données FDC déc 2018'!$B:$B,Activation!$F$5,'Données FDC déc 2018'!$E:$E,Activation!H$9)/1000,SUMIFS('Données FDC déc 2018'!$S:$S,'Données FDC déc 2018'!$C:$C,Activation!$J$5,'Données FDC déc 2018'!$E:$E,Activation!H$9)/1000)))-1 -> 0.01352695611 | I36: =I35/(IF(ISBLANK($F$5),SUMIFS('Données FDC déc 2018'!$S:$S,'Données FDC déc 2018'!$A:$A,Activation!$C$5,'Données FDC déc 2018'!$E:$E,Activation!I$9)/1000,IF(ISBLANK($J$5),SUMIFS('Données FDC déc 2018'!$S:$S,'Données FDC déc 2018'!$B:$B,Activation!$F$5,'Données FDC déc 2018'!$E:$E,Activation!I$9)/1000,SUMIFS('Données FDC déc 2018'!$S:$S,'Données FDC déc 2018'!$C:$C,Activation!$J$5,'Données FDC déc 2018'!$E:$E,Activation!I$9)/1000)))-1 -> 0.06072348699 | J36: =J35/(IF(ISBLANK($F$5),SUMIFS('Données FDC déc 2018'!$S:$S,'Données FDC déc 2018'!$A:$A,Activation!$C$5,'Données FDC déc 2018'!$E:$E,Activation!J$9)/1000,IF(ISBLANK($J$5),SUMIFS('Données FDC déc 2018'!$S:$S,'Données FDC déc 2018'!$B:$B,Activation!$F$5,'Données FDC déc 2018'!$E:$E,Activation!J$9)/1000,SUMIFS('Données FDC déc 2018'!$S:$S,'Données FDC déc 2018'!$C:$C,Activation!$J$5,'Données FDC déc 2018'!$E:$E,Activation!J$9)/1000)))-1 -> -0.01069340778 | K36: =IFERROR(K35/(IF(ISBLANK($F$5),SUMIFS('Données FDC déc 2018'!$S:$S,'Données FDC déc 2018'!$A:$A,Activation!$C$5,'Données FDC déc 2018'!$E:$E,Activation!K$9)/1000,IF(ISBLANK($J$5),SUMIFS('Données FDC déc 2018'!$S:$S,'Données FDC déc 2018'!$B:$B,Activation!$F$5,'Données FDC déc 2018'!$E:$E,Activation!K$9)/1000,SUMIFS('Données FDC déc 2018'!$S:$S,'Données FDC déc 2018'!$C:$C,Activation!$J$5,'Données FDC déc 2018'!$E:$E,Activation!K$9)/1000)))-1,"-") -> -0.2882060509 | L36: =IFERROR(L35/(IF(ISBLANK($F$5),SUMIFS('Données FDC déc 2018'!$S:$S,'Données FDC déc 2018'!$A:$A,Activation!$C$5,'Données FDC déc 2018'!$E:$E,Activation!L$9)/1000,IF(ISBLANK($J$5),SUMIFS('Données FDC déc 2018'!$S:$S,'Données FDC déc 2018'!$B:$B,Activation!$F$5,'Données FDC déc 2018'!$E:$E,Activation!L$9)/1000,SUMIFS('Données FDC déc 2018'!$S:$S,'Données FDC déc 2018'!$C:$C,Activation!$J$5,'Données FDC déc 2018'!$E:$E,Activation!L$9)/1000)))-1,"-") -> 0.5041673219 | M36: =IFERROR(M35/(IF(ISBLANK($F$5),SUMIFS('Données FDC déc 2018'!$S:$S,'Données FDC déc 2018'!$A:$A,Activation!$C$5,'Données FDC déc 2018'!$E:$E,Activation!M$9)/1000,IF(ISBLANK($J$5),SUMIFS('Données FDC déc 2018'!$S:$S,'Données FDC déc 2018'!$B:$B,Activation!$F$5,'Données FDC déc 2018'!$E:$E,Activation!M$9)/1000,SUMIFS('Données FDC déc 2018'!$S:$S,'Données FDC déc 2018'!$C:$C,Activation!$J$5,'Données FDC déc 2018'!$E:$E,Activation!M$9)/1000)))-1,"-") -> 0.02096597243
C37: Variation CEGEE | D37: =(SUM('Données FDC'!$S:$S)/1000)/(SUM('Données FDC déc 2018'!$S:$S)/1000)-1 -> 0.007281308167 | F37: =IF(ISBLANK($F$5),SUMIFS('Données FDC'!$S:$S,'Données FDC'!$E:$E,Activation!F$9)/1000,IF(ISBLANK($J$5),SUMIFS('Données FDC'!$S:$S,'Données FDC'!$E:$E,Activation!F$9)/1000,SUMIFS('Données FDC'!$S:$S,'Données FDC'!$E:$E,Activation!F$9)/1000))/(IF(ISBLANK($F$5),SUMIFS('Données FDC déc 2018'!$S:$S,'Données FDC déc 2018'!$E:$E,Activation!F$9)/1000,IF(ISBLANK($J$5),SUMIFS('Données FDC déc 2018'!$S:$S,'Données FDC déc 2018'!$E:$E,Activation!F$9)/1000,SUMIFS('Données FDC déc 2018'!$S:$S,'Données FDC déc 2018'!$E:$E,Activation!F$9)/1000)))-1 -> 0.008170115573 | G37: =IF(ISBLANK($F$5),SUMIFS('Données FDC'!$S:$S,'Données FDC'!$E:$E,Activation!G$9)/1000,IF(ISBLANK($J$5),SUMIFS('Données FDC'!$S:$S,'Données FDC'!$E:$E,Activation!G$9)/1000,SUMIFS('Données FDC'!$S:$S,'Données FDC'!$E:$E,Activation!G$9)/1000))/(IF(ISBLANK($F$5),SUMIFS('Données FDC déc 2018'!$S:$S,'Données FDC déc 2018'!$E:$E,Activation!G$9)/1000,IF(ISBLANK($J$5),SUMIFS('Données FDC déc 2018'!$S:$S,'Données FDC déc 2018'!$E:$E,Activation!G$9)/1000,SUMIFS('Données FDC déc 2018'!$S:$S,'Données FDC déc 2018'!$E:$E,Activation!G$9)/1000)))-1 -> -0.02449817073 | H37: =IF(ISBLANK($F$5),SUMIFS('Données FDC'!$S:$S,'Données FDC'!$E:$E,Activation!H$9)/1000,IF(ISBLANK($J$5),SUMIFS('Données FDC'!$S:$S,'Données FDC'!$E:$E,Activation!H$9)/1000,SUMIFS('Données FDC'!$S:$S,'Données FDC'!$E:$E,Activation!H$9)/1000))/(IF(ISBLANK($F$5),SUMIFS('Données FDC déc 2018'!$S:$S,'Données FDC déc 2018'!$E:$E,Activation!H$9)/1000,IF(ISBLANK($J$5),SUMIFS('Données FDC déc 2018'!$S:$S,'Données FDC déc 2018'!$E:$E,Activation!H$9)/1000,SUMIFS('Données FDC déc 2018'!$S:$S,'Données FDC déc 2018'!$E:$E,Activation!H$9)/1000)))-1 -> 0.01352695611 | I37: =IF(ISBLANK($F$5),SUMIFS('Données FDC'!$S:$S,'Données FDC'!$E:$E,Activation!I$9)/1000,IF(ISBLANK($J$5),SUMIFS('Données FDC'!$S:$S,'Données FDC'!$E:$E,Activation!I$9)/1000,SUMIFS('Données FDC'!$S:$S,'Données FDC'!$E:$E,Activation!I$9)/1000))/(IF(ISBLANK($F$5),SUMIFS('Données FDC déc 2018'!$S:$S,'Données FDC déc 2018'!$E:$E,Activation!I$9)/1000,IF(ISBLANK($J$5),SUMIFS('Données FDC déc 2018'!$S:$S,'Données FDC déc 2018'!$E:$E,Activation!I$9)/1000,SUMIFS('Données FDC déc 2018'!$S:$S,'Données FDC déc 2018'!$E:$E,Activation!I$9)/1000)))-1 -> 0.06072348699 | J37: =IF(ISBLANK($F$5),SUMIFS('Données FDC'!$S:$S,'Données FDC'!$E:$E,Activation!J$9)/1000,IF(ISBLANK($J$5),SUMIFS('Données FDC'!$S:$S,'Données FDC'!$E:$E,Activation!J$9)/1000,SUMIFS('Données FDC'!$S:$S,'Données FDC'!$E:$E,Activation!J$9)/1000))/(IF(ISBLANK($F$5),SUMIFS('Données FDC déc 2018'!$S:$S,'Données FDC déc 2018'!$E:$E,Activation!J$9)/1000,IF(ISBLANK($J$5),SUMIFS('Données FDC déc 2018'!$S:$S,'Données FDC déc 2018'!$E:$E,Activation!J$9)/1000,SUMIFS('Données FDC déc 2018'!$S:$S,'Données FDC déc 2018'!$E:$E,Activation!J$9)/1000)))-1 -> -0.01069340778 | K37: =IF(ISBLANK($F$5),SUMIFS('Données FDC'!$S:$S,'Données FDC'!$E:$E,Activation!K$9)/1000,IF(ISBLANK($J$5),SUMIFS('Données FDC'!$S:$S,'Données FDC'!$E:$E,Activation!K$9)/1000,SUMIFS('Données FDC'!$S:$S,'Données FDC'!$E:$E,Activation!K$9)/1000))/(IF(ISBLANK($F$5),SUMIFS('Données FDC déc 2018'!$S:$S,'Données FDC déc 2018'!$E:$E,Activation!K$9)/1000,IF(ISBLANK($J$5),SUMIFS('Données FDC déc 2018'!$S:$S,'Données FDC déc 2018'!$E:$E,Activation!K$9)/1000,SUMIFS('Données FDC déc 2018'!$S:$S,'Données FDC déc 2018'!$E:$E,Activation!K$9)/1000)))-1 -> -0.2882060509 | L37: =IF(ISBLANK($F$5),SUMIFS('Données FDC'!$S:$S,'Données FDC'!$E:$E,Activation!L$9)/1000,IF(ISBLANK($J$5),SUMIFS('Données FDC'!$S:$S,'Données FDC'!$E:$E,Activation!L$9)/1000,SUMIFS('Données FDC'!$S:$S,'Données FDC'!$E:$E,Activation!L$9)/1000))/(IF(ISBLANK($F$5),SUMIFS('Données FDC déc 2018'!$S:$S,'Données FDC déc 2018'!$E:$E,Activation!L$9)/1000,IF(ISBLANK($J$5),SUMIFS('Données FDC déc 2018'!$S:$S,'Données FDC déc 2018'!$E:$E,Activation!L$9)/1000,SUMIFS('Données FDC déc 2018'!$S:$S,'Données FDC déc 2018'!$E:$E,Activation!L$9)/1000)))-1 -> 0.5041673219 | M37: =IF(ISBLANK($F$5),SUMIFS('Données FDC'!$S:$S,'Données FDC'!$E:$E,Activation!M$9)/1000,IF(ISBLANK($J$5),SUMIFS('Données FDC'!$S:$S,'Données FDC'!$E:$E,Activation!M$9)/1000,SUMIFS('Données FDC'!$S:$S,'Données FDC'!$E:$E,Activation!M$9)/1000))/(IF(ISBLANK($F$5),SUMIFS('Données FDC déc 2018'!$S:$S,'Données FDC déc 2018'!$E:$E,Activation!M$9)/1000,IF(ISBLANK($J$5),SUMIFS('Données FDC déc 2018'!$S:$S,'Données FDC déc 2018'!$E:$E,Activation!M$9)/1000,SUMIFS('Données FDC déc 2018'!$S:$S,'Données FDC déc 2018'!$E:$E,Activation!M$9)/1000)))-1 -> 0.02096597243
B38: Détention Univers Banca | C38: Nombre détenteurs | D38: =SUM(F38:P38) -> 476407 | E38: =IF(ISBLANK($F$5),SUMIFS('Données FDC déc 2018'!$T:$T,'Données FDC déc 2018'!$A:$A,Activation!$C$5),IF(ISBLANK($J$5),SUMIFS('Données FDC déc 2018'!$T:$T,'Données FDC déc 2018'!$B:$B,Activation!$F$5),SUMIFS('Données FDC déc 2018'!$T:$T,'Données FDC déc 2018'!$C:$C,Activation!$J$5))) -> 474160 | F38: =IF(ISBLANK($F$5),SUMIFS('Données FDC'!$T:$T,'Données FDC'!$A:$A,Activation!$C$5,'Données FDC'!$E:$E,Activation!F$9),IF(ISBLANK($J$5),SUMIFS('Données FDC'!$T:$T,'Données FDC'!$B:$B,Activation!$F$5,'Données FDC'!$E:$E,Activation!F$9),SUMIFS('Données FDC'!$T:$T,'Données FDC'!$C:$C,Activation!$J$5,'Données FDC'!$E:$E,Activation!F$9))) -> 261362 | G38: =IF(ISBLANK($F$5),SUMIFS('Données FDC'!$T:$T,'Données FDC'!$A:$A,Activation!$C$5,'Données FDC'!$E:$E,Activation!G$9),IF(ISBLANK($J$5),SUMIFS('Données FDC'!$T:$T,'Données FDC'!$B:$B,Activation!$F$5,'Données FDC'!$E:$E,Activation!G$9),SUMIFS('Données FDC'!$T:$T,'Données FDC'!$C:$C,Activation!$J$5,'Données FDC'!$E:$E,Activation!G$9))) -> 105170 | H38: =IF(ISBLANK($F$5),SUMIFS('Données FDC'!$T:$T,'Données FDC'!$A:$A,Activation!$C$5,'Données FDC'!$E:$E,Activation!H$9),IF(ISBLANK($J$5),SUMIFS('Données FDC'!$T:$T,'Données FDC'!$B:$B,Activation!$F$5,'Données FDC'!$E:$E,Activation!H$9),SUMIFS('Données FDC'!$T:$T,'Données FDC'!$C:$C,Activation!$J$5,'Données FDC'!$E:$E,Activation!H$9))) -> 26471 | I38: =IF(ISBLANK($F$5),SUMIFS('Données FDC'!$T:$T,'Données FDC'!$A:$A,Activation!$C$5,'Données FDC'!$E:$E,Activation!I$9),IF(ISBLANK($J$5),SUMIFS('Données FDC'!$T:$T,'Données FDC'!$B:$B,Activation!$F$5,'Données FDC'!$E:$E,Activation!I$9),SUMIFS('Données FDC'!$T:$T,'Données FDC'!$C:$C,Activation!$J$5,'Données FDC'!$E:$E,Activation!I$9))) -> 10739 | J38: =IF(ISBLANK($F$5),SUMIFS('Données FDC'!$T:$T,'Données FDC'!$A:$A,Activation!$C$5,'Données FDC'!$E:$E,Activation!J$9),IF(ISBLANK($J$5),SUMIFS('Données FDC'!$T:$T,'Données FDC'!$B:$B,Activation!$F$5,'Données FDC'!$E:$E,Activation!J$9),SUMIFS('Données FDC'!$T:$T,'Données FDC'!$C:$C,Activation!$J$5,'Données FDC'!$E:$E,Activation!J$9))) -> 58054 | K38: =IF(ISBLANK($F$5),SUMIFS('Données FDC'!$T:$T,'Données FDC'!$A:$A,Activation!$C$5,'Données FDC'!$E:$E,Activation!K$9),IF(ISBLANK($J$5),SUMIFS('Données FDC'!$T:$T,'Données FDC'!$B:$B,Activation!$F$5,'Données FDC'!$E:$E,Activation!K$9),SUMIFS('Données FDC'!$T:$T,'Données FDC'!$C:$C,Activation!$J$5,'Données FDC'!$E:$E,Activation!K$9))) -> 12771 | L38: =IF(ISBLANK($F$5),SUMIFS('Données FDC'!$T:$T,'Données FDC'!$A:$A,Activation!$C$5,'Données FDC'!$E:$E,Activation!L$9),IF(ISBLANK($J$5),SUMIFS('Données FDC'!$T:$T,'Données FDC'!$B:$B,Activation!$F$5,'Données FDC'!$E:$E,Activation!L$9),SUMIFS('Données FDC'!$T:$T,'Données FDC'!$C:$C,Activation!$J$5,'Données FDC'!$E:$E,Activation!L$9))) -> 549 | M38: =IF(ISBLANK($F$5),SUMIFS('Données FDC'!$T:$T,'Données FDC'!$A:$A,Activation!$C$5,'Données FDC'!$E:$E,Activation!M$9),IF(ISBLANK($J$5),SUMIFS('Données FDC'!$T:$T,'Données FDC'!$B:$B,Activation!$F$5,'Données FDC'!$E:$E,Activation!M$9),SUMIFS('Données FDC'!$T:$T,'Données FDC'!$C:$C,Activation!$J$5,'Données FDC'!$E:$E,Activation!M$9))) -> 241 | N38: =IF(ISBLANK($F$5),SUMIFS('Données FDC'!$T:$T,'Données FDC'!$A:$A,Activation!$C$5,'Données FDC'!$E:$E,Activation!N$9),IF(ISBLANK($J$5),SUMIFS('Données FDC'!$T:$T,'Données FDC'!$B:$B,Activation!$F$5,'Données FDC'!$E:$E,Activation!N$9),SUMIFS('Données FDC'!$T:$T,'Données FDC'!$C:$C,Activation!$J$5,'Données FDC'!$E:$E,Activation!N$9))) -> 1033 | O38: =IF(ISBLANK($F$5),SUMIFS('Données FDC'!$T:$T,'Données FDC'!$A:$A,Activation!$C$5,'Données FDC'!$E:$E,Activation!O$9),IF(ISBLANK($J$5),SUMIFS('Données FDC'!$T:$T,'Données FDC'!$B:$B,Activation!$F$5,'Données FDC'!$E:$E,Activation!O$9),SUMIFS('Données FDC'!$T:$T,'Données FDC'!$C:$C,Activation!$J$5,'Données FDC'!$E:$E,Activation!O$9))) -> 0 | P38: =IF(ISBLANK($F$5),SUMIFS('Données FDC'!$T:$T,'Données FDC'!$A:$A,Activation!$C$5,'Données FDC'!$E:$E,Activation!P$9),IF(ISBLANK($J$5),SUMIFS('Données FDC'!$T:$T,'Données FDC'!$B:$B,Activation!$F$5,'Données FDC'!$E:$E,Activation!P$9),SUMIFS('Données FDC'!$T:$T,'Données FDC'!$C:$C,Activation!$J$5,'Données FDC'!$E:$E,Activation!P$9))) -> 17
C39: % détenteurs | D39: =D38/D$10 -> 0.3167970454 | E39: =E38/E$10 -> 0.3078991029 | F39: =F38/IF(ISBLANK($F$5),SUMIFS('Données FDC'!$I:$I,'Données FDC'!$A:$A,Activation!$C$5,'Données FDC'!$E:$E,Activation!F$9),IF(ISBLANK($J$5),SUMIFS('Données FDC'!$I:$I,'Données FDC'!$B:$B,Activation!$F$5,'Données FDC'!$E:$E,Activation!F$9),SUMIFS('Données FDC'!$I:$I,'Données FDC'!$C:$C,Activation!$J$5,'Données FDC'!$E:$E,Activation!F$9))) -> 0.9494509167 | G39: =G38/IF(ISBLANK($F$5),SUMIFS('Données FDC'!$I:$I,'Données FDC'!$A:$A,Activation!$C$5,'Données FDC'!$E:$E,Activation!G$9),IF(ISBLANK($J$5),SUMIFS('Données FDC'!$I:$I,'Données FDC'!$B:$B,Activation!$F$5,'Données FDC'!$E:$E,Activation!G$9),SUMIFS('Données FDC'!$I:$I,'Données FDC'!$C:$C,Activation!$J$5,'Données FDC'!$E:$E,Activation!G$9))) -> 0.6513566576 | H39: =H38/IF(ISBLANK($F$5),SUMIFS('Données FDC'!$I:$I,'Données FDC'!$A:$A,Activation!$C$5,'Données FDC'!$E:$E,Activation!H$9),IF(ISBLANK($J$5),SUMIFS('Données FDC'!$I:$I,'Données FDC'!$B:$B,Activation!$F$5,'Données FDC'!$E:$E,Activation!H$9),SUMIFS('Données FDC'!$I:$I,'Données FDC'!$C:$C,Activation!$J$5,'Données FDC'!$E:$E,Activation!H$9))) -> 0.1546392957 | I39: =I38/IF(ISBLANK($F$5),SUMIFS('Données FDC'!$I:$I,'Données FDC'!$A:$A,Activation!$C$5,'Données FDC'!$E:$E,Activation!I$9),IF(ISBLANK($J$5),SUMIFS('Données FDC'!$I:$I,'Données FDC'!$B:$B,Activation!$F$5,'Données FDC'!$E:$E,Activation!I$9),SUMIFS('Données FDC'!$I:$I,'Données FDC'!$C:$C,Activation!$J$5,'Données FDC'!$E:$E,Activation!I$9))) -> 0.03001724615 | J39: =J38/IF(ISBLANK($F$5),SUMIFS('Données FDC'!$I:$I,'Données FDC'!$A:$A,Activation!$C$5,'Données FDC'!$E:$E,Activation!J$9),IF(ISBLANK($J$5),SUMIFS('Données FDC'!$I:$I,'Données FDC'!$B:$B,Activation!$F$5,'Données FDC'!$E:$E,Activation!J$9),SUMIFS('Données FDC'!$I:$I,'Données FDC'!$C:$C,Activation!$J$5,'Données FDC'!$E:$E,Activation!J$9))) -> 0.9725265521 | K39: =K38/IF(ISBLANK($F$5),SUMIFS('Données FDC'!$I:$I,'Données FDC'!$A:$A,Activation!$C$5,'Données FDC'!$E:$E,Activation!K$9),IF(ISBLANK($J$5),SUMIFS('Données FDC'!$I:$I,'Données FDC'!$B:$B,Activation!$F$5,'Données FDC'!$E:$E,Activation!K$9),SUMIFS('Données FDC'!$I:$I,'Données FDC'!$C:$C,Activation!$J$5,'Données FDC'!$E:$E,Activation!K$9))) -> 0.6913332972 | L39: =L38/IF(ISBLANK($F$5),SUMIFS('Données FDC'!$I:$I,'Données FDC'!$A:$A,Activation!$C$5,'Données FDC'!$E:$E,Activation!L$9),IF(ISBLANK($J$5),SUMIFS('Données FDC'!$I:$I,'Données FDC'!$B:$B,Activation!$F$5,'Données FDC'!$E:$E,Activation!L$9),SUMIFS('Données FDC'!$I:$I,'Données FDC'!$C:$C,Activation!$J$5,'Données FDC'!$E:$E,Activation!L$9))) -> 0.04979591837 | M39: =M38/IF(ISBLANK($F$5),SUMIFS('Données FDC'!$I:$I,'Données FDC'!$A:$A,Activation!$C$5,'Données FDC'!$E:$E,Activation!M$9),IF(ISBLANK($J$5),SUMIFS('Données FDC'!$I:$I,'Données FDC'!$B:$B,Activation!$F$5,'Données FDC'!$E:$E,Activation!M$9),SUMIFS('Données FDC'!$I:$I,'Données FDC'!$C:$C,Activation!$J$5,'Données FDC'!$E:$E,Activation!M$9))) -> 0.00313133413 | N39: =N38/IF(ISBLANK($F$5),SUMIFS('Données FDC'!$I:$I,'Données FDC'!$A:$A,Activation!$C$5,'Données FDC'!$E:$E,Activation!N$9),IF(ISBLANK($J$5),SUMIFS('Données FDC'!$I:$I,'Données FDC'!$B:$B,Activation!$F$5,'Données FDC'!$E:$E,Activation!N$9),SUMIFS('Données FDC'!$I:$I,'Données FDC'!$C:$C,Activation!$J$5,'Données FDC'!$E:$E,Activation!N$9))) -> 0.04036417631 | O39: =O38/IF(ISBLANK($F$5),SUMIFS('Données FDC'!$I:$I,'Données FDC'!$A:$A,Activation!$C$5,'Données FDC'!$E:$E,Activation!O$9),IF(ISBLANK($J$5),SUMIFS('Données FDC'!$I:$I,'Données FDC'!$B:$B,Activation!$F$5,'Données FDC'!$E:$E,Activation!O$9),SUMIFS('Données FDC'!$I:$I,'Données FDC'!$C:$C,Activation!$J$5,'Données FDC'!$E:$E,Activation!O$9))) -> 0 | P39: =P38/IF(ISBLANK($F$5),SUMIFS('Données FDC'!$I:$I,'Données FDC'!$A:$A,Activation!$C$5,'Données FDC'!$E:$E,Activation!P$9),IF(ISBLANK($J$5),SUMIFS('Données FDC'!$I:$I,'Données FDC'!$B:$B,Activation!$F$5,'Données FDC'!$E:$E,Activation!P$9),SUMIFS('Données FDC'!$I:$I,'Données FDC'!$C:$C,Activation!$J$5,'Données FDC'!$E:$E,Activation!P$9))) -> 7.785379972e-05
C40: % détenteurs CEGEE | D40: =SUM('Données FDC'!$T:$T)/SUM('Données FDC'!$F:$F) -> 0.3167970454 | E40: =SUM('Données FDC déc 2018'!$T:$T)/SUM('Données FDC déc 2018'!$F:$F) -> 0.3078991029 | F40: =SUMIF('Données FDC'!$E:$E,Activation!F$9,'Données FDC'!$T:$T)/SUMIF('Données FDC'!$E:$E,Activation!F$9,'Données FDC'!$I:$I) -> 0.9494509167 | G40: =SUMIF('Données FDC'!$E:$E,Activation!G$9,'Données FDC'!$T:$T)/SUMIF('Données FDC'!$E:$E,Activation!G$9,'Données FDC'!$I:$I) -> 0.6513566576 | H40: =SUMIF('Données FDC'!$E:$E,Activation!H$9,'Données FDC'!$T:$T)/SUMIF('Données FDC'!$E:$E,Activation!H$9,'Données FDC'!$I:$I) -> 0.1546392957 | I40: =SUMIF('Données FDC'!$E:$E,Activation!I$9,'Données FDC'!$T:$T)/SUMIF('Données FDC'!$E:$E,Activation!I$9,'Données FDC'!$I:$I) -> 0.03001724615 | J40: =SUMIF('Données FDC'!$E:$E,Activation!J$9,'Données FDC'!$T:$T)/SUMIF('Données FDC'!$E:$E,Activation!J$9,'Données FDC'!$I:$I) -> 0.9725265521 | K40: =SUMIF('Données FDC'!$E:$E,Activation!K$9,'Données FDC'!$T:$T)/SUMIF('Données FDC'!$E:$E,Activation!K$9,'Données FDC'!$I:$I) -> 0.6913332972 | L40: =SUMIF('Données FDC'!$E:$E,Activation!L$9,'Données FDC'!$T:$T)/SUMIF('Données FDC'!$E:$E,Activation!L$9,'Données FDC'!$I:$I) -> 0.04979591837 | M40: =SUMIF('Données FDC'!$E:$E,Activation!M$9,'Données FDC'!$T:$T)/SUMIF('Données FDC'!$E:$E,Activation!M$9,'Données FDC'!$I:$I) -> 0.00313133413 | N40: =SUMIF('Données FDC'!$E:$E,Activation!N$9,'Données FDC'!$T:$T)/SUMIF('Données FDC'!$E:$E,Activation!N$9,'Données FDC'!$I:$I) -> 0.04036417631 | O40: =SUMIF('Données FDC'!$E:$E,Activation!O$9,'Données FDC'!$T:$T)/SUMIF('Données FDC'!$E:$E,Activation!O$9,'Données FDC'!$I:$I) -> 0 | P40: =SUMIF('Données FDC'!$E:$E,Activation!P$9,'Données FDC'!$T:$T)/SUMIF('Données FDC'!$E:$E,Activation!P$9,'Données FDC'!$I:$I) -> 7.785379972e-05
B41: Détention Univers Crédit | C41: Nombre détenteurs | D41: =SUM(F41:P41) -> 275677 | E41: =IF(ISBLANK($F$5),SUMIFS('Données FDC déc 2018'!$W:$W,'Données FDC déc 2018'!$A:$A,Activation!$C$5),IF(ISBLANK($J$5),SUMIFS('Données FDC déc 2018'!$W:$W,'Données FDC déc 2018'!$B:$B,Activation!$F$5),SUMIFS('Données FDC déc 2018'!$W:$W,'Données FDC déc 2018'!$C:$C,Activation!$J$5))) -> 276838 | F41: =IF(ISBLANK($F$5),SUMIFS('Données FDC'!$W:$W,'Données FDC'!$A:$A,Activation!$C$5,'Données FDC'!$E:$E,Activation!F$9),IF(ISBLANK($J$5),SUMIFS('Données FDC'!$W:$W,'Données FDC'!$B:$B,Activation!$F$5,'Données FDC'!$E:$E,Activation!F$9),SUMIFS('Données FDC'!$W:$W,'Données FDC'!$C:$C,Activation!$J$5,'Données FDC'!$E:$E,Activation!F$9))) -> 180946 | G41: =IF(ISBLANK($F$5),SUMIFS('Données FDC'!$W:$W,'Données FDC'!$A:$A,Activation!$C$5,'Données FDC'!$E:$E,Activation!G$9),IF(ISBLANK($J$5),SUMIFS('Données FDC'!$W:$W,'Données FDC'!$B:$B,Activation!$F$5,'Données FDC'!$E:$E,Activation!G$9),SUMIFS('Données FDC'!$W:$W,'Données FDC'!$C:$C,Activation!$J$5,'Données FDC'!$E:$E,Activation!G$9))) -> 32933 | H41: =IF(ISBLANK($F$5),SUMIFS('Données FDC'!$W:$W,'Données FDC'!$A:$A,Activation!$C$5,'Données FDC'!$E:$E,Activation!H$9),IF(ISBLANK($J$5),SUMIFS('Données FDC'!$W:$W,'Données FDC'!$B:$B,Activation!$F$5,'Données FDC'!$E:$E,Activation!H$9),SUMIFS('Données FDC'!$W:$W,'Données FDC'!$C:$C,Activation!$J$5,'Données FDC'!$E:$E,Activation!H$9))) -> 21761 | I41: =IF(ISBLANK($F$5),SUMIFS('Données FDC'!$W:$W,'Données FDC'!$A:$A,Activation!$C$5,'Données FDC'!$E:$E,Activation!I$9),IF(ISBLANK($J$5),SUMIFS('Données FDC'!$W:$W,'Données FDC'!$B:$B,Activation!$F$5,'Données FDC'!$E:$E,Activation!I$9),SUMIFS('Données FDC'!$W:$W,'Données FDC'!$C:$C,Activation!$J$5,'Données FDC'!$E:$E,Activation!I$9))) -> 19187 | J41: =IF(ISBLANK($F$5),SUMIFS('Données FDC'!$W:$W,'Données FDC'!$A:$A,Activation!$C$5,'Données FDC'!$E:$E,Activation!J$9),IF(ISBLANK($J$5),SUMIFS('Données FDC'!$W:$W,'Données FDC'!$B:$B,Activation!$F$5,'Données FDC'!$E:$E,Activation!J$9),SUMIFS('Données FDC'!$W:$W,'Données FDC'!$C:$C,Activation!$J$5,'Données FDC'!$E:$E,Activation!J$9))) -> 18949 | K41: =IF(ISBLANK($F$5),SUMIFS('Données FDC'!$W:$W,'Données FDC'!$A:$A,Activation!$C$5,'Données FDC'!$E:$E,Activation!K$9),IF(ISBLANK($J$5),SUMIFS('Données FDC'!$W:$W,'Données FDC'!$B:$B,Activation!$F$5,'Données FDC'!$E:$E,Activation!K$9),SUMIFS('Données FDC'!$W:$W,'Données FDC'!$C:$C,Activation!$J$5,'Données FDC'!$E:$E,Activation!K$9))) -> 467 | L41: =IF(ISBLANK($F$5),SUMIFS('Données FDC'!$W:$W,'Données FDC'!$A:$A,Activation!$C$5,'Données FDC'!$E:$E,Activation!L$9),IF(ISBLANK($J$5),SUMIFS('Données FDC'!$W:$W,'Données FDC'!$B:$B,Activation!$F$5,'Données FDC'!$E:$E,Activation!L$9),SUMIFS('Données FDC'!$W:$W,'Données FDC'!$C:$C,Activation!$J$5,'Données FDC'!$E:$E,Activation!L$9))) -> 583 | M41: =IF(ISBLANK($F$5),SUMIFS('Données FDC'!$W:$W,'Données FDC'!$A:$A,Activation!$C$5,'Données FDC'!$E:$E,Activation!M$9),IF(ISBLANK($J$5),SUMIFS('Données FDC'!$W:$W,'Données FDC'!$B:$B,Activation!$F$5,'Données FDC'!$E:$E,Activation!M$9),SUMIFS('Données FDC'!$W:$W,'Données FDC'!$C:$C,Activation!$J$5,'Données FDC'!$E:$E,Activation!M$9))) -> 851
C42: % détenteurs | D42: =D41/IF(ISBLANK($F$5),SUMIFS('Données FDC'!$J:$J,'Données FDC'!$A:$A,Activation!$C$5),IF(ISBLANK($J$5),SUMIFS('Données FDC'!$J:$J,'Données FDC'!$B:$B,Activation!$F$5),SUMIFS('Données FDC'!$J:$J,'Données FDC'!$C:$C,Activation!$J$5))) -> 0.2088903639 | E42: =E41/IF(ISBLANK($F$5),SUMIFS('Données FDC déc 2018'!$J:$J,'Données FDC déc 2018'!$A:$A,Activation!$C$5),IF(ISBLANK($J$5),SUMIFS('Données FDC déc 2018'!$J:$J,'Données FDC déc 2018'!$B:$B,Activation!$F$5),SUMIFS('Données FDC déc 2018'!$J:$J,'Données FDC déc 2018'!$C:$C,Activation!$J$5))) -> 0.205315518 | F42: =F41/IF(ISBLANK($F$5),SUMIFS('Données FDC'!$J:$J,'Données FDC'!$A:$A,Activation!$C$5,'Données FDC'!$E:$E,Activation!F$9),IF(ISBLANK($J$5),SUMIFS('Données FDC'!$J:$J,'Données FDC'!$B:$B,Activation!$F$5,'Données FDC'!$E:$E,Activation!F$9),SUMIFS('Données FDC'!$J:$J,'Données FDC'!$C:$C,Activation!$J$5,'Données FDC'!$E:$E,Activation!F$9))) -> 0.6573233507 | G42: =G41/IF(ISBLANK($F$5),SUMIFS('Données FDC'!$J:$J,'Données FDC'!$A:$A,Activation!$C$5,'Données FDC'!$E:$E,Activation!G$9),IF(ISBLANK($J$5),SUMIFS('Données FDC'!$J:$J,'Données FDC'!$B:$B,Activation!$F$5,'Données FDC'!$E:$E,Activation!G$9),SUMIFS('Données FDC'!$J:$J,'Données FDC'!$C:$C,Activation!$J$5,'Données FDC'!$E:$E,Activation!G$9))) -> 0.2039662338 | H42: =H41/IF(ISBLANK($F$5),SUMIFS('Données FDC'!$J:$J,'Données FDC'!$A:$A,Activation!$C$5,'Données FDC'!$E:$E,Activation!H$9),IF(ISBLANK($J$5),SUMIFS('Données FDC'!$J:$J,'Données FDC'!$B:$B,Activation!$F$5,'Données FDC'!$E:$E,Activation!H$9),SUMIFS('Données FDC'!$J:$J,'Données FDC'!$C:$C,Activation!$J$5,'Données FDC'!$E:$E,Activation!H$9))) -> 0.1271242384 | I42: =I41/IF(ISBLANK($F$5),SUMIFS('Données FDC'!$J:$J,'Données FDC'!$A:$A,Activation!$C$5,'Données FDC'!$E:$E,Activation!I$9),IF(ISBLANK($J$5),SUMIFS('Données FDC'!$J:$J,'Données FDC'!$B:$B,Activation!$F$5,'Données FDC'!$E:$E,Activation!I$9),SUMIFS('Données FDC'!$J:$J,'Données FDC'!$C:$C,Activation!$J$5,'Données FDC'!$E:$E,Activation!I$9))) -> 0.05363077585 | J42: =J41/IF(ISBLANK($F$5),SUMIFS('Données FDC'!$J:$J,'Données FDC'!$A:$A,Activation!$C$5,'Données FDC'!$E:$E,Activation!J$9),IF(ISBLANK($J$5),SUMIFS('Données FDC'!$J:$J,'Données FDC'!$B:$B,Activation!$F$5,'Données FDC'!$E:$E,Activation!J$9),SUMIFS('Données FDC'!$J:$J,'Données FDC'!$C:$C,Activation!$J$5,'Données FDC'!$E:$E,Activation!J$9))) -> 0.3306980803 | K42: =K41/IF(ISBLANK($F$5),SUMIFS('Données FDC'!$J:$J,'Données FDC'!$A:$A,Activation!$C$5,'Données FDC'!$E:$E,Activation!K$9),IF(ISBLANK($J$5),SUMIFS('Données FDC'!$J:$J,'Données FDC'!$B:$B,Activation!$F$5,'Données FDC'!$E:$E,Activation!K$9),SUMIFS('Données FDC'!$J:$J,'Données FDC'!$C:$C,Activation!$J$5,'Données FDC'!$E:$E,Activation!K$9))) -> 0.02759394942 | L42: =L41/IF(ISBLANK($F$5),SUMIFS('Données FDC'!$J:$J,'Données FDC'!$A:$A,Activation!$C$5,'Données FDC'!$E:$E,Activation!L$9),IF(ISBLANK($J$5),SUMIFS('Données FDC'!$J:$J,'Données FDC'!$B:$B,Activation!$F$5,'Données FDC'!$E:$E,Activation!L$9),SUMIFS('Données FDC'!$J:$J,'Données FDC'!$C:$C,Activation!$J$5,'Données FDC'!$E:$E,Activation!L$9))) -> 0.09122203098 | M42: =M41/IF(ISBLANK($F$5),SUMIFS('Données FDC'!$J:$J,'Données FDC'!$A:$A,Activation!$C$5,'Données FDC'!$E:$E,Activation!M$9),IF(ISBLANK($J$5),SUMIFS('Données FDC'!$J:$J,'Données FDC'!$B:$B,Activation!$F$5,'Données FDC'!$E:$E,Activation!M$9),SUMIFS('Données FDC'!$J:$J,'Données FDC'!$C:$C,Activation!$J$5,'Données FDC'!$E:$E,Activation!M$9))) -> 0.01545362098
C43: % détenteurs CEGEE | D43: =SUM('Données FDC'!$W:$W)/SUM('Données FDC'!$J:$J) -> 0.2088903639 | E43: =SUM('Données FDC déc 2018'!$W:$W)/SUM('Données FDC déc 2018'!$J:$J) -> 0.205315518 | F43: =SUMIF('Données FDC'!$E:$E,Activation!F$9,'Données FDC'!$W:$W)/SUMIF('Données FDC'!$E:$E,Activation!F$9,'Données FDC'!$J:$J) -> 0.6573233507 | G43: =SUMIF('Données FDC'!$E:$E,Activation!G$9,'Données FDC'!$W:$W)/SUMIF('Données FDC'!$E:$E,Activation!G$9,'Données FDC'!$J:$J) -> 0.2039662338 | H43: =SUMIF('Données FDC'!$E:$E,Activation!H$9,'Données FDC'!$W:$W)/SUMIF('Données FDC'!$E:$E,Activation!H$9,'Données FDC'!$J:$J) -> 0.1271242384 | I43: =SUMIF('Données FDC'!$E:$E,Activation!I$9,'Données FDC'!$W:$W)/SUMIF('Données FDC'!$E:$E,Activation!I$9,'Données FDC'!$J:$J) -> 0.05363077585 | J43: =SUMIF('Données FDC'!$E:$E,Activation!J$9,'Données FDC'!$W:$W)/SUMIF('Données FDC'!$E:$E,Activation!J$9,'Données FDC'!$J:$J) -> 0.3306980803 | K43: =SUMIF('Données FDC'!$E:$E,Activation!K$9,'Données FDC'!$W:$W)/SUMIF('Données FDC'!$E:$E,Activation!K$9,'Données FDC'!$J:$J) -> 0.02759394942 | L43: =SUMIF('Données FDC'!$E:$E,Activation!L$9,'Données FDC'!$W:$W)/SUMIF('Données FDC'!$E:$E,Activation!L$9,'Données FDC'!$J:$J) -> 0.09122203098 | M43: =SUMIF('Données FDC'!$E:$E,Activation!M$9,'Données FDC'!$W:$W)/SUMIF('Données FDC'!$E:$E,Activation!M$9,'Données FDC'!$J:$J) -> 0.01545362098
B44: Détention Univers Epargne Liquide | C44: Nombre détenteurs | D44: =SUM(F44:P44) -> 821753 | E44: =IF(ISBLANK($F$5),SUMIFS('Données FDC déc 2018'!$U:$U,'Données FDC déc 2018'!$A:$A,Activation!$C$5),IF(ISBLANK($J$5),SUMIFS('Données FDC déc 2018'!$U:$U,'Données FDC déc 2018'!$B:$B,Activation!$F$5),SUMIFS('Données FDC déc 2018'!$U:$U,'Données FDC déc 2018'!$C:$C,Activation!$J$5))) -> 840380 | F44: =IF(ISBLANK($F$5),SUMIFS('Données FDC'!$U:$U,'Données FDC'!$A:$A,Activation!$C$5,'Données FDC'!$E:$E,Activation!F$9),IF(ISBLANK($J$5),SUMIFS('Données FDC'!$U:$U,'Données FDC'!$B:$B,Activation!$F$5,'Données FDC'!$E:$E,Activation!F$9),SUMIFS('Données FDC'!$U:$U,'Données FDC'!$C:$C,Activation!$J$5,'Données FDC'!$E:$E,Activation!F$9))) -> 240027 | G44: =IF(ISBLANK($F$5),SUMIFS('Données FDC'!$U:$U,'Données FDC'!$A:$A,Activation!$C$5,'Données FDC'!$E:$E,Activation!G$9),IF(ISBLANK($J$5),SUMIFS('Données FDC'!$U:$U,'Données FDC'!$B:$B,Activation!$F$5,'Données FDC'!$E:$E,Activation!G$9),SUMIFS('Données FDC'!$U:$U,'Données FDC'!$C:$C,Activation!$J$5,'Données FDC'!$E:$E,Activation!G$9))) -> 74130 | H44: =IF(ISBLANK($F$5),SUMIFS('Données FDC'!$U:$U,'Données FDC'!$A:$A,Activation!$C$5,'Données FDC'!$E:$E,Activation!H$9),IF(ISBLANK($J$5),SUMIFS('Données FDC'!$U:$U,'Données FDC'!$B:$B,Activation!$F$5,'Données FDC'!$E:$E,Activation!H$9),SUMIFS('Données FDC'!$U:$U,'Données FDC'!$C:$C,Activation!$J$5,'Données FDC'!$E:$E,Activation!H$9))) -> 157421 | I44: =IF(ISBLANK($F$5),SUMIFS('Données FDC'!$U:$U,'Données FDC'!$A:$A,Activation!$C$5,'Données FDC'!$E:$E,Activation!I$9),IF(ISBLANK($J$5),SUMIFS('Données FDC'!$U:$U,'Données FDC'!$B:$B,Activation!$F$5,'Données FDC'!$E:$E,Activation!I$9),SUMIFS('Données FDC'!$U:$U,'Données FDC'!$C:$C,Activation!$J$5,'Données FDC'!$E:$E,Activation!I$9))) -> 177973 | J44: =IF(ISBLANK($F$5),SUMIFS('Données FDC'!$U:$U,'Données FDC'!$A:$A,Activation!$C$5,'Données FDC'!$E:$E,Activation!J$9),IF(ISBLANK($J$5),SUMIFS('Données FDC'!$U:$U,'Données FDC'!$B:$B,Activation!$F$5,'Données FDC'!$E:$E,Activation!J$9),SUMIFS('Données FDC'!$U:$U,'Données FDC'!$C:$C,Activation!$J$5,'Données FDC'!$E:$E,Activation!J$9))) -> 49617 | K44: =IF(ISBLANK($F$5),SUMIFS('Données FDC'!$U:$U,'Données FDC'!$A:$A,Activation!$C$5,'Données FDC'!$E:$E,Activation!K$9),IF(ISBLANK($J$5),SUMIFS('Données FDC'!$U:$U,'Données FDC'!$B:$B,Activation!$F$5,'Données FDC'!$E:$E,Activation!K$9),SUMIFS('Données FDC'!$U:$U,'Données FDC'!$C:$C,Activation!$J$5,'Données FDC'!$E:$E,Activation!K$9))) -> 1450 | L44: =IF(ISBLANK($F$5),SUMIFS('Données FDC'!$U:$U,'Données FDC'!$A:$A,Activation!$C$5,'Données FDC'!$E:$E,Activation!L$9),IF(ISBLANK($J$5),SUMIFS('Données FDC'!$U:$U,'Données FDC'!$B:$B,Activation!$F$5,'Données FDC'!$E:$E,Activation!L$9),SUMIFS('Données FDC'!$U:$U,'Données FDC'!$C:$C,Activation!$J$5,'Données FDC'!$E:$E,Activation!L$9))) -> 10782 | M44: =IF(ISBLANK($F$5),SUMIFS('Données FDC'!$U:$U,'Données FDC'!$A:$A,Activation!$C$5,'Données FDC'!$E:$E,Activation!M$9),IF(ISBLANK($J$5),SUMIFS('Données FDC'!$U:$U,'Données FDC'!$B:$B,Activation!$F$5,'Données FDC'!$E:$E,Activation!M$9),SUMIFS('Données FDC'!$U:$U,'Données FDC'!$C:$C,Activation!$J$5,'Données FDC'!$E:$E,Activation!M$9))) -> 32567 | N44: =IF(ISBLANK($F$5),SUMIFS('Données FDC'!$U:$U,'Données FDC'!$A:$A,Activation!$C$5,'Données FDC'!$E:$E,Activation!N$9),IF(ISBLANK($J$5),SUMIFS('Données FDC'!$U:$U,'Données FDC'!$B:$B,Activation!$F$5,'Données FDC'!$E:$E,Activation!N$9),SUMIFS('Données FDC'!$U:$U,'Données FDC'!$C:$C,Activation!$J$5,'Données FDC'!$E:$E,Activation!N$9))) -> 72083 | O44: =IF(ISBLANK($F$5),SUMIFS('Données FDC'!$U:$U,'Données FDC'!$A:$A,Activation!$C$5,'Données FDC'!$E:$E,Activation!O$9),IF(ISBLANK($J$5),SUMIFS('Données FDC'!$U:$U,'Données FDC'!$B:$B,Activation!$F$5,'Données FDC'!$E:$E,Activation!O$9),SUMIFS('Données FDC'!$U:$U,'Données FDC'!$C:$C,Activation!$J$5,'Données FDC'!$E:$E,Activation!O$9))) -> 0 | P44: =IF(ISBLANK($F$5),SUMIFS('Données FDC'!$U:$U,'Données FDC'!$A:$A,Activation!$C$5,'Données FDC'!$E:$E,Activation!P$9),IF(ISBLANK($J$5),SUMIFS('Données FDC'!$U:$U,'Données FDC'!$B:$B,Activation!$F$5,'Données FDC'!$E:$E,Activation!P$9),SUMIFS('Données FDC'!$U:$U,'Données FDC'!$C:$C,Activation!$J$5,'Données FDC'!$E:$E,Activation!P$9))) -> 5703
C45: % détenteurs | D45: =D44/D$10 -> 0.5464422698 | E45: =E44/E$10 -> 0.545706614 | F45: =F44/F$10 -> 0.8719471659 | G45: 0.459114472 | H45: 0.9196279918 | I45: 0.4974633904 | J45: 0.8311890642 | K45: 0.07849293564 | L45: 0.9779591837 | M45: 0.4231458864 | N45: 0.797996236 | O45: 0 | P45: 0.02611765999
C46: % détenteurs CEGEE | D46: =SUM('Données FDC'!$U:$U)/SUM('Données FDC'!$F:$F) -> 0.5464422698 | E46: =SUM('Données FDC déc 2018'!$U:$U)/SUM('Données FDC déc 2018'!$F:$F) -> 0.545706614 | F46: =SUMIF('Données FDC'!$E:$E,Activation!F$9,'Données FDC'!$U:$U)/SUMIF('Données FDC'!$E:$E,Activation!F$9,'Données FDC'!$F:$F) -> 0.8719471659 | G46: =SUMIF('Données FDC'!$E:$E,Activation!G$9,'Données FDC'!$U:$U)/SUMIF('Données FDC'!$E:$E,Activation!G$9,'Données FDC'!$F:$F) -> 0.459114472 | H46: =SUMIF('Données FDC'!$E:$E,Activation!H$9,'Données FDC'!$U:$U)/SUMIF('Données FDC'!$E:$E,Activation!H$9,'Données FDC'!$F:$F) -> 0.9196279918 | I46: =SUMIF('Données FDC'!$E:$E,Activation!I$9,'Données FDC'!$U:$U)/SUMIF('Données FDC'!$E:$E,Activation!I$9,'Données FDC'!$F:$F) -> 0.4974633904 | J46: =SUMIF('Données FDC'!$E:$E,Activation!J$9,'Données FDC'!$U:$U)/SUMIF('Données FDC'!$E:$E,Activation!J$9,'Données FDC'!$F:$F) -> 0.8311890642 | K46: =SUMIF('Données FDC'!$E:$E,Activation!K$9,'Données FDC'!$U:$U)/SUMIF('Données FDC'!$E:$E,Activation!K$9,'Données FDC'!$F:$F) -> 0.07849293564 | L46: =SUMIF('Données FDC'!$E:$E,Activation!L$9,'Données FDC'!$U:$U)/SUMIF('Données FDC'!$E:$E,Activation!L$9,'Données FDC'!$F:$F) -> 0.9779591837 | M46: =SUMIF('Données FDC'!$E:$E,Activation!M$9,'Données FDC'!$U:$U)/SUMIF('Données FDC'!$E:$E,Activation!M$9,'Données FDC'!$F:$F) -> 0.4231458864 | N46: =SUMIF('Données FDC'!$E:$E,Activation!N$9,'Données FDC'!$U:$U)/SUMIF('Données FDC'!$E:$E,Activation!N$9,'Données FDC'!$F:$F) -> 0.797996236 | O46: =SUMIF('Données FDC'!$E:$E,Activation!O$9,'Données FDC'!$U:$U)/SUMIF('Données FDC'!$E:$E,Activation!O$9,'Données FDC'!$F:$F) -> 0 | P46: =SUMIF('Données FDC'!$E:$E,Activation!P$9,'Données FDC'!$U:$U)/SUMIF('Données FDC'!$E:$E,Activation!P$9,'Données FDC'!$F:$F) -> 0.02611765999
B47: Détention Univers Epargne Placement | C47: Nombre détenteurs | D47: =SUM(F47:P47) -> 479800 | E47: =IF(ISBLANK($F$5),SUMIFS('Données FDC déc 2018'!$V:$V,'Données FDC déc 2018'!$A:$A,Activation!$C$5),IF(ISBLANK($J$5),SUMIFS('Données FDC déc 2018'!$V:$V,'Données FDC déc 2018'!$B:$B,Activation!$F$5),SUMIFS('Données FDC déc 2018'!$V:$V,'Données FDC déc 2018'!$C:$C,Activation!$J$5))) -> 492958 | F47: =IF(ISBLANK($F$5),SUMIFS('Données FDC'!$V:$V,'Données FDC'!$A:$A,Activation!$C$5,'Données FDC'!$E:$E,Activation!F$9),IF(ISBLANK($J$5),SUMIFS('Données FDC'!$V:$V,'Données FDC'!$B:$B,Activation!$F$5,'Données FDC'!$E:$E,Activation!F$9),SUMIFS('Données FDC'!$V:$V,'Données FDC'!$C:$C,Activation!$J$5,'Données FDC'!$E:$E,Activation!F$9))) -> 192880 | G47: =IF(ISBLANK($F$5),SUMIFS('Données FDC'!$V:$V,'Données FDC'!$A:$A,Activation!$C$5,'Données FDC'!$E:$E,Activation!G$9),IF(ISBLANK($J$5),SUMIFS('Données FDC'!$V:$V,'Données FDC'!$B:$B,Activation!$F$5,'Données FDC'!$E:$E,Activation!G$9),SUMIFS('Données FDC'!$V:$V,'Données FDC'!$C:$C,Activation!$J$5,'Données FDC'!$E:$E,Activation!G$9))) -> 24201 | H47: =IF(ISBLANK($F$5),SUMIFS('Données FDC'!$V:$V,'Données FDC'!$A:$A,Activation!$C$5,'Données FDC'!$E:$E,Activation!H$9),IF(ISBLANK($J$5),SUMIFS('Données FDC'!$V:$V,'Données FDC'!$B:$B,Activation!$F$5,'Données FDC'!$E:$E,Activation!H$9),SUMIFS('Données FDC'!$V:$V,'Données FDC'!$C:$C,Activation!$J$5,'Données FDC'!$E:$E,Activation!H$9))) -> 147248 | I47: =IF(ISBLANK($F$5),SUMIFS('Données FDC'!$V:$V,'Données FDC'!$A:$A,Activation!$C$5,'Données FDC'!$E:$E,Activation!I$9),IF(ISBLANK($J$5),SUMIFS('Données FDC'!$V:$V,'Données FDC'!$B:$B,Activation!$F$5,'Données FDC'!$E:$E,Activation!I$9),SUMIFS('Données FDC'!$V:$V,'Données FDC'!$C:$C,Activation!$J$5,'Données FDC'!$E:$E,Activation!I$9))) -> 41984 | J47: =IF(ISBLANK($F$5),SUMIFS('Données FDC'!$V:$V,'Données FDC'!$A:$A,Activation!$C$5,'Données FDC'!$E:$E,Activation!J$9),IF(ISBLANK($J$5),SUMIFS('Données FDC'!$V:$V,'Données FDC'!$B:$B,Activation!$F$5,'Données FDC'!$E:$E,Activation!J$9),SUMIFS('Données FDC'!$V:$V,'Données FDC'!$C:$C,Activation!$J$5,'Données FDC'!$E:$E,Activation!J$9))) -> 22425 | K47: =IF(ISBLANK($F$5),SUMIFS('Données FDC'!$V:$V,'Données FDC'!$A:$A,Activation!$C$5,'Données FDC'!$E:$E,Activation!K$9),IF(ISBLANK($J$5),SUMIFS('Données FDC'!$V:$V,'Données FDC'!$B:$B,Activation!$F$5,'Données FDC'!$E:$E,Activation!K$9),SUMIFS('Données FDC'!$V:$V,'Données FDC'!$C:$C,Activation!$J$5,'Données FDC'!$E:$E,Activation!K$9))) -> 197 | L47: =IF(ISBLANK($F$5),SUMIFS('Données FDC'!$V:$V,'Données FDC'!$A:$A,Activation!$C$5,'Données FDC'!$E:$E,Activation!L$9),IF(ISBLANK($J$5),SUMIFS('Données FDC'!$V:$V,'Données FDC'!$B:$B,Activation!$F$5,'Données FDC'!$E:$E,Activation!L$9),SUMIFS('Données FDC'!$V:$V,'Données FDC'!$C:$C,Activation!$J$5,'Données FDC'!$E:$E,Activation!L$9))) -> 10226 | M47: =IF(ISBLANK($F$5),SUMIFS('Données FDC'!$V:$V,'Données FDC'!$A:$A,Activation!$C$5,'Données FDC'!$E:$E,Activation!M$9),IF(ISBLANK($J$5),SUMIFS('Données FDC'!$V:$V,'Données FDC'!$B:$B,Activation!$F$5,'Données FDC'!$E:$E,Activation!M$9),SUMIFS('Données FDC'!$V:$V,'Données FDC'!$C:$C,Activation!$J$5,'Données FDC'!$E:$E,Activation!M$9))) -> 3739 | N47: =IF(ISBLANK($F$5),SUMIFS('Données FDC'!$V:$V,'Données FDC'!$A:$A,Activation!$C$5,'Données FDC'!$E:$E,Activation!N$9),IF(ISBLANK($J$5),SUMIFS('Données FDC'!$V:$V,'Données FDC'!$B:$B,Activation!$F$5,'Données FDC'!$E:$E,Activation!N$9),SUMIFS('Données FDC'!$V:$V,'Données FDC'!$C:$C,Activation!$J$5,'Données FDC'!$E:$E,Activation!N$9))) -> 34249 | O47: =IF(ISBLANK($F$5),SUMIFS('Données FDC'!$V:$V,'Données FDC'!$A:$A,Activation!$C$5,'Données FDC'!$E:$E,Activation!O$9),IF(ISBLANK($J$5),SUMIFS('Données FDC'!$V:$V,'Données FDC'!$B:$B,Activation!$F$5,'Données FDC'!$E:$E,Activation!O$9),SUMIFS('Données FDC'!$V:$V,'Données FDC'!$C:$C,Activation!$J$5,'Données FDC'!$E:$E,Activation!O$9))) -> 0 | P47: =IF(ISBLANK($F$5),SUMIFS('Données FDC'!$V:$V,'Données FDC'!$A:$A,Activation!$C$5,'Données FDC'!$E:$E,Activation!P$9),IF(ISBLANK($J$5),SUMIFS('Données FDC'!$V:$V,'Données FDC'!$B:$B,Activation!$F$5,'Données FDC'!$E:$E,Activation!P$9),SUMIFS('Données FDC'!$V:$V,'Données FDC'!$C:$C,Activation!$J$5,'Données FDC'!$E:$E,Activation!P$9))) -> 2651
C48: % détenteurs | D48: =D47/D$10 -> 0.3190532935 | E48: =E47/E$10 -> 0.3201057153 | F48: =F47/F$10 -> 0.7006760463 | G48: 0.1498857323 | H48: 0.860198973 | I48: 0.117352087 | J48: 0.3756658961 | K48: 0.01066421263 | L48: 0.9275283447 | M48: 0.04858115483 | N48: 0.3791542123 | O48: 0 | P48: 0.01214061312
C49: % détenteurs CEGEE | D49: =SUM('Données FDC'!$V:$V)/SUM('Données FDC'!$F:$F) -> 0.3190532935 | E49: =SUM('Données FDC déc 2018'!$V:$V)/SUM('Données FDC déc 2018'!$F:$F) -> 0.3201057153 | F49: =SUMIF('Données FDC'!$E:$E,Activation!F$9,'Données FDC'!$V:$V)/SUMIF('Données FDC'!$E:$E,Activation!F$9,'Données FDC'!$F:$F) -> 0.7006760463 | G49: =SUMIF('Données FDC'!$E:$E,Activation!G$9,'Données FDC'!$V:$V)/SUMIF('Données FDC'!$E:$E,Activation!G$9,'Données FDC'!$F:$F) -> 0.1498857323 | H49: =SUMIF('Données FDC'!$E:$E,Activation!H$9,'Données FDC'!$V:$V)/SUMIF('Données FDC'!$E:$E,Activation!H$9,'Données FDC'!$F:$F) -> 0.860198973 | I49: =SUMIF('Données FDC'!$E:$E,Activation!I$9,'Données FDC'!$V:$V)/SUMIF('Données FDC'!$E:$E,Activation!I$9,'Données FDC'!$F:$F) -> 0.117352087 | J49: =SUMIF('Données FDC'!$E:$E,Activation!J$9,'Données FDC'!$V:$V)/SUMIF('Données FDC'!$E:$E,Activation!J$9,'Données FDC'!$F:$F) -> 0.3756658961 | K49: =SUMIF('Données FDC'!$E:$E,Activation!K$9,'Données FDC'!$V:$V)/SUMIF('Données FDC'!$E:$E,Activation!K$9,'Données FDC'!$F:$F) -> 0.01066421263 | L49: =SUMIF('Données FDC'!$E:$E,Activation!L$9,'Données FDC'!$V:$V)/SUMIF('Données FDC'!$E:$E,Activation!L$9,'Données FDC'!$F:$F) -> 0.9275283447 | M49: =SUMIF('Données FDC'!$E:$E,Activation!M$9,'Données FDC'!$V:$V)/SUMIF('Données FDC'!$E:$E,Activation!M$9,'Données FDC'!$F:$F) -> 0.04858115483 | N49: =SUMIF('Données FDC'!$E:$E,Activation!N$9,'Données FDC'!$V:$V)/SUMIF('Données FDC'!$E:$E,Activation!N$9,'Données FDC'!$F:$F) -> 0.3791542123 | O49: =SUMIF('Données FDC'!$E:$E,Activation!O$9,'Données FDC'!$V:$V)/SUMIF('Données FDC'!$E:$E,Activation!O$9,'Données FDC'!$F:$F) -> 0 | P49: =SUMIF('Données FDC'!$E:$E,Activation!P$9,'Données FDC'!$V:$V)/SUMIF('Données FDC'!$E:$E,Activation!P$9,'Données FDC'!$F:$F) -> 0.01214061312
B50: Détention Univers Assurance | C50: Nombre détenteurs | D50: =SUM(F50:P50) -> 184398 | E50: =IF(ISBLANK($F$5),SUMIFS('Données FDC déc 2018'!$X:$X,'Données FDC déc 2018'!$A:$A,Activation!$C$5),IF(ISBLANK($J$5),SUMIFS('Données FDC déc 2018'!$X:$X,'Données FDC déc 2018'!$B:$B,Activation!$F$5),SUMIFS('Données FDC déc 2018'!$X:$X,'Données FDC déc 2018'!$C:$C,Activation!$J$5))) -> 176534 | F50: =IF(ISBLANK($F$5),SUMIFS('Données FDC'!$X:$X,'Données FDC'!$A:$A,Activation!$C$5,'Données FDC'!$E:$E,Activation!F$9),IF(ISBLANK($J$5),SUMIFS('Données FDC'!$X:$X,'Données FDC'!$B:$B,Activation!$F$5,'Données FDC'!$E:$E,Activation!F$9),SUMIFS('Données FDC'!$X:$X,'Données FDC'!$C:$C,Activation!$J$5,'Données FDC'!$E:$E,Activation!F$9))) -> 120083 | G50: =IF(ISBLANK($F$5),SUMIFS('Données FDC'!$X:$X,'Données FDC'!$A:$A,Activation!$C$5,'Données FDC'!$E:$E,Activation!G$9),IF(ISBLANK($J$5),SUMIFS('Données FDC'!$X:$X,'Données FDC'!$B:$B,Activation!$F$5,'Données FDC'!$E:$E,Activation!G$9),SUMIFS('Données FDC'!$X:$X,'Données FDC'!$C:$C,Activation!$J$5,'Données FDC'!$E:$E,Activation!G$9))) -> 15690 | H50: =IF(ISBLANK($F$5),SUMIFS('Données FDC'!$X:$X,'Données FDC'!$A:$A,Activation!$C$5,'Données FDC'!$E:$E,Activation!H$9),IF(ISBLANK($J$5),SUMIFS('Données FDC'!$X:$X,'Données FDC'!$B:$B,Activation!$F$5,'Données FDC'!$E:$E,Activation!H$9),SUMIFS('Données FDC'!$X:$X,'Données FDC'!$C:$C,Activation!$J$5,'Données FDC'!$E:$E,Activation!H$9))) -> 24283 | I50: =IF(ISBLANK($F$5),SUMIFS('Données FDC'!$X:$X,'Données FDC'!$A:$A,Activation!$C$5,'Données FDC'!$E:$E,Activation!I$9),IF(ISBLANK($J$5),SUMIFS('Données FDC'!$X:$X,'Données FDC'!$B:$B,Activation!$F$5,'Données FDC'!$E:$E,Activation!I$9),SUMIFS('Données FDC'!$X:$X,'Données FDC'!$C:$C,Activation!$J$5,'Données FDC'!$E:$E,Activation!I$9))) -> 5920 | J50: =IF(ISBLANK($F$5),SUMIFS('Données FDC'!$X:$X,'Données FDC'!$A:$A,Activation!$C$5,'Données FDC'!$E:$E,Activation!J$9),IF(ISBLANK($J$5),SUMIFS('Données FDC'!$X:$X,'Données FDC'!$B:$B,Activation!$F$5,'Données FDC'!$E:$E,Activation!J$9),SUMIFS('Données FDC'!$X:$X,'Données FDC'!$C:$C,Activation!$J$5,'Données FDC'!$E:$E,Activation!J$9))) -> 14347 | K50: =IF(ISBLANK($F$5),SUMIFS('Données FDC'!$X:$X,'Données FDC'!$A:$A,Activation!$C$5,'Données FDC'!$E:$E,Activation!K$9),IF(ISBLANK($J$5),SUMIFS('Données FDC'!$X:$X,'Données FDC'!$B:$B,Activation!$F$5,'Données FDC'!$E:$E,Activation!K$9),SUMIFS('Données FDC'!$X:$X,'Données FDC'!$C:$C,Activation!$J$5,'Données FDC'!$E:$E,Activation!K$9))) -> 324 | L50: =IF(ISBLANK($F$5),SUMIFS('Données FDC'!$X:$X,'Données FDC'!$A:$A,Activation!$C$5,'Données FDC'!$E:$E,Activation!L$9),IF(ISBLANK($J$5),SUMIFS('Données FDC'!$X:$X,'Données FDC'!$B:$B,Activation!$F$5,'Données FDC'!$E:$E,Activation!L$9),SUMIFS('Données FDC'!$X:$X,'Données FDC'!$C:$C,Activation!$J$5,'Données FDC'!$E:$E,Activation!L$9))) -> 374 | M50: =IF(ISBLANK($F$5),SUMIFS('Données FDC'!$X:$X,'Données FDC'!$A:$A,Activation!$C$5,'Données FDC'!$E:$E,Activation!M$9),IF(ISBLANK($J$5),SUMIFS('Données FDC'!$X:$X,'Données FDC'!$B:$B,Activation!$F$5,'Données FDC'!$E:$E,Activation!M$9),SUMIFS('Données FDC'!$X:$X,'Données FDC'!$C:$C,Activation!$J$5,'Données FDC'!$E:$E,Activation!M$9))) -> 537 | P50: =IF(ISBLANK($F$5),SUMIFS('Données FDC'!$X:$X,'Données FDC'!$A:$A,Activation!$C$5,'Données FDC'!$E:$E,Activation!P$9),IF(ISBLANK($J$5),SUMIFS('Données FDC'!$X:$X,'Données FDC'!$B:$B,Activation!$F$5,'Données FDC'!$E:$E,Activation!P$9),SUMIFS('Données FDC'!$X:$X,'Données FDC'!$C:$C,Activation!$J$5,'Données FDC'!$E:$E,Activation!P$9))) -> 2840
C51: % détenteurs | D51: =D50/D$10 -> 0.1226194023 | E51: =E50/E$10 -> 0.1146335841 | F51: =F50/IF(ISBLANK($F$5),SUMIFS('Données FDC'!$J:$J,'Données FDC'!$A:$A,Activation!$C$5,'Données FDC'!$E:$E,Activation!F$9),IF(ISBLANK($J$5),SUMIFS('Données FDC'!$J:$J,'Données FDC'!$B:$B,Activation!$F$5,'Données FDC'!$E:$E,Activation!F$9),SUMIFS('Données FDC'!$J:$J,'Données FDC'!$C:$C,Activation!$J$5,'Données FDC'!$E:$E,Activation!F$9))) -> 0.4362260559 | G51: =G50/IF(ISBLANK($F$5),SUMIFS('Données FDC'!$J:$J,'Données FDC'!$A:$A,Activation!$C$5,'Données FDC'!$E:$E,Activation!G$9),IF(ISBLANK($J$5),SUMIFS('Données FDC'!$J:$J,'Données FDC'!$B:$B,Activation!$F$5,'Données FDC'!$E:$E,Activation!G$9),SUMIFS('Données FDC'!$J:$J,'Données FDC'!$C:$C,Activation!$J$5,'Données FDC'!$E:$E,Activation!G$9))) -> 0.09717396555 | H51: =H50/IF(ISBLANK($F$5),SUMIFS('Données FDC'!$J:$J,'Données FDC'!$A:$A,Activation!$C$5,'Données FDC'!$E:$E,Activation!H$9),IF(ISBLANK($J$5),SUMIFS('Données FDC'!$J:$J,'Données FDC'!$B:$B,Activation!$F$5,'Données FDC'!$E:$E,Activation!H$9),SUMIFS('Données FDC'!$J:$J,'Données FDC'!$C:$C,Activation!$J$5,'Données FDC'!$E:$E,Activation!H$9))) -> 0.141857354 | I51: =I50/IF(ISBLANK($F$5),SUMIFS('Données FDC'!$J:$J,'Données FDC'!$A:$A,Activation!$C$5,'Données FDC'!$E:$E,Activation!I$9),IF(ISBLANK($J$5),SUMIFS('Données FDC'!$J:$J,'Données FDC'!$B:$B,Activation!$F$5,'Données FDC'!$E:$E,Activation!I$9),SUMIFS('Données FDC'!$J:$J,'Données FDC'!$C:$C,Activation!$J$5,'Données FDC'!$E:$E,Activation!I$9))) -> 0.01654735983 | J51: =J50/IF(ISBLANK($F$5),SUMIFS('Données FDC'!$J:$J,'Données FDC'!$A:$A,Activation!$C$5,'Données FDC'!$E:$E,Activation!J$9),IF(ISBLANK($J$5),SUMIFS('Données FDC'!$J:$J,'Données FDC'!$B:$B,Activation!$F$5,'Données FDC'!$E:$E,Activation!J$9),SUMIFS('Données FDC'!$J:$J,'Données FDC'!$C:$C,Activation!$J$5,'Données FDC'!$E:$E,Activation!J$9))) -> 0.2503839442 | K51: =K50/IF(ISBLANK($F$5),SUMIFS('Données FDC'!$J:$J,'Données FDC'!$A:$A,Activation!$C$5,'Données FDC'!$E:$E,Activation!K$9),IF(ISBLANK($J$5),SUMIFS('Données FDC'!$J:$J,'Données FDC'!$B:$B,Activation!$F$5,'Données FDC'!$E:$E,Activation!K$9),SUMIFS('Données FDC'!$J:$J,'Données FDC'!$C:$C,Activation!$J$5,'Données FDC'!$E:$E,Activation!K$9))) -> 0.0191444103 | L51: =L50/IF(ISBLANK($F$5),SUMIFS('Données FDC'!$J:$J,'Données FDC'!$A:$A,Activation!$C$5,'Données FDC'!$E:$E,Activation!L$9),IF(ISBLANK($J$5),SUMIFS('Données FDC'!$J:$J,'Données FDC'!$B:$B,Activation!$F$5,'Données FDC'!$E:$E,Activation!L$9),SUMIFS('Données FDC'!$J:$J,'Données FDC'!$C:$C,Activation!$J$5,'Données FDC'!$E:$E,Activation!L$9))) -> 0.05851979346 | M51: =M50/IF(ISBLANK($F$5),SUMIFS('Données FDC'!$J:$J,'Données FDC'!$A:$A,Activation!$C$5,'Données FDC'!$E:$E,Activation!M$9),IF(ISBLANK($J$5),SUMIFS('Données FDC'!$J:$J,'Données FDC'!$B:$B,Activation!$F$5,'Données FDC'!$E:$E,Activation!M$9),SUMIFS('Données FDC'!$J:$J,'Données FDC'!$C:$C,Activation!$J$5,'Données FDC'!$E:$E,Activation!M$9))) -> 0.009751579865 | P51: =P50/IF(ISBLANK($F$5),SUMIFS('Données FDC'!$J:$J,'Données FDC'!$A:$A,Activation!$C$5,'Données FDC'!$E:$E,Activation!P$9),IF(ISBLANK($J$5),SUMIFS('Données FDC'!$J:$J,'Données FDC'!$B:$B,Activation!$F$5,'Données FDC'!$E:$E,Activation!P$9),SUMIFS('Données FDC'!$J:$J,'Données FDC'!$C:$C,Activation!$J$5,'Données FDC'!$E:$E,Activation!P$9))) -> 0.01300616419
C52: % détenteurs CEGEE | D52: =SUM('Données FDC'!$X:$X)/SUM('Données FDC'!$F:$F) -> 0.1226194023 | E52: =SUM('Données FDC déc 2018'!$X:$X)/SUM('Données FDC déc 2018'!$F:$F) -> 0.1146335841 | F52: =SUMIF('Données FDC'!$E:$E,Activation!F$9,'Données FDC'!$X:$X)/SUMIF('Données FDC'!$E:$E,Activation!F$9,'Données FDC'!$J:$J) -> 0.4362260559 | G52: =SUMIF('Données FDC'!$E:$E,Activation!G$9,'Données FDC'!$X:$X)/SUMIF('Données FDC'!$E:$E,Activation!G$9,'Données FDC'!$J:$J) -> 0.09717396555 | H52: =SUMIF('Données FDC'!$E:$E,Activation!H$9,'Données FDC'!$X:$X)/SUMIF('Données FDC'!$E:$E,Activation!H$9,'Données FDC'!$J:$J) -> 0.141857354 | I52: =SUMIF('Données FDC'!$E:$E,Activation!I$9,'Données FDC'!$X:$X)/SUMIF('Données FDC'!$E:$E,Activation!I$9,'Données FDC'!$J:$J) -> 0.01654735983 | J52: =SUMIF('Données FDC'!$E:$E,Activation!J$9,'Données FDC'!$X:$X)/SUMIF('Données FDC'!$E:$E,Activation!J$9,'Données FDC'!$J:$J) -> 0.2503839442 | K52: =SUMIF('Données FDC'!$E:$E,Activation!K$9,'Données FDC'!$X:$X)/SUMIF('Données FDC'!$E:$E,Activation!K$9,'Données FDC'!$J:$J) -> 0.0191444103 | L52: =SUMIF('Données FDC'!$E:$E,Activation!L$9,'Données FDC'!$X:$X)/SUMIF('Données FDC'!$E:$E,Activation!L$9,'Données FDC'!$J:$J) -> 0.05851979346 | M52: =SUMIF('Données FDC'!$E:$E,Activation!M$9,'Données FDC'!$X:$X)/SUMIF('Données FDC'!$E:$E,Activation!M$9,'Données FDC'!$J:$J) -> 0.009751579865 | P52: =SUMIF('Données FDC'!$E:$E,Activation!P$9,'Données FDC'!$X:$X)/SUMIF('Données FDC'!$E:$E,Activation!P$9,'Données FDC'!$J:$J) -> 0.01300616419
B54: EQUIPEMENT BANCARISATION
D56: Tous segments | F56: =F8 -> Segments Activation - 07/2019
D57: =D9 -> 2019-07-01 | E57: 2018-12-01 | F57: BPe | G57: BPne | H57: De | I57: Dne | J57: JBPe | K57: JBPne | L57: JDe | M57: JDne | N57: Ee | O57: Ene | P57: I
B58: Détention Univers Banca (12 ans et plus) | C58: Nombre détenteurs | D58: =D38 -> 476407 | E58: =E38 -> 474160 | F58: 261362 | G58: 105170 | H58: 26471 | I58: 10739 | J58: 58054 | K58: 12771 | L58: 549 | M58: 241 | N58: 1033 | O58: 0 | P58: 17
C59: % détenteurs | D59: =D39 -> 0.3167970454 | E59: 0.3078991029 | F59: =F39 -> 0.9494509167 | G59: 0.6513566576 | H59: 0.1546392957 | I59: 0.03001724615 | J59: 0.9725265521 | K59: 0.6913332972 | L59: 0.04979591837 | M59: 0.00313133413 | N59: 0.04036417631 | O59: 0 | P59: 7.785379972e-05
C60: % détenteurs CEGEE | D60: =D40 -> 0.3167970454 | E60: 0.3078991029 | F60: =F40 -> 0.9494509167 | G60: 0.6513566576 | H60: 0.1546392957 | I60: 0.03001724615 | J60: 0.9725265521 | K60: 0.6913332972 | L60: 0.04979591837 | M60: 0.00313133413 | N60: 0.04036417631 | O60: 0 | P60: 7.785379972e-05
B61: Forfait (12 ans et plus) | C61: Variation | D61: =SUM(F61:P61) -> 4809 | F61: =F62-IF(ISBLANK($F$5),SUMIFS('Données FDC déc 2018'!$AE:$AE,'Données FDC déc 2018'!$A:$A,Activation!$C$5,'Données FDC déc 2018'!$E:$E,Activation!F$9),IF(ISBLANK($J$5),SUMIFS('Données FDC déc 2018'!$AE:$AE,'Données FDC déc 2018'!$B:$B,Activation!$F$5,'Données FDC déc 2018'!$E:$E,Activation!F$9),SUMIFS('Données FDC déc 2018'!$AE:$AE,'Données FDC déc 2018'!$C:$C,Activation!$J$5,'Données FDC déc 2018'!$E:$E,Activation!F$9))) -> 2241 | G61: =G62-IF(ISBLANK($F$5),SUMIFS('Données FDC déc 2018'!$AE:$AE,'Données FDC déc 2018'!$A:$A,Activation!$C$5,'Données FDC déc 2018'!$E:$E,Activation!G$9),IF(ISBLANK($J$5),SUMIFS('Données FDC déc 2018'!$AE:$AE,'Données FDC déc 2018'!$B:$B,Activation!$F$5,'Données FDC déc 2018'!$E:$E,Activation!G$9),SUMIFS('Données FDC déc 2018'!$AE:$AE,'Données FDC déc 2018'!$C:$C,Activation!$J$5,'Données FDC déc 2018'!$E:$E,Activation!G$9))) -> -933 | H61: =H62-IF(ISBLANK($F$5),SUMIFS('Données FDC déc 2018'!$AE:$AE,'Données FDC déc 2018'!$A:$A,Activation!$C$5,'Données FDC déc 2018'!$E:$E,Activation!H$9),IF(ISBLANK($J$5),SUMIFS('Données FDC déc 2018'!$AE:$AE,'Données FDC déc 2018'!$B:$B,Activation!$F$5,'Données FDC déc 2018'!$E:$E,Activation!H$9),SUMIFS('Données FDC déc 2018'!$AE:$AE,'Données FDC déc 2018'!$C:$C,Activation!$J$5,'Données FDC déc 2018'!$E:$E,Activation!H$9))) -> 1493 | I61: =I62-IF(ISBLANK($F$5),SUMIFS('Données FDC déc 2018'!$AE:$AE,'Données FDC déc 2018'!$A:$A,Activation!$C$5,'Données FDC déc 2018'!$E:$E,Activation!I$9),IF(ISBLANK($J$5),SUMIFS('Données FDC déc 2018'!$AE:$AE,'Données FDC déc 2018'!$B:$B,Activation!$F$5,'Données FDC déc 2018'!$E:$E,Activation!I$9),SUMIFS('Données FDC déc 2018'!$AE:$AE,'Données FDC déc 2018'!$C:$C,Activation!$J$5,'Données FDC déc 2018'!$E:$E,Activation!I$9))) -> 729 | J61: =J62-IF(ISBLANK($F$5),SUMIFS('Données FDC déc 2018'!$AE:$AE,'Données FDC déc 2018'!$A:$A,Activation!$C$5,'Données FDC déc 2018'!$E:$E,Activation!J$9),IF(ISBLANK($J$5),SUMIFS('Données FDC déc 2018'!$AE:$AE,'Données FDC déc 2018'!$B:$B,Activation!$F$5,'Données FDC déc 2018'!$E:$E,Activation!J$9),SUMIFS('Données FDC déc 2018'!$AE:$AE,'Données FDC déc 2018'!$C:$C,Activation!$J$5,'Données FDC déc 2018'!$E:$E,Activation!J$9))) -> -1039 | K61: =K62-IF(ISBLANK($F$5),SUMIFS('Données FDC déc 2018'!$AE:$AE,'Données FDC déc 2018'!$A:$A,Activation!$C$5,'Données FDC déc 2018'!$E:$E,Activation!K$9),IF(ISBLANK($J$5),SUMIFS('Données FDC déc 2018'!$AE:$AE,'Données FDC déc 2018'!$B:$B,Activation!$F$5,'Données FDC déc 2018'!$E:$E,Activation!K$9),SUMIFS('Données FDC déc 2018'!$AE:$AE,'Données FDC déc 2018'!$C:$C,Activation!$J$5,'Données FDC déc 2018'!$E:$E,Activation!K$9))) -> -539 | L61: =L62-IF(ISBLANK($F$5),SUMIFS('Données FDC déc 2018'!$AE:$AE,'Données FDC déc 2018'!$A:$A,Activation!$C$5,'Données FDC déc 2018'!$E:$E,Activation!L$9),IF(ISBLANK($J$5),SUMIFS('Données FDC déc 2018'!$AE:$AE,'Données FDC déc 2018'!$B:$B,Activation!$F$5,'Données FDC déc 2018'!$E:$E,Activation!L$9),SUMIFS('Données FDC déc 2018'!$AE:$AE,'Données FDC déc 2018'!$C:$C,Activation!$J$5,'Données FDC déc 2018'!$E:$E,Activation!L$9))) -> 500 | M61: =M62-IF(ISBLANK($F$5),SUMIFS('Données FDC déc 2018'!$AE:$AE,'Données FDC déc 2018'!$A:$A,Activation!$C$5,'Données FDC déc 2018'!$E:$E,Activation!M$9),IF(ISBLANK($J$5),SUMIFS('Données FDC déc 2018'!$AE:$AE,'Données FDC déc 2018'!$B:$B,Activation!$F$5,'Données FDC déc 2018'!$E:$E,Activation!M$9),SUMIFS('Données FDC déc 2018'!$AE:$AE,'Données FDC déc 2018'!$C:$C,Activation!$J$5,'Données FDC déc 2018'!$E:$E,Activation!M$9))) -> 1867 | N61: =N62-IF(ISBLANK($F$5),SUMIFS('Données FDC déc 2018'!$AE:$AE,'Données FDC déc 2018'!$A:$A,Activation!$C$5,'Données FDC déc 2018'!$E:$E,Activation!N$9),IF(ISBLANK($J$5),SUMIFS('Données FDC déc 2018'!$AE:$AE,'Données FDC déc 2018'!$B:$B,Activation!$F$5,'Données FDC déc 2018'!$E:$E,Activation!N$9),SUMIFS('Données FDC déc 2018'!$AE:$AE,'Données FDC déc 2018'!$C:$C,Activation!$J$5,'Données FDC déc 2018'!$E:$E,Activation!N$9))) -> 215 | O61: =O62-IF(ISBLANK($F$5),SUMIFS('Données FDC déc 2018'!$AE:$AE,'Données FDC déc 2018'!$A:$A,Activation!$C$5,'Données FDC déc 2018'!$E:$E,Activation!O$9),IF(ISBLANK($J$5),SUMIFS('Données FDC déc 2018'!$AE:$AE,'Données FDC déc 2018'!$B:$B,Activation!$F$5,'Données FDC déc 2018'!$E:$E,Activation!O$9),SUMIFS('Données FDC déc 2018'!$AE:$AE,'Données FDC déc 2018'!$C:$C,Activation!$J$5,'Données FDC déc 2018'!$E:$E,Activation!O$9))) -> 266 | P61: =P62-IF(ISBLANK($F$5),SUMIFS('Données FDC déc 2018'!$AE:$AE,'Données FDC déc 2018'!$A:$A,Activation!$C$5,'Données FDC déc 2018'!$E:$E,Activation!P$9),IF(ISBLANK($J$5),SUMIFS('Données FDC déc 2018'!$AE:$AE,'Données FDC déc 2018'!$B:$B,Activation!$F$5,'Données FDC déc 2018'!$E:$E,Activation!P$9),SUMIFS('Données FDC déc 2018'!$AE:$AE,'Données FDC déc 2018'!$C:$C,Activation!$J$5,'Données FDC déc 2018'!$E:$E,Activation!P$9))) -> 9
C62: Nombre détenteurs | D62: =SUM(F62:P62) -> 605557 | E62: =IF(ISBLANK($F$5),SUMIFS('Données FDC déc 2018'!$AE:$AE,'Données FDC déc 2018'!$A:$A,Activation!$C$5),IF(ISBLANK($J$5),SUMIFS('Données FDC déc 2018'!$AE:$AE,'Données FDC déc 2018'!$B:$B,Activation!$F$5),SUMIFS('Données FDC déc 2018'!$AE:$AE,'Données FDC déc 2018'!$C:$C,Activation!$J$5))) -> 600748 | F62: =IF(ISBLANK($F$5),SUMIFS('Données FDC'!$AE:$AE,'Données FDC'!$A:$A,Activation!$C$5,'Données FDC'!$E:$E,Activation!F$9),IF(ISBLANK($J$5),SUMIFS('Données FDC'!$AE:$AE,'Données FDC'!$B:$B,Activation!$F$5,'Données FDC'!$E:$E,Activation!F$9),SUMIFS('Données FDC'!$AE:$AE,'Données FDC'!$C:$C,Activation!$J$5,'Données FDC'!$E:$E,Activation!F$9))) -> 268216 | G62: =IF(ISBLANK($F$5),SUMIFS('Données FDC'!$AE:$AE,'Données FDC'!$A:$A,Activation!$C$5,'Données FDC'!$E:$E,Activation!G$9),IF(ISBLANK($J$5),SUMIFS('Données FDC'!$AE:$AE,'Données FDC'!$B:$B,Activation!$F$5,'Données FDC'!$E:$E,Activation!G$9),SUMIFS('Données FDC'!$AE:$AE,'Données FDC'!$C:$C,Activation!$J$5,'Données FDC'!$E:$E,Activation!G$9))) -> 143674 | H62: =IF(ISBLANK($F$5),SUMIFS('Données FDC'!$AE:$AE,'Données FDC'!$A:$A,Activation!$C$5,'Données FDC'!$E:$E,Activation!H$9),IF(ISBLANK($J$5),SUMIFS('Données FDC'!$AE:$AE,'Données FDC'!$B:$B,Activation!$F$5,'Données FDC'!$E:$E,Activation!H$9),SUMIFS('Données FDC'!$AE:$AE,'Données FDC'!$C:$C,Activation!$J$5,'Données FDC'!$E:$E,Activation!H$9))) -> 48944 | I62: =IF(ISBLANK($F$5),SUMIFS('Données FDC'!$AE:$AE,'Données FDC'!$A:$A,Activation!$C$5,'Données FDC'!$E:$E,Activation!I$9),IF(ISBLANK($J$5),SUMIFS('Données FDC'!$AE:$AE,'Données FDC'!$B:$B,Activation!$F$5,'Données FDC'!$E:$E,Activation!I$9),SUMIFS('Données FDC'!$AE:$AE,'Données FDC'!$C:$C,Activation!$J$5,'Données FDC'!$E:$E,Activation!I$9))) -> 49938 | J62: =IF(ISBLANK($F$5),SUMIFS('Données FDC'!$AE:$AE,'Données FDC'!$A:$A,Activation!$C$5,'Données FDC'!$E:$E,Activation!J$9),IF(ISBLANK($J$5),SUMIFS('Données FDC'!$AE:$AE,'Données FDC'!$B:$B,Activation!$F$5,'Données FDC'!$E:$E,Activation!J$9),SUMIFS('Données FDC'!$AE:$AE,'Données FDC'!$C:$C,Activation!$J$5,'Données FDC'!$E:$E,Activation!J$9))) -> 59739 | K62: =IF(ISBLANK($F$5),SUMIFS('Données FDC'!$AE:$AE,'Données FDC'!$A:$A,Activation!$C$5,'Données FDC'!$E:$E,Activation!K$9),IF(ISBLANK($J$5),SUMIFS('Données FDC'!$AE:$AE,'Données FDC'!$B:$B,Activation!$F$5,'Données FDC'!$E:$E,Activation!K$9),SUMIFS('Données FDC'!$AE:$AE,'Données FDC'!$C:$C,Activation!$J$5,'Données FDC'!$E:$E,Activation!K$9))) -> 17686 | L62: =IF(ISBLANK($F$5),SUMIFS('Données FDC'!$AE:$AE,'Données FDC'!$A:$A,Activation!$C$5,'Données FDC'!$E:$E,Activation!L$9),IF(ISBLANK($J$5),SUMIFS('Données FDC'!$AE:$AE,'Données FDC'!$B:$B,Activation!$F$5,'Données FDC'!$E:$E,Activation!L$9),SUMIFS('Données FDC'!$AE:$AE,'Données FDC'!$C:$C,Activation!$J$5,'Données FDC'!$E:$E,Activation!L$9))) -> 3463 | M62: =IF(ISBLANK($F$5),SUMIFS('Données FDC'!$AE:$AE,'Données FDC'!$A:$A,Activation!$C$5,'Données FDC'!$E:$E,Activation!M$9),IF(ISBLANK($J$5),SUMIFS('Données FDC'!$AE:$AE,'Données FDC'!$B:$B,Activation!$F$5,'Données FDC'!$E:$E,Activation!M$9),SUMIFS('Données FDC'!$AE:$AE,'Données FDC'!$C:$C,Activation!$J$5,'Données FDC'!$E:$E,Activation!M$9))) -> 10787 | N62: =IF(ISBLANK($F$5),SUMIFS('Données FDC'!$AE:$AE,'Données FDC'!$A:$A,Activation!$C$5,'Données FDC'!$E:$E,Activation!N$9),IF(ISBLANK($J$5),SUMIFS('Données FDC'!$AE:$AE,'Données FDC'!$B:$B,Activation!$F$5,'Données FDC'!$E:$E,Activation!N$9),SUMIFS('Données FDC'!$AE:$AE,'Données FDC'!$C:$C,Activation!$J$5,'Données FDC'!$E:$E,Activation!N$9))) -> 2127 | O62: =IF(ISBLANK($F$5),SUMIFS('Données FDC'!$AE:$AE,'Données FDC'!$A:$A,Activation!$C$5,'Données FDC'!$E:$E,Activation!O$9),IF(ISBLANK($J$5),SUMIFS('Données FDC'!$AE:$AE,'Données FDC'!$B:$B,Activation!$F$5,'Données FDC'!$E:$E,Activation!O$9),SUMIFS('Données FDC'!$AE:$AE,'Données FDC'!$C:$C,Activation!$J$5,'Données FDC'!$E:$E,Activation!O$9))) -> 953 | P62: =IF(ISBLANK($F$5),SUMIFS('Données FDC'!$AE:$AE,'Données FDC'!$A:$A,Activation!$C$5,'Données FDC'!$E:$E,Activation!P$9),IF(ISBLANK($J$5),SUMIFS('Données FDC'!$AE:$AE,'Données FDC'!$B:$B,Activation!$F$5,'Données FDC'!$E:$E,Activation!P$9),SUMIFS('Données FDC'!$AE:$AE,'Données FDC'!$C:$C,Activation!$J$5,'Données FDC'!$E:$E,Activation!P$9))) -> 30
C63: % détenteurs | D63: =D62/IF(ISBLANK($F$5),SUMIFS('Données FDC'!$I:$I,'Données FDC'!$A:$A,Activation!$C$5),IF(ISBLANK($J$5),SUMIFS('Données FDC'!$I:$I,'Données FDC'!$B:$B,Activation!$F$5),SUMIFS('Données FDC'!$I:$I,'Données FDC'!$C:$C,Activation!$J$5))) -> 0.4320620513 | E63: =E62/IF(ISBLANK($F$5),SUMIFS('Données FDC déc 2018'!$I:$I,'Données FDC déc 2018'!$A:$A,Activation!$C$5),IF(ISBLANK($J$5),SUMIFS('Données FDC déc 2018'!$I:$I,'Données FDC déc 2018'!$B:$B,Activation!$F$5),SUMIFS('Données FDC déc 2018'!$I:$I,'Données FDC déc 2018'!$C:$C,Activation!$J$5))) -> 0.4192822311 | F63: =F62/IF(ISBLANK($F$5),SUMIFS('Données FDC'!$I:$I,'Données FDC'!$A:$A,Activation!$C$5,'Données FDC'!$E:$E,Activation!F$9),IF(ISBLANK($J$5),SUMIFS('Données FDC'!$I:$I,'Données FDC'!$B:$B,Activation!$F$5,'Données FDC'!$E:$E,Activation!F$9),SUMIFS('Données FDC'!$I:$I,'Données FDC'!$C:$C,Activation!$J$5,'Données FDC'!$E:$E,Activation!F$9))) -> 0.9743494734 | G63: =G62/IF(ISBLANK($F$5),SUMIFS('Données FDC'!$I:$I,'Données FDC'!$A:$A,Activation!$C$5,'Données FDC'!$E:$E,Activation!G$9),IF(ISBLANK($J$5),SUMIFS('Données FDC'!$I:$I,'Données FDC'!$B:$B,Activation!$F$5,'Données FDC'!$E:$E,Activation!G$9),SUMIFS('Données FDC'!$I:$I,'Données FDC'!$C:$C,Activation!$J$5,'Données FDC'!$E:$E,Activation!G$9))) -> 0.8898261521 | H63: =H62/IF(ISBLANK($F$5),SUMIFS('Données FDC'!$I:$I,'Données FDC'!$A:$A,Activation!$C$5,'Données FDC'!$E:$E,Activation!H$9),IF(ISBLANK($J$5),SUMIFS('Données FDC'!$I:$I,'Données FDC'!$B:$B,Activation!$F$5,'Données FDC'!$E:$E,Activation!H$9),SUMIFS('Données FDC'!$I:$I,'Données FDC'!$C:$C,Activation!$J$5,'Données FDC'!$E:$E,Activation!H$9))) -> 0.2859229228 | I63: =I62/IF(ISBLANK($F$5),SUMIFS('Données FDC'!$I:$I,'Données FDC'!$A:$A,Activation!$C$5,'Données FDC'!$E:$E,Activation!I$9),IF(ISBLANK($J$5),SUMIFS('Données FDC'!$I:$I,'Données FDC'!$B:$B,Activation!$F$5,'Données FDC'!$E:$E,Activation!I$9),SUMIFS('Données FDC'!$I:$I,'Données FDC'!$C:$C,Activation!$J$5,'Données FDC'!$E:$E,Activation!I$9))) -> 0.1395848066 | J63: =J62/IF(ISBLANK($F$5),SUMIFS('Données FDC'!$I:$I,'Données FDC'!$A:$A,Activation!$C$5,'Données FDC'!$E:$E,Activation!J$9),IF(ISBLANK($J$5),SUMIFS('Données FDC'!$I:$I,'Données FDC'!$B:$B,Activation!$F$5,'Données FDC'!$E:$E,Activation!J$9),SUMIFS('Données FDC'!$I:$I,'Données FDC'!$C:$C,Activation!$J$5,'Données FDC'!$E:$E,Activation!J$9))) -> 1.000753845 | K63: =K62/IF(ISBLANK($F$5),SUMIFS('Données FDC'!$I:$I,'Données FDC'!$A:$A,Activation!$C$5,'Données FDC'!$E:$E,Activation!K$9),IF(ISBLANK($J$5),SUMIFS('Données FDC'!$I:$I,'Données FDC'!$B:$B,Activation!$F$5,'Données FDC'!$E:$E,Activation!K$9),SUMIFS('Données FDC'!$I:$I,'Données FDC'!$C:$C,Activation!$J$5,'Données FDC'!$E:$E,Activation!K$9))) -> 0.9573972825 | L63: =L62/IF(ISBLANK($F$5),SUMIFS('Données FDC'!$I:$I,'Données FDC'!$A:$A,Activation!$C$5,'Données FDC'!$E:$E,Activation!L$9),IF(ISBLANK($J$5),SUMIFS('Données FDC'!$I:$I,'Données FDC'!$B:$B,Activation!$F$5,'Données FDC'!$E:$E,Activation!L$9),SUMIFS('Données FDC'!$I:$I,'Données FDC'!$C:$C,Activation!$J$5,'Données FDC'!$E:$E,Activation!L$9))) -> 0.3141043084 | M63: =M62/IF(ISBLANK($F$5),SUMIFS('Données FDC'!$I:$I,'Données FDC'!$A:$A,Activation!$C$5,'Données FDC'!$E:$E,Activation!M$9),IF(ISBLANK($J$5),SUMIFS('Données FDC'!$I:$I,'Données FDC'!$B:$B,Activation!$F$5,'Données FDC'!$E:$E,Activation!M$9),SUMIFS('Données FDC'!$I:$I,'Données FDC'!$C:$C,Activation!$J$5,'Données FDC'!$E:$E,Activation!M$9))) -> 0.1401564368 | N63: =N62/IF(ISBLANK($F$5),SUMIFS('Données FDC'!$I:$I,'Données FDC'!$A:$A,Activation!$C$5,'Données FDC'!$E:$E,Activation!N$9),IF(ISBLANK($J$5),SUMIFS('Données FDC'!$I:$I,'Données FDC'!$B:$B,Activation!$F$5,'Données FDC'!$E:$E,Activation!N$9),SUMIFS('Données FDC'!$I:$I,'Données FDC'!$C:$C,Activation!$J$5,'Données FDC'!$E:$E,Activation!N$9))) -> 0.08311190997 | O63: =O62/IF(ISBLANK($F$5),SUMIFS('Données FDC'!$I:$I,'Données FDC'!$A:$A,Activation!$C$5,'Données FDC'!$E:$E,Activation!O$9),IF(ISBLANK($J$5),SUMIFS('Données FDC'!$I:$I,'Données FDC'!$B:$B,Activation!$F$5,'Données FDC'!$E:$E,Activation!O$9),SUMIFS('Données FDC'!$I:$I,'Données FDC'!$C:$C,Activation!$J$5,'Données FDC'!$E:$E,Activation!O$9))) -> 0.03698816224 | P63: =P62/IF(ISBLANK($F$5),SUMIFS('Données FDC'!$I:$I,'Données FDC'!$A:$A,Activation!$C$5,'Données FDC'!$E:$E,Activation!P$9),IF(ISBLANK($J$5),SUMIFS('Données FDC'!$I:$I,'Données FDC'!$B:$B,Activation!$F$5,'Données FDC'!$E:$E,Activation!P$9),SUMIFS('Données FDC'!$I:$I,'Données FDC'!$C:$C,Activation!$J$5,'Données FDC'!$E:$E,Activation!P$9))) -> 0.0001373890583
C64: % détenteurs CEGEE | D64: =SUM('Données FDC'!$AE:$AE)/SUM('Données FDC'!$I:$I) -> 0.4320620513 | E64: =SUM('Données FDC déc 2018'!$AE:$AE)/SUM('Données FDC déc 2018'!$I:$I) -> 0.4192822311 | F64: =SUMIF('Données FDC'!$E:$E,Activation!F$9,'Données FDC'!$AE:$AE)/SUMIF('Données FDC'!$E:$E,Activation!F$9,'Données FDC'!$I:$I) -> 0.9743494734 | G64: =SUMIF('Données FDC'!$E:$E,Activation!G$9,'Données FDC'!$AE:$AE)/SUMIF('Données FDC'!$E:$E,Activation!G$9,'Données FDC'!$I:$I) -> 0.8898261521 | H64: =SUMIF('Données FDC'!$E:$E,Activation!H$9,'Données FDC'!$AE:$AE)/SUMIF('Données FDC'!$E:$E,Activation!H$9,'Données FDC'!$I:$I) -> 0.2859229228 | I64: =SUMIF('Données FDC'!$E:$E,Activation!I$9,'Données FDC'!$AE:$AE)/SUMIF('Données FDC'!$E:$E,Activation!I$9,'Données FDC'!$I:$I) -> 0.1395848066 | J64: =SUMIF('Données FDC'!$E:$E,Activation!J$9,'Données FDC'!$AE:$AE)/SUMIF('Données FDC'!$E:$E,Activation!J$9,'Données FDC'!$I:$I) -> 1.000753845 | K64: =SUMIF('Données FDC'!$E:$E,Activation!K$9,'Données FDC'!$AE:$AE)/SUMIF('Données FDC'!$E:$E,Activation!K$9,'Données FDC'!$I:$I) -> 0.9573972825 | L64: =SUMIF('Données FDC'!$E:$E,Activation!L$9,'Données FDC'!$AE:$AE)/SUMIF('Données FDC'!$E:$E,Activation!L$9,'Données FDC'!$I:$I) -> 0.3141043084 | M64: =SUMIF('Données FDC'!$E:$E,Activation!M$9,'Données FDC'!$AE:$AE)/SUMIF('Données FDC'!$E:$E,Activation!M$9,'Données FDC'!$I:$I) -> 0.1401564368 | N64: =SUMIF('Données FDC'!$E:$E,Activation!N$9,'Données FDC'!$AE:$AE)/SUMIF('Données FDC'!$E:$E,Activation!N$9,'Données FDC'!$I:$I) -> 0.08311190997 | O64: =SUMIF('Données FDC'!$E:$E,Activation!O$9,'Données FDC'!$AE:$AE)/SUMIF('Données FDC'!$E:$E,Activation!O$9,'Données FDC'!$I:$I) -> 0.03698816224 | P64: =SUMIF('Données FDC'!$E:$E,Activation!P$9,'Données FDC'!$AE:$AE)/SUMIF('Données FDC'!$E:$E,Activation!P$9,'Données FDC'!$I:$I) -> 0.0001373890583
B65: Bouquet Liberté (12 ans et plus) | C65: Variation | D65: =SUM(F65:P65) -> 10975 | F65: =F66-IF(ISBLANK($F$5),SUMIFS('Données FDC déc 2018'!$AF:$AF,'Données FDC déc 2018'!$A:$A,Activation!$C$5,'Données FDC déc 2018'!$E:$E,Activation!F$9),IF(ISBLANK($J$5),SUMIFS('Données FDC déc 2018'!$AF:$AF,'Données FDC déc 2018'!$B:$B,Activation!$F$5,'Données FDC déc 2018'!$E:$E,Activation!F$9),SUMIFS('Données FDC déc 2018'!$AF:$AF,'Données FDC déc 2018'!$C:$C,Activation!$J$5,'Données FDC déc 2018'!$E:$E,Activation!F$9))) -> 4477 | G65: =G66-IF(ISBLANK($F$5),SUMIFS('Données FDC déc 2018'!$AF:$AF,'Données FDC déc 2018'!$A:$A,Activation!$C$5,'Données FDC déc 2018'!$E:$E,Activation!G$9),IF(ISBLANK($J$5),SUMIFS('Données FDC déc 2018'!$AF:$AF,'Données FDC déc 2018'!$B:$B,Activation!$F$5,'Données FDC déc 2018'!$E:$E,Activation!G$9),SUMIFS('Données FDC déc 2018'!$AF:$AF,'Données FDC déc 2018'!$C:$C,Activation!$J$5,'Données FDC déc 2018'!$E:$E,Activation!G$9))) -> 436 | H65: =H66-IF(ISBLANK($F$5),SUMIFS('Données FDC déc 2018'!$AF:$AF,'Données FDC déc 2018'!$A:$A,Activation!$C$5,'Données FDC déc 2018'!$E:$E,Activation!H$9),IF(ISBLANK($J$5),SUMIFS('Données FDC déc 2018'!$AF:$AF,'Données FDC déc 2018'!$B:$B,Activation!$F$5,'Données FDC déc 2018'!$E:$E,Activation!H$9),SUMIFS('Données FDC déc 2018'!$AF:$AF,'Données FDC déc 2018'!$C:$C,Activation!$J$5,'Données FDC déc 2018'!$E:$E,Activation!H$9))) -> 1134 | I65: =I66-IF(ISBLANK($F$5),SUMIFS('Données FDC déc 2018'!$AF:$AF,'Données FDC déc 2018'!$A:$A,Activation!$C$5,'Données FDC déc 2018'!$E:$E,Activation!I$9),IF(ISBLANK($J$5),SUMIFS('Données FDC déc 2018'!$AF:$AF,'Données FDC déc 2018'!$B:$B,Activation!$F$5,'Données FDC déc 2018'!$E:$E,Activation!I$9),SUMIFS('Données FDC déc 2018'!$AF:$AF,'Données FDC déc 2018'!$C:$C,Activation!$J$5,'Données FDC déc 2018'!$E:$E,Activation!I$9))) -> 2021 | J65: =J66-IF(ISBLANK($F$5),SUMIFS('Données FDC déc 2018'!$AF:$AF,'Données FDC déc 2018'!$A:$A,Activation!$C$5,'Données FDC déc 2018'!$E:$E,Activation!J$9),IF(ISBLANK($J$5),SUMIFS('Données FDC déc 2018'!$AF:$AF,'Données FDC déc 2018'!$B:$B,Activation!$F$5,'Données FDC déc 2018'!$E:$E,Activation!J$9),SUMIFS('Données FDC déc 2018'!$AF:$AF,'Données FDC déc 2018'!$C:$C,Activation!$J$5,'Données FDC déc 2018'!$E:$E,Activation!J$9))) -> 159 | K65: =K66-IF(ISBLANK($F$5),SUMIFS('Données FDC déc 2018'!$AF:$AF,'Données FDC déc 2018'!$A:$A,Activation!$C$5,'Données FDC déc 2018'!$E:$E,Activation!K$9),IF(ISBLANK($J$5),SUMIFS('Données FDC déc 2018'!$AF:$AF,'Données FDC déc 2018'!$B:$B,Activation!$F$5,'Données FDC déc 2018'!$E:$E,Activation!K$9),SUMIFS('Données FDC déc 2018'!$AF:$AF,'Données FDC déc 2018'!$C:$C,Activation!$J$5,'Données FDC déc 2018'!$E:$E,Activation!K$9))) -> -234 | L65: =L66-IF(ISBLANK($F$5),SUMIFS('Données FDC déc 2018'!$AF:$AF,'Données FDC déc 2018'!$A:$A,Activation!$C$5,'Données FDC déc 2018'!$E:$E,Activation!L$9),IF(ISBLANK($J$5),SUMIFS('Données FDC déc 2018'!$AF:$AF,'Données FDC déc 2018'!$B:$B,Activation!$F$5,'Données FDC déc 2018'!$E:$E,Activation!L$9),SUMIFS('Données FDC déc 2018'!$AF:$AF,'Données FDC déc 2018'!$C:$C,Activation!$J$5,'Données FDC déc 2018'!$E:$E,Activation!L$9))) -> 528 | M65: =M66-IF(ISBLANK($F$5),SUMIFS('Données FDC déc 2018'!$AF:$AF,'Données FDC déc 2018'!$A:$A,Activation!$C$5,'Données FDC déc 2018'!$E:$E,Activation!M$9),IF(ISBLANK($J$5),SUMIFS('Données FDC déc 2018'!$AF:$AF,'Données FDC déc 2018'!$B:$B,Activation!$F$5,'Données FDC déc 2018'!$E:$E,Activation!M$9),SUMIFS('Données FDC déc 2018'!$AF:$AF,'Données FDC déc 2018'!$C:$C,Activation!$J$5,'Données FDC déc 2018'!$E:$E,Activation!M$9))) -> 1970 | N65: =N66-IF(ISBLANK($F$5),SUMIFS('Données FDC déc 2018'!$AF:$AF,'Données FDC déc 2018'!$A:$A,Activation!$C$5,'Données FDC déc 2018'!$E:$E,Activation!N$9),IF(ISBLANK($J$5),SUMIFS('Données FDC déc 2018'!$AF:$AF,'Données FDC déc 2018'!$B:$B,Activation!$F$5,'Données FDC déc 2018'!$E:$E,Activation!N$9),SUMIFS('Données FDC déc 2018'!$AF:$AF,'Données FDC déc 2018'!$C:$C,Activation!$J$5,'Données FDC déc 2018'!$E:$E,Activation!N$9))) -> 228 | O65: =O66-IF(ISBLANK($F$5),SUMIFS('Données FDC déc 2018'!$AF:$AF,'Données FDC déc 2018'!$A:$A,Activation!$C$5,'Données FDC déc 2018'!$E:$E,Activation!O$9),IF(ISBLANK($J$5),SUMIFS('Données FDC déc 2018'!$AF:$AF,'Données FDC déc 2018'!$B:$B,Activation!$F$5,'Données FDC déc 2018'!$E:$E,Activation!O$9),SUMIFS('Données FDC déc 2018'!$AF:$AF,'Données FDC déc 2018'!$C:$C,Activation!$J$5,'Données FDC déc 2018'!$E:$E,Activation!O$9))) -> 247 | P65: =P66-IF(ISBLANK($F$5),SUMIFS('Données FDC déc 2018'!$AF:$AF,'Données FDC déc 2018'!$A:$A,Activation!$C$5,'Données FDC déc 2018'!$E:$E,Activation!P$9),IF(ISBLANK($J$5),SUMIFS('Données FDC déc 2018'!$AF:$AF,'Données FDC déc 2018'!$B:$B,Activation!$F$5,'Données FDC déc 2018'!$E:$E,Activation!P$9),SUMIFS('Données FDC déc 2018'!$AF:$AF,'Données FDC déc 2018'!$C:$C,Activation!$J$5,'Données FDC déc 2018'!$E:$E,Activation!P$9))) -> 9
C66: Nombre détenteurs | D66: =SUM(F66:P66) -> 537619 | E66: =IF(ISBLANK($F$5),SUMIFS('Données FDC déc 2018'!$AF:$AF,'Données FDC déc 2018'!$A:$A,Activation!$C$5),IF(ISBLANK($J$5),SUMIFS('Données FDC déc 2018'!$AF:$AF,'Données FDC déc 2018'!$B:$B,Activation!$F$5),SUMIFS('Données FDC déc 2018'!$AF:$AF,'Données FDC déc 2018'!$C:$C,Activation!$J$5))) -> 526644 | F66: =IF(ISBLANK($F$5),SUMIFS('Données FDC'!$AF:$AF,'Données FDC'!$A:$A,Activation!$C$5,'Données FDC'!$E:$E,Activation!F$9),IF(ISBLANK($J$5),SUMIFS('Données FDC'!$AF:$AF,'Données FDC'!$B:$B,Activation!$F$5,'Données FDC'!$E:$E,Activation!F$9),SUMIFS('Données FDC'!$AF:$AF,'Données FDC'!$C:$C,Activation!$J$5,'Données FDC'!$E:$E,Activation!F$9))) -> 250068 | G66: =IF(ISBLANK($F$5),SUMIFS('Données FDC'!$AF:$AF,'Données FDC'!$A:$A,Activation!$C$5,'Données FDC'!$E:$E,Activation!G$9),IF(ISBLANK($J$5),SUMIFS('Données FDC'!$AF:$AF,'Données FDC'!$B:$B,Activation!$F$5,'Données FDC'!$E:$E,Activation!G$9),SUMIFS('Données FDC'!$AF:$AF,'Données FDC'!$C:$C,Activation!$J$5,'Données FDC'!$E:$E,Activation!G$9))) -> 126062 | H66: =IF(ISBLANK($F$5),SUMIFS('Données FDC'!$AF:$AF,'Données FDC'!$A:$A,Activation!$C$5,'Données FDC'!$E:$E,Activation!H$9),IF(ISBLANK($J$5),SUMIFS('Données FDC'!$AF:$AF,'Données FDC'!$B:$B,Activation!$F$5,'Données FDC'!$E:$E,Activation!H$9),SUMIFS('Données FDC'!$AF:$AF,'Données FDC'!$C:$C,Activation!$J$5,'Données FDC'!$E:$E,Activation!H$9))) -> 38616 | I66: =IF(ISBLANK($F$5),SUMIFS('Données FDC'!$AF:$AF,'Données FDC'!$A:$A,Activation!$C$5,'Données FDC'!$E:$E,Activation!I$9),IF(ISBLANK($J$5),SUMIFS('Données FDC'!$AF:$AF,'Données FDC'!$B:$B,Activation!$F$5,'Données FDC'!$E:$E,Activation!I$9),SUMIFS('Données FDC'!$AF:$AF,'Données FDC'!$C:$C,Activation!$J$5,'Données FDC'!$E:$E,Activation!I$9))) -> 33826 | J66: =IF(ISBLANK($F$5),SUMIFS('Données FDC'!$AF:$AF,'Données FDC'!$A:$A,Activation!$C$5,'Données FDC'!$E:$E,Activation!J$9),IF(ISBLANK($J$5),SUMIFS('Données FDC'!$AF:$AF,'Données FDC'!$B:$B,Activation!$F$5,'Données FDC'!$E:$E,Activation!J$9),SUMIFS('Données FDC'!$AF:$AF,'Données FDC'!$C:$C,Activation!$J$5,'Données FDC'!$E:$E,Activation!J$9))) -> 56673 | K66: =IF(ISBLANK($F$5),SUMIFS('Données FDC'!$AF:$AF,'Données FDC'!$A:$A,Activation!$C$5,'Données FDC'!$E:$E,Activation!K$9),IF(ISBLANK($J$5),SUMIFS('Données FDC'!$AF:$AF,'Données FDC'!$B:$B,Activation!$F$5,'Données FDC'!$E:$E,Activation!K$9),SUMIFS('Données FDC'!$AF:$AF,'Données FDC'!$C:$C,Activation!$J$5,'Données FDC'!$E:$E,Activation!K$9))) -> 16520 | L66: =IF(ISBLANK($F$5),SUMIFS('Données FDC'!$AF:$AF,'Données FDC'!$A:$A,Activation!$C$5,'Données FDC'!$E:$E,Activation!L$9),IF(ISBLANK($J$5),SUMIFS('Données FDC'!$AF:$AF,'Données FDC'!$B:$B,Activation!$F$5,'Données FDC'!$E:$E,Activation!L$9),SUMIFS('Données FDC'!$AF:$AF,'Données FDC'!$C:$C,Activation!$J$5,'Données FDC'!$E:$E,Activation!L$9))) -> 3295 | M66: =IF(ISBLANK($F$5),SUMIFS('Données FDC'!$AF:$AF,'Données FDC'!$A:$A,Activation!$C$5,'Données FDC'!$E:$E,Activation!M$9),IF(ISBLANK($J$5),SUMIFS('Données FDC'!$AF:$AF,'Données FDC'!$B:$B,Activation!$F$5,'Données FDC'!$E:$E,Activation!M$9),SUMIFS('Données FDC'!$AF:$AF,'Données FDC'!$C:$C,Activation!$J$5,'Données FDC'!$E:$E,Activation!M$9))) -> 9754 | N66: =IF(ISBLANK($F$5),SUMIFS('Données FDC'!$AF:$AF,'Données FDC'!$A:$A,Activation!$C$5,'Données FDC'!$E:$E,Activation!N$9),IF(ISBLANK($J$5),SUMIFS('Données FDC'!$AF:$AF,'Données FDC'!$B:$B,Activation!$F$5,'Données FDC'!$E:$E,Activation!N$9),SUMIFS('Données FDC'!$AF:$AF,'Données FDC'!$C:$C,Activation!$J$5,'Données FDC'!$E:$E,Activation!N$9))) -> 2001 | O66: =IF(ISBLANK($F$5),SUMIFS('Données FDC'!$AF:$AF,'Données FDC'!$A:$A,Activation!$C$5,'Données FDC'!$E:$E,Activation!O$9),IF(ISBLANK($J$5),SUMIFS('Données FDC'!$AF:$AF,'Données FDC'!$B:$B,Activation!$F$5,'Données FDC'!$E:$E,Activation!O$9),SUMIFS('Données FDC'!$AF:$AF,'Données FDC'!$C:$C,Activation!$J$5,'Données FDC'!$E:$E,Activation!O$9))) -> 791 | P66: =IF(ISBLANK($F$5),SUMIFS('Données FDC'!$AF:$AF,'Données FDC'!$A:$A,Activation!$C$5,'Données FDC'!$E:$E,Activation!P$9),IF(ISBLANK($J$5),SUMIFS('Données FDC'!$AF:$AF,'Données FDC'!$B:$B,Activation!$F$5,'Données FDC'!$E:$E,Activation!P$9),SUMIFS('Données FDC'!$AF:$AF,'Données FDC'!$C:$C,Activation!$J$5,'Données FDC'!$E:$E,Activation!P$9))) -> 13
C67: % détenteurs | D67: =D66/IF(ISBLANK($F$5),SUMIFS('Données FDC'!$I:$I,'Données FDC'!$A:$A,Activation!$C$5),IF(ISBLANK($J$5),SUMIFS('Données FDC'!$I:$I,'Données FDC'!$B:$B,Activation!$F$5),SUMIFS('Données FDC'!$I:$I,'Données FDC'!$C:$C,Activation!$J$5))) -> 0.38358861 | E67: =E66/IF(ISBLANK($F$5),SUMIFS('Données FDC déc 2018'!$I:$I,'Données FDC déc 2018'!$A:$A,Activation!$C$5),IF(ISBLANK($J$5),SUMIFS('Données FDC déc 2018'!$I:$I,'Données FDC déc 2018'!$B:$B,Activation!$F$5),SUMIFS('Données FDC déc 2018'!$I:$I,'Données FDC déc 2018'!$C:$C,Activation!$J$5))) -> 0.3675625575 | F67: =F66/IF(ISBLANK($F$5),SUMIFS('Données FDC'!$I:$I,'Données FDC'!$A:$A,Activation!$C$5,'Données FDC'!$E:$E,Activation!F$9),IF(ISBLANK($J$5),SUMIFS('Données FDC'!$I:$I,'Données FDC'!$B:$B,Activation!$F$5,'Données FDC'!$E:$E,Activation!F$9),SUMIFS('Données FDC'!$I:$I,'Données FDC'!$C:$C,Activation!$J$5,'Données FDC'!$E:$E,Activation!F$9))) -> 0.908423152 | G67: =G66/IF(ISBLANK($F$5),SUMIFS('Données FDC'!$I:$I,'Données FDC'!$A:$A,Activation!$C$5,'Données FDC'!$E:$E,Activation!G$9),IF(ISBLANK($J$5),SUMIFS('Données FDC'!$I:$I,'Données FDC'!$B:$B,Activation!$F$5,'Données FDC'!$E:$E,Activation!G$9),SUMIFS('Données FDC'!$I:$I,'Données FDC'!$C:$C,Activation!$J$5,'Données FDC'!$E:$E,Activation!G$9))) -> 0.7807485306 | H67: =H66/IF(ISBLANK($F$5),SUMIFS('Données FDC'!$I:$I,'Données FDC'!$A:$A,Activation!$C$5,'Données FDC'!$E:$E,Activation!H$9),IF(ISBLANK($J$5),SUMIFS('Données FDC'!$I:$I,'Données FDC'!$B:$B,Activation!$F$5,'Données FDC'!$E:$E,Activation!H$9),SUMIFS('Données FDC'!$I:$I,'Données FDC'!$C:$C,Activation!$J$5,'Données FDC'!$E:$E,Activation!H$9))) -> 0.2255884191 | I67: =I66/IF(ISBLANK($F$5),SUMIFS('Données FDC'!$I:$I,'Données FDC'!$A:$A,Activation!$C$5,'Données FDC'!$E:$E,Activation!I$9),IF(ISBLANK($J$5),SUMIFS('Données FDC'!$I:$I,'Données FDC'!$B:$B,Activation!$F$5,'Données FDC'!$E:$E,Activation!I$9),SUMIFS('Données FDC'!$I:$I,'Données FDC'!$C:$C,Activation!$J$5,'Données FDC'!$E:$E,Activation!I$9))) -> 0.09454915432 | J67: =J66/IF(ISBLANK($F$5),SUMIFS('Données FDC'!$I:$I,'Données FDC'!$A:$A,Activation!$C$5,'Données FDC'!$E:$E,Activation!J$9),IF(ISBLANK($J$5),SUMIFS('Données FDC'!$I:$I,'Données FDC'!$B:$B,Activation!$F$5,'Données FDC'!$E:$E,Activation!J$9),SUMIFS('Données FDC'!$I:$I,'Données FDC'!$C:$C,Activation!$J$5,'Données FDC'!$E:$E,Activation!J$9))) -> 0.9493918987 | K67: =K66/IF(ISBLANK($F$5),SUMIFS('Données FDC'!$I:$I,'Données FDC'!$A:$A,Activation!$C$5,'Données FDC'!$E:$E,Activation!K$9),IF(ISBLANK($J$5),SUMIFS('Données FDC'!$I:$I,'Données FDC'!$B:$B,Activation!$F$5,'Données FDC'!$E:$E,Activation!K$9),SUMIFS('Données FDC'!$I:$I,'Données FDC'!$C:$C,Activation!$J$5,'Données FDC'!$E:$E,Activation!K$9))) -> 0.8942781357 | L67: =L66/IF(ISBLANK($F$5),SUMIFS('Données FDC'!$I:$I,'Données FDC'!$A:$A,Activation!$C$5,'Données FDC'!$E:$E,Activation!L$9),IF(ISBLANK($J$5),SUMIFS('Données FDC'!$I:$I,'Données FDC'!$B:$B,Activation!$F$5,'Données FDC'!$E:$E,Activation!L$9),SUMIFS('Données FDC'!$I:$I,'Données FDC'!$C:$C,Activation!$J$5,'Données FDC'!$E:$E,Activation!L$9))) -> 0.2988662132 | M67: =M66/IF(ISBLANK($F$5),SUMIFS('Données FDC'!$I:$I,'Données FDC'!$A:$A,Activation!$C$5,'Données FDC'!$E:$E,Activation!M$9),IF(ISBLANK($J$5),SUMIFS('Données FDC'!$I:$I,'Données FDC'!$B:$B,Activation!$F$5,'Données FDC'!$E:$E,Activation!M$9),SUMIFS('Données FDC'!$I:$I,'Données FDC'!$C:$C,Activation!$J$5,'Données FDC'!$E:$E,Activation!M$9))) -> 0.1267345772 | N67: =N66/IF(ISBLANK($F$5),SUMIFS('Données FDC'!$I:$I,'Données FDC'!$A:$A,Activation!$C$5,'Données FDC'!$E:$E,Activation!N$9),IF(ISBLANK($J$5),SUMIFS('Données FDC'!$I:$I,'Données FDC'!$B:$B,Activation!$F$5,'Données FDC'!$E:$E,Activation!N$9),SUMIFS('Données FDC'!$I:$I,'Données FDC'!$C:$C,Activation!$J$5,'Données FDC'!$E:$E,Activation!N$9))) -> 0.07818849641 | O67: =O66/IF(ISBLANK($F$5),SUMIFS('Données FDC'!$I:$I,'Données FDC'!$A:$A,Activation!$C$5,'Données FDC'!$E:$E,Activation!O$9),IF(ISBLANK($J$5),SUMIFS('Données FDC'!$I:$I,'Données FDC'!$B:$B,Activation!$F$5,'Données FDC'!$E:$E,Activation!O$9),SUMIFS('Données FDC'!$I:$I,'Données FDC'!$C:$C,Activation!$J$5,'Données FDC'!$E:$E,Activation!O$9))) -> 0.03070056278 | P67: =P66/IF(ISBLANK($F$5),SUMIFS('Données FDC'!$I:$I,'Données FDC'!$A:$A,Activation!$C$5,'Données FDC'!$E:$E,Activation!P$9),IF(ISBLANK($J$5),SUMIFS('Données FDC'!$I:$I,'Données FDC'!$B:$B,Activation!$F$5,'Données FDC'!$E:$E,Activation!P$9),SUMIFS('Données FDC'!$I:$I,'Données FDC'!$C:$C,Activation!$J$5,'Données FDC'!$E:$E,Activation!P$9))) -> 5.953525861e-05
C68: % détenteurs CEGEE | D68: =SUM('Données FDC'!$AF:$AF)/SUM('Données FDC'!$I:$I) -> 0.38358861 | E68: =SUM('Données FDC déc 2018'!$AF:$AF)/SUM('Données FDC déc 2018'!$I:$I) -> 0.3675625575 | F68: =SUMIF('Données FDC'!$E:$E,Activation!F$9,'Données FDC'!$AF:$AF)/SUMIF('Données FDC'!$E:$E,Activation!F$9,'Données FDC'!$I:$I) -> 0.908423152 | G68: =SUMIF('Données FDC'!$E:$E,Activation!G$9,'Données FDC'!$AF:$AF)/SUMIF('Données FDC'!$E:$E,Activation!G$9,'Données FDC'!$I:$I) -> 0.7807485306 | H68: =SUMIF('Données FDC'!$E:$E,Activation!H$9,'Données FDC'!$AF:$AF)/SUMIF('Données FDC'!$E:$E,Activation!H$9,'Données FDC'!$I:$I) -> 0.2255884191 | I68: =SUMIF('Données FDC'!$E:$E,Activation!I$9,'Données FDC'!$AF:$AF)/SUMIF('Données FDC'!$E:$E,Activation!I$9,'Données FDC'!$I:$I) -> 0.09454915432 | J68: =SUMIF('Données FDC'!$E:$E,Activation!J$9,'Données FDC'!$AF:$AF)/SUMIF('Données FDC'!$E:$E,Activation!J$9,'Données FDC'!$I:$I) -> 0.9493918987 | K68: =SUMIF('Données FDC'!$E:$E,Activation!K$9,'Données FDC'!$AF:$AF)/SUMIF('Données FDC'!$E:$E,Activation!K$9,'Données FDC'!$I:$I) -> 0.8942781357 | L68: =SUMIF('Données FDC'!$E:$E,Activation!L$9,'Données FDC'!$AF:$AF)/SUMIF('Données FDC'!$E:$E,Activation!L$9,'Données FDC'!$I:$I) -> 0.2988662132 | M68: =SUMIF('Données FDC'!$E:$E,Activation!M$9,'Données FDC'!$AF:$AF)/SUMIF('Données FDC'!$E:$E,Activation!M$9,'Données FDC'!$I:$I) -> 0.1267345772 | N68: =SUMIF('Données FDC'!$E:$E,Activation!N$9,'Données FDC'!$AF:$AF)/SUMIF('Données FDC'!$E:$E,Activation!N$9,'Données FDC'!$I:$I) -> 0.07818849641 | O68: =SUMIF('Données FDC'!$E:$E,Activation!O$9,'Données FDC'!$AF:$AF)/SUMIF('Données FDC'!$E:$E,Activation!O$9,'Données FDC'!$I:$I) -> 0.03070056278 | P68: =SUMIF('Données FDC'!$E:$E,Activation!P$9,'Données FDC'!$AF:$AF)/SUMIF('Données FDC'!$E:$E,Activation!P$9,'Données FDC'!$I:$I) -> 5.953525861e-05
B69: Carte de paiement (12 ans et plus) | C69: Variation | D69: =SUM(F69:P69) -> 2545 | F69: =F70-IF(ISBLANK($F$5),SUMIFS('Données FDC déc 2018'!$Y:$Y,'Données FDC déc 2018'!$A:$A,Activation!$C$5,'Données FDC déc 2018'!$E:$E,Activation!F$9),IF(ISBLANK($J$5),SUMIFS('Données FDC déc 2018'!$Y:$Y,'Données FDC déc 2018'!$B:$B,Activation!$F$5,'Données FDC déc 2018'!$E:$E,Activation!F$9),SUMIFS('Données FDC déc 2018'!$Y:$Y,'Données FDC déc 2018'!$C:$C,Activation!$J$5,'Données FDC déc 2018'!$E:$E,Activation!F$9))) -> 1213 | G69: =G70-IF(ISBLANK($F$5),SUMIFS('Données FDC déc 2018'!$Y:$Y,'Données FDC déc 2018'!$A:$A,Activation!$C$5,'Données FDC déc 2018'!$E:$E,Activation!G$9),IF(ISBLANK($J$5),SUMIFS('Données FDC déc 2018'!$Y:$Y,'Données FDC déc 2018'!$B:$B,Activation!$F$5,'Données FDC déc 2018'!$E:$E,Activation!G$9),SUMIFS('Données FDC déc 2018'!$Y:$Y,'Données FDC déc 2018'!$C:$C,Activation!$J$5,'Données FDC déc 2018'!$E:$E,Activation!G$9))) -> -894 | H69: =H70-IF(ISBLANK($F$5),SUMIFS('Données FDC déc 2018'!$Y:$Y,'Données FDC déc 2018'!$A:$A,Activation!$C$5,'Données FDC déc 2018'!$E:$E,Activation!H$9),IF(ISBLANK($J$5),SUMIFS('Données FDC déc 2018'!$Y:$Y,'Données FDC déc 2018'!$B:$B,Activation!$F$5,'Données FDC déc 2018'!$E:$E,Activation!H$9),SUMIFS('Données FDC déc 2018'!$Y:$Y,'Données FDC déc 2018'!$C:$C,Activation!$J$5,'Données FDC déc 2018'!$E:$E,Activation!H$9))) -> 192 | I69: =I70-IF(ISBLANK($F$5),SUMIFS('Données FDC déc 2018'!$Y:$Y,'Données FDC déc 2018'!$A:$A,Activation!$C$5,'Données FDC déc 2018'!$E:$E,Activation!I$9),IF(ISBLANK($J$5),SUMIFS('Données FDC déc 2018'!$Y:$Y,'Données FDC déc 2018'!$B:$B,Activation!$F$5,'Données FDC déc 2018'!$E:$E,Activation!I$9),SUMIFS('Données FDC déc 2018'!$Y:$Y,'Données FDC déc 2018'!$C:$C,Activation!$J$5,'Données FDC déc 2018'!$E:$E,Activation!I$9))) -> 1069 | J69: =J70-IF(ISBLANK($F$5),SUMIFS('Données FDC déc 2018'!$Y:$Y,'Données FDC déc 2018'!$A:$A,Activation!$C$5,'Données FDC déc 2018'!$E:$E,Activation!J$9),IF(ISBLANK($J$5),SUMIFS('Données FDC déc 2018'!$Y:$Y,'Données FDC déc 2018'!$B:$B,Activation!$F$5,'Données FDC déc 2018'!$E:$E,Activation!J$9),SUMIFS('Données FDC déc 2018'!$Y:$Y,'Données FDC déc 2018'!$C:$C,Activation!$J$5,'Données FDC déc 2018'!$E:$E,Activation!J$9))) -> -1337 | K69: =K70-IF(ISBLANK($F$5),SUMIFS('Données FDC déc 2018'!$Y:$Y,'Données FDC déc 2018'!$A:$A,Activation!$C$5,'Données FDC déc 2018'!$E:$E,Activation!K$9),IF(ISBLANK($J$5),SUMIFS('Données FDC déc 2018'!$Y:$Y,'Données FDC déc 2018'!$B:$B,Activation!$F$5,'Données FDC déc 2018'!$E:$E,Activation!K$9),SUMIFS('Données FDC déc 2018'!$Y:$Y,'Données FDC déc 2018'!$C:$C,Activation!$J$5,'Données FDC déc 2018'!$E:$E,Activation!K$9))) -> -462 | L69: =L70-IF(ISBLANK($F$5),SUMIFS('Données FDC déc 2018'!$Y:$Y,'Données FDC déc 2018'!$A:$A,Activation!$C$5,'Données FDC déc 2018'!$E:$E,Activation!L$9),IF(ISBLANK($J$5),SUMIFS('Données FDC déc 2018'!$Y:$Y,'Données FDC déc 2018'!$B:$B,Activation!$F$5,'Données FDC déc 2018'!$E:$E,Activation!L$9),SUMIFS('Données FDC déc 2018'!$Y:$Y,'Données FDC déc 2018'!$C:$C,Activation!$J$5,'Données FDC déc 2018'!$E:$E,Activation!L$9))) -> 480 | M69: =M70-IF(ISBLANK($F$5),SUMIFS('Données FDC déc 2018'!$Y:$Y,'Données FDC déc 2018'!$A:$A,Activation!$C$5,'Données FDC déc 2018'!$E:$E,Activation!M$9),IF(ISBLANK($J$5),SUMIFS('Données FDC déc 2018'!$Y:$Y,'Données FDC déc 2018'!$B:$B,Activation!$F$5,'Données FDC déc 2018'!$E:$E,Activation!M$9),SUMIFS('Données FDC déc 2018'!$Y:$Y,'Données FDC déc 2018'!$C:$C,Activation!$J$5,'Données FDC déc 2018'!$E:$E,Activation!M$9))) -> 1819 | N69: =N70-IF(ISBLANK($F$5),SUMIFS('Données FDC déc 2018'!$Y:$Y,'Données FDC déc 2018'!$A:$A,Activation!$C$5,'Données FDC déc 2018'!$E:$E,Activation!N$9),IF(ISBLANK($J$5),SUMIFS('Données FDC déc 2018'!$Y:$Y,'Données FDC déc 2018'!$B:$B,Activation!$F$5,'Données FDC déc 2018'!$E:$E,Activation!N$9),SUMIFS('Données FDC déc 2018'!$Y:$Y,'Données FDC déc 2018'!$C:$C,Activation!$J$5,'Données FDC déc 2018'!$E:$E,Activation!N$9))) -> 226 | O69: =O70-IF(ISBLANK($F$5),SUMIFS('Données FDC déc 2018'!$Y:$Y,'Données FDC déc 2018'!$A:$A,Activation!$C$5,'Données FDC déc 2018'!$E:$E,Activation!O$9),IF(ISBLANK($J$5),SUMIFS('Données FDC déc 2018'!$Y:$Y,'Données FDC déc 2018'!$B:$B,Activation!$F$5,'Données FDC déc 2018'!$E:$E,Activation!O$9),SUMIFS('Données FDC déc 2018'!$Y:$Y,'Données FDC déc 2018'!$C:$C,Activation!$J$5,'Données FDC déc 2018'!$E:$E,Activation!O$9))) -> 249 | P69: =P70-IF(ISBLANK($F$5),SUMIFS('Données FDC déc 2018'!$Y:$Y,'Données FDC déc 2018'!$A:$A,Activation!$C$5,'Données FDC déc 2018'!$E:$E,Activation!P$9),IF(ISBLANK($J$5),SUMIFS('Données FDC déc 2018'!$Y:$Y,'Données FDC déc 2018'!$B:$B,Activation!$F$5,'Données FDC déc 2018'!$E:$E,Activation!P$9),SUMIFS('Données FDC déc 2018'!$Y:$Y,'Données FDC déc 2018'!$C:$C,Activation!$J$5,'Données FDC déc 2018'!$E:$E,Activation!P$9))) -> -10
C70: Nombre détenteurs | D70: =SUM(F70:P70) -> 578469 | E70: =IF(ISBLANK($F$5),SUMIFS('Données FDC déc 2018'!$Y:$Y,'Données FDC déc 2018'!$A:$A,Activation!$C$5),IF(ISBLANK($J$5),SUMIFS('Données FDC déc 2018'!$Y:$Y,'Données FDC déc 2018'!$B:$B,Activation!$F$5),SUMIFS('Données FDC déc 2018'!$Y:$Y,'Données FDC déc 2018'!$C:$C,Activation!$J$5))) -> 575924 | F70: =IF(ISBLANK($F$5),SUMIFS('Données FDC'!$Y:$Y,'Données FDC'!$A:$A,Activation!$C$5,'Données FDC'!$E:$E,Activation!F$9),IF(ISBLANK($J$5),SUMIFS('Données FDC'!$Y:$Y,'Données FDC'!$B:$B,Activation!$F$5,'Données FDC'!$E:$E,Activation!F$9),SUMIFS('Données FDC'!$Y:$Y,'Données FDC'!$C:$C,Activation!$J$5,'Données FDC'!$E:$E,Activation!F$9))) -> 267611 | G70: =IF(ISBLANK($F$5),SUMIFS('Données FDC'!$Y:$Y,'Données FDC'!$A:$A,Activation!$C$5,'Données FDC'!$E:$E,Activation!G$9),IF(ISBLANK($J$5),SUMIFS('Données FDC'!$Y:$Y,'Données FDC'!$B:$B,Activation!$F$5,'Données FDC'!$E:$E,Activation!G$9),SUMIFS('Données FDC'!$Y:$Y,'Données FDC'!$C:$C,Activation!$J$5,'Données FDC'!$E:$E,Activation!G$9))) -> 122417 | H70: =IF(ISBLANK($F$5),SUMIFS('Données FDC'!$Y:$Y,'Données FDC'!$A:$A,Activation!$C$5,'Données FDC'!$E:$E,Activation!H$9),IF(ISBLANK($J$5),SUMIFS('Données FDC'!$Y:$Y,'Données FDC'!$B:$B,Activation!$F$5,'Données FDC'!$E:$E,Activation!H$9),SUMIFS('Données FDC'!$Y:$Y,'Données FDC'!$C:$C,Activation!$J$5,'Données FDC'!$E:$E,Activation!H$9))) -> 50464 | I70: =IF(ISBLANK($F$5),SUMIFS('Données FDC'!$Y:$Y,'Données FDC'!$A:$A,Activation!$C$5,'Données FDC'!$E:$E,Activation!I$9),IF(ISBLANK($J$5),SUMIFS('Données FDC'!$Y:$Y,'Données FDC'!$B:$B,Activation!$F$5,'Données FDC'!$E:$E,Activation!I$9),SUMIFS('Données FDC'!$Y:$Y,'Données FDC'!$C:$C,Activation!$J$5,'Données FDC'!$E:$E,Activation!I$9))) -> 44871 | J70: =IF(ISBLANK($F$5),SUMIFS('Données FDC'!$Y:$Y,'Données FDC'!$A:$A,Activation!$C$5,'Données FDC'!$E:$E,Activation!J$9),IF(ISBLANK($J$5),SUMIFS('Données FDC'!$Y:$Y,'Données FDC'!$B:$B,Activation!$F$5,'Données FDC'!$E:$E,Activation!J$9),SUMIFS('Données FDC'!$Y:$Y,'Données FDC'!$C:$C,Activation!$J$5,'Données FDC'!$E:$E,Activation!J$9))) -> 59338 | K70: =IF(ISBLANK($F$5),SUMIFS('Données FDC'!$Y:$Y,'Données FDC'!$A:$A,Activation!$C$5,'Données FDC'!$E:$E,Activation!K$9),IF(ISBLANK($J$5),SUMIFS('Données FDC'!$Y:$Y,'Données FDC'!$B:$B,Activation!$F$5,'Données FDC'!$E:$E,Activation!K$9),SUMIFS('Données FDC'!$Y:$Y,'Données FDC'!$C:$C,Activation!$J$5,'Données FDC'!$E:$E,Activation!K$9))) -> 17249 | L70: =IF(ISBLANK($F$5),SUMIFS('Données FDC'!$Y:$Y,'Données FDC'!$A:$A,Activation!$C$5,'Données FDC'!$E:$E,Activation!L$9),IF(ISBLANK($J$5),SUMIFS('Données FDC'!$Y:$Y,'Données FDC'!$B:$B,Activation!$F$5,'Données FDC'!$E:$E,Activation!L$9),SUMIFS('Données FDC'!$Y:$Y,'Données FDC'!$C:$C,Activation!$J$5,'Données FDC'!$E:$E,Activation!L$9))) -> 3373 | M70: =IF(ISBLANK($F$5),SUMIFS('Données FDC'!$Y:$Y,'Données FDC'!$A:$A,Activation!$C$5,'Données FDC'!$E:$E,Activation!M$9),IF(ISBLANK($J$5),SUMIFS('Données FDC'!$Y:$Y,'Données FDC'!$B:$B,Activation!$F$5,'Données FDC'!$E:$E,Activation!M$9),SUMIFS('Données FDC'!$Y:$Y,'Données FDC'!$C:$C,Activation!$J$5,'Données FDC'!$E:$E,Activation!M$9))) -> 10109 | N70: =IF(ISBLANK($F$5),SUMIFS('Données FDC'!$Y:$Y,'Données FDC'!$A:$A,Activation!$C$5,'Données FDC'!$E:$E,Activation!N$9),IF(ISBLANK($J$5),SUMIFS('Données FDC'!$Y:$Y,'Données FDC'!$B:$B,Activation!$F$5,'Données FDC'!$E:$E,Activation!N$9),SUMIFS('Données FDC'!$Y:$Y,'Données FDC'!$C:$C,Activation!$J$5,'Données FDC'!$E:$E,Activation!N$9))) -> 2007 | O70: =IF(ISBLANK($F$5),SUMIFS('Données FDC'!$Y:$Y,'Données FDC'!$A:$A,Activation!$C$5,'Données FDC'!$E:$E,Activation!O$9),IF(ISBLANK($J$5),SUMIFS('Données FDC'!$Y:$Y,'Données FDC'!$B:$B,Activation!$F$5,'Données FDC'!$E:$E,Activation!O$9),SUMIFS('Données FDC'!$Y:$Y,'Données FDC'!$C:$C,Activation!$J$5,'Données FDC'!$E:$E,Activation!O$9))) -> 794 | P70: =IF(ISBLANK($F$5),SUMIFS('Données FDC'!$Y:$Y,'Données FDC'!$A:$A,Activation!$C$5,'Données FDC'!$E:$E,Activation!P$9),IF(ISBLANK($J$5),SUMIFS('Données FDC'!$Y:$Y,'Données FDC'!$B:$B,Activation!$F$5,'Données FDC'!$E:$E,Activation!P$9),SUMIFS('Données FDC'!$Y:$Y,'Données FDC'!$C:$C,Activation!$J$5,'Données FDC'!$E:$E,Activation!P$9))) -> 236
C71: % détenteurs | D71: =D70/IF(ISBLANK($F$5),SUMIFS('Données FDC'!$I:$I,'Données FDC'!$A:$A,Activation!$C$5),IF(ISBLANK($J$5),SUMIFS('Données FDC'!$I:$I,'Données FDC'!$B:$B,Activation!$F$5),SUMIFS('Données FDC'!$I:$I,'Données FDC'!$C:$C,Activation!$J$5))) -> 0.4127348916 | E71: =E70/IF(ISBLANK($F$5),SUMIFS('Données FDC déc 2018'!$I:$I,'Données FDC déc 2018'!$A:$A,Activation!$C$5),IF(ISBLANK($J$5),SUMIFS('Données FDC déc 2018'!$I:$I,'Données FDC déc 2018'!$B:$B,Activation!$F$5),SUMIFS('Données FDC déc 2018'!$I:$I,'Données FDC déc 2018'!$C:$C,Activation!$J$5))) -> 0.4019567267 | F71: =F70/IF(ISBLANK($F$5),SUMIFS('Données FDC'!$I:$I,'Données FDC'!$A:$A,Activation!$C$5,'Données FDC'!$E:$E,Activation!F$9),IF(ISBLANK($J$5),SUMIFS('Données FDC'!$I:$I,'Données FDC'!$B:$B,Activation!$F$5,'Données FDC'!$E:$E,Activation!F$9),SUMIFS('Données FDC'!$I:$I,'Données FDC'!$C:$C,Activation!$J$5,'Données FDC'!$E:$E,Activation!F$9))) -> 0.9721516872 | G71: =G70/IF(ISBLANK($F$5),SUMIFS('Données FDC'!$I:$I,'Données FDC'!$A:$A,Activation!$C$5,'Données FDC'!$E:$E,Activation!G$9),IF(ISBLANK($J$5),SUMIFS('Données FDC'!$I:$I,'Données FDC'!$B:$B,Activation!$F$5,'Données FDC'!$E:$E,Activation!G$9),SUMIFS('Données FDC'!$I:$I,'Données FDC'!$C:$C,Activation!$J$5,'Données FDC'!$E:$E,Activation!G$9))) -> 0.7581736992 | H71: =H70/IF(ISBLANK($F$5),SUMIFS('Données FDC'!$I:$I,'Données FDC'!$A:$A,Activation!$C$5,'Données FDC'!$E:$E,Activation!H$9),IF(ISBLANK($J$5),SUMIFS('Données FDC'!$I:$I,'Données FDC'!$B:$B,Activation!$F$5,'Données FDC'!$E:$E,Activation!H$9),SUMIFS('Données FDC'!$I:$I,'Données FDC'!$C:$C,Activation!$J$5,'Données FDC'!$E:$E,Activation!H$9))) -> 0.2948025167 | I71: =I70/IF(ISBLANK($F$5),SUMIFS('Données FDC'!$I:$I,'Données FDC'!$A:$A,Activation!$C$5,'Données FDC'!$E:$E,Activation!I$9),IF(ISBLANK($J$5),SUMIFS('Données FDC'!$I:$I,'Données FDC'!$B:$B,Activation!$F$5,'Données FDC'!$E:$E,Activation!I$9),SUMIFS('Données FDC'!$I:$I,'Données FDC'!$C:$C,Activation!$J$5,'Données FDC'!$E:$E,Activation!I$9))) -> 0.1254217201 | J71: =J70/IF(ISBLANK($F$5),SUMIFS('Données FDC'!$I:$I,'Données FDC'!$A:$A,Activation!$C$5,'Données FDC'!$E:$E,Activation!J$9),IF(ISBLANK($J$5),SUMIFS('Données FDC'!$I:$I,'Données FDC'!$B:$B,Activation!$F$5,'Données FDC'!$E:$E,Activation!J$9),SUMIFS('Données FDC'!$I:$I,'Données FDC'!$C:$C,Activation!$J$5,'Données FDC'!$E:$E,Activation!J$9))) -> 0.9940362515 | K71: =K70/IF(ISBLANK($F$5),SUMIFS('Données FDC'!$I:$I,'Données FDC'!$A:$A,Activation!$C$5,'Données FDC'!$E:$E,Activation!K$9),IF(ISBLANK($J$5),SUMIFS('Données FDC'!$I:$I,'Données FDC'!$B:$B,Activation!$F$5,'Données FDC'!$E:$E,Activation!K$9),SUMIFS('Données FDC'!$I:$I,'Données FDC'!$C:$C,Activation!$J$5,'Données FDC'!$E:$E,Activation!K$9))) -> 0.9337411357 | L71: =L70/IF(ISBLANK($F$5),SUMIFS('Données FDC'!$I:$I,'Données FDC'!$A:$A,Activation!$C$5,'Données FDC'!$E:$E,Activation!L$9),IF(ISBLANK($J$5),SUMIFS('Données FDC'!$I:$I,'Données FDC'!$B:$B,Activation!$F$5,'Données FDC'!$E:$E,Activation!L$9),SUMIFS('Données FDC'!$I:$I,'Données FDC'!$C:$C,Activation!$J$5,'Données FDC'!$E:$E,Activation!L$9))) -> 0.3059410431 | M71: =M70/IF(ISBLANK($F$5),SUMIFS('Données FDC'!$I:$I,'Données FDC'!$A:$A,Activation!$C$5,'Données FDC'!$E:$E,Activation!M$9),IF(ISBLANK($J$5),SUMIFS('Données FDC'!$I:$I,'Données FDC'!$B:$B,Activation!$F$5,'Données FDC'!$E:$E,Activation!M$9),SUMIFS('Données FDC'!$I:$I,'Données FDC'!$C:$C,Activation!$J$5,'Données FDC'!$E:$E,Activation!M$9))) -> 0.1313471233 | N71: =N70/IF(ISBLANK($F$5),SUMIFS('Données FDC'!$I:$I,'Données FDC'!$A:$A,Activation!$C$5,'Données FDC'!$E:$E,Activation!N$9),IF(ISBLANK($J$5),SUMIFS('Données FDC'!$I:$I,'Données FDC'!$B:$B,Activation!$F$5,'Données FDC'!$E:$E,Activation!N$9),SUMIFS('Données FDC'!$I:$I,'Données FDC'!$C:$C,Activation!$J$5,'Données FDC'!$E:$E,Activation!N$9))) -> 0.07842294467 | O71: =O70/IF(ISBLANK($F$5),SUMIFS('Données FDC'!$I:$I,'Données FDC'!$A:$A,Activation!$C$5,'Données FDC'!$E:$E,Activation!O$9),IF(ISBLANK($J$5),SUMIFS('Données FDC'!$I:$I,'Données FDC'!$B:$B,Activation!$F$5,'Données FDC'!$E:$E,Activation!O$9),SUMIFS('Données FDC'!$I:$I,'Données FDC'!$C:$C,Activation!$J$5,'Données FDC'!$E:$E,Activation!O$9))) -> 0.03081699981 | P71: =P70/IF(ISBLANK($F$5),SUMIFS('Données FDC'!$I:$I,'Données FDC'!$A:$A,Activation!$C$5,'Données FDC'!$E:$E,Activation!P$9),IF(ISBLANK($J$5),SUMIFS('Données FDC'!$I:$I,'Données FDC'!$B:$B,Activation!$F$5,'Données FDC'!$E:$E,Activation!P$9),SUMIFS('Données FDC'!$I:$I,'Données FDC'!$C:$C,Activation!$J$5,'Données FDC'!$E:$E,Activation!P$9))) -> 0.001080793926
C72: % détenteurs CEGEE | D72: =SUM('Données FDC'!$Y:$Y)/SUM('Données FDC'!$I:$I) -> 0.4127348916 | E72: =SUM('Données FDC déc 2018'!$Y:$Y)/SUM('Données FDC déc 2018'!$I:$I) -> 0.4019567267 | F72: =SUMIF('Données FDC'!$E:$E,Activation!F$9,'Données FDC'!$Y:$Y)/SUMIF('Données FDC'!$E:$E,Activation!F$9,'Données FDC'!$I:$I) -> 0.9721516872 | G72: =SUMIF('Données FDC'!$E:$E,Activation!G$9,'Données FDC'!$Y:$Y)/SUMIF('Données FDC'!$E:$E,Activation!G$9,'Données FDC'!$I:$I) -> 0.7581736992 | H72: =SUMIF('Données FDC'!$E:$E,Activation!H$9,'Données FDC'!$Y:$Y)/SUMIF('Données FDC'!$E:$E,Activation!H$9,'Données FDC'!$I:$I) -> 0.2948025167 | I72: =SUMIF('Données FDC'!$E:$E,Activation!I$9,'Données FDC'!$Y:$Y)/SUMIF('Données FDC'!$E:$E,Activation!I$9,'Données FDC'!$I:$I) -> 0.1254217201 | J72: =SUMIF('Données FDC'!$E:$E,Activation!J$9,'Données FDC'!$Y:$Y)/SUMIF('Données FDC'!$E:$E,Activation!J$9,'Données FDC'!$I:$I) -> 0.9940362515 | K72: =SUMIF('Données FDC'!$E:$E,Activation!K$9,'Données FDC'!$Y:$Y)/SUMIF('Données FDC'!$E:$E,Activation!K$9,'Données FDC'!$I:$I) -> 0.9337411357 | L72: =SUMIF('Données FDC'!$E:$E,Activation!L$9,'Données FDC'!$Y:$Y)/SUMIF('Données FDC'!$E:$E,Activation!L$9,'Données FDC'!$I:$I) -> 0.3059410431 | M72: =SUMIF('Données FDC'!$E:$E,Activation!M$9,'Données FDC'!$Y:$Y)/SUMIF('Données FDC'!$E:$E,Activation!M$9,'Données FDC'!$I:$I) -> 0.1313471233 | N72: =SUMIF('Données FDC'!$E:$E,Activation!N$9,'Données FDC'!$Y:$Y)/SUMIF('Données FDC'!$E:$E,Activation!N$9,'Données FDC'!$I:$I) -> 0.07842294467 | O72: =SUMIF('Données FDC'!$E:$E,Activation!O$9,'Données FDC'!$Y:$Y)/SUMIF('Données FDC'!$E:$E,Activation!O$9,'Données FDC'!$I:$I) -> 0.03081699981 | P72: =SUMIF('Données FDC'!$E:$E,Activation!P$9,'Données FDC'!$Y:$Y)/SUMIF('Données FDC'!$E:$E,Activation!P$9,'Données FDC'!$I:$I) -> 0.001080793926
B73: Izicarte (majeurs) | C73: Variation | D73: =SUM(F73:P73) -> 8978 | F73: =F74-IF(ISBLANK($F$5),SUMIFS('Données FDC déc 2018'!$Z:$Z,'Données FDC déc 2018'!$A:$A,Activation!$C$5,'Données FDC déc 2018'!$E:$E,Activation!F$9),IF(ISBLANK($J$5),SUMIFS('Données FDC déc 2018'!$Z:$Z,'Données FDC déc 2018'!$B:$B,Activation!$F$5,'Données FDC déc 2018'!$E:$E,Activation!F$9),SUMIFS('Données FDC déc 2018'!$Z:$Z,'Données FDC déc 2018'!$C:$C,Activation!$J$5,'Données FDC déc 2018'!$E:$E,Activation!F$9))) -> 5228 | G73: =G74-IF(ISBLANK($F$5),SUMIFS('Données FDC déc 2018'!$Z:$Z,'Données FDC déc 2018'!$A:$A,Activation!$C$5,'Données FDC déc 2018'!$E:$E,Activation!G$9),IF(ISBLANK($J$5),SUMIFS('Données FDC déc 2018'!$Z:$Z,'Données FDC déc 2018'!$B:$B,Activation!$F$5,'Données FDC déc 2018'!$E:$E,Activation!G$9),SUMIFS('Données FDC déc 2018'!$Z:$Z,'Données FDC déc 2018'!$C:$C,Activation!$J$5,'Données FDC déc 2018'!$E:$E,Activation!G$9))) -> 902 | H73: =H74-IF(ISBLANK($F$5),SUMIFS('Données FDC déc 2018'!$Z:$Z,'Données FDC déc 2018'!$A:$A,Activation!$C$5,'Données FDC déc 2018'!$E:$E,Activation!H$9),IF(ISBLANK($J$5),SUMIFS('Données FDC déc 2018'!$Z:$Z,'Données FDC déc 2018'!$B:$B,Activation!$F$5,'Données FDC déc 2018'!$E:$E,Activation!H$9),SUMIFS('Données FDC déc 2018'!$Z:$Z,'Données FDC déc 2018'!$C:$C,Activation!$J$5,'Données FDC déc 2018'!$E:$E,Activation!H$9))) -> 775 | I73: =I74-IF(ISBLANK($F$5),SUMIFS('Données FDC déc 2018'!$Z:$Z,'Données FDC déc 2018'!$A:$A,Activation!$C$5,'Données FDC déc 2018'!$E:$E,Activation!I$9),IF(ISBLANK($J$5),SUMIFS('Données FDC déc 2018'!$Z:$Z,'Données FDC déc 2018'!$B:$B,Activation!$F$5,'Données FDC déc 2018'!$E:$E,Activation!I$9),SUMIFS('Données FDC déc 2018'!$Z:$Z,'Données FDC déc 2018'!$C:$C,Activation!$J$5,'Données FDC déc 2018'!$E:$E,Activation!I$9))) -> 823 | J73: =J74-IF(ISBLANK($F$5),SUMIFS('Données FDC déc 2018'!$Z:$Z,'Données FDC déc 2018'!$A:$A,Activation!$C$5,'Données FDC déc 2018'!$E:$E,Activation!J$9),IF(ISBLANK($J$5),SUMIFS('Données FDC déc 2018'!$Z:$Z,'Données FDC déc 2018'!$B:$B,Activation!$F$5,'Données FDC déc 2018'!$E:$E,Activation!J$9),SUMIFS('Données FDC déc 2018'!$Z:$Z,'Données FDC déc 2018'!$C:$C,Activation!$J$5,'Données FDC déc 2018'!$E:$E,Activation!J$9))) -> 1068 | K73: =K74-IF(ISBLANK($F$5),SUMIFS('Données FDC déc 2018'!$Z:$Z,'Données FDC déc 2018'!$A:$A,Activation!$C$5,'Données FDC déc 2018'!$E:$E,Activation!K$9),IF(ISBLANK($J$5),SUMIFS('Données FDC déc 2018'!$Z:$Z,'Données FDC déc 2018'!$B:$B,Activation!$F$5,'Données FDC déc 2018'!$E:$E,Activation!K$9),SUMIFS('Données FDC déc 2018'!$Z:$Z,'Données FDC déc 2018'!$C:$C,Activation!$J$5,'Données FDC déc 2018'!$E:$E,Activation!K$9))) -> 77 | L73: =L74-IF(ISBLANK($F$5),SUMIFS('Données FDC déc 2018'!$Z:$Z,'Données FDC déc 2018'!$A:$A,Activation!$C$5,'Données FDC déc 2018'!$E:$E,Activation!L$9),IF(ISBLANK($J$5),SUMIFS('Données FDC déc 2018'!$Z:$Z,'Données FDC déc 2018'!$B:$B,Activation!$F$5,'Données FDC déc 2018'!$E:$E,Activation!L$9),SUMIFS('Données FDC déc 2018'!$Z:$Z,'Données FDC déc 2018'!$C:$C,Activation!$J$5,'Données FDC déc 2018'!$E:$E,Activation!L$9))) -> 28 | M73: =M74-IF(ISBLANK($F$5),SUMIFS('Données FDC déc 2018'!$Z:$Z,'Données FDC déc 2018'!$A:$A,Activation!$C$5,'Données FDC déc 2018'!$E:$E,Activation!M$9),IF(ISBLANK($J$5),SUMIFS('Données FDC déc 2018'!$Z:$Z,'Données FDC déc 2018'!$B:$B,Activation!$F$5,'Données FDC déc 2018'!$E:$E,Activation!M$9),SUMIFS('Données FDC déc 2018'!$Z:$Z,'Données FDC déc 2018'!$C:$C,Activation!$J$5,'Données FDC déc 2018'!$E:$E,Activation!M$9))) -> 77 | P73: =P74-IF(ISBLANK($F$5),SUMIFS('Données FDC déc 2018'!$Z:$Z,'Données FDC déc 2018'!$A:$A,Activation!$C$5,'Données FDC déc 2018'!$E:$E,Activation!P$9),IF(ISBLANK($J$5),SUMIFS('Données FDC déc 2018'!$Z:$Z,'Données FDC déc 2018'!$B:$B,Activation!$F$5,'Données FDC déc 2018'!$E:$E,Activation!P$9),SUMIFS('Données FDC déc 2018'!$Z:$Z,'Données FDC déc 2018'!$C:$C,Activation!$J$5,'Données FDC déc 2018'!$E:$E,Activation!P$9))) -> 0
C74: Nombre détenteurs | D74: =SUM(F74:P74) -> 190180 | E74: =IF(ISBLANK($F$5),SUMIFS('Données FDC déc 2018'!$Z:$Z,'Données FDC déc 2018'!$A:$A,Activation!$C$5),IF(ISBLANK($J$5),SUMIFS('Données FDC déc 2018'!$Z:$Z,'Données FDC déc 2018'!$B:$B,Activation!$F$5),SUMIFS('Données FDC déc 2018'!$Z:$Z,'Données FDC déc 2018'!$C:$C,Activation!$J$5))) -> 181203 | F74: =IF(ISBLANK($F$5),SUMIFS('Données FDC'!$Z:$Z,'Données FDC'!$A:$A,Activation!$C$5,'Données FDC'!$E:$E,Activation!F$9),IF(ISBLANK($J$5),SUMIFS('Données FDC'!$Z:$Z,'Données FDC'!$B:$B,Activation!$F$5,'Données FDC'!$E:$E,Activation!F$9),SUMIFS('Données FDC'!$Z:$Z,'Données FDC'!$C:$C,Activation!$J$5,'Données FDC'!$E:$E,Activation!F$9))) -> 139369 | G74: =IF(ISBLANK($F$5),SUMIFS('Données FDC'!$Z:$Z,'Données FDC'!$A:$A,Activation!$C$5,'Données FDC'!$E:$E,Activation!G$9),IF(ISBLANK($J$5),SUMIFS('Données FDC'!$Z:$Z,'Données FDC'!$B:$B,Activation!$F$5,'Données FDC'!$E:$E,Activation!G$9),SUMIFS('Données FDC'!$Z:$Z,'Données FDC'!$C:$C,Activation!$J$5,'Données FDC'!$E:$E,Activation!G$9))) -> 28300 | H74: =IF(ISBLANK($F$5),SUMIFS('Données FDC'!$Z:$Z,'Données FDC'!$A:$A,Activation!$C$5,'Données FDC'!$E:$E,Activation!H$9),IF(ISBLANK($J$5),SUMIFS('Données FDC'!$Z:$Z,'Données FDC'!$B:$B,Activation!$F$5,'Données FDC'!$E:$E,Activation!H$9),SUMIFS('Données FDC'!$Z:$Z,'Données FDC'!$C:$C,Activation!$J$5,'Données FDC'!$E:$E,Activation!H$9))) -> 9833 | I74: =IF(ISBLANK($F$5),SUMIFS('Données FDC'!$Z:$Z,'Données FDC'!$A:$A,Activation!$C$5,'Données FDC'!$E:$E,Activation!I$9),IF(ISBLANK($J$5),SUMIFS('Données FDC'!$Z:$Z,'Données FDC'!$B:$B,Activation!$F$5,'Données FDC'!$E:$E,Activation!I$9),SUMIFS('Données FDC'!$Z:$Z,'Données FDC'!$C:$C,Activation!$J$5,'Données FDC'!$E:$E,Activation!I$9))) -> 4662 | J74: =IF(ISBLANK($F$5),SUMIFS('Données FDC'!$Z:$Z,'Données FDC'!$A:$A,Activation!$C$5,'Données FDC'!$E:$E,Activation!J$9),IF(ISBLANK($J$5),SUMIFS('Données FDC'!$Z:$Z,'Données FDC'!$B:$B,Activation!$F$5,'Données FDC'!$E:$E,Activation!J$9),SUMIFS('Données FDC'!$Z:$Z,'Données FDC'!$C:$C,Activation!$J$5,'Données FDC'!$E:$E,Activation!J$9))) -> 7461 | K74: =IF(ISBLANK($F$5),SUMIFS('Données FDC'!$Z:$Z,'Données FDC'!$A:$A,Activation!$C$5,'Données FDC'!$E:$E,Activation!K$9),IF(ISBLANK($J$5),SUMIFS('Données FDC'!$Z:$Z,'Données FDC'!$B:$B,Activation!$F$5,'Données FDC'!$E:$E,Activation!K$9),SUMIFS('Données FDC'!$Z:$Z,'Données FDC'!$C:$C,Activation!$J$5,'Données FDC'!$E:$E,Activation!K$9))) -> 370 | L74: =IF(ISBLANK($F$5),SUMIFS('Données FDC'!$Z:$Z,'Données FDC'!$A:$A,Activation!$C$5,'Données FDC'!$E:$E,Activation!L$9),IF(ISBLANK($J$5),SUMIFS('Données FDC'!$Z:$Z,'Données FDC'!$B:$B,Activation!$F$5,'Données FDC'!$E:$E,Activation!L$9),SUMIFS('Données FDC'!$Z:$Z,'Données FDC'!$C:$C,Activation!$J$5,'Données FDC'!$E:$E,Activation!L$9))) -> 51 | M74: =IF(ISBLANK($F$5),SUMIFS('Données FDC'!$Z:$Z,'Données FDC'!$A:$A,Activation!$C$5,'Données FDC'!$E:$E,Activation!M$9),IF(ISBLANK($J$5),SUMIFS('Données FDC'!$Z:$Z,'Données FDC'!$B:$B,Activation!$F$5,'Données FDC'!$E:$E,Activation!M$9),SUMIFS('Données FDC'!$Z:$Z,'Données FDC'!$C:$C,Activation!$J$5,'Données FDC'!$E:$E,Activation!M$9))) -> 133 | P74: =IF(ISBLANK($F$5),SUMIFS('Données FDC'!$Z:$Z,'Données FDC'!$A:$A,Activation!$C$5,'Données FDC'!$E:$E,Activation!P$9),IF(ISBLANK($J$5),SUMIFS('Données FDC'!$Z:$Z,'Données FDC'!$B:$B,Activation!$F$5,'Données FDC'!$E:$E,Activation!P$9),SUMIFS('Données FDC'!$Z:$Z,'Données FDC'!$C:$C,Activation!$J$5,'Données FDC'!$E:$E,Activation!P$9))) -> 1
C75: % détenteurs | D75: =D74/(IF(ISBLANK($F$5),SUMIFS('Données FDC'!$J:$J,'Données FDC'!$A:$A,Activation!$C$5),IF(ISBLANK($J$5),SUMIFS('Données FDC'!$J:$J,'Données FDC'!$B:$B,Activation!$F$5),SUMIFS('Données FDC'!$J:$J,'Données FDC'!$C:$C,Activation!$J$5)))) -> 0.1441062164 | E75: =E74/IF(ISBLANK($F$5),SUMIFS('Données FDC déc 2018'!$J:$J,'Données FDC déc 2018'!$A:$A,Activation!$C$5),IF(ISBLANK($J$5),SUMIFS('Données FDC déc 2018'!$J:$J,'Données FDC déc 2018'!$B:$B,Activation!$F$5),SUMIFS('Données FDC déc 2018'!$J:$J,'Données FDC déc 2018'!$C:$C,Activation!$J$5))) -> 0.1343882986 | F75: =F74/(IF(ISBLANK($F$5),SUMIFS('Données FDC'!$J:$J,'Données FDC'!$A:$A,Activation!$C$5,'Données FDC'!$E:$E,Activation!F$9),IF(ISBLANK($J$5),SUMIFS('Données FDC'!$J:$J,'Données FDC'!$B:$B,Activation!$F$5,'Données FDC'!$E:$E,Activation!F$9),SUMIFS('Données FDC'!$J:$J,'Données FDC'!$C:$C,Activation!$J$5,'Données FDC'!$E:$E,Activation!F$9)))) -> 0.5062863952 | G75: =G74/(IF(ISBLANK($F$5),SUMIFS('Données FDC'!$J:$J,'Données FDC'!$A:$A,Activation!$C$5,'Données FDC'!$E:$E,Activation!G$9),IF(ISBLANK($J$5),SUMIFS('Données FDC'!$J:$J,'Données FDC'!$B:$B,Activation!$F$5,'Données FDC'!$E:$E,Activation!G$9),SUMIFS('Données FDC'!$J:$J,'Données FDC'!$C:$C,Activation!$J$5,'Données FDC'!$E:$E,Activation!G$9)))) -> 0.1752723534 | H75: =H74/(IF(ISBLANK($F$5),SUMIFS('Données FDC'!$J:$J,'Données FDC'!$A:$A,Activation!$C$5,'Données FDC'!$E:$E,Activation!H$9),IF(ISBLANK($J$5),SUMIFS('Données FDC'!$J:$J,'Données FDC'!$B:$B,Activation!$F$5,'Données FDC'!$E:$E,Activation!H$9),SUMIFS('Données FDC'!$J:$J,'Données FDC'!$C:$C,Activation!$J$5,'Données FDC'!$E:$E,Activation!H$9)))) -> 0.0574427938 | I75: =I74/(IF(ISBLANK($F$5),SUMIFS('Données FDC'!$J:$J,'Données FDC'!$A:$A,Activation!$C$5,'Données FDC'!$E:$E,Activation!I$9),IF(ISBLANK($J$5),SUMIFS('Données FDC'!$J:$J,'Données FDC'!$B:$B,Activation!$F$5,'Données FDC'!$E:$E,Activation!I$9),SUMIFS('Données FDC'!$J:$J,'Données FDC'!$C:$C,Activation!$J$5,'Données FDC'!$E:$E,Activation!I$9)))) -> 0.01303104587 | J75: =J74/(IF(ISBLANK($F$5),SUMIFS('Données FDC'!$J:$J,'Données FDC'!$A:$A,Activation!$C$5,'Données FDC'!$E:$E,Activation!J$9),IF(ISBLANK($J$5),SUMIFS('Données FDC'!$J:$J,'Données FDC'!$B:$B,Activation!$F$5,'Données FDC'!$E:$E,Activation!J$9),SUMIFS('Données FDC'!$J:$J,'Données FDC'!$C:$C,Activation!$J$5,'Données FDC'!$E:$E,Activation!J$9)))) -> 0.1302094241 | K75: =K74/(IF(ISBLANK($F$5),SUMIFS('Données FDC'!$J:$J,'Données FDC'!$A:$A,Activation!$C$5,'Données FDC'!$E:$E,Activation!K$9),IF(ISBLANK($J$5),SUMIFS('Données FDC'!$J:$J,'Données FDC'!$B:$B,Activation!$F$5,'Données FDC'!$E:$E,Activation!K$9),SUMIFS('Données FDC'!$J:$J,'Données FDC'!$C:$C,Activation!$J$5,'Données FDC'!$E:$E,Activation!K$9)))) -> 0.02186244387 | L75: =L74/(IF(ISBLANK($F$5),SUMIFS('Données FDC'!$J:$J,'Données FDC'!$A:$A,Activation!$C$5,'Données FDC'!$E:$E,Activation!L$9),IF(ISBLANK($J$5),SUMIFS('Données FDC'!$J:$J,'Données FDC'!$B:$B,Activation!$F$5,'Données FDC'!$E:$E,Activation!L$9),SUMIFS('Données FDC'!$J:$J,'Données FDC'!$C:$C,Activation!$J$5,'Données FDC'!$E:$E,Activation!L$9)))) -> 0.007979971835 | M75: =M74/(IF(ISBLANK($F$5),SUMIFS('Données FDC'!$J:$J,'Données FDC'!$A:$A,Activation!$C$5,'Données FDC'!$E:$E,Activation!M$9),IF(ISBLANK($J$5),SUMIFS('Données FDC'!$J:$J,'Données FDC'!$B:$B,Activation!$F$5,'Données FDC'!$E:$E,Activation!M$9),SUMIFS('Données FDC'!$J:$J,'Données FDC'!$C:$C,Activation!$J$5,'Données FDC'!$E:$E,Activation!M$9)))) -> 0.002415195758 | P75: =P74/(IF(ISBLANK($F$5),SUMIFS('Données FDC'!$J:$J,'Données FDC'!$A:$A,Activation!$C$5,'Données FDC'!$E:$E,Activation!P$9),IF(ISBLANK($J$5),SUMIFS('Données FDC'!$J:$J,'Données FDC'!$B:$B,Activation!$F$5,'Données FDC'!$E:$E,Activation!P$9),SUMIFS('Données FDC'!$J:$J,'Données FDC'!$C:$C,Activation!$J$5,'Données FDC'!$E:$E,Activation!P$9)))) -> 4.579635278e-06
C76: % détenteurs CEGEE | D76: =SUM('Données FDC'!$Z:$Z)/SUM('Données FDC'!$J:$J) -> 0.1441062164 | E76: =SUM('Données FDC déc 2018'!$Z:$Z)/SUM('Données FDC déc 2018'!$J:$J) -> 0.1343882986 | F76: =SUMIF('Données FDC'!$E:$E,Activation!F$9,'Données FDC'!$Z:$Z)/SUMIF('Données FDC'!$E:$E,Activation!F$9,'Données FDC'!$J:$J) -> 0.5062863952 | G76: =SUMIF('Données FDC'!$E:$E,Activation!G$9,'Données FDC'!$Z:$Z)/SUMIF('Données FDC'!$E:$E,Activation!G$9,'Données FDC'!$J:$J) -> 0.1752723534 | H76: =SUMIF('Données FDC'!$E:$E,Activation!H$9,'Données FDC'!$Z:$Z)/SUMIF('Données FDC'!$E:$E,Activation!H$9,'Données FDC'!$J:$J) -> 0.0574427938 | I76: =SUMIF('Données FDC'!$E:$E,Activation!I$9,'Données FDC'!$Z:$Z)/SUMIF('Données FDC'!$E:$E,Activation!I$9,'Données FDC'!$J:$J) -> 0.01303104587 | J76: =SUMIF('Données FDC'!$E:$E,Activation!J$9,'Données FDC'!$Z:$Z)/SUMIF('Données FDC'!$E:$E,Activation!J$9,'Données FDC'!$J:$J) -> 0.1302094241 | K76: =SUMIF('Données FDC'!$E:$E,Activation!K$9,'Données FDC'!$Z:$Z)/SUMIF('Données FDC'!$E:$E,Activation!K$9,'Données FDC'!$J:$J) -> 0.02186244387 | L76: =SUMIF('Données FDC'!$E:$E,Activation!L$9,'Données FDC'!$Z:$Z)/SUMIF('Données FDC'!$E:$E,Activation!L$9,'Données FDC'!$J:$J) -> 0.007979971835 | M76: =SUMIF('Données FDC'!$E:$E,Activation!M$9,'Données FDC'!$Z:$Z)/SUMIF('Données FDC'!$E:$E,Activation!M$9,'Données FDC'!$J:$J) -> 0.002415195758 | P76: =SUMIF('Données FDC'!$E:$E,Activation!P$9,'Données FDC'!$Z:$Z)/SUMIF('Données FDC'!$E:$E,Activation!P$9,'Données FDC'!$J:$J) -> 4.579635278e-06
B77: Cartes HDG (1er, Platinum, Infinite) (majeurs) | C77: Variation | D77: =SUM(F77:P77) -> 15874 | F77: =F78-IF(ISBLANK($F$5),SUMIFS('Données FDC déc 2018'!$AA:$AA,'Données FDC déc 2018'!$A:$A,Activation!$C$5,'Données FDC déc 2018'!$E:$E,Activation!F$9),IF(ISBLANK($J$5),SUMIFS('Données FDC déc 2018'!$AA:$AA,'Données FDC déc 2018'!$B:$B,Activation!$F$5,'Données FDC déc 2018'!$E:$E,Activation!F$9),SUMIFS('Données FDC déc 2018'!$AA:$AA,'Données FDC déc 2018'!$C:$C,Activation!$J$5,'Données FDC déc 2018'!$E:$E,Activation!F$9))) -> 7880 | G77: =G78-IF(ISBLANK($F$5),SUMIFS('Données FDC déc 2018'!$AA:$AA,'Données FDC déc 2018'!$A:$A,Activation!$C$5,'Données FDC déc 2018'!$E:$E,Activation!G$9),IF(ISBLANK($J$5),SUMIFS('Données FDC déc 2018'!$AA:$AA,'Données FDC déc 2018'!$B:$B,Activation!$F$5,'Données FDC déc 2018'!$E:$E,Activation!G$9),SUMIFS('Données FDC déc 2018'!$AA:$AA,'Données FDC déc 2018'!$C:$C,Activation!$J$5,'Données FDC déc 2018'!$E:$E,Activation!G$9))) -> 1922 | H77: =H78-IF(ISBLANK($F$5),SUMIFS('Données FDC déc 2018'!$AA:$AA,'Données FDC déc 2018'!$A:$A,Activation!$C$5,'Données FDC déc 2018'!$E:$E,Activation!H$9),IF(ISBLANK($J$5),SUMIFS('Données FDC déc 2018'!$AA:$AA,'Données FDC déc 2018'!$B:$B,Activation!$F$5,'Données FDC déc 2018'!$E:$E,Activation!H$9),SUMIFS('Données FDC déc 2018'!$AA:$AA,'Données FDC déc 2018'!$C:$C,Activation!$J$5,'Données FDC déc 2018'!$E:$E,Activation!H$9))) -> 1047 | I77: =I78-IF(ISBLANK($F$5),SUMIFS('Données FDC déc 2018'!$AA:$AA,'Données FDC déc 2018'!$A:$A,Activation!$C$5,'Données FDC déc 2018'!$E:$E,Activation!I$9),IF(ISBLANK($J$5),SUMIFS('Données FDC déc 2018'!$AA:$AA,'Données FDC déc 2018'!$B:$B,Activation!$F$5,'Données FDC déc 2018'!$E:$E,Activation!I$9),SUMIFS('Données FDC déc 2018'!$AA:$AA,'Données FDC déc 2018'!$C:$C,Activation!$J$5,'Données FDC déc 2018'!$E:$E,Activation!I$9))) -> 1010 | J77: =J78-IF(ISBLANK($F$5),SUMIFS('Données FDC déc 2018'!$AA:$AA,'Données FDC déc 2018'!$A:$A,Activation!$C$5,'Données FDC déc 2018'!$E:$E,Activation!J$9),IF(ISBLANK($J$5),SUMIFS('Données FDC déc 2018'!$AA:$AA,'Données FDC déc 2018'!$B:$B,Activation!$F$5,'Données FDC déc 2018'!$E:$E,Activation!J$9),SUMIFS('Données FDC déc 2018'!$AA:$AA,'Données FDC déc 2018'!$C:$C,Activation!$J$5,'Données FDC déc 2018'!$E:$E,Activation!J$9))) -> 3173 | K77: =K78-IF(ISBLANK($F$5),SUMIFS('Données FDC déc 2018'!$AA:$AA,'Données FDC déc 2018'!$A:$A,Activation!$C$5,'Données FDC déc 2018'!$E:$E,Activation!K$9),IF(ISBLANK($J$5),SUMIFS('Données FDC déc 2018'!$AA:$AA,'Données FDC déc 2018'!$B:$B,Activation!$F$5,'Données FDC déc 2018'!$E:$E,Activation!K$9),SUMIFS('Données FDC déc 2018'!$AA:$AA,'Données FDC déc 2018'!$C:$C,Activation!$J$5,'Données FDC déc 2018'!$E:$E,Activation!K$9))) -> 355 | L77: =L78-IF(ISBLANK($F$5),SUMIFS('Données FDC déc 2018'!$AA:$AA,'Données FDC déc 2018'!$A:$A,Activation!$C$5,'Données FDC déc 2018'!$E:$E,Activation!L$9),IF(ISBLANK($J$5),SUMIFS('Données FDC déc 2018'!$AA:$AA,'Données FDC déc 2018'!$B:$B,Activation!$F$5,'Données FDC déc 2018'!$E:$E,Activation!L$9),SUMIFS('Données FDC déc 2018'!$AA:$AA,'Données FDC déc 2018'!$C:$C,Activation!$J$5,'Données FDC déc 2018'!$E:$E,Activation!L$9))) -> 129 | M77: =M78-IF(ISBLANK($F$5),SUMIFS('Données FDC déc 2018'!$AA:$AA,'Données FDC déc 2018'!$A:$A,Activation!$C$5,'Données FDC déc 2018'!$E:$E,Activation!M$9),IF(ISBLANK($J$5),SUMIFS('Données FDC déc 2018'!$AA:$AA,'Données FDC déc 2018'!$B:$B,Activation!$F$5,'Données FDC déc 2018'!$E:$E,Activation!M$9),SUMIFS('Données FDC déc 2018'!$AA:$AA,'Données FDC déc 2018'!$C:$C,Activation!$J$5,'Données FDC déc 2018'!$E:$E,Activation!M$9))) -> 357 | P77: =P78-IF(ISBLANK($F$5),SUMIFS('Données FDC déc 2018'!$AA:$AA,'Données FDC déc 2018'!$A:$A,Activation!$C$5,'Données FDC déc 2018'!$E:$E,Activation!P$9),IF(ISBLANK($J$5),SUMIFS('Données FDC déc 2018'!$AA:$AA,'Données FDC déc 2018'!$B:$B,Activation!$F$5,'Données FDC déc 2018'!$E:$E,Activation!P$9),SUMIFS('Données FDC déc 2018'!$AA:$AA,'Données FDC déc 2018'!$C:$C,Activation!$J$5,'Données FDC déc 2018'!$E:$E,Activation!P$9))) -> 1
C78: Nombre détenteurs | D78: =SUM(F78:P78) -> 168142 | E78: =IF(ISBLANK($F$5),SUMIFS('Données FDC déc 2018'!$AA:$AA,'Données FDC déc 2018'!$A:$A,Activation!$C$5),IF(ISBLANK($J$5),SUMIFS('Données FDC déc 2018'!$AA:$AA,'Données FDC déc 2018'!$B:$B,Activation!$F$5),SUMIFS('Données FDC déc 2018'!$AA:$AA,'Données FDC déc 2018'!$C:$C,Activation!$J$5))) -> 152268 | F78: =IF(ISBLANK($F$5),SUMIFS('Données FDC'!$AA:$AA,'Données FDC'!$A:$A,Activation!$C$5,'Données FDC'!$E:$E,Activation!F$9),IF(ISBLANK($J$5),SUMIFS('Données FDC'!$AA:$AA,'Données FDC'!$B:$B,Activation!$F$5,'Données FDC'!$E:$E,Activation!F$9),SUMIFS('Données FDC'!$AA:$AA,'Données FDC'!$C:$C,Activation!$J$5,'Données FDC'!$E:$E,Activation!F$9))) -> 102901 | G78: =IF(ISBLANK($F$5),SUMIFS('Données FDC'!$AA:$AA,'Données FDC'!$A:$A,Activation!$C$5,'Données FDC'!$E:$E,Activation!G$9),IF(ISBLANK($J$5),SUMIFS('Données FDC'!$AA:$AA,'Données FDC'!$B:$B,Activation!$F$5,'Données FDC'!$E:$E,Activation!G$9),SUMIFS('Données FDC'!$AA:$AA,'Données FDC'!$C:$C,Activation!$J$5,'Données FDC'!$E:$E,Activation!G$9))) -> 24081 | H78: =IF(ISBLANK($F$5),SUMIFS('Données FDC'!$AA:$AA,'Données FDC'!$A:$A,Activation!$C$5,'Données FDC'!$E:$E,Activation!H$9),IF(ISBLANK($J$5),SUMIFS('Données FDC'!$AA:$AA,'Données FDC'!$B:$B,Activation!$F$5,'Données FDC'!$E:$E,Activation!H$9),SUMIFS('Données FDC'!$AA:$AA,'Données FDC'!$C:$C,Activation!$J$5,'Données FDC'!$E:$E,Activation!H$9))) -> 8253 | I78: =IF(ISBLANK($F$5),SUMIFS('Données FDC'!$AA:$AA,'Données FDC'!$A:$A,Activation!$C$5,'Données FDC'!$E:$E,Activation!I$9),IF(ISBLANK($J$5),SUMIFS('Données FDC'!$AA:$AA,'Données FDC'!$B:$B,Activation!$F$5,'Données FDC'!$E:$E,Activation!I$9),SUMIFS('Données FDC'!$AA:$AA,'Données FDC'!$C:$C,Activation!$J$5,'Données FDC'!$E:$E,Activation!I$9))) -> 4683 | J78: =IF(ISBLANK($F$5),SUMIFS('Données FDC'!$AA:$AA,'Données FDC'!$A:$A,Activation!$C$5,'Données FDC'!$E:$E,Activation!J$9),IF(ISBLANK($J$5),SUMIFS('Données FDC'!$AA:$AA,'Données FDC'!$B:$B,Activation!$F$5,'Données FDC'!$E:$E,Activation!J$9),SUMIFS('Données FDC'!$AA:$AA,'Données FDC'!$C:$C,Activation!$J$5,'Données FDC'!$E:$E,Activation!J$9))) -> 23451 | K78: =IF(ISBLANK($F$5),SUMIFS('Données FDC'!$AA:$AA,'Données FDC'!$A:$A,Activation!$C$5,'Données FDC'!$E:$E,Activation!K$9),IF(ISBLANK($J$5),SUMIFS('Données FDC'!$AA:$AA,'Données FDC'!$B:$B,Activation!$F$5,'Données FDC'!$E:$E,Activation!K$9),SUMIFS('Données FDC'!$AA:$AA,'Données FDC'!$C:$C,Activation!$J$5,'Données FDC'!$E:$E,Activation!K$9))) -> 3312 | L78: =IF(ISBLANK($F$5),SUMIFS('Données FDC'!$AA:$AA,'Données FDC'!$A:$A,Activation!$C$5,'Données FDC'!$E:$E,Activation!L$9),IF(ISBLANK($J$5),SUMIFS('Données FDC'!$AA:$AA,'Données FDC'!$B:$B,Activation!$F$5,'Données FDC'!$E:$E,Activation!L$9),SUMIFS('Données FDC'!$AA:$AA,'Données FDC'!$C:$C,Activation!$J$5,'Données FDC'!$E:$E,Activation!L$9))) -> 468 | M78: =IF(ISBLANK($F$5),SUMIFS('Données FDC'!$AA:$AA,'Données FDC'!$A:$A,Activation!$C$5,'Données FDC'!$E:$E,Activation!M$9),IF(ISBLANK($J$5),SUMIFS('Données FDC'!$AA:$AA,'Données FDC'!$B:$B,Activation!$F$5,'Données FDC'!$E:$E,Activation!M$9),SUMIFS('Données FDC'!$AA:$AA,'Données FDC'!$C:$C,Activation!$J$5,'Données FDC'!$E:$E,Activation!M$9))) -> 987 | P78: =IF(ISBLANK($F$5),SUMIFS('Données FDC'!$AA:$AA,'Données FDC'!$A:$A,Activation!$C$5,'Données FDC'!$E:$E,Activation!P$9),IF(ISBLANK($J$5),SUMIFS('Données FDC'!$AA:$AA,'Données FDC'!$B:$B,Activation!$F$5,'Données FDC'!$E:$E,Activation!P$9),SUMIFS('Données FDC'!$AA:$AA,'Données FDC'!$C:$C,Activation!$J$5,'Données FDC'!$E:$E,Activation!P$9))) -> 6
C79: % détenteurs | D79: =D78/(IF(ISBLANK($F$5),SUMIFS('Données FDC'!$J:$J,'Données FDC'!$A:$A,Activation!$C$5),IF(ISBLANK($J$5),SUMIFS('Données FDC'!$J:$J,'Données FDC'!$B:$B,Activation!$F$5),SUMIFS('Données FDC'!$J:$J,'Données FDC'!$C:$C,Activation!$J$5)))) -> 0.1274072323 | E79: =E78/IF(ISBLANK($F$5),SUMIFS('Données FDC déc 2018'!$J:$J,'Données FDC déc 2018'!$A:$A,Activation!$C$5),IF(ISBLANK($J$5),SUMIFS('Données FDC déc 2018'!$J:$J,'Données FDC déc 2018'!$B:$B,Activation!$F$5),SUMIFS('Données FDC déc 2018'!$J:$J,'Données FDC déc 2018'!$C:$C,Activation!$J$5))) -> 0.1129288006 | F79: =F78/(IF(ISBLANK($F$5),SUMIFS('Données FDC'!$J:$J,'Données FDC'!$A:$A,Activation!$C$5,'Données FDC'!$E:$E,Activation!F$9),IF(ISBLANK($J$5),SUMIFS('Données FDC'!$J:$J,'Données FDC'!$B:$B,Activation!$F$5,'Données FDC'!$E:$E,Activation!F$9),SUMIFS('Données FDC'!$J:$J,'Données FDC'!$C:$C,Activation!$J$5,'Données FDC'!$E:$E,Activation!F$9)))) -> 0.373808927 | G79: =G78/(IF(ISBLANK($F$5),SUMIFS('Données FDC'!$J:$J,'Données FDC'!$A:$A,Activation!$C$5,'Données FDC'!$E:$E,Activation!G$9),IF(ISBLANK($J$5),SUMIFS('Données FDC'!$J:$J,'Données FDC'!$B:$B,Activation!$F$5,'Données FDC'!$E:$E,Activation!G$9),SUMIFS('Données FDC'!$J:$J,'Données FDC'!$C:$C,Activation!$J$5,'Données FDC'!$E:$E,Activation!G$9)))) -> 0.149142528 | H79: =H78/(IF(ISBLANK($F$5),SUMIFS('Données FDC'!$J:$J,'Données FDC'!$A:$A,Activation!$C$5,'Données FDC'!$E:$E,Activation!H$9),IF(ISBLANK($J$5),SUMIFS('Données FDC'!$J:$J,'Données FDC'!$B:$B,Activation!$F$5,'Données FDC'!$E:$E,Activation!H$9),SUMIFS('Données FDC'!$J:$J,'Données FDC'!$C:$C,Activation!$J$5,'Données FDC'!$E:$E,Activation!H$9)))) -> 0.04821268964 | I79: =I78/(IF(ISBLANK($F$5),SUMIFS('Données FDC'!$J:$J,'Données FDC'!$A:$A,Activation!$C$5,'Données FDC'!$E:$E,Activation!I$9),IF(ISBLANK($J$5),SUMIFS('Données FDC'!$J:$J,'Données FDC'!$B:$B,Activation!$F$5,'Données FDC'!$E:$E,Activation!I$9),SUMIFS('Données FDC'!$J:$J,'Données FDC'!$C:$C,Activation!$J$5,'Données FDC'!$E:$E,Activation!I$9)))) -> 0.01308974427 | J79: =J78/(IF(ISBLANK($F$5),SUMIFS('Données FDC'!$J:$J,'Données FDC'!$A:$A,Activation!$C$5,'Données FDC'!$E:$E,Activation!J$9),IF(ISBLANK($J$5),SUMIFS('Données FDC'!$J:$J,'Données FDC'!$B:$B,Activation!$F$5,'Données FDC'!$E:$E,Activation!J$9),SUMIFS('Données FDC'!$J:$J,'Données FDC'!$C:$C,Activation!$J$5,'Données FDC'!$E:$E,Activation!J$9)))) -> 0.4092670157 | K79: =K78/(IF(ISBLANK($F$5),SUMIFS('Données FDC'!$J:$J,'Données FDC'!$A:$A,Activation!$C$5,'Données FDC'!$E:$E,Activation!K$9),IF(ISBLANK($J$5),SUMIFS('Données FDC'!$J:$J,'Données FDC'!$B:$B,Activation!$F$5,'Données FDC'!$E:$E,Activation!K$9),SUMIFS('Données FDC'!$J:$J,'Données FDC'!$C:$C,Activation!$J$5,'Données FDC'!$E:$E,Activation!K$9)))) -> 0.1956984165 | L79: =L78/(IF(ISBLANK($F$5),SUMIFS('Données FDC'!$J:$J,'Données FDC'!$A:$A,Activation!$C$5,'Données FDC'!$E:$E,Activation!L$9),IF(ISBLANK($J$5),SUMIFS('Données FDC'!$J:$J,'Données FDC'!$B:$B,Activation!$F$5,'Données FDC'!$E:$E,Activation!L$9),SUMIFS('Données FDC'!$J:$J,'Données FDC'!$C:$C,Activation!$J$5,'Données FDC'!$E:$E,Activation!L$9)))) -> 0.07322797684 | M79: =M78/(IF(ISBLANK($F$5),SUMIFS('Données FDC'!$J:$J,'Données FDC'!$A:$A,Activation!$C$5,'Données FDC'!$E:$E,Activation!M$9),IF(ISBLANK($J$5),SUMIFS('Données FDC'!$J:$J,'Données FDC'!$B:$B,Activation!$F$5,'Données FDC'!$E:$E,Activation!M$9),SUMIFS('Données FDC'!$J:$J,'Données FDC'!$C:$C,Activation!$J$5,'Données FDC'!$E:$E,Activation!M$9)))) -> 0.01792329484 | P79: =P78/(IF(ISBLANK($F$5),SUMIFS('Données FDC'!$J:$J,'Données FDC'!$A:$A,Activation!$C$5,'Données FDC'!$E:$E,Activation!P$9),IF(ISBLANK($J$5),SUMIFS('Données FDC'!$J:$J,'Données FDC'!$B:$B,Activation!$F$5,'Données FDC'!$E:$E,Activation!P$9),SUMIFS('Données FDC'!$J:$J,'Données FDC'!$C:$C,Activation!$J$5,'Données FDC'!$E:$E,Activation!P$9)))) -> 2.747781167e-05
C80: % détenteurs CEGEE | D80: =SUM('Données FDC'!$AA:$AA)/SUM('Données FDC'!$J:$J) -> 0.12740799 | E80: =SUM('Données FDC déc 2018'!$AA:$AA)/SUM('Données FDC déc 2018'!$J:$J) -> 0.1129288006 | F80: =SUMIF('Données FDC'!$E:$E,Activation!F$9,'Données FDC'!$AA:$AA)/SUMIF('Données FDC'!$E:$E,Activation!F$9,'Données FDC'!$J:$J) -> 0.373808927 | G80: =SUMIF('Données FDC'!$E:$E,Activation!G$9,'Données FDC'!$AA:$AA)/SUMIF('Données FDC'!$E:$E,Activation!G$9,'Données FDC'!$J:$J) -> 0.149142528 | H80: =SUMIF('Données FDC'!$E:$E,Activation!H$9,'Données FDC'!$AA:$AA)/SUMIF('Données FDC'!$E:$E,Activation!H$9,'Données FDC'!$J:$J) -> 0.04821268964 | I80: =SUMIF('Données FDC'!$E:$E,Activation!I$9,'Données FDC'!$AA:$AA)/SUMIF('Données FDC'!$E:$E,Activation!I$9,'Données FDC'!$J:$J) -> 0.01308974427 | J80: =SUMIF('Données FDC'!$E:$E,Activation!J$9,'Données FDC'!$AA:$AA)/SUMIF('Données FDC'!$E:$E,Activation!J$9,'Données FDC'!$J:$J) -> 0.4092670157 | K80: =SUMIF('Données FDC'!$E:$E,Activation!K$9,'Données FDC'!$AA:$AA)/SUMIF('Données FDC'!$E:$E,Activation!K$9,'Données FDC'!$J:$J) -> 0.1956984165 | L80: =SUMIF('Données FDC'!$E:$E,Activation!L$9,'Données FDC'!$AA:$AA)/SUMIF('Données FDC'!$E:$E,Activation!L$9,'Données FDC'!$J:$J) -> 0.07322797684 | M80: =SUMIF('Données FDC'!$E:$E,Activation!M$9,'Données FDC'!$AA:$AA)/SUMIF('Données FDC'!$E:$E,Activation!M$9,'Données FDC'!$J:$J) -> 0.01792329484 | P80: =SUMIF('Données FDC'!$E:$E,Activation!P$9,'Données FDC'!$AA:$AA)/SUMIF('Données FDC'!$E:$E,Activation!P$9,'Données FDC'!$J:$J) -> 2.747781167e-05
B81: Débit Différé (majeurs) | C81: Variation | D81: =SUM(F81:P81) -> 6620 | F81: =F82-IF(ISBLANK($F$5),SUMIFS('Données FDC déc 2018'!$AB:$AB,'Données FDC déc 2018'!$A:$A,Activation!$C$5,'Données FDC déc 2018'!$E:$E,Activation!F$9),IF(ISBLANK($J$5),SUMIFS('Données FDC déc 2018'!$AB:$AB,'Données FDC déc 2018'!$B:$B,Activation!$F$5,'Données FDC déc 2018'!$E:$E,Activation!F$9),SUMIFS('Données FDC déc 2018'!$AB:$AB,'Données FDC déc 2018'!$C:$C,Activation!$J$5,'Données FDC déc 2018'!$E:$E,Activation!F$9))) -> 3330 | G81: =G82-IF(ISBLANK($F$5),SUMIFS('Données FDC déc 2018'!$AB:$AB,'Données FDC déc 2018'!$A:$A,Activation!$C$5,'Données FDC déc 2018'!$E:$E,Activation!G$9),IF(ISBLANK($J$5),SUMIFS('Données FDC déc 2018'!$AB:$AB,'Données FDC déc 2018'!$B:$B,Activation!$F$5,'Données FDC déc 2018'!$E:$E,Activation!G$9),SUMIFS('Données FDC déc 2018'!$AB:$AB,'Données FDC déc 2018'!$C:$C,Activation!$J$5,'Données FDC déc 2018'!$E:$E,Activation!G$9))) -> 553 | H81: =H82-IF(ISBLANK($F$5),SUMIFS('Données FDC déc 2018'!$AB:$AB,'Données FDC déc 2018'!$A:$A,Activation!$C$5,'Données FDC déc 2018'!$E:$E,Activation!H$9),IF(ISBLANK($J$5),SUMIFS('Données FDC déc 2018'!$AB:$AB,'Données FDC déc 2018'!$B:$B,Activation!$F$5,'Données FDC déc 2018'!$E:$E,Activation!H$9),SUMIFS('Données FDC déc 2018'!$AB:$AB,'Données FDC déc 2018'!$C:$C,Activation!$J$5,'Données FDC déc 2018'!$E:$E,Activation!H$9))) -> 744 | I81: =I82-IF(ISBLANK($F$5),SUMIFS('Données FDC déc 2018'!$AB:$AB,'Données FDC déc 2018'!$A:$A,Activation!$C$5,'Données FDC déc 2018'!$E:$E,Activation!I$9),IF(ISBLANK($J$5),SUMIFS('Données FDC déc 2018'!$AB:$AB,'Données FDC déc 2018'!$B:$B,Activation!$F$5,'Données FDC déc 2018'!$E:$E,Activation!I$9),SUMIFS('Données FDC déc 2018'!$AB:$AB,'Données FDC déc 2018'!$C:$C,Activation!$J$5,'Données FDC déc 2018'!$E:$E,Activation!I$9))) -> 714 | J81: =J82-IF(ISBLANK($F$5),SUMIFS('Données FDC déc 2018'!$AB:$AB,'Données FDC déc 2018'!$A:$A,Activation!$C$5,'Données FDC déc 2018'!$E:$E,Activation!J$9),IF(ISBLANK($J$5),SUMIFS('Données FDC déc 2018'!$AB:$AB,'Données FDC déc 2018'!$B:$B,Activation!$F$5,'Données FDC déc 2018'!$E:$E,Activation!J$9),SUMIFS('Données FDC déc 2018'!$AB:$AB,'Données FDC déc 2018'!$C:$C,Activation!$J$5,'Données FDC déc 2018'!$E:$E,Activation!J$9))) -> 923 | K81: =K82-IF(ISBLANK($F$5),SUMIFS('Données FDC déc 2018'!$AB:$AB,'Données FDC déc 2018'!$A:$A,Activation!$C$5,'Données FDC déc 2018'!$E:$E,Activation!K$9),IF(ISBLANK($J$5),SUMIFS('Données FDC déc 2018'!$AB:$AB,'Données FDC déc 2018'!$B:$B,Activation!$F$5,'Données FDC déc 2018'!$E:$E,Activation!K$9),SUMIFS('Données FDC déc 2018'!$AB:$AB,'Données FDC déc 2018'!$C:$C,Activation!$J$5,'Données FDC déc 2018'!$E:$E,Activation!K$9))) -> 120 | L81: =L82-IF(ISBLANK($F$5),SUMIFS('Données FDC déc 2018'!$AB:$AB,'Données FDC déc 2018'!$A:$A,Activation!$C$5,'Données FDC déc 2018'!$E:$E,Activation!L$9),IF(ISBLANK($J$5),SUMIFS('Données FDC déc 2018'!$AB:$AB,'Données FDC déc 2018'!$B:$B,Activation!$F$5,'Données FDC déc 2018'!$E:$E,Activation!L$9),SUMIFS('Données FDC déc 2018'!$AB:$AB,'Données FDC déc 2018'!$C:$C,Activation!$J$5,'Données FDC déc 2018'!$E:$E,Activation!L$9))) -> 73 | M81: =M82-IF(ISBLANK($F$5),SUMIFS('Données FDC déc 2018'!$AB:$AB,'Données FDC déc 2018'!$A:$A,Activation!$C$5,'Données FDC déc 2018'!$E:$E,Activation!M$9),IF(ISBLANK($J$5),SUMIFS('Données FDC déc 2018'!$AB:$AB,'Données FDC déc 2018'!$B:$B,Activation!$F$5,'Données FDC déc 2018'!$E:$E,Activation!M$9),SUMIFS('Données FDC déc 2018'!$AB:$AB,'Données FDC déc 2018'!$C:$C,Activation!$J$5,'Données FDC déc 2018'!$E:$E,Activation!M$9))) -> 163 | P81: =P82-IF(ISBLANK($F$5),SUMIFS('Données FDC déc 2018'!$AB:$AB,'Données FDC déc 2018'!$A:$A,Activation!$C$5,'Données FDC déc 2018'!$E:$E,Activation!P$9),IF(ISBLANK($J$5),SUMIFS('Données FDC déc 2018'!$AB:$AB,'Données FDC déc 2018'!$B:$B,Activation!$F$5,'Données FDC déc 2018'!$E:$E,Activation!P$9),SUMIFS('Données FDC déc 2018'!$AB:$AB,'Données FDC déc 2018'!$C:$C,Activation!$J$5,'Données FDC déc 2018'!$E:$E,Activation!P$9))) -> 0
C82: Nombre détenteurs | D82: =SUM(F82:P82) -> 83236 | E82: =IF(ISBLANK($F$5),SUMIFS('Données FDC déc 2018'!$AB:$AB,'Données FDC déc 2018'!$A:$A,Activation!$C$5),IF(ISBLANK($J$5),SUMIFS('Données FDC déc 2018'!$AB:$AB,'Données FDC déc 2018'!$B:$B,Activation!$F$5),SUMIFS('Données FDC déc 2018'!$AB:$AB,'Données FDC déc 2018'!$C:$C,Activation!$J$5))) -> 76616 | F82: =IF(ISBLANK($F$5),SUMIFS('Données FDC'!$AB:$AB,'Données FDC'!$A:$A,Activation!$C$5,'Données FDC'!$E:$E,Activation!F$9),IF(ISBLANK($J$5),SUMIFS('Données FDC'!$AB:$AB,'Données FDC'!$B:$B,Activation!$F$5,'Données FDC'!$E:$E,Activation!F$9),SUMIFS('Données FDC'!$AB:$AB,'Données FDC'!$C:$C,Activation!$J$5,'Données FDC'!$E:$E,Activation!F$9))) -> 52830 | G82: =IF(ISBLANK($F$5),SUMIFS('Données FDC'!$AB:$AB,'Données FDC'!$A:$A,Activation!$C$5,'Données FDC'!$E:$E,Activation!G$9),IF(ISBLANK($J$5),SUMIFS('Données FDC'!$AB:$AB,'Données FDC'!$B:$B,Activation!$F$5,'Données FDC'!$E:$E,Activation!G$9),SUMIFS('Données FDC'!$AB:$AB,'Données FDC'!$C:$C,Activation!$J$5,'Données FDC'!$E:$E,Activation!G$9))) -> 14568 | H82: =IF(ISBLANK($F$5),SUMIFS('Données FDC'!$AB:$AB,'Données FDC'!$A:$A,Activation!$C$5,'Données FDC'!$E:$E,Activation!H$9),IF(ISBLANK($J$5),SUMIFS('Données FDC'!$AB:$AB,'Données FDC'!$B:$B,Activation!$F$5,'Données FDC'!$E:$E,Activation!H$9),SUMIFS('Données FDC'!$AB:$AB,'Données FDC'!$C:$C,Activation!$J$5,'Données FDC'!$E:$E,Activation!H$9))) -> 6110 | I82: =IF(ISBLANK($F$5),SUMIFS('Données FDC'!$AB:$AB,'Données FDC'!$A:$A,Activation!$C$5,'Données FDC'!$E:$E,Activation!I$9),IF(ISBLANK($J$5),SUMIFS('Données FDC'!$AB:$AB,'Données FDC'!$B:$B,Activation!$F$5,'Données FDC'!$E:$E,Activation!I$9),SUMIFS('Données FDC'!$AB:$AB,'Données FDC'!$C:$C,Activation!$J$5,'Données FDC'!$E:$E,Activation!I$9))) -> 3791 | J82: =IF(ISBLANK($F$5),SUMIFS('Données FDC'!$AB:$AB,'Données FDC'!$A:$A,Activation!$C$5,'Données FDC'!$E:$E,Activation!J$9),IF(ISBLANK($J$5),SUMIFS('Données FDC'!$AB:$AB,'Données FDC'!$B:$B,Activation!$F$5,'Données FDC'!$E:$E,Activation!J$9),SUMIFS('Données FDC'!$AB:$AB,'Données FDC'!$C:$C,Activation!$J$5,'Données FDC'!$E:$E,Activation!J$9))) -> 4673 | K82: =IF(ISBLANK($F$5),SUMIFS('Données FDC'!$AB:$AB,'Données FDC'!$A:$A,Activation!$C$5,'Données FDC'!$E:$E,Activation!K$9),IF(ISBLANK($J$5),SUMIFS('Données FDC'!$AB:$AB,'Données FDC'!$B:$B,Activation!$F$5,'Données FDC'!$E:$E,Activation!K$9),SUMIFS('Données FDC'!$AB:$AB,'Données FDC'!$C:$C,Activation!$J$5,'Données FDC'!$E:$E,Activation!K$9))) -> 713 | L82: =IF(ISBLANK($F$5),SUMIFS('Données FDC'!$AB:$AB,'Données FDC'!$A:$A,Activation!$C$5,'Données FDC'!$E:$E,Activation!L$9),IF(ISBLANK($J$5),SUMIFS('Données FDC'!$AB:$AB,'Données FDC'!$B:$B,Activation!$F$5,'Données FDC'!$E:$E,Activation!L$9),SUMIFS('Données FDC'!$AB:$AB,'Données FDC'!$C:$C,Activation!$J$5,'Données FDC'!$E:$E,Activation!L$9))) -> 172 | M82: =IF(ISBLANK($F$5),SUMIFS('Données FDC'!$AB:$AB,'Données FDC'!$A:$A,Activation!$C$5,'Données FDC'!$E:$E,Activation!M$9),IF(ISBLANK($J$5),SUMIFS('Données FDC'!$AB:$AB,'Données FDC'!$B:$B,Activation!$F$5,'Données FDC'!$E:$E,Activation!M$9),SUMIFS('Données FDC'!$AB:$AB,'Données FDC'!$C:$C,Activation!$J$5,'Données FDC'!$E:$E,Activation!M$9))) -> 371 | P82: =IF(ISBLANK($F$5),SUMIFS('Données FDC'!$AB:$AB,'Données FDC'!$A:$A,Activation!$C$5,'Données FDC'!$E:$E,Activation!P$9),IF(ISBLANK($J$5),SUMIFS('Données FDC'!$AB:$AB,'Données FDC'!$B:$B,Activation!$F$5,'Données FDC'!$E:$E,Activation!P$9),SUMIFS('Données FDC'!$AB:$AB,'Données FDC'!$C:$C,Activation!$J$5,'Données FDC'!$E:$E,Activation!P$9))) -> 8
C83: % détenteurs | D83: =D82/(IF(ISBLANK($F$5),SUMIFS('Données FDC'!$J:$J,'Données FDC'!$A:$A,Activation!$C$5),IF(ISBLANK($J$5),SUMIFS('Données FDC'!$J:$J,'Données FDC'!$B:$B,Activation!$F$5),SUMIFS('Données FDC'!$J:$J,'Données FDC'!$C:$C,Activation!$J$5)))) -> 0.06307090665 | E83: =E82/IF(ISBLANK($F$5),SUMIFS('Données FDC déc 2018'!$J:$J,'Données FDC déc 2018'!$A:$A,Activation!$C$5),IF(ISBLANK($J$5),SUMIFS('Données FDC déc 2018'!$J:$J,'Données FDC déc 2018'!$B:$B,Activation!$F$5),SUMIFS('Données FDC déc 2018'!$J:$J,'Données FDC déc 2018'!$C:$C,Activation!$J$5))) -> 0.05682187319 | F83: =F82/(IF(ISBLANK($F$5),SUMIFS('Données FDC'!$J:$J,'Données FDC'!$A:$A,Activation!$C$5,'Données FDC'!$E:$E,Activation!F$9),IF(ISBLANK($J$5),SUMIFS('Données FDC'!$J:$J,'Données FDC'!$B:$B,Activation!$F$5,'Données FDC'!$E:$E,Activation!F$9),SUMIFS('Données FDC'!$J:$J,'Données FDC'!$C:$C,Activation!$J$5,'Données FDC'!$E:$E,Activation!F$9)))) -> 0.1919157794 | G83: =G82/(IF(ISBLANK($F$5),SUMIFS('Données FDC'!$J:$J,'Données FDC'!$A:$A,Activation!$C$5,'Données FDC'!$E:$E,Activation!G$9),IF(ISBLANK($J$5),SUMIFS('Données FDC'!$J:$J,'Données FDC'!$B:$B,Activation!$F$5,'Données FDC'!$E:$E,Activation!G$9),SUMIFS('Données FDC'!$J:$J,'Données FDC'!$C:$C,Activation!$J$5,'Données FDC'!$E:$E,Activation!G$9)))) -> 0.09022500511 | H83: =H82/(IF(ISBLANK($F$5),SUMIFS('Données FDC'!$J:$J,'Données FDC'!$A:$A,Activation!$C$5,'Données FDC'!$E:$E,Activation!H$9),IF(ISBLANK($J$5),SUMIFS('Données FDC'!$J:$J,'Données FDC'!$B:$B,Activation!$F$5,'Données FDC'!$E:$E,Activation!H$9),SUMIFS('Données FDC'!$J:$J,'Données FDC'!$C:$C,Activation!$J$5,'Données FDC'!$E:$E,Activation!H$9)))) -> 0.03569363064 | I83: =I82/(IF(ISBLANK($F$5),SUMIFS('Données FDC'!$J:$J,'Données FDC'!$A:$A,Activation!$C$5,'Données FDC'!$E:$E,Activation!I$9),IF(ISBLANK($J$5),SUMIFS('Données FDC'!$J:$J,'Données FDC'!$B:$B,Activation!$F$5,'Données FDC'!$E:$E,Activation!I$9),SUMIFS('Données FDC'!$J:$J,'Données FDC'!$C:$C,Activation!$J$5,'Données FDC'!$E:$E,Activation!I$9)))) -> 0.01059645965 | J83: =J82/(IF(ISBLANK($F$5),SUMIFS('Données FDC'!$J:$J,'Données FDC'!$A:$A,Activation!$C$5,'Données FDC'!$E:$E,Activation!J$9),IF(ISBLANK($J$5),SUMIFS('Données FDC'!$J:$J,'Données FDC'!$B:$B,Activation!$F$5,'Données FDC'!$E:$E,Activation!J$9),SUMIFS('Données FDC'!$J:$J,'Données FDC'!$C:$C,Activation!$J$5,'Données FDC'!$E:$E,Activation!J$9)))) -> 0.08155322862 | K83: =K82/(IF(ISBLANK($F$5),SUMIFS('Données FDC'!$J:$J,'Données FDC'!$A:$A,Activation!$C$5,'Données FDC'!$E:$E,Activation!K$9),IF(ISBLANK($J$5),SUMIFS('Données FDC'!$J:$J,'Données FDC'!$B:$B,Activation!$F$5,'Données FDC'!$E:$E,Activation!K$9),SUMIFS('Données FDC'!$J:$J,'Données FDC'!$C:$C,Activation!$J$5,'Données FDC'!$E:$E,Activation!K$9)))) -> 0.04212952021 | L83: =L82/(IF(ISBLANK($F$5),SUMIFS('Données FDC'!$J:$J,'Données FDC'!$A:$A,Activation!$C$5,'Données FDC'!$E:$E,Activation!L$9),IF(ISBLANK($J$5),SUMIFS('Données FDC'!$J:$J,'Données FDC'!$B:$B,Activation!$F$5,'Données FDC'!$E:$E,Activation!L$9),SUMIFS('Données FDC'!$J:$J,'Données FDC'!$C:$C,Activation!$J$5,'Données FDC'!$E:$E,Activation!L$9)))) -> 0.02691284619 | M83: =M82/(IF(ISBLANK($F$5),SUMIFS('Données FDC'!$J:$J,'Données FDC'!$A:$A,Activation!$C$5,'Données FDC'!$E:$E,Activation!M$9),IF(ISBLANK($J$5),SUMIFS('Données FDC'!$J:$J,'Données FDC'!$B:$B,Activation!$F$5,'Données FDC'!$E:$E,Activation!M$9),SUMIFS('Données FDC'!$J:$J,'Données FDC'!$C:$C,Activation!$J$5,'Données FDC'!$E:$E,Activation!M$9)))) -> 0.006737125009 | P83: =P82/(IF(ISBLANK($F$5),SUMIFS('Données FDC'!$J:$J,'Données FDC'!$A:$A,Activation!$C$5,'Données FDC'!$E:$E,Activation!P$9),IF(ISBLANK($J$5),SUMIFS('Données FDC'!$J:$J,'Données FDC'!$B:$B,Activation!$F$5,'Données FDC'!$E:$E,Activation!P$9),SUMIFS('Données FDC'!$J:$J,'Données FDC'!$C:$C,Activation!$J$5,'Données FDC'!$E:$E,Activation!P$9)))) -> 3.663708222e-05
C84: % détenteurs CEGEE | D84: =SUM('Données FDC'!$AB:$AB)/SUM('Données FDC'!$J:$J) -> 0.06307090665 | E84: =SUM('Données FDC déc 2018'!$AB:$AB)/SUM('Données FDC déc 2018'!$J:$J) -> 0.05682187319 | F84: =SUMIF('Données FDC'!$E:$E,Activation!F$9,'Données FDC'!$AB:$AB)/SUMIF('Données FDC'!$E:$E,Activation!F$9,'Données FDC'!$J:$J) -> 0.1919157794 | G84: =SUMIF('Données FDC'!$E:$E,Activation!G$9,'Données FDC'!$AB:$AB)/SUMIF('Données FDC'!$E:$E,Activation!G$9,'Données FDC'!$J:$J) -> 0.09022500511 | H84: =SUMIF('Données FDC'!$E:$E,Activation!H$9,'Données FDC'!$AB:$AB)/SUMIF('Données FDC'!$E:$E,Activation!H$9,'Données FDC'!$J:$J) -> 0.03569363064 | I84: =SUMIF('Données FDC'!$E:$E,Activation!I$9,'Données FDC'!$AB:$AB)/SUMIF('Données FDC'!$E:$E,Activation!I$9,'Données FDC'!$J:$J) -> 0.01059645965 | J84: =SUMIF('Données FDC'!$E:$E,Activation!J$9,'Données FDC'!$AB:$AB)/SUMIF('Données FDC'!$E:$E,Activation!J$9,'Données FDC'!$J:$J) -> 0.08155322862 | K84: =SUMIF('Données FDC'!$E:$E,Activation!K$9,'Données FDC'!$AB:$AB)/SUMIF('Données FDC'!$E:$E,Activation!K$9,'Données FDC'!$J:$J) -> 0.04212952021 | L84: =SUMIF('Données FDC'!$E:$E,Activation!L$9,'Données FDC'!$AB:$AB)/SUMIF('Données FDC'!$E:$E,Activation!L$9,'Données FDC'!$J:$J) -> 0.02691284619 | M84: =SUMIF('Données FDC'!$E:$E,Activation!M$9,'Données FDC'!$AB:$AB)/SUMIF('Données FDC'!$E:$E,Activation!M$9,'Données FDC'!$J:$J) -> 0.006737125009 | P84: =SUMIF('Données FDC'!$E:$E,Activation!P$9,'Données FDC'!$AB:$AB)/SUMIF('Données FDC'!$E:$E,Activation!P$9,'Données FDC'!$J:$J) -> 3.663708222e-05
B85: CBR (12-15 ans) | C85: Variation | D85: =SUM(F85:P85) -> -67 | N85: =N86-IF(ISBLANK($F$5),SUMIFS('Données FDC déc 2018'!$AC:$AC,'Données FDC déc 2018'!$A:$A,Activation!$C$5,'Données FDC déc 2018'!$E:$E,Activation!N$9),IF(ISBLANK($J$5),SUMIFS('Données FDC déc 2018'!$AC:$AC,'Données FDC déc 2018'!$B:$B,Activation!$F$5,'Données FDC déc 2018'!$E:$E,Activation!N$9),SUMIFS('Données FDC déc 2018'!$AC:$AC,'Données FDC déc 2018'!$C:$C,Activation!$J$5,'Données FDC déc 2018'!$E:$E,Activation!N$9))) -> -69 | O85: =O86-IF(ISBLANK($F$5),SUMIFS('Données FDC déc 2018'!$AC:$AC,'Données FDC déc 2018'!$A:$A,Activation!$C$5,'Données FDC déc 2018'!$E:$E,Activation!O$9),IF(ISBLANK($J$5),SUMIFS('Données FDC déc 2018'!$AC:$AC,'Données FDC déc 2018'!$B:$B,Activation!$F$5,'Données FDC déc 2018'!$E:$E,Activation!O$9),SUMIFS('Données FDC déc 2018'!$AC:$AC,'Données FDC déc 2018'!$C:$C,Activation!$J$5,'Données FDC déc 2018'!$E:$E,Activation!O$9))) -> 2
C86: Nombre détenteurs | D86: =SUM(F86:P86) -> 932 | E86: =IF(ISBLANK($F$5),SUMIFS('Données FDC déc 2018'!$AC:$AC,'Données FDC déc 2018'!$A:$A,Activation!$C$5),IF(ISBLANK($J$5),SUMIFS('Données FDC déc 2018'!$AC:$AC,'Données FDC déc 2018'!$B:$B,Activation!$F$5),SUMIFS('Données FDC déc 2018'!$AC:$AC,'Données FDC déc 2018'!$C:$C,Activation!$J$5))) -> 999 | N86: =IF(ISBLANK($F$5),SUMIFS('Données FDC'!$AC:$AC,'Données FDC'!$A:$A,Activation!$C$5,'Données FDC'!$E:$E,Activation!N$9),IF(ISBLANK($J$5),SUMIFS('Données FDC'!$AC:$AC,'Données FDC'!$B:$B,Activation!$F$5,'Données FDC'!$E:$E,Activation!N$9),SUMIFS('Données FDC'!$AC:$AC,'Données FDC'!$C:$C,Activation!$J$5,'Données FDC'!$E:$E,Activation!N$9))) -> 843 | O86: =IF(ISBLANK($F$5),SUMIFS('Données FDC'!$AC:$AC,'Données FDC'!$A:$A,Activation!$C$5,'Données FDC'!$E:$E,Activation!O$9),IF(ISBLANK($J$5),SUMIFS('Données FDC'!$AC:$AC,'Données FDC'!$B:$B,Activation!$F$5,'Données FDC'!$E:$E,Activation!O$9),SUMIFS('Données FDC'!$AC:$AC,'Données FDC'!$C:$C,Activation!$J$5,'Données FDC'!$E:$E,Activation!O$9))) -> 89
C87: % détenteurs | D87: =D86/(IF(ISBLANK($F$5),SUMIFS('Données FDC'!$K:$K,'Données FDC'!$A:$A,Activation!$C$5),IF(ISBLANK($J$5),SUMIFS('Données FDC'!$K:$K,'Données FDC'!$B:$B,Activation!$F$5),SUMIFS('Données FDC'!$K:$K,'Données FDC'!$C:$C,Activation!$J$5)))) -> 0.01138946597 | E87: =E86/IF(ISBLANK($F$5),SUMIFS('Données FDC déc 2018'!$K:$K,'Données FDC déc 2018'!$A:$A,Activation!$C$5),IF(ISBLANK($J$5),SUMIFS('Données FDC déc 2018'!$K:$K,'Données FDC déc 2018'!$B:$B,Activation!$F$5),SUMIFS('Données FDC déc 2018'!$K:$K,'Données FDC déc 2018'!$C:$C,Activation!$J$5))) -> 0.01182990515 | N87: =N86/IF(ISBLANK($F$5),SUMIFS('Données FDC'!$K:$K,'Données FDC'!$A:$A,Activation!$C$5,'Données FDC'!$E:$E,Activation!N$9),IF(ISBLANK($J$5),SUMIFS('Données FDC'!$K:$K,'Données FDC'!$B:$B,Activation!$F$5,'Données FDC'!$E:$E,Activation!N$9),SUMIFS('Données FDC'!$K:$K,'Données FDC'!$C:$C,Activation!$J$5,'Données FDC'!$E:$E,Activation!N$9))) -> 0.03293998124 | O87: =O86/IF(ISBLANK($F$5),SUMIFS('Données FDC'!$K:$K,'Données FDC'!$A:$A,Activation!$C$5,'Données FDC'!$E:$E,Activation!O$9),IF(ISBLANK($J$5),SUMIFS('Données FDC'!$K:$K,'Données FDC'!$B:$B,Activation!$F$5,'Données FDC'!$E:$E,Activation!O$9),SUMIFS('Données FDC'!$K:$K,'Données FDC'!$C:$C,Activation!$J$5,'Données FDC'!$E:$E,Activation!O$9))) -> 0.003454298467
C88: % détenteurs CEGEE | D88: =SUM('Données FDC'!$AC:$AC)/SUM('Données FDC'!$K:$K) -> 0.01138946597 | E88: =SUM('Données FDC déc 2018'!$AC:$AC)/SUM('Données FDC déc 2018'!$K:$K) -> 0.01182990515 | N88: =SUMIF('Données FDC'!$E:$E,Activation!N$9,'Données FDC'!$AC:$AC)/SUMIF('Données FDC'!$E:$E,Activation!N$9,'Données FDC'!$K:$K) -> 0.03293998124 | O88: =SUMIF('Données FDC'!$E:$E,Activation!O$9,'Données FDC'!$AC:$AC)/SUMIF('Données FDC'!$E:$E,Activation!O$9,'Données FDC'!$K:$K) -> 0.003454298467
B89: CBR chargée (12-15 ans) | C89: Variation | D89: =SUM(F89:P89) -> -34 | N89: =N90-IF(ISBLANK($F$5),SUMIFS('Données FDC déc 2018'!$AD:$AD,'Données FDC déc 2018'!$A:$A,Activation!$C$5,'Données FDC déc 2018'!$E:$E,Activation!N$9),IF(ISBLANK($J$5),SUMIFS('Données FDC déc 2018'!$AD:$AD,'Données FDC déc 2018'!$B:$B,Activation!$F$5,'Données FDC déc 2018'!$E:$E,Activation!N$9),SUMIFS('Données FDC déc 2018'!$AD:$AD,'Données FDC déc 2018'!$C:$C,Activation!$J$5,'Données FDC déc 2018'!$E:$E,Activation!N$9))) -> -34 | O89: =O90-IF(ISBLANK($F$5),SUMIFS('Données FDC déc 2018'!$AD:$AD,'Données FDC déc 2018'!$A:$A,Activation!$C$5,'Données FDC déc 2018'!$E:$E,Activation!O$9),IF(ISBLANK($J$5),SUMIFS('Données FDC déc 2018'!$AD:$AD,'Données FDC déc 2018'!$B:$B,Activation!$F$5,'Données FDC déc 2018'!$E:$E,Activation!O$9),SUMIFS('Données FDC déc 2018'!$AD:$AD,'Données FDC déc 2018'!$C:$C,Activation!$J$5,'Données FDC déc 2018'!$E:$E,Activation!O$9))) -> 0
C90: Nombre détenteurs | D90: =SUM(F90:P90) -> 515 | E90: =IF(ISBLANK($F$5),SUMIFS('Données FDC déc 2018'!$AD:$AD,'Données FDC déc 2018'!$A:$A,Activation!$C$5),IF(ISBLANK($J$5),SUMIFS('Données FDC déc 2018'!$AD:$AD,'Données FDC déc 2018'!$B:$B,Activation!$F$5),SUMIFS('Données FDC déc 2018'!$AD:$AD,'Données FDC déc 2018'!$C:$C,Activation!$J$5))) -> 549 | N90: =IF(ISBLANK($F$5),SUMIFS('Données FDC'!$AD:$AD,'Données FDC'!$A:$A,Activation!$C$5,'Données FDC'!$E:$E,Activation!N$9),IF(ISBLANK($J$5),SUMIFS('Données FDC'!$AD:$AD,'Données FDC'!$B:$B,Activation!$F$5,'Données FDC'!$E:$E,Activation!N$9),SUMIFS('Données FDC'!$AD:$AD,'Données FDC'!$C:$C,Activation!$J$5,'Données FDC'!$E:$E,Activation!N$9))) -> 515 | O90: =IF(ISBLANK($F$5),SUMIFS('Données FDC'!$AD:$AD,'Données FDC'!$A:$A,Activation!$C$5,'Données FDC'!$E:$E,Activation!O$9),IF(ISBLANK($J$5),SUMIFS('Données FDC'!$AD:$AD,'Données FDC'!$B:$B,Activation!$F$5,'Données FDC'!$E:$E,Activation!O$9),SUMIFS('Données FDC'!$AD:$AD,'Données FDC'!$C:$C,Activation!$J$5,'Données FDC'!$E:$E,Activation!O$9))) -> 0
C91: % détenteurs | D91: =D90/(IF(ISBLANK($F$5),SUMIFS('Données FDC'!$K:$K,'Données FDC'!$A:$A,Activation!$C$5),IF(ISBLANK($J$5),SUMIFS('Données FDC'!$K:$K,'Données FDC'!$B:$B,Activation!$F$5),SUMIFS('Données FDC'!$K:$K,'Données FDC'!$C:$C,Activation!$J$5)))) -> 0.006293535378 | E91: =E90/IF(ISBLANK($F$5),SUMIFS('Données FDC déc 2018'!$K:$K,'Données FDC déc 2018'!$A:$A,Activation!$C$5),IF(ISBLANK($J$5),SUMIFS('Données FDC déc 2018'!$K:$K,'Données FDC déc 2018'!$B:$B,Activation!$F$5),SUMIFS('Données FDC déc 2018'!$K:$K,'Données FDC déc 2018'!$C:$C,Activation!$J$5))) -> 0.006501119045 | N91: =N90/IF(ISBLANK($F$5),SUMIFS('Données FDC'!$K:$K,'Données FDC'!$A:$A,Activation!$C$5,'Données FDC'!$E:$E,Activation!N$9),IF(ISBLANK($J$5),SUMIFS('Données FDC'!$K:$K,'Données FDC'!$B:$B,Activation!$F$5,'Données FDC'!$E:$E,Activation!N$9),SUMIFS('Données FDC'!$K:$K,'Données FDC'!$C:$C,Activation!$J$5,'Données FDC'!$E:$E,Activation!N$9))) -> 0.02012347609 | O91: =O90/IF(ISBLANK($F$5),SUMIFS('Données FDC'!$K:$K,'Données FDC'!$A:$A,Activation!$C$5,'Données FDC'!$E:$E,Activation!O$9),IF(ISBLANK($J$5),SUMIFS('Données FDC'!$K:$K,'Données FDC'!$B:$B,Activation!$F$5,'Données FDC'!$E:$E,Activation!O$9),SUMIFS('Données FDC'!$K:$K,'Données FDC'!$C:$C,Activation!$J$5,'Données FDC'!$E:$E,Activation!O$9))) -> 0
C92: % détenteurs CEGEE | D92: =SUM('Données FDC'!$AD:$AD)/SUM('Données FDC'!$K:$K) -> 0.006293535378 | E92: =SUM('Données FDC déc 2018'!$AD:$AD)/SUM('Données FDC déc 2018'!$K:$K) -> 0.006501119045 | N92: =SUMIF('Données FDC'!$E:$E,Activation!N$9,'Données FDC'!$AD:$AD)/SUMIF('Données FDC'!$E:$E,Activation!N$9,'Données FDC'!$K:$K) -> 0.02012347609 | O92: =SUMIF('Données FDC'!$E:$E,Activation!O$9,'Données FDC'!$AD:$AD)/SUMIF('Données FDC'!$E:$E,Activation!O$9,'Données FDC'!$K:$K) -> 0
B94: EQUIPEMENT CREDITS
D96: Tous segments | F96: =F8 -> Segments Activation - 07/2019
D97: =D9 -> 2019-07-01 | E97: 2018-12-01 | F97: BPe | G97: BPne | H97: De | I97: Dne | J97: JBPe | K97: JBPne | L97: JDe | M97: JDne | N97: Ee | O97: Ene | P97: I
B98: Détention Univers Crédit (majeurs) | C98: Nombre détenteurs | D98: =D41 -> 275677 | E98: =E41 -> 276838 | F98: 180946 | G98: 32933 | H98: 21761 | I98: 19187 | J98: 18949 | K98: 467 | L98: 583 | M98: 851 | P98: =P41 -> 0
C99: % détenteurs | D99: =D42 -> 0.2088903639 | E99: =E42 -> 0.205315518 | F99: 0.6573233507 | G99: 0.2039662338 | H99: 0.1271242384 | I99: 0.05363077585 | J99: 0.3306980803 | K99: 0.02759394942 | L99: 0.09122203098 | M99: 0.01545362098 | P99: 0
C100: % détenteurs CEGEE | D100: 0.2088903639 | E100: =E43 -> 0.205315518 | F100: 0.6573233507 | G100: 0.2039662338 | H100: 0.1271242384 | I100: 0.05363077585 | J100: 0.3306980803 | K100: 0.02759394942 | L100: 0.09122203098 | M100: 0.01545362098 | P100: 0
B101: Crédit Immo (majeurs) | C101: Variation | D101: =SUM(F101:P101) -> -4638 | F101: =F102-IF(ISBLANK($F$5),SUMIFS('Données FDC déc 2018'!$AL:$AL,'Données FDC déc 2018'!$A:$A,Activation!$C$5,'Données FDC déc 2018'!$E:$E,Activation!F$9),IF(ISBLANK($J$5),SUMIFS('Données FDC déc 2018'!$AL:$AL,'Données FDC déc 2018'!$B:$B,Activation!$F$5,'Données FDC déc 2018'!$E:$E,Activation!F$9),SUMIFS('Données FDC déc 2018'!$AL:$AL,'Données FDC déc 2018'!$C:$C,Activation!$J$5,'Données FDC déc 2018'!$E:$E,Activation!F$9))) -> -2440 | G101: =G102-IF(ISBLANK($F$5),SUMIFS('Données FDC déc 2018'!$AL:$AL,'Données FDC déc 2018'!$A:$A,Activation!$C$5,'Données FDC déc 2018'!$E:$E,Activation!G$9),IF(ISBLANK($J$5),SUMIFS('Données FDC déc 2018'!$AL:$AL,'Données FDC déc 2018'!$B:$B,Activation!$F$5,'Données FDC déc 2018'!$E:$E,Activation!G$9),SUMIFS('Données FDC déc 2018'!$AL:$AL,'Données FDC déc 2018'!$C:$C,Activation!$J$5,'Données FDC déc 2018'!$E:$E,Activation!G$9))) -> -1291 | H101: =H102-IF(ISBLANK($F$5),SUMIFS('Données FDC déc 2018'!$AL:$AL,'Données FDC déc 2018'!$A:$A,Activation!$C$5,'Données FDC déc 2018'!$E:$E,Activation!H$9),IF(ISBLANK($J$5),SUMIFS('Données FDC déc 2018'!$AL:$AL,'Données FDC déc 2018'!$B:$B,Activation!$F$5,'Données FDC déc 2018'!$E:$E,Activation!H$9),SUMIFS('Données FDC déc 2018'!$AL:$AL,'Données FDC déc 2018'!$C:$C,Activation!$J$5,'Données FDC déc 2018'!$E:$E,Activation!H$9))) -> -334 | I101: =I102-IF(ISBLANK($F$5),SUMIFS('Données FDC déc 2018'!$AL:$AL,'Données FDC déc 2018'!$A:$A,Activation!$C$5,'Données FDC déc 2018'!$E:$E,Activation!I$9),IF(ISBLANK($J$5),SUMIFS('Données FDC déc 2018'!$AL:$AL,'Données FDC déc 2018'!$B:$B,Activation!$F$5,'Données FDC déc 2018'!$E:$E,Activation!I$9),SUMIFS('Données FDC déc 2018'!$AL:$AL,'Données FDC déc 2018'!$C:$C,Activation!$J$5,'Données FDC déc 2018'!$E:$E,Activation!I$9))) -> 105 | J101: =J102-IF(ISBLANK($F$5),SUMIFS('Données FDC déc 2018'!$AL:$AL,'Données FDC déc 2018'!$A:$A,Activation!$C$5,'Données FDC déc 2018'!$E:$E,Activation!J$9),IF(ISBLANK($J$5),SUMIFS('Données FDC déc 2018'!$AL:$AL,'Données FDC déc 2018'!$B:$B,Activation!$F$5,'Données FDC déc 2018'!$E:$E,Activation!J$9),SUMIFS('Données FDC déc 2018'!$AL:$AL,'Données FDC déc 2018'!$C:$C,Activation!$J$5,'Données FDC déc 2018'!$E:$E,Activation!J$9))) -> -665 | K101: =K102-IF(ISBLANK($F$5),SUMIFS('Données FDC déc 2018'!$AL:$AL,'Données FDC déc 2018'!$A:$A,Activation!$C$5,'Données FDC déc 2018'!$E:$E,Activation!K$9),IF(ISBLANK($J$5),SUMIFS('Données FDC déc 2018'!$AL:$AL,'Données FDC déc 2018'!$B:$B,Activation!$F$5,'Données FDC déc 2018'!$E:$E,Activation!K$9),SUMIFS('Données FDC déc 2018'!$AL:$AL,'Données FDC déc 2018'!$C:$C,Activation!$J$5,'Données FDC déc 2018'!$E:$E,Activation!K$9))) -> -30 | L101: =L102-IF(ISBLANK($F$5),SUMIFS('Données FDC déc 2018'!$AL:$AL,'Données FDC déc 2018'!$A:$A,Activation!$C$5,'Données FDC déc 2018'!$E:$E,Activation!L$9),IF(ISBLANK($J$5),SUMIFS('Données FDC déc 2018'!$AL:$AL,'Données FDC déc 2018'!$B:$B,Activation!$F$5,'Données FDC déc 2018'!$E:$E,Activation!L$9),SUMIFS('Données FDC déc 2018'!$AL:$AL,'Données FDC déc 2018'!$C:$C,Activation!$J$5,'Données FDC déc 2018'!$E:$E,Activation!L$9))) -> 31 | M101: =M102-IF(ISBLANK($F$5),SUMIFS('Données FDC déc 2018'!$AL:$AL,'Données FDC déc 2018'!$A:$A,Activation!$C$5,'Données FDC déc 2018'!$E:$E,Activation!M$9),IF(ISBLANK($J$5),SUMIFS('Données FDC déc 2018'!$AL:$AL,'Données FDC déc 2018'!$B:$B,Activation!$F$5,'Données FDC déc 2018'!$E:$E,Activation!M$9),SUMIFS('Données FDC déc 2018'!$AL:$AL,'Données FDC déc 2018'!$C:$C,Activation!$J$5,'Données FDC déc 2018'!$E:$E,Activation!M$9))) -> -14 | P101: =P102-IF(ISBLANK($F$5),SUMIFS('Données FDC déc 2018'!$AL:$AL,'Données FDC déc 2018'!$A:$A,Activation!$C$5,'Données FDC déc 2018'!$E:$E,Activation!P$9),IF(ISBLANK($J$5),SUMIFS('Données FDC déc 2018'!$AL:$AL,'Données FDC déc 2018'!$B:$B,Activation!$F$5,'Données FDC déc 2018'!$E:$E,Activation!P$9),SUMIFS('Données FDC déc 2018'!$AL:$AL,'Données FDC déc 2018'!$C:$C,Activation!$J$5,'Données FDC déc 2018'!$E:$E,Activation!P$9))) -> 0
C102: Nombre détenteurs | D102: =SUM(F102:P102) -> 248646 | E102: =IF(ISBLANK($F$5),SUMIFS('Données FDC déc 2018'!$AL:$AL,'Données FDC déc 2018'!$A:$A,Activation!$C$5),IF(ISBLANK($J$5),SUMIFS('Données FDC déc 2018'!$AL:$AL,'Données FDC déc 2018'!$B:$B,Activation!$F$5),SUMIFS('Données FDC déc 2018'!$AL:$AL,'Données FDC déc 2018'!$C:$C,Activation!$J$5))) -> 253284 | F102: =IF(ISBLANK($F$5),SUMIFS('Données FDC'!$AL:$AL,'Données FDC'!$A:$A,Activation!$C$5,'Données FDC'!$E:$E,Activation!F$9),IF(ISBLANK($J$5),SUMIFS('Données FDC'!$AL:$AL,'Données FDC'!$B:$B,Activation!$F$5,'Données FDC'!$E:$E,Activation!F$9),SUMIFS('Données FDC'!$AL:$AL,'Données FDC'!$C:$C,Activation!$J$5,'Données FDC'!$E:$E,Activation!F$9))) -> 182615 | G102: =IF(ISBLANK($F$5),SUMIFS('Données FDC'!$AL:$AL,'Données FDC'!$A:$A,Activation!$C$5,'Données FDC'!$E:$E,Activation!G$9),IF(ISBLANK($J$5),SUMIFS('Données FDC'!$AL:$AL,'Données FDC'!$B:$B,Activation!$F$5,'Données FDC'!$E:$E,Activation!G$9),SUMIFS('Données FDC'!$AL:$AL,'Données FDC'!$C:$C,Activation!$J$5,'Données FDC'!$E:$E,Activation!G$9))) -> 27002 | H102: =IF(ISBLANK($F$5),SUMIFS('Données FDC'!$AL:$AL,'Données FDC'!$A:$A,Activation!$C$5,'Données FDC'!$E:$E,Activation!H$9),IF(ISBLANK($J$5),SUMIFS('Données FDC'!$AL:$AL,'Données FDC'!$B:$B,Activation!$F$5,'Données FDC'!$E:$E,Activation!H$9),SUMIFS('Données FDC'!$AL:$AL,'Données FDC'!$C:$C,Activation!$J$5,'Données FDC'!$E:$E,Activation!H$9))) -> 18917 | I102: =IF(ISBLANK($F$5),SUMIFS('Données FDC'!$AL:$AL,'Données FDC'!$A:$A,Activation!$C$5,'Données FDC'!$E:$E,Activation!I$9),IF(ISBLANK($J$5),SUMIFS('Données FDC'!$AL:$AL,'Données FDC'!$B:$B,Activation!$F$5,'Données FDC'!$E:$E,Activation!I$9),SUMIFS('Données FDC'!$AL:$AL,'Données FDC'!$C:$C,Activation!$J$5,'Données FDC'!$E:$E,Activation!I$9))) -> 14920 | J102: =IF(ISBLANK($F$5),SUMIFS('Données FDC'!$AL:$AL,'Données FDC'!$A:$A,Activation!$C$5,'Données FDC'!$E:$E,Activation!J$9),IF(ISBLANK($J$5),SUMIFS('Données FDC'!$AL:$AL,'Données FDC'!$B:$B,Activation!$F$5,'Données FDC'!$E:$E,Activation!J$9),SUMIFS('Données FDC'!$AL:$AL,'Données FDC'!$C:$C,Activation!$J$5,'Données FDC'!$E:$E,Activation!J$9))) -> 4883 | K102: =IF(ISBLANK($F$5),SUMIFS('Données FDC'!$AL:$AL,'Données FDC'!$A:$A,Activation!$C$5,'Données FDC'!$E:$E,Activation!K$9),IF(ISBLANK($J$5),SUMIFS('Données FDC'!$AL:$AL,'Données FDC'!$B:$B,Activation!$F$5,'Données FDC'!$E:$E,Activation!K$9),SUMIFS('Données FDC'!$AL:$AL,'Données FDC'!$C:$C,Activation!$J$5,'Données FDC'!$E:$E,Activation!K$9))) -> 131 | L102: =IF(ISBLANK($F$5),SUMIFS('Données FDC'!$AL:$AL,'Données FDC'!$A:$A,Activation!$C$5,'Données FDC'!$E:$E,Activation!L$9),IF(ISBLANK($J$5),SUMIFS('Données FDC'!$AL:$AL,'Données FDC'!$B:$B,Activation!$F$5,'Données FDC'!$E:$E,Activation!L$9),SUMIFS('Données FDC'!$AL:$AL,'Données FDC'!$C:$C,Activation!$J$5,'Données FDC'!$E:$E,Activation!L$9))) -> 83 | M102: =IF(ISBLANK($F$5),SUMIFS('Données FDC'!$AL:$AL,'Données FDC'!$A:$A,Activation!$C$5,'Données FDC'!$E:$E,Activation!M$9),IF(ISBLANK($J$5),SUMIFS('Données FDC'!$AL:$AL,'Données FDC'!$B:$B,Activation!$F$5,'Données FDC'!$E:$E,Activation!M$9),SUMIFS('Données FDC'!$AL:$AL,'Données FDC'!$C:$C,Activation!$J$5,'Données FDC'!$E:$E,Activation!M$9))) -> 95 | P102: =IF(ISBLANK($F$5),SUMIFS('Données FDC'!$AL:$AL,'Données FDC'!$A:$A,Activation!$C$5,'Données FDC'!$E:$E,Activation!P$9),IF(ISBLANK($J$5),SUMIFS('Données FDC'!$AL:$AL,'Données FDC'!$B:$B,Activation!$F$5,'Données FDC'!$E:$E,Activation!P$9),SUMIFS('Données FDC'!$AL:$AL,'Données FDC'!$C:$C,Activation!$J$5,'Données FDC'!$E:$E,Activation!P$9))) -> 0
C103: % détenteurs | D103: =D102/(IF(ISBLANK($F$5),SUMIFS('Données FDC'!$J:$J,'Données FDC'!$A:$A,Activation!$C$5),IF(ISBLANK($J$5),SUMIFS('Données FDC'!$J:$J,'Données FDC'!$B:$B,Activation!$F$5),SUMIFS('Données FDC'!$J:$J,'Données FDC'!$C:$C,Activation!$J$5)))) -> 0.1884080044 | E103: =E102/IF(ISBLANK($F$5),SUMIFS('Données FDC déc 2018'!$J:$J,'Données FDC déc 2018'!$A:$A,Activation!$C$5),IF(ISBLANK($J$5),SUMIFS('Données FDC déc 2018'!$J:$J,'Données FDC déc 2018'!$B:$B,Activation!$F$5),SUMIFS('Données FDC déc 2018'!$J:$J,'Données FDC déc 2018'!$C:$C,Activation!$J$5))) -> 0.1878468117 | F103: =F102/(IF(ISBLANK($F$5),SUMIFS('Données FDC'!$J:$J,'Données FDC'!$A:$A,Activation!$C$5,'Données FDC'!$E:$E,Activation!F$9),IF(ISBLANK($J$5),SUMIFS('Données FDC'!$J:$J,'Données FDC'!$B:$B,Activation!$F$5,'Données FDC'!$E:$E,Activation!F$9),SUMIFS('Données FDC'!$J:$J,'Données FDC'!$C:$C,Activation!$J$5,'Données FDC'!$E:$E,Activation!F$9)))) -> 0.6633863345 | G103: =G102/(IF(ISBLANK($F$5),SUMIFS('Données FDC'!$J:$J,'Données FDC'!$A:$A,Activation!$C$5,'Données FDC'!$E:$E,Activation!G$9),IF(ISBLANK($J$5),SUMIFS('Données FDC'!$J:$J,'Données FDC'!$B:$B,Activation!$F$5,'Données FDC'!$E:$E,Activation!G$9),SUMIFS('Données FDC'!$J:$J,'Données FDC'!$C:$C,Activation!$J$5,'Données FDC'!$E:$E,Activation!G$9)))) -> 0.16723336 | H103: =H102/(IF(ISBLANK($F$5),SUMIFS('Données FDC'!$J:$J,'Données FDC'!$A:$A,Activation!$C$5,'Données FDC'!$E:$E,Activation!H$9),IF(ISBLANK($J$5),SUMIFS('Données FDC'!$J:$J,'Données FDC'!$B:$B,Activation!$F$5,'Données FDC'!$E:$E,Activation!H$9),SUMIFS('Données FDC'!$J:$J,'Données FDC'!$C:$C,Activation!$J$5,'Données FDC'!$E:$E,Activation!H$9)))) -> 0.1105100509 | I103: =I102/(IF(ISBLANK($F$5),SUMIFS('Données FDC'!$J:$J,'Données FDC'!$A:$A,Activation!$C$5,'Données FDC'!$E:$E,Activation!I$9),IF(ISBLANK($J$5),SUMIFS('Données FDC'!$J:$J,'Données FDC'!$B:$B,Activation!$F$5,'Données FDC'!$E:$E,Activation!I$9),SUMIFS('Données FDC'!$J:$J,'Données FDC'!$C:$C,Activation!$J$5,'Données FDC'!$E:$E,Activation!I$9)))) -> 0.04170381903 | J103: =J102/(IF(ISBLANK($F$5),SUMIFS('Données FDC'!$J:$J,'Données FDC'!$A:$A,Activation!$C$5,'Données FDC'!$E:$E,Activation!J$9),IF(ISBLANK($J$5),SUMIFS('Données FDC'!$J:$J,'Données FDC'!$B:$B,Activation!$F$5,'Données FDC'!$E:$E,Activation!J$9),SUMIFS('Données FDC'!$J:$J,'Données FDC'!$C:$C,Activation!$J$5,'Données FDC'!$E:$E,Activation!J$9)))) -> 0.08521815009 | K103: =K102/(IF(ISBLANK($F$5),SUMIFS('Données FDC'!$J:$J,'Données FDC'!$A:$A,Activation!$C$5,'Données FDC'!$E:$E,Activation!K$9),IF(ISBLANK($J$5),SUMIFS('Données FDC'!$J:$J,'Données FDC'!$B:$B,Activation!$F$5,'Données FDC'!$E:$E,Activation!K$9),SUMIFS('Données FDC'!$J:$J,'Données FDC'!$C:$C,Activation!$J$5,'Données FDC'!$E:$E,Activation!K$9)))) -> 0.007740486883 | L103: =L102/(IF(ISBLANK($F$5),SUMIFS('Données FDC'!$J:$J,'Données FDC'!$A:$A,Activation!$C$5,'Données FDC'!$E:$E,Activation!L$9),IF(ISBLANK($J$5),SUMIFS('Données FDC'!$J:$J,'Données FDC'!$B:$B,Activation!$F$5,'Données FDC'!$E:$E,Activation!L$9),SUMIFS('Données FDC'!$J:$J,'Données FDC'!$C:$C,Activation!$J$5,'Données FDC'!$E:$E,Activation!L$9)))) -> 0.01298701299 | M103: =M102/(IF(ISBLANK($F$5),SUMIFS('Données FDC'!$J:$J,'Données FDC'!$A:$A,Activation!$C$5,'Données FDC'!$E:$E,Activation!M$9),IF(ISBLANK($J$5),SUMIFS('Données FDC'!$J:$J,'Données FDC'!$B:$B,Activation!$F$5,'Données FDC'!$E:$E,Activation!M$9),SUMIFS('Données FDC'!$J:$J,'Données FDC'!$C:$C,Activation!$J$5,'Données FDC'!$E:$E,Activation!M$9)))) -> 0.001725139827 | P103: =P102/(IF(ISBLANK($F$5),SUMIFS('Données FDC'!$J:$J,'Données FDC'!$A:$A,Activation!$C$5,'Données FDC'!$E:$E,Activation!P$9),IF(ISBLANK($J$5),SUMIFS('Données FDC'!$J:$J,'Données FDC'!$B:$B,Activation!$F$5,'Données FDC'!$E:$E,Activation!P$9),SUMIFS('Données FDC'!$J:$J,'Données FDC'!$C:$C,Activation!$J$5,'Données FDC'!$E:$E,Activation!P$9)))) -> 0
C104: % détenteurs CEGEE | D104: =SUM('Données FDC'!$AL:$AL)/SUM('Données FDC'!$J:$J) -> 0.1884080044 | E104: =SUM('Données FDC déc 2018'!$AL:$AL)/SUM('Données FDC déc 2018'!$J:$J) -> 0.1878468117 | F104: =SUMIF('Données FDC'!$E:$E,Activation!F$9,'Données FDC'!$AL:$AL)/SUMIF('Données FDC'!$E:$E,Activation!F$9,'Données FDC'!$J:$J) -> 0.6633863345 | G104: =SUMIF('Données FDC'!$E:$E,Activation!G$9,'Données FDC'!$AL:$AL)/SUMIF('Données FDC'!$E:$E,Activation!G$9,'Données FDC'!$J:$J) -> 0.16723336 | H104: =SUMIF('Données FDC'!$E:$E,Activation!H$9,'Données FDC'!$AL:$AL)/SUMIF('Données FDC'!$E:$E,Activation!H$9,'Données FDC'!$J:$J) -> 0.1105100509 | I104: =SUMIF('Données FDC'!$E:$E,Activation!I$9,'Données FDC'!$AL:$AL)/SUMIF('Données FDC'!$E:$E,Activation!I$9,'Données FDC'!$J:$J) -> 0.04170381903 | J104: =SUMIF('Données FDC'!$E:$E,Activation!J$9,'Données FDC'!$AL:$AL)/SUMIF('Données FDC'!$E:$E,Activation!J$9,'Données FDC'!$J:$J) -> 0.08521815009 | K104: =SUMIF('Données FDC'!$E:$E,Activation!K$9,'Données FDC'!$AL:$AL)/SUMIF('Données FDC'!$E:$E,Activation!K$9,'Données FDC'!$J:$J) -> 0.007740486883 | L104: =SUMIF('Données FDC'!$E:$E,Activation!L$9,'Données FDC'!$AL:$AL)/SUMIF('Données FDC'!$E:$E,Activation!L$9,'Données FDC'!$J:$J) -> 0.01298701299 | M104: =SUMIF('Données FDC'!$E:$E,Activation!M$9,'Données FDC'!$AL:$AL)/SUMIF('Données FDC'!$E:$E,Activation!M$9,'Données FDC'!$J:$J) -> 0.001725139827 | P104: =SUMIF('Données FDC'!$E:$E,Activation!P$9,'Données FDC'!$AL:$AL)/SUMIF('Données FDC'!$E:$E,Activation!P$9,'Données FDC'!$J:$J) -> 0
B105: Crédit Conso (majeurs) | C105: Variation | D105: =SUM(F105:P105) -> 638 | F105: =F106-IF(ISBLANK($F$5),SUMIFS('Données FDC déc 2018'!$AG:$AG,'Données FDC déc 2018'!$A:$A,Activation!$C$5,'Données FDC déc 2018'!$E:$E,Activation!F$9),IF(ISBLANK($J$5),SUMIFS('Données FDC déc 2018'!$AG:$AG,'Données FDC déc 2018'!$B:$B,Activation!$F$5,'Données FDC déc 2018'!$E:$E,Activation!F$9),SUMIFS('Données FDC déc 2018'!$AG:$AG,'Données FDC déc 2018'!$C:$C,Activation!$J$5,'Données FDC déc 2018'!$E:$E,Activation!F$9))) -> 2176 | G105: =G106-IF(ISBLANK($F$5),SUMIFS('Données FDC déc 2018'!$AG:$AG,'Données FDC déc 2018'!$A:$A,Activation!$C$5,'Données FDC déc 2018'!$E:$E,Activation!G$9),IF(ISBLANK($J$5),SUMIFS('Données FDC déc 2018'!$AG:$AG,'Données FDC déc 2018'!$B:$B,Activation!$F$5,'Données FDC déc 2018'!$E:$E,Activation!G$9),SUMIFS('Données FDC déc 2018'!$AG:$AG,'Données FDC déc 2018'!$C:$C,Activation!$J$5,'Données FDC déc 2018'!$E:$E,Activation!G$9))) -> -752 | H105: =H106-IF(ISBLANK($F$5),SUMIFS('Données FDC déc 2018'!$AG:$AG,'Données FDC déc 2018'!$A:$A,Activation!$C$5,'Données FDC déc 2018'!$E:$E,Activation!H$9),IF(ISBLANK($J$5),SUMIFS('Données FDC déc 2018'!$AG:$AG,'Données FDC déc 2018'!$B:$B,Activation!$F$5,'Données FDC déc 2018'!$E:$E,Activation!H$9),SUMIFS('Données FDC déc 2018'!$AG:$AG,'Données FDC déc 2018'!$C:$C,Activation!$J$5,'Données FDC déc 2018'!$E:$E,Activation!H$9))) -> -108 | I105: =I106-IF(ISBLANK($F$5),SUMIFS('Données FDC déc 2018'!$AG:$AG,'Données FDC déc 2018'!$A:$A,Activation!$C$5,'Données FDC déc 2018'!$E:$E,Activation!I$9),IF(ISBLANK($J$5),SUMIFS('Données FDC déc 2018'!$AG:$AG,'Données FDC déc 2018'!$B:$B,Activation!$F$5,'Données FDC déc 2018'!$E:$E,Activation!I$9),SUMIFS('Données FDC déc 2018'!$AG:$AG,'Données FDC déc 2018'!$C:$C,Activation!$J$5,'Données FDC déc 2018'!$E:$E,Activation!I$9))) -> -58 | J105: =J106-IF(ISBLANK($F$5),SUMIFS('Données FDC déc 2018'!$AG:$AG,'Données FDC déc 2018'!$A:$A,Activation!$C$5,'Données FDC déc 2018'!$E:$E,Activation!J$9),IF(ISBLANK($J$5),SUMIFS('Données FDC déc 2018'!$AG:$AG,'Données FDC déc 2018'!$B:$B,Activation!$F$5,'Données FDC déc 2018'!$E:$E,Activation!J$9),SUMIFS('Données FDC déc 2018'!$AG:$AG,'Données FDC déc 2018'!$C:$C,Activation!$J$5,'Données FDC déc 2018'!$E:$E,Activation!J$9))) -> -457 | K105: =K106-IF(ISBLANK($F$5),SUMIFS('Données FDC déc 2018'!$AG:$AG,'Données FDC déc 2018'!$A:$A,Activation!$C$5,'Données FDC déc 2018'!$E:$E,Activation!K$9),IF(ISBLANK($J$5),SUMIFS('Données FDC déc 2018'!$AG:$AG,'Données FDC déc 2018'!$B:$B,Activation!$F$5,'Données FDC déc 2018'!$E:$E,Activation!K$9),SUMIFS('Données FDC déc 2018'!$AG:$AG,'Données FDC déc 2018'!$C:$C,Activation!$J$5,'Données FDC déc 2018'!$E:$E,Activation!K$9))) -> -78 | L105: =L106-IF(ISBLANK($F$5),SUMIFS('Données FDC déc 2018'!$AG:$AG,'Données FDC déc 2018'!$A:$A,Activation!$C$5,'Données FDC déc 2018'!$E:$E,Activation!L$9),IF(ISBLANK($J$5),SUMIFS('Données FDC déc 2018'!$AG:$AG,'Données FDC déc 2018'!$B:$B,Activation!$F$5,'Données FDC déc 2018'!$E:$E,Activation!L$9),SUMIFS('Données FDC déc 2018'!$AG:$AG,'Données FDC déc 2018'!$C:$C,Activation!$J$5,'Données FDC déc 2018'!$E:$E,Activation!L$9))) -> -20 | M105: =M106-IF(ISBLANK($F$5),SUMIFS('Données FDC déc 2018'!$AG:$AG,'Données FDC déc 2018'!$A:$A,Activation!$C$5,'Données FDC déc 2018'!$E:$E,Activation!M$9),IF(ISBLANK($J$5),SUMIFS('Données FDC déc 2018'!$AG:$AG,'Données FDC déc 2018'!$B:$B,Activation!$F$5,'Données FDC déc 2018'!$E:$E,Activation!M$9),SUMIFS('Données FDC déc 2018'!$AG:$AG,'Données FDC déc 2018'!$C:$C,Activation!$J$5,'Données FDC déc 2018'!$E:$E,Activation!M$9))) -> -65 | P105: =P106-IF(ISBLANK($F$5),SUMIFS('Données FDC déc 2018'!$AG:$AG,'Données FDC déc 2018'!$A:$A,Activation!$C$5,'Données FDC déc 2018'!$E:$E,Activation!P$9),IF(ISBLANK($J$5),SUMIFS('Données FDC déc 2018'!$AG:$AG,'Données FDC déc 2018'!$B:$B,Activation!$F$5,'Données FDC déc 2018'!$E:$E,Activation!P$9),SUMIFS('Données FDC déc 2018'!$AG:$AG,'Données FDC déc 2018'!$C:$C,Activation!$J$5,'Données FDC déc 2018'!$E:$E,Activation!P$9))) -> 0
C106: Nombre détenteurs | D106: =SUM(F106:P106) -> 184827 | E106: =IF(ISBLANK($F$5),SUMIFS('Données FDC déc 2018'!$AG:$AG,'Données FDC déc 2018'!$A:$A,Activation!$C$5),IF(ISBLANK($J$5),SUMIFS('Données FDC déc 2018'!$AG:$AG,'Données FDC déc 2018'!$B:$B,Activation!$F$5),SUMIFS('Données FDC déc 2018'!$AG:$AG,'Données FDC déc 2018'!$C:$C,Activation!$J$5))) -> 184189 | F106: =IF(ISBLANK($F$5),SUMIFS('Données FDC'!$AG:$AG,'Données FDC'!$A:$A,Activation!$C$5,'Données FDC'!$E:$E,Activation!F$9),IF(ISBLANK($J$5),SUMIFS('Données FDC'!$AG:$AG,'Données FDC'!$B:$B,Activation!$F$5,'Données FDC'!$E:$E,Activation!F$9),SUMIFS('Données FDC'!$AG:$AG,'Données FDC'!$C:$C,Activation!$J$5,'Données FDC'!$E:$E,Activation!F$9))) -> 121489 | G106: =IF(ISBLANK($F$5),SUMIFS('Données FDC'!$AG:$AG,'Données FDC'!$A:$A,Activation!$C$5,'Données FDC'!$E:$E,Activation!G$9),IF(ISBLANK($J$5),SUMIFS('Données FDC'!$AG:$AG,'Données FDC'!$B:$B,Activation!$F$5,'Données FDC'!$E:$E,Activation!G$9),SUMIFS('Données FDC'!$AG:$AG,'Données FDC'!$C:$C,Activation!$J$5,'Données FDC'!$E:$E,Activation!G$9))) -> 21848 | H106: =IF(ISBLANK($F$5),SUMIFS('Données FDC'!$AG:$AG,'Données FDC'!$A:$A,Activation!$C$5,'Données FDC'!$E:$E,Activation!H$9),IF(ISBLANK($J$5),SUMIFS('Données FDC'!$AG:$AG,'Données FDC'!$B:$B,Activation!$F$5,'Données FDC'!$E:$E,Activation!H$9),SUMIFS('Données FDC'!$AG:$AG,'Données FDC'!$C:$C,Activation!$J$5,'Données FDC'!$E:$E,Activation!H$9))) -> 9533 | I106: =IF(ISBLANK($F$5),SUMIFS('Données FDC'!$AG:$AG,'Données FDC'!$A:$A,Activation!$C$5,'Données FDC'!$E:$E,Activation!I$9),IF(ISBLANK($J$5),SUMIFS('Données FDC'!$AG:$AG,'Données FDC'!$B:$B,Activation!$F$5,'Données FDC'!$E:$E,Activation!I$9),SUMIFS('Données FDC'!$AG:$AG,'Données FDC'!$C:$C,Activation!$J$5,'Données FDC'!$E:$E,Activation!I$9))) -> 8937 | J106: =IF(ISBLANK($F$5),SUMIFS('Données FDC'!$AG:$AG,'Données FDC'!$A:$A,Activation!$C$5,'Données FDC'!$E:$E,Activation!J$9),IF(ISBLANK($J$5),SUMIFS('Données FDC'!$AG:$AG,'Données FDC'!$B:$B,Activation!$F$5,'Données FDC'!$E:$E,Activation!J$9),SUMIFS('Données FDC'!$AG:$AG,'Données FDC'!$C:$C,Activation!$J$5,'Données FDC'!$E:$E,Activation!J$9))) -> 21142 | K106: =IF(ISBLANK($F$5),SUMIFS('Données FDC'!$AG:$AG,'Données FDC'!$A:$A,Activation!$C$5,'Données FDC'!$E:$E,Activation!K$9),IF(ISBLANK($J$5),SUMIFS('Données FDC'!$AG:$AG,'Données FDC'!$B:$B,Activation!$F$5,'Données FDC'!$E:$E,Activation!K$9),SUMIFS('Données FDC'!$AG:$AG,'Données FDC'!$C:$C,Activation!$J$5,'Données FDC'!$E:$E,Activation!K$9))) -> 461 | L106: =IF(ISBLANK($F$5),SUMIFS('Données FDC'!$AG:$AG,'Données FDC'!$A:$A,Activation!$C$5,'Données FDC'!$E:$E,Activation!L$9),IF(ISBLANK($J$5),SUMIFS('Données FDC'!$AG:$AG,'Données FDC'!$B:$B,Activation!$F$5,'Données FDC'!$E:$E,Activation!L$9),SUMIFS('Données FDC'!$AG:$AG,'Données FDC'!$C:$C,Activation!$J$5,'Données FDC'!$E:$E,Activation!L$9))) -> 575 | M106: =IF(ISBLANK($F$5),SUMIFS('Données FDC'!$AG:$AG,'Données FDC'!$A:$A,Activation!$C$5,'Données FDC'!$E:$E,Activation!M$9),IF(ISBLANK($J$5),SUMIFS('Données FDC'!$AG:$AG,'Données FDC'!$B:$B,Activation!$F$5,'Données FDC'!$E:$E,Activation!M$9),SUMIFS('Données FDC'!$AG:$AG,'Données FDC'!$C:$C,Activation!$J$5,'Données FDC'!$E:$E,Activation!M$9))) -> 842 | P106: =IF(ISBLANK($F$5),SUMIFS('Données FDC'!$AG:$AG,'Données FDC'!$A:$A,Activation!$C$5,'Données FDC'!$E:$E,Activation!P$9),IF(ISBLANK($J$5),SUMIFS('Données FDC'!$AG:$AG,'Données FDC'!$B:$B,Activation!$F$5,'Données FDC'!$E:$E,Activation!P$9),SUMIFS('Données FDC'!$AG:$AG,'Données FDC'!$C:$C,Activation!$J$5,'Données FDC'!$E:$E,Activation!P$9))) -> 0
